Workbook

Sheet About
B3: SUPPLEMENTARY INFORMATION
B5: On the environmental competitiveness of Sodium-Ion batteries under a full life cycle perspective – A cell-chemistry specific modelling approach
B6: Jens F. Petersa,b*, Manuel Baumannc, Joachim Binderd, Marcel Weilc,e
B8: aUniversity of Alcalá (UAH), Department of Economics, Alcalá de Henares, Madrid, Spain
B9: bIMDEA Energy, Systems Analysis Unit, Móstoles, Madrid, Spain
B10: cInstitute for Technology Assessment and System Analysis (ITAS), Karlsruhe Institute of Technology (KIT), Germany.
B11: dInstitute for Applied Materials (IAM-ESS), Karlsruhe Institute of Technology (KIT), Germany.
B12: eHelmholtz Institute Ulm for Electrochemical Energy Storage (HIU), Ulm, Germany
B16: This spreadsheet calculator is a modification of the BatPac Software Tool developed and provided by Argonne National Laboratories under the below stated open source license.
B18: Use and further development of the calculation tool is permitted under proper citation of the underlying publications
A23: Paul Nelson, Shabbir Ahmed, Kevin Gallagher, Dennis Dees, Joseph Kubal, Juhyun Song, David Robertson
A24: Chemical Sciences and Engineering Division
A25: Argonne National laboratory
A26: 9700 S. Cass Avenue, Argonne IL 60439
A27: https://www.anl.gov/tcp/batpac-battery-manufacturing-cost-estimation
A28: https://www.anl.gov/cse/batpac-model-software

Sheet Battery Design
B1: Program for Calculating Performance and Materials Requirements / Battery Design
AZ2: (table for publication)
B3: Generic parameters: | C3: C-rate (charge): | E3: 2 | G3: Charging time: | I3: =60/E3 -> 30 | J3: min | K3: (applies to all battery cells equally) | O3: =1 -> 1 | P3: Restart calc.(0/1) | R3: 1 | S3: OR | T3: CTRL+ SHIFT + R if Macro Enabled to Reconverge Calculation
B4: Cell layout | AA4: Mass balance | AZ4: Mass balance
B5: Positive Electrode | G5: =Chem!C5 -> NaFCN-HC | J5: =Chem!D5 -> NaNMMT-HC | M5: =Chem!E5 -> NaMMO-HC | P5: =Chem!F5 -> NaMVP-HC | S5: =Chem!G5 -> NaNMC-HC | V5: =Chem!H5 -> NMC622-G | Y5: =Chem!I5 -> LFP-G | AC5: =G5 -> NaFCN-HC | AF5: =J5 -> NaNMMT-HC | AI5: =M5 -> NaMMO-HC | AL5: =P5 -> NaMVP-HC | AO5: =S5 -> NaNMC-HC | AR5: =V5 -> NMC622-G | AU5: =Y5 -> LFP-G | AZ5: Composition | BA5: NMMT | BC5: =AI5 -> NaMMO-HC | BE5: =AL5 -> NaMVP-HC | BG5: NNMC | BI5: =AC5 -> NaFCN-HC | BK5: =AU5 -> LFP-G | BM5: =AR5 -> NMC622-G
B6: Parameters for Finished Cell | AA6: Anode | AC6: =SUM(AC7:AC9) -> 287.0197877 | AD6: =AC6/AC$20 -> 0.2234473132 | AF6: =SUM(AF7:AF9) -> 289.5788924 | AG6: =AF6/AF$20 -> 0.3141993663 | AI6: =SUM(AI7:AI9) -> 330.2710601 | AJ6: =AI6/AI$20 -> 0.3277459864 | AL6: =SUM(AL7:AL9) -> 239.169786 | AM6: =AL6/AL$20 -> 0.2301037009 | AO6: =SUM(AO7:AO9) -> 330.0683031 | AP6: =AO6/AO$20 -> 0.2841852265 | AR6: =SUM(AR7:AR9) -> 139.0855229 | AS6: =AR6/AR$20 -> 0.2388316677 | AU6: =SUM(AU7:AU9) -> 157.6351653 | AV6: =AU6/AU$20 -> 0.1969659356 | BA6: mass (g) | BB6: mass share | BC6: =BA6 -> mass (g) | BD6: =BB6 -> mass share | BE6: mass (g) | BF6: mass share | BG6: mass (g) | BH6: =BF6 -> mass share | BI6: =BM6 -> mass (g) | BJ6: =BN6 -> mass share | BK6: =BG6 -> mass (g) | BL6: =BH6 -> mass share | BM6: =BK6 -> mass (g) | BN6: =BL6 -> mass share
B7: Positive Electrode, g | E7: Weight % | F7: Density | G7: value | H7: Weight % | I7: Density | J7: value | K7: Weight % | L7: Density | M7: value | N7: Weight % | O7: Density | P7: value | S7: value | V7: value | Y7: value | AB7: Active material | AC7: =G14 -> 266.9284026 | AD7: 0.2078060012 | AF7: =J14 -> 269.30837 | AG7: 0.2922054106 | AI7: =M14 -> 307.1520859 | AJ7: 0.3048037674 | AL7: =P14 -> 222.427901 | AM7: 0.2139964418 | AO7: =S14 -> 306.9635219 | AP7: 0.2642922606 | AR7: =V14 -> 136.3038125 | AS7: 0.2340550343 | AU7: =Y14 -> 154.482462 | AV7: 0.1930266169 | AZ7: Anode
B8: Positive active material, g/cell | E8: =Chem!C10 -> 96 | F8: =Chem!C16 -> 1.83 | G8: =G63/G40*1000 -> 416.6666667 | H8: =Chem!D10 -> 96 | I8: =Chem!D16 -> 4.65 | J8: =J63/J40*1000 -> 333.3333333 | K8: =Chem!E10 -> 96 | L8: =Chem!E16 -> 4.616070476 | M8: =M63/M40*1000 -> 336.1344538 | N8: =Chem!F10 -> 96 | O8: =Chem!F16 -> 3.45 | P8: =P63/P40*1000 -> 423.9533651 | Q8: =Chem!G10 -> 96 | R8: =Chem!G16 -> 5.485222722 | S8: =S63/S40*1000 -> 476.1904762 | T8: =Chem!H10 -> 96 | U8: =Chem!H16 -> 4.65 | V8: =V63/V40*1000 -> 237.037037 | W8: =Chem!I10 -> 96 | X8: =Chem!I16 -> 3.45 | Y8: =Y63/Y40*1000 -> 325.0050782 | AB8: Conducting carbon | AC8: =G15 -> 8.610593631 | AD8: 0.006703419395 | AF8: =J15 -> 8.687366773 | AG8: 0.009425980988 | AI8: =M15 -> 9.908131803 | AJ8: 0.009832379592 | AL8: =P15 -> 7.17509358 | AM8: 0.006903111027 | AO8: =S15 -> 9.902049094 | AP8: 0.008525556794 | AR8: =V15 -> 0 | AS8: 0 | AU8: =Y15 -> 0 | AV8: 0 | AZ8: Active material | BA8: =AF7 -> 269.30837 | BB8: 0.2922054106 | BC8: =AI7 -> 307.1520859 | BD8: 0.3048037674 | BE8: =AL7 -> 222.427901 | BF8: 0.2139964418 | BG8: =AO7 -> 306.9635219 | BH8: 0.2642922606 | BI8: =AC7 -> 266.9284026 | BJ8: 0.2078060012 | BK8: =AU7 -> 154.482462 | BL8: 0.1930266169 | BM8: =AR7 -> 136.3038125 | BN8: 0.2340550343
B9: Carbon additive for positive electrode, g/cell | E9: =Chem!C11 -> 2 | F9: =Chem!C17 -> 1.825 | G9: =G$12*$E9/100 -> 8.680555556 | H9: =Chem!D11 -> 2 | I9: =Chem!D17 -> 1.825 | J9: =J$12*H9/100 -> 6.944444444 | K9: =Chem!E11 -> 2 | L9: =Chem!E17 -> 1.825 | M9: =M$12*K9/100 -> 7.00280112 | N9: =Chem!F11 -> 2 | O9: =Chem!F17 -> 1.825 | P9: =P$12*N9/100 -> 8.832361774 | Q9: =Chem!G11 -> 2 | R9: =Chem!G17 -> 1.825 | S9: =S$12*Q9/100 -> 9.920634921 | T9: =Chem!H11 -> 2 | U9: =Chem!H17 -> 1.825 | V9: =V$12*T9/100 -> 4.938271605 | W9: =Chem!I11 -> 2 | X9: =Chem!I17 -> 1.825 | Y9: =Y$12*W9/100 -> 6.770939129 | AB9: Binder | AC9: =G16 -> 11.48079151 | AD9: 0.008937892526 | AF9: =J16 -> 11.5831557 | AG9: 0.01256797465 | AI9: =M16 -> 13.2108424 | AJ9: 0.01310983946 | AL9: =P16 -> 9.56679144 | AM9: 0.009204148036 | AO9: =S16 -> 13.20273213 | AP9: 0.01136740906 | AR9: =V16 -> 2.781710459 | AS9: 0.004776633354 | AU9: =Y16 -> 3.152703306 | AV9: 0.003939318712 | AZ9: Cond. carbon | BA9: 8.687366773 | BB9: 0.009425980988 | BC9: 9.908131803 | BD9: 0.009832379592 | BE9: 7.17509358 | BF9: 0.006903111027 | BG9: 9.902049094 | BH9: 0.008525556794 | BI9: 8.610593631 | BJ9: 0.006703419395 | BK9: 0 | BL9: 0 | BM9: 0 | BN9: 0
B10: Positive electrode binder, g/cell | E10: =Chem!C12 -> 2 | F10: =Chem!C18 -> 1.77 | G10: =G$12*$E10/100 -> 8.680555556 | H10: =Chem!D12 -> 2 | I10: =Chem!D18 -> 1.77 | J10: =J$12*H10/100 -> 6.944444444 | K10: =Chem!E12 -> 4 | L10: =Chem!E18 -> 1.1 | M10: =M$12*K10/100 -> 14.00560224 | N10: =Chem!F12 -> 2 | O10: =Chem!F18 -> 1.77 | P10: =P$12*N10/100 -> 8.832361774 | Q10: =Chem!G12 -> 2 | R10: =Chem!G18 -> 1.77 | S10: =S$12*Q10/100 -> 9.920634921 | T10: =Chem!H12 -> 2 | U10: =Chem!H18 -> 1.77 | V10: =V$12*T10/100 -> 4.938271605 | W10: =Chem!I12 -> 2 | X10: =Chem!I18 -> 1.77 | Y10: =Y$12*W10/100 -> 6.770939129 | AB10: Foil | AC10: =G21*E21*F21 -> 70.1811539 | AD10: 0.05463661721 | AF10: =J21*H21*I21 -> 24.69895386 | AG10: 0.02679889955 | AI10: =M21*K21*L21 -> 27.57448258 | AJ10: 0.02736366302 | AL10: =P21*N21*O21 -> 40.38876108 | AM10: 0.03885776525 | AO10: =S21*Q21*R21 -> 30.05626035 | AP10: 0.02587811393 | AR10: =V21*T21*U21 -> 40.34232687 | AS10: 0.06927410562 | AU10: =Y21*W21*X21 -> 73.18455642 | AV10: 0.09144447306 | AZ10: Binder | BA10: 11.5831557 | BB10: 0.01256797465 | BC10: 13.2108424 | BD10: 0.01310983946 | BE10: 9.56679144 | BF10: 0.009204148036 | BG10: 13.20273213 | BH10: 0.01136740906 | BI10: 11.48079151 | BJ10: 0.008937892526 | BK10: 3.152703306 | BL10: 0.003939318712 | BM10: 2.781710459 | BN10: 0.004776633354
B11: Positive electrode void fraction, % | E11: Vol. % | F11: =Chem!C14 -> 35 | H11: Vol. % | I11: =Chem!D14 -> 35 | K11: Vol. % | L11: =Chem!E14 -> 35 | N11: Vol. % | O11: =Chem!F14 -> 35 | Q11: Vol. % | R11: =Chem!G14 -> 35 | T11: Vol. % | U11: =Chem!H14 -> 35 | W11: Vol. % | X11: =Chem!I14 -> 35 | AA11: Cathode | AC11: =SUM(AC12:AC14) -> 434.0277778 | AD11: 0.337894267 | AF11: =SUM(AF12:AF14) -> 347.2222222 | AG11: 0.3767436268 | AI11: =SUM(AI12:AI14) -> 357.1428571 | AJ11: 0.3544123362 | AL11: =SUM(AL12:AL14) -> 441.6180887 | AM11: 0.4248779007 | AO11: =SUM(AO12:AO14) -> 496.031746 | AP11: 0.4270779494 | AR11: =SUM(AR12:AR14) -> 246.9135802 | AS11: 0.4239893621 | AU11: =SUM(AU12:AU14) -> 338.5469565 | AV11: 0.4230161328 | AZ11: Foil | BA11: 24.69895386 | BB11: 0.02679889955 | BC11: 27.57448258 | BD11: 0.02736366302 | BE11: 40.38876108 | BF11: 0.03885776525 | BG11: 30.05626035 | BH11: 0.02587811393 | BI11: 70.1811539 | BJ11: 0.05463661721 | BK11: 73.18455642 | BL11: 0.09144447306 | BM11: 40.34232687 | BN11: 0.06927410562
B12: Total positive electrode coating, g/cell | E12: =SUM(E8:E11) -> 100 | F12: =(100-F11)/(E8/F8+E9/F9+E10/F10) -> 1.188629019 | G12: =G8/$E8*100 -> 434.0277778 | I12: =(100-I11)/(H8/I8+H9/I9+H10/I10) -> 2.842027617 | J12: =J8/H8*100 -> 347.2222222 | L12: =(100-L11)/(K8/L8+K9/L9+K10/L10) -> 2.546107703 | M12: =M8/K8*100 -> 350.140056 | O12: =(100-O11)/(N8/O8+N9/O9+N10/O10) -> 2.162923305 | P12: =P8/N8*100 -> 441.6180887 | R12: =(100-R11)/(Q8/R8+Q9/R9+Q10/R10) -> 3.294909251 | S12: =S8/Q8*100 -> 496.031746 | U12: =(100-U11)/(T8/U8+T9/U9+T10/U10) -> 2.842027617 | V12: =V8/T8*100 -> 246.9135802 | X12: =(100-X11)/(W8/X8+W9/X9+W10/X10) -> 2.162923305 | Y12: =Y8/W8*100 -> 338.5469565 | AB12: Active material | AC12: =G8 -> 416.6666667 | AD12: 0.3243784963 | AF12: =J8 -> 333.3333333 | AG12: 0.3616738817 | AI12: =M8 -> 336.1344538 | AJ12: 0.3335645518 | AL12: =P8 -> 423.9533651 | AM12: 0.4078827847 | AO12: =S8 -> 476.1904762 | AP12: 0.4099948315 | AR12: =V8 -> 237.037037 | AS12: 0.4070297876 | AU12: =Y8 -> 325.0050782 | AV12: 0.4060954875 | AZ12: Cathode
B13: Negative Electrode | E13: Weight % | F13: Density | H13: Weight % | I13: Density | K13: Weight % | L13: Density | N13: Weight % | O13: Density | Q13: Weight % | R13: Density | T13: Weight % | U13: Density | W13: Weight % | X13: Density | AB13: Conducting carbon | AC13: =G9 -> 8.680555556 | AD13: 0.00675788534 | AF13: =J9 -> 6.944444444 | AG13: 0.007534872536 | AI13: =M9 -> 7.00280112 | AJ13: 0.006949261495 | AL13: =P9 -> 8.832361774 | AM13: 0.008497558014 | AO13: =S9 -> 9.920634921 | AP13: 0.008541558989 | AR13: =V9 -> 4.938271605 | AS13: 0.008479787242 | AU13: =Y9 -> 6.770939129 | AV13: 0.008460322657 | AZ13: Active material | BA13: =AF12 -> 333.3333333 | BB13: 0.3616738817 | BC13: =AI12 -> 336.1344538 | BD13: 0.3335645518 | BE13: =AL12 -> 423.9533651 | BF13: 0.4078827847 | BG13: =AO12 -> 476.1904762 | BH13: 0.4099948315 | BI13: =AC12 -> 416.6666667 | BJ13: 0.3243784963 | BK13: =AU12 -> 325.0050782 | BL13: 0.4060954875 | BM13: =AR12 -> 237.037037 | BN13: 0.4070297876
B14: Negative active material per cell, g | E14: =Chem!C33 -> 93 | F14: =Chem!C39 -> 2.24 | G14: =G63/G42*1000*G44*(1+G49/100) -> 266.9284026 | H14: =Chem!D33 -> 93 | I14: =Chem!D39 -> 2.24 | J14: =J63/J42*1000*J44*(1+J49/100) -> 269.30837 | K14: =Chem!E33 -> 93 | L14: =Chem!E39 -> 2.24 | M14: =M63/M42*1000*M44*(1+M49/100) -> 307.1520859 | N14: =Chem!F33 -> 93 | O14: =Chem!F39 -> 2.24 | P14: =P63/P42*1000*P44*(1+P49/100) -> 222.427901 | Q14: =Chem!G33 -> 93 | R14: =Chem!G39 -> 2.24 | S14: =S63/S42*1000*S44*(1+S49/100) -> 306.9635219 | T14: =Chem!H33 -> 98 | U14: =Chem!H39 -> 2.24 | V14: =V63/V42*1000*V44*(1+V49/100) -> 136.3038125 | W14: =Chem!I33 -> 98 | X14: =Chem!I39 -> 2.24 | Y14: =Y63/Y42*1000*Y44*(1+Y49/100) -> 154.482462 | AB14: Binder | AC14: =G10 -> 8.680555556 | AD14: 0.00675788534 | AF14: =J10 -> 6.944444444 | AG14: 0.007534872536 | AI14: =M10 -> 14.00560224 | AJ14: 0.01389852299 | AL14: =P10 -> 8.832361774 | AM14: 0.008497558014 | AO14: =S10 -> 9.920634921 | AP14: 0.008541558989 | AR14: =V10 -> 4.938271605 | AS14: 0.008479787242 | AU14: =Y10 -> 6.770939129 | AV14: 0.008460322657 | AZ14: Cond. carbon | BA14: 6.944444444 | BB14: 0.007534872536 | BC14: 7.00280112 | BD14: 0.006949261495 | BE14: 8.832361774 | BF14: 0.008497558014 | BG14: 9.920634921 | BH14: 0.008541558989 | BI14: 8.680555556 | BJ14: 0.00675788534 | BK14: 6.770939129 | BL14: 0.008460322657 | BM14: 4.938271605 | BN14: 0.008479787242
B15: Carbon additive for negative electrode, g/cell | E15: =Chem!C34 -> 3 | F15: =Chem!C40 -> 1.95 | G15: =G$18*$E15/100 -> 8.610593631 | H15: =Chem!D34 -> 3 | I15: =Chem!D40 -> 1.95 | J15: =J$18*H15/100 -> 8.687366773 | K15: =Chem!E34 -> 3 | L15: =Chem!E40 -> 1.95 | M15: =M$18*K15/100 -> 9.908131803 | N15: =Chem!F34 -> 3 | O15: =Chem!F40 -> 1.95 | P15: =P$18*N15/100 -> 7.17509358 | Q15: =Chem!G34 -> 3 | R15: =Chem!G40 -> 1.95 | S15: =S$18*Q15/100 -> 9.902049094 | T15: =Chem!H34 -> 0 | U15: =Chem!H40 -> 1.95 | V15: =V$18*T15/100 -> 0 | W15: =Chem!I34 -> 0 | X15: =Chem!I40 -> 1.95 | Y15: =Y$18*W15/100 -> 0 | AB15: Foil | AC15: =G20*E20*F20 -> 66.98675689 | AD15: 0.05214975233 | AF15: =J20*H20*I20 -> 23.06511821 | AG15: 0.0250261525 | AI15: =M20*K20*L20 -> 25.79265676 | AJ15: 0.02559546007 | AL15: =P20*N20*O20 -> 38.20223912 | AM15: 0.03675412665 | AO15: =S20*Q20*R20 -> 28.17992659 | AP15: 0.02426261093 | AR15: =V20*T20*U20 -> 16.97667175 | AS15: 0.02915160932 | AU15: =Y20*W20*X20 -> 31.21127525 | AV15: 0.03899864614 | AZ15: Binder | BA15: 6.944444444 | BB15: 0.007534872536 | BC15: 14.00560224 | BD15: 0.01389852299 | BE15: 8.832361774 | BF15: 0.008497558014 | BG15: 9.920634921 | BH15: 0.008541558989 | BI15: 8.680555556 | BJ15: 0.00675788534 | BK15: 6.770939129 | BL15: 0.008460322657 | BM15: 4.938271605 | BN15: 0.008479787242
B16: Negative electrode binder, g/cell | E16: =Chem!C35 -> 4 | F16: =Chem!C41 -> 1.1 | G16: =G$18*$E16/100 -> 11.48079151 | H16: =Chem!D35 -> 4 | I16: =Chem!D41 -> 1.1 | J16: =J$18*H16/100 -> 11.5831557 | K16: =Chem!E35 -> 4 | L16: =Chem!E41 -> 1.1 | M16: =M$18*K16/100 -> 13.2108424 | N16: =Chem!F35 -> 4 | O16: =Chem!F41 -> 1.1 | P16: =P$18*N16/100 -> 9.56679144 | Q16: =Chem!G35 -> 4 | R16: =Chem!G41 -> 1.1 | S16: =S$18*Q16/100 -> 13.20273213 | T16: =Chem!H35 -> 2 | U16: =Chem!H41 -> 1.1 | V16: =V$18*T16/100 -> 2.781710459 | W16: =Chem!I35 -> 2 | X16: =Chem!I41 -> 1.1 | Y16: =Y$18*W16/100 -> 3.152703306 | AA16: Electrolyte | AB16: Electrolyte | AC16: =G24*F24*1000 -> 342.513899 | AD16: 0.2666499445 | AF16: =J24*I24*1000 -> 188.9412146 | AG16: 0.2050053075 | AI16: =M24*L24*1000 -> 214.2816833 | AJ16: 0.2126434016 | AL16: =P24*O24*1000 -> 221.9011245 | AM16: 0.2134896336 | AO16: =S24*R24*1000 -> 222.5019898 | AP16: 0.1915717982 | AR16: =V24*U24*1000 -> 89.66192078 | AS16: 0.1539635874 | AU16: =Y24*X24*1000 -> 133.0341024 | AV16: 0.1662267832 | AZ16: Foil | BA16: 23.06511821 | BB16: 0.0250261525 | BC16: 25.79265676 | BD16: 0.02559546007 | BE16: 38.20223912 | BF16: 0.03675412665 | BG16: 28.17992659 | BH16: 0.02426261093 | BI16: 66.98675689 | BJ16: 0.05214975233 | BK16: 31.21127525 | BL16: 0.03899864614 | BM16: 16.97667175 | BN16: 0.02915160932
B17: Negative electrode void fraction, % | E17: Vol. % | F17: =Chem!C37 -> 35 | H17: Vol. % | I17: =Chem!D37 -> 35 | K17: Vol. % | L17: =Chem!E37 -> 35 | N17: Vol. % | O17: =Chem!F37 -> 35 | Q17: Vol. % | R17: =Chem!G37 -> 35 | T17: Vol. % | U17: =Chem!H37 -> 35 | W17: Vol. % | X17: =Chem!I37 -> 35 | AA17: Separator | AB17: Separator | AC17: =G22*E22*F22 -> 21.7042198 | AD17: 0.01689691724 | AF17: =J22*H22*I22 -> 7.405815892 | AG17: 0.008035470543 | AI17: =M22*K22*L22 -> 8.298494015 | AJ17: 0.008235048223 | AL17: =P22*N22*O22 -> 12.30043119 | AM17: 0.01183416512 | AO17: =S22*Q22*R22 -> 9.072177383 | AP17: 0.007811046258 | AR17: =V22*T22*U22 -> 5.394400486 | AS17: 0.009263032106 | AU17: =Y22*W22*X22 -> 9.993694367 | AV17: 0.01248717161 | AZ17: Electrolyte | BA17: 188.9412146 | BB17: 0.2050053075 | BC17: 214.2816833 | BD17: 0.2126434016 | BE17: 221.9011245 | BF17: 0.2134896336 | BG17: 222.5019898 | BH17: 0.1915717982 | BI17: 342.513899 | BJ17: 0.2666499445 | BK17: 133.0341024 | BL17: 0.1662267832 | BM17: 89.66192078 | BN17: 0.1539635874
B18: Total negative electrode coating, g/cell | E18: =SUM(E14:E17) -> 100 | F18: =(100-F17)/(E14/F14+E16/F16+E15/F15) -> 1.392081088 | G18: =G14/$E14*100 -> 287.0197877 | H18: =SUM(H14:H17) -> 100 | I18: =(100-I17)/(H14/I14+H16/I16+H15/I15) -> 1.392081088 | J18: =J14/H14*100 -> 289.5788924 | L18: =(100-L17)/(K14/L14+K16/L16+K15/L15) -> 1.392081088 | M18: =M14/K14*100 -> 330.2710601 | O18: =(100-O17)/(N14/O14+N16/O16+N15/O15) -> 1.392081088 | P18: =P14/N14*100 -> 239.169786 | R18: =(100-R17)/(Q14/R14+Q16/R16+Q15/R15) -> 1.392081088 | S18: =S14/Q14*100 -> 330.0683031 | U18: =(100-U17)/(T14/U14+T16/U16+T15/U15) -> 1.426433915 | V18: =V14/T14*100 -> 139.0855229 | X18: =(100-X17)/(W14/X14+W16/X16+W15/X15) -> 1.426433915 | Y18: =Y14/W14*100 -> 157.6351653 | AA18: Cell | AB18: Cell housing | AC18: =G30 -> 35.30553723 | AD18: 0.02748565698 | AF18: =J30 -> 21.66716274 | AG18: 0.02350934056 | AI18: =M30 -> 23.89071095 | AJ18: 0.02370805552 | AL18: =P30 -> 24.8102369 | AM18: 0.02386976811 | AO18: =S30 -> 24.63839907 | AP18: 0.02121339418 | AR18: =V30 -> 14.19914301 | AS18: 0.02438215662 | AU18: =Y30 -> 19.1456698 | AV18: 0.02392261116 | AZ18: Separator | BA18: 7.405815892 | BB18: 0.008035470543 | BC18: 8.298494015 | BD18: 0.008235048223 | BE18: 12.30043119 | BF18: 0.01183416512 | BG18: 9.072177383 | BH18: 0.007811046258 | BI18: 21.7042198 | BJ18: 0.01689691724 | BK18: 9.993694367 | BL18: 0.01248717161 | BM18: 5.394400486 | BN18: 0.009263032106
B19: Balance of Cell | E19: Thick., mm | F19: Density | H19: Thick., mm | I19: Density | K19: Thick., mm | L19: Density | N19: Thick., mm | O19: Density | Q19: Thick., mm | R19: Density | T19: Thick., mm | U19: Density | W19: Thick., mm | X19: Density | AB19: Cell terminals | AC19: =+G25+G26 -> 26.76853823 | AD19: 0.02083953163 | AF19: =+J25+J26 -> 19.06122002 | AG19: 0.0206818363 | AI19: =+M25+M26 -> 20.45241701 | AJ19: 0.02029604891 | AL19: =+P25+P26 -> 21.00932946 | AM19: 0.0202129397 | AO19: =+S25+S26 -> 20.90602502 | AP19: 0.01799986063 | AR19: =+V25+V26 -> 29.78439455 | AS19: 0.0511444791 | AU19: =+Y25+Y26 -> 37.56547139 | AV19: 0.04693824633 | AZ19: Cell
B20: Positive foil per cell, m2 | D20: =IF(Chem!C23="aluminum","Al","Cu") -> Al | E20: =Chem!C24 -> 15 | F20: =Chem!C25 -> 2.7 | G20: =G96*G97*(G98+G99)/1000000 -> 1.653993997 | H20: =Chem!D24 -> 15 | I20: =Chem!D25 -> 2.7 | J20: =J96*J97*(J98+J99)/1000000 -> 0.5695090915 | K20: =Chem!E24 -> 15 | L20: =Chem!E25 -> 2.7 | M20: =M96*M97*(M98+M99)/1000000 -> 0.6368557224 | N20: =Chem!F24 -> 15 | O20: =Chem!F25 -> 2.7 | P20: =P96*P97*(P98+P99)/1000000 -> 0.9432651635 | Q20: =Chem!G24 -> 15 | R20: =Chem!G25 -> 2.7 | S20: =S96*S97*(S98+S99)/1000000 -> 0.6958006566 | T20: =Chem!H24 -> 15 | U20: =Chem!H25 -> 2.7 | V20: =V96*V97*(V98+V99)/1000000 -> 0.4191770803 | W20: =Chem!I24 -> 15 | X20: =Chem!I25 -> 2.7 | Y20: =Y96*Y97*(Y98+Y99)/1000000 -> 0.7706487716 | AA20: Total | AC20: =SUM(AC12:AC19)+SUM(AC7:AC10) -> 1284.507671 | AD20: g | AF20: =SUM(AF12:AF19)+SUM(AF7:AF10) -> 921.6406 | AG20: g | AI20: =SUM(AI12:AI19)+SUM(AI7:AI10) -> 1007.704362 | AJ20: g | AL20: =SUM(AL12:AL19)+SUM(AL7:AL10) -> 1039.399997 | AM20: g | AO20: =SUM(AO12:AO19)+SUM(AO7:AO10) -> 1161.454827 | AP20: g | AR20: =SUM(AR12:AR19)+SUM(AR7:AR10) -> 582.3579606 | AS20: g | AU20: =SUM(AU12:AU19)+SUM(AU7:AU10) -> 800.3168915 | AV20: g | AZ20: Cell housing | BA20: =AF18 -> 21.66716274 | BB20: =AG18 -> 0.02350934056 | BC20: =AI18 -> 23.89071095 | BD20: =AJ18 -> 0.02370805552 | BE20: =AL18 -> 24.8102369 | BF20: =AM18 -> 0.02386976811 | BG20: =AO18 -> 24.63839907 | BH20: =AP18 -> 0.02121339418 | BI20: =AC18 -> 35.30553723 | BJ20: =AD18 -> 0.02748565698 | BK20: =AU18 -> 19.1456698 | BL20: =AV18 -> 0.02392261116 | BM20: =AR18 -> 14.19914301 | BN20: =AS18 -> 0.02438215662
B21: Negative foil per cell, m2 | D21: =IF(Chem!C44="aluminum","Al","Cu") -> Al | E21: =Chem!C45 -> 15 | F21: =Chem!C46 -> 2.7 | G21: =(G96+1)*(G97+2)*(G98+G99+2)/1000000 -> 1.732867997 | H21: =Chem!D45 -> 15 | I21: =Chem!D46 -> 2.7 | J21: =(J96+1)*(J97+2)*(J98+J99+2)/1000000 -> 0.6098507126 | K21: =Chem!E45 -> 15 | L21: =Chem!E46 -> 2.7 | M21: =(M96+1)*(M97+2)*(M98+M99+2)/1000000 -> 0.6808514217 | N21: =Chem!F45 -> 15 | O21: =Chem!F46 -> 2.7 | P21: =(P96+1)*(P97+2)*(P98+P99+2)/1000000 -> 0.9972533601 | Q21: =Chem!G45 -> 15 | R21: =Chem!G46 -> 2.7 | S21: =(S96+1)*(S97+2)*(S98+S99+2)/1000000 -> 0.7421298851 | T21: =Chem!H45 -> 10 | U21: =Chem!H46 -> 8.96 | V21: =(V96+1)*(V97+2)*(V98+V99+2)/1000000 -> 0.4502491838 | W21: =Chem!I45 -> 10 | X21: =Chem!I46 -> 8.96 | Y21: =(Y96+1)*(Y97+2)*(Y98+Y99+2)/1000000 -> 0.8167919244 | AZ21: Cell terminals | BA21: =AF19 -> 19.06122002 | BB21: =AG19 -> 0.0206818363 | BC21: =AI19 -> 20.45241701 | BD21: =AJ19 -> 0.02029604891 | BE21: =AL19 -> 21.00932946 | BF21: =AM19 -> 0.0202129397 | BG21: =AO19 -> 20.90602502 | BH21: =AP19 -> 0.01799986063 | BI21: =AC19 -> 26.76853823 | BJ21: =AD19 -> 0.02083953163 | BK21: =AU19 -> 37.56547139 | BL21: =AV19 -> 0.04693824633 | BM21: =AR19 -> 29.78439455 | BN21: =AS19 -> 0.0511444791
B22: Separator per cell, m2 | E22: =Chem!C49 -> 15 | F22: =Chem!C51 -> 0.45 | G22: =(G97+4)*(G98+6)*2*G96/1000000 -> 3.21543997 | H22: =Chem!D49 -> 15 | I22: =Chem!D51 -> 0.45 | J22: =(J97+4)*(J98+6)*2*J96/1000000 -> 1.09715791 | K22: =Chem!E49 -> 15 | L22: =Chem!E51 -> 0.45 | M22: =(M97+4)*(M98+6)*2*M96/1000000 -> 1.229406521 | N22: =Chem!F49 -> 15 | O22: =Chem!F51 -> 0.45 | P22: =(P97+4)*(P98+6)*2*P96/1000000 -> 1.822286103 | Q22: =Chem!G49 -> 15 | R22: =Chem!G51 -> 0.45 | S22: =(S97+4)*(S98+6)*2*S96/1000000 -> 1.344026279 | T22: =Chem!H49 -> 15 | U22: =Chem!H51 -> 0.45 | V22: =(V97+4)*(V98+6)*2*V96/1000000 -> 0.7991704424 | W22: =Chem!I49 -> 15 | X22: =Chem!I51 -> 0.45 | Y22: =(Y97+4)*(Y98+6)*2*Y96/1000000 -> 1.480547314 | AA22: Capacity | AB22: =B107 -> Total cell energy storage, kWh | AC22: =G107*1000 -> 159.4301011 | AD22: Wh | AF22: =J107*1000 -> 158.4393518 | AG22: Wh | AI22: =M107*1000 -> 158.2910842 | AJ22: Wh | AL22: =P107*1000 -> 158.4743784 | AM22: Wh | AO22: =S107*1000 -> 158.3175356 | AP22: Wh | AR22: =V107*1000 -> 158.4657351 | AS22: Wh | AU22: =Y107*1000 -> 157.9975395 | AV22: Wh | AZ22: Total | BA22: =SUM(BA13:BA21)+SUM(BA8:BA11) -> 921.6406 | BB22: g | BC22: =SUM(BC13:BC21)+SUM(BC8:BC11) -> 1007.704362 | BD22: g | BE22: =SUM(BE13:BE21)+SUM(BE8:BE11) -> 1039.399997 | BF22: g | BG22: =SUM(BG13:BG21)+SUM(BG8:BG11) -> 1161.454827 | BH22: g | BI22: =SUM(BI13:BI21)+SUM(BI8:BI11) -> 1284.507671 | BJ22: g | BK22: =SUM(BK13:BK21)+SUM(BK8:BK11) -> 800.3168915 | BL22: g | BM22: =SUM(BM13:BM21)+SUM(BM8:BM11) -> 582.3579606 | BN22: g
B23: Separator void fraction, % | F23: =Chem!BY50 -> 50 | I23: =Chem!D50 -> 50 | L23: =Chem!E50 -> 50 | O23: =Chem!F50 -> 50 | R23: =Chem!G50 -> 50 | U23: =Chem!H50 -> 50 | X23: =Chem!I50 -> 50 | AZ23: Capacity | BA23: Total | BB23: Useable | BC23: Total | BD23: Useable | BE23: Total | BF23: Useable | BG23: Total | BH23: Useable | BI23: Total | BJ23: Useable | BK23: Total | BL23: Useable | BM23: Total | BN23: Useable
B24: Electrolyte per cell, L | F24: =Chem!C54 -> 1.44 | G24: =(G12/$F12*$F11/100+G18/$F18*$F17/100+G22*$E22*F23/100+G35*G97*G98/1000*0.02)/1000 -> 0.2378568743 | I24: =Chem!D54 -> 1.44 | J24: =(J12/I12*I11/100+J18/I18*I17/100+J22*H22*I23/100+J35*J97*J98/1000*0.02)/1000 -> 0.1312091768 | L24: =Chem!E54 -> 1.44 | M24: =(M12/L12*L11/100+M18/L18*L17/100+M22*K22*L23/100+M35*M97*M98/1000*0.02)/1000 -> 0.1488067245 | O24: =Chem!F54 -> 1.44 | P24: =(P12/O12*O11/100+P18/O18*O17/100+P22*N22*O23/100+P35*P97*P98/1000*0.02)/1000 -> 0.1540980031 | R24: =Chem!G54 -> 1.44 | S24: =(S12/R12*R11/100+S18/R18*R17/100+S22*Q22*R23/100+S35*S97*S98/1000*0.02)/1000 -> 0.1545152707 | U24: =Chem!H54 -> 1.2 | V24: =(V12/U12*U11/100+V18/U18*U17/100+V22*T22*U23/100+V35*V97*V98/1000*0.02)/1000 -> 0.07471826732 | X24: =Chem!I54 -> 1.2 | Y24: =(Y12/X12*X11/100+Y18/X18*X17/100+Y22*W22*X23/100+Y35*Y97*Y98/1000*0.02)/1000 -> 0.110861752 | AB24: =B108 -> Useable cell energy storage, kWh | AC24: =G108*1000 -> 135.5155859 | AD24: Wh | AF24: =J108*1000 -> 134.673449 | AG24: Wh | AI24: =M108*1000 -> 134.5474215 | AJ24: Wh | AL24: =P108*1000 -> 134.7032217 | AM24: Wh | AO24: =S108*1000 -> 134.5699052 | AP24: Wh | AR24: =V108*1000 -> 134.6958749 | AS24: Wh | AU24: =Y108*1000 -> 134.2979086 | AV24: Wh | AZ24: Cell capacity (Wh) | BA24: =AF22 -> 158.4393518 | BB24: =AF24 -> 134.673449 | BC24: =AI22 -> 158.2910842 | BD24: =AI24 -> 134.5474215 | BE24: =AL22 -> 158.4743784 | BF24: =AL24 -> 134.7032217 | BG24: =AO22 -> 158.3175356 | BH24: =AO24 -> 134.5699052 | BI24: =AC22 -> 159.4301011 | BJ24: =AC24 -> 135.5155859 | BK24: =AU22 -> 157.9975395 | BL24: =AU24 -> 134.2979086 | BM24: =AR22 -> 158.4657351 | BN24: =AR24 -> 134.6958749
B25: Cell positive terminal assembly, g | G25: =F20*(G101*G37*G100)/1000 -> 13.38426912 | I25: void | J25: =I20*(J101*J37*J100)/1000 -> 9.530610008 | M25: =L20*(M101*M37*M100)/1000 -> 10.22620851 | P25: =O20*(P101*P37*P100)/1000 -> 10.50466473 | S25: =R20*(S101*S37*S100)/1000 -> 10.45301251 | V25: =U20*(V101*V37*V100)/1000 -> 6.896900967 | Y25: =X20*(Y101*Y37*Y100)/1000 -> 8.698694062 | AA25: Energy density | AB25: Total | AC25: =AC22/AC20*1000 -> 124.1176715 | AD25: Wh/kg | AF25: =AF22/AF20*1000 -> 171.9101262 | AG25: Wh/kg | AI25: =AI22/AI20*1000 -> 157.0808762 | AJ25: Wh/kg | AL25: =AL22/AL20*1000 -> 152.4671723 | AM25: Wh/kg | AO25: =AO22/AO20*1000 -> 136.3096797 | AP25: Wh/kg | AR25: =AR22/AR20*1000 -> 272.1105331 | AS25: Wh/kg | AU25: =AU22/AU20*1000 -> 197.418724 | AV25: Wh/kg | AZ25: Eng. dens. (Wh/kg) | BA25: =AF25 -> 171.9101262 | BB25: =AF26 -> 146.1236072 | BC25: =AI25 -> 157.0808762 | BD25: =AI26 -> 133.5187448 | BE25: =AL25 -> 152.4671723 | BF25: =AL26 -> 129.5970965 | BG25: =AO25 -> 136.3096797 | BH25: =AO26 -> 115.8632278 | BI25: =AC25 -> 124.1176715 | BJ25: =AC26 -> 105.5000208 | BK25: =AU25 -> 197.418724 | BL25: =AU26 -> 167.8059154 | BM25: =AR25 -> 272.1105331 | BN25: =AR26 -> 231.2939531
B26: Cell negative terminal assembly, g | G26: =F21*(G101*G37*G100)/1000 -> 13.38426912 | J26: =I21*(J101*J37*J100)/1000 -> 9.530610008 | M26: =L21*(M101*M37*M100)/1000 -> 10.22620851 | P26: =O21*(P101*P37*P100)/1000 -> 10.50466473 | S26: =R21*(S101*S37*S100)/1000 -> 10.45301251 | V26: =U21*(V101*V37*V100)/1000 -> 22.88749358 | Y26: =X21*(Y101*Y37*Y100)/1000 -> 28.86677733 | AB26: Useable | AC26: =AC24/AC20*1000 -> 105.5000208 | AD26: Wh/kg | AF26: =AF24/AF20*1000 -> 146.1236072 | AG26: Wh/kg | AI26: =AI24/AI20*1000 -> 133.5187448 | AJ26: Wh/kg | AL26: =AL24/AL20*1000 -> 129.5970965 | AM26: Wh/kg | AO26: =AO24/AO20*1000 -> 115.8632278 | AP26: Wh/kg | AR26: =AR24/AR20*1000 -> 231.2939531 | AS26: Wh/kg | AU26: =AU24/AU20*1000 -> 167.8059154 | AV26: Wh/kg | AZ26: Eng. dens. (Wh/l) | BA26: =BA24/J104*1000 -> 369.8049921 | BB26: =BB24/J104*1000 -> 314.3342433 | BC26: =BC24/M104*1000 -> 328.1729483 | BD26: =BD24/J104*1000 -> 314.0400891 | BE26: =BE24/P104*1000 -> 313.9286061 | BF26: =BF24/P104*1000 -> 266.8393152 | BG26: =BG24/P104*1000 -> 313.6179094 | BH26: =BH24/P104*1000 -> 266.575223 | BI26: =BI24/G104*1000 -> 207.83031 | BJ26: =BJ24/G104*1000 -> 176.6557635 | BK26: =BK24/Y104*1000 -> 429.1536227 | BL26: =BL24/Y104*1000 -> 364.7805793 | BM26: =BM24/V104*1000 -> 625.7826405 | BN26: =BN24/V104*1000 -> 531.9152445
B27: Thickness of cell container aluminum layer, µm | G27: =100 -> 100 | J27: =100 -> 100 | M27: =100 -> 100 | P27: =100 -> 100 | S27: =100 -> 100 | V27: =100 -> 100 | Y27: =100 -> 100 | AZ27: =AB26 -> Useable
B28: Thickness of cell container (PET-Al-PP), µm | G28: =30+G27+20 -> 150 | J28: 150 | M28: 150 | P28: 150 | S28: 150 | V28: 150 | Y28: 150
B29: Density of cell container, g/cm3 | G29: =(30*_rho_PET+G27*_rho_Al+20*_rho_PP)/G28 -> 2.196 | J29: =(30*_rho_PET+J27*_rho_Al+20*_rho_PP)/J28 -> 2.196 | M29: 2.196 | P29: 2.196 | S29: 2.196 | V29: 2.196 | Y29: 2.196
B30: Mass of cell container (PET-Al-PP), g | G30: =(G102+2*G35+6)*(G103-6)*G28*2/1000*G29/1000 -> 35.30553723 | J30: =(J102+2*J35+6)*(J103-6)*J28*2/1000*J29/1000 -> 21.66716274 | M30: =(M102+2*M35+6)*(M103-6)*M28*2/1000*M29/1000 -> 23.89071095 | P30: =(P102+2*P35+6)*(P103-6)*P28*2/1000*P29/1000 -> 24.8102369 | S30: =(S102+2*S35+6)*(S103-6)*S28*2/1000*S29/1000 -> 24.63839907 | V30: =(V102+2*V35+6)*(V103-6)*V28*2/1000*V29/1000 -> 14.19914301 | Y30: =(Y102+2*Y35+6)*(Y103-6)*Y28*2/1000*Y29/1000 -> 19.1456698 | AB30: gravimetric energy density (mAh/g) | AE30: Voltage | AG30: from Hard Carbon price paper (alexandra)
B31: Cell mass, g | G31: =G12+G18+G20*$E20*$F20+G21*$E21*$F21+G22*$E22*$F22+G24*$F24*1000+G25+G26+G30 -> 1284.507671 | J31: =J12+J18+J20*$E20*$F20+J21*$E21*$F21+J22*$E22*$F22+J24*$F24*1000+J25+J26+J30 -> 921.6406 | M31: =M12+M18+M20*$E20*$F20+M21*$E21*$F21+M22*$E22*$F22+M24*$F24*1000+M25+M26+M30 -> 1000.701561 | P31: =P12+P18+P20*$E20*$F20+P21*$E21*$F21+P22*$E22*$F22+P24*$F24*1000+P25+P26+P30 -> 1039.399997 | S31: =S12+S18+S20*$E20*$F20+S21*$E21*$F21+S22*$E22*$F22+S24*$F24*1000+S25+S26+S30 -> 1161.454827 | V31: =V12+V18+V20*$E20*$F20+V21*$E21*$F21+V22*$E22*$F22+V24*$F24*1000+V25+V26+V30 -> 578.1831099 | Y31: =Y12+Y18+Y20*$E20*$F20+Y21*$E21*$F21+Y22*$E22*$F22+Y24*$F24*1000+Y25+Y26+Y30 -> 786.8192285 | AA31: Cathode material | AB31: theoretical | AC31: experimental | AD31: commercial | AE31: Voltage
B32: Length-to-width ratio for positive electrode | G32: =3 -> 3 | J32: =3 -> 3 | M32: =3 -> 3 | P32: =3 -> 3 | S32: =3 -> 3 | V32: =3 -> 3 | Y32: =3 -> 3 | AA32: NCM333 | AB32: 280 | AC32: 160 | AD32: 170 | AE32: 3.7 | AG32: acc. To Nitta et al. 2015 - Li-ion battery materials: present and future
B33: Default cell thickness target, mm | C33: default: 20 for EV, 6 for microHEV, 12 for HP-HEV and 16 for PHEV | G33: 20 | J33: 20 | M33: 20 | P33: 20 | S33: 20 | V33: 20 | Y33: 20 | AA33: LFP | AB33: 170 | AC33: 165 | AD33: 160 | AE33: 3.2 | BA33: =BA5 -> NMMT | BB33: =BC5 -> NaMMO-HC | BC33: =BE5 -> NaMVP-HC | BD33: =BG5 -> NNMC | BE33: =BI5 -> NaFCN-HC | BF33: =BK5 -> LFP-G | BG33: =BM5 -> NMC622-G
B34: Override cell thickness target, mm | AA34: NMMT | AB34: 200 | AC34: 95 | AD34: 150 | AE34: 3.2 | AY34: Anode | AZ34: Act. material | BA34: =BA8 -> 269.30837 | BB34: =BC8 -> 307.1520859 | BC34: =BE8 -> 222.427901 | BD34: =BG8 -> 306.9635219 | BE34: =BI8 -> 266.9284026 | BF34: =BK8 -> 154.482462 | BG34: =BM8 -> 136.3038125
B35: Cell thickness, mm | G35: =IF(G34=0,G33,G34)+G118 -> 20 | J35: =IF(J34=0,J33,J34)+J118 -> 20 | M35: =IF(M34=0,M33,M34)+M118 -> 20 | P35: =IF(P34=0,P33,P34)+P118 -> 20 | S35: =IF(S34=0,S33,S34)+S118 -> 20 | V35: =IF(V34=0,V33,V34)+V118 -> 20 | Y35: =IF(Y34=0,Y33,Y34)+Y118 -> 20 | AA35: NMO | AC35: 110 | AZ35: Cond. carbon | BA35: =BA9 -> 8.687366773 | BB35: =BC9 -> 9.908131803 | BC35: =BE9 -> 7.17509358 | BD35: =BG9 -> 9.902049094 | BE35: =BI9 -> 8.610593631 | BF35: =BK9 -> 0 | BG35: =BM9 -> 0
B36: Thickness of cell edge from positive electrode to outside of fold, mm | G36: 1 | J36: 1 | M36: 1 | P36: 1 | S36: 1 | V36: 1 | Y36: 1 | AZ36: Binder | BA36: 11.5831557 | BB36: 13.2108424 | BC36: 9.56679144 | BD36: 13.20273213 | BE36: =BI10 -> 11.48079151 | BF36: =BK10 -> 3.152703306 | BG36: =BM10 -> 2.781710459
B37: Thickness of terminal material, mm | G37: 1 | J37: 1 | M37: 1 | P37: 1 | S37: 1 | V37: 1 | Y37: 1 | AA37: Anode materials | AZ37: Foil | BA37: 24.69895386 | BB37: 27.57448258 | BC37: 40.38876108 | BD37: 30.05626035 | BE37: =BI11 -> 70.1811539 | BF37: =BK11 -> 73.18455642 | BG37: =BM11 -> 40.34232687
B38: Top of positive electrode to top of terminal, mm | G38: 15 | J38: 15 | M38: 15 | P38: 15 | S38: 15 | V38: 15 | Y38: 15 | AA38: graphite | AB38: 360 | AD38: 300 | AY38: Cath. | AZ38: Act. material | BA38: =BA13 -> 333.3333333 | BB38: =BC13 -> 336.1344538 | BC38: =BE13 -> 423.9533651 | BD38: =BG13 -> 476.1904762 | BE38: =BI13 -> 416.6666667 | BF38: =BK13 -> 325.0050782 | BG38: =BM13 -> 237.037037
B39: Cell Capacity Parameters | AA39: Hard carbon | AB39: 360 | AD39: 240 | AZ39: Cond. carbon | BA39: 6.944444444 | BB39: 7.00280112 | BC39: 8.832361774 | BD39: 9.920634921 | BE39: 8.680555556 | BF39: 6.770939129 | BG39: 4.938271605
B40: Positive active material capacity, mAh/g: | F40: =Chem!C8 -> 120 | G40: =F40 -> 120 | I40: =Chem!D8 -> 150 | J40: =I40 -> 150 | L40: =Chem!E8 -> 170 | M40: =L40 -> 170 | O40: =Chem!F8 -> 111 | P40: =O40 -> 111 | R40: =Chem!G8 -> 120 | S40: =R40 -> 120 | U40: =Chem!H8 -> 180 | V40: =U40 -> 180 | X40: =Chem!I8 -> 150 | Y40: =X40 -> 150 | AZ40: Binder | BA40: 6.944444444 | BB40: 14.00560224 | BC40: 8.832361774 | BD40: 9.920634921 | BE40: 8.680555556 | BF40: 6.770939129 | BG40: 4.938271605
B41: Positive electrode capacity, Ah/cm3 | G41: =G40/1000*E8/100*F12 -> 0.136930063 | J41: =J40/1000*H8/100*I12 -> 0.4092519769 | M41: =M40/1000*K8/100*L12 -> 0.4155247772 | P41: =P40/1000*N8/100*O12 -> 0.2304811073 | S41: =S40/1000*Q8/100*R12 -> 0.3795735458 | V41: =V40/1000*T8/100*U12 -> 0.4911023722 | Y41: =Y40/1000*W8/100*X12 -> 0.3114609559 | AZ41: Foil | BA41: 23.06511821 | BB41: 25.79265676 | BC41: 38.20223912 | BD41: 28.17992659 | BE41: 66.98675689 | BF41: 31.21127525 | BG41: 16.97667175
B42: Negative active material capacity, mAh/g: | F42: =Chem!C31 -> 240 | G42: =F42 -> 240 | I42: =Chem!D31 -> 240 | J42: =I42 -> 240 | L42: =Chem!E31 -> 240 | M42: =L42 -> 240 | O42: =Chem!F31 -> 240 | P42: =O42 -> 240 | R42: =Chem!G31 -> 240 | S42: =R42 -> 240 | U42: =Chem!H31 -> 360 | V42: =U42 -> 360 | X42: =Chem!I31 -> 360 | Y42: =X42 -> 360 | AY42: Electrolyte | BA42: 188.9412146 | BB42: 214.2816833 | BC42: 221.9011245 | BD42: 222.5019898 | BE42: 342.513899 | BF42: 133.0341024 | BG42: 89.66192078
B43: Negative electrode capacity, Ah/cm3 | G43: =G42/1000*E14/100*F18 -> 0.3107124988 | J43: =J42/1000*H14/100*I18 -> 0.3107124988 | M43: =M42/1000*K14/100*L18 -> 0.3107124988 | P43: =P42/1000*N14/100*O18 -> 0.3107124988 | S43: =S42/1000*Q14/100*R18 -> 0.3107124988 | V43: =V42/1000*T14/100*U18 -> 0.5032458853 | Y43: =Y42/1000*W14/100*X18 -> 0.5032458853 | AY43: Separator | BA43: 7.405815892 | BB43: 8.298494015 | BC43: 12.30043119 | BD43: 9.072177383 | BE43: 21.7042198 | BF43: 9.993694367 | BG43: 5.394400486
B44: Negative-to-positive capacity ratio after formation | F44: =Chem!C30 -> 1.25 | G44: =F44 -> 1.25 | I44: =Chem!D30 -> 1.25 | J44: =I44 -> 1.25 | L44: =Chem!E30 -> 1.25 | M44: =L44 -> 1.25 | O44: =Chem!F30 -> 1.1 | P44: =O44 -> 1.1 | R44: =Chem!G30 -> 1.25 | S44: =R44 -> 1.25 | U44: =Chem!H30 -> 1.1 | V44: =U44 -> 1.1 | X44: =Chem!I30 -> 1.1 | Y44: =X44 -> 1.1 | Z44: cap ratio: | AA44: 1.1 for LIB, 1.25 for SIB | AB44: https://www.sciencedirect.com/science/article/pii/S2405829719304441 | AC44: https://link.springer.com/article/10.1007%2Fs10853-017-1206-3 | AY44: Cell | AZ44: housing | BA44: =BA20 -> 21.66716274 | BB44: =BC20 -> 23.89071095 | BC44: =BE20 -> 24.8102369 | BD44: =BG20 -> 24.63839907 | BE44: =BI20 -> 35.30553723 | BF44: =BK20 -> 19.1456698 | BG44: =BM20 -> 14.19914301
B45: Cell Voltage and Resistance Parameters | AY45: Cell | AZ45: terminals | BA45: =BA21 -> 19.06122002 | BB45: =BC21 -> 20.45241701 | BC45: =BE21 -> 21.00932946 | BD45: =BG21 -> 20.90602502 | BE45: =BI21 -> 26.76853823 | BF45: =BK21 -> 37.56547139 | BG45: =BM21 -> 29.78439455
B46: Cell OCV at full power, V | F46: =Chem!C61 -> 3.1 | G46: =F46 -> 3.1 | I46: =Chem!D61 -> 3.04 | J46: =I46 -> 3.04 | L46: =Chem!E61 -> 2.66 | M46: =L46 -> 2.66 | O46: =Chem!F61 -> 3.23 | P46: =O46 -> 3.23 | R46: =Chem!G61 -> 2.66 | S46: =R46 -> 2.66 | U46: =Chem!H61 -> 3.565 | V46: =U46 -> 3.565 | X46: =Chem!I61 -> 3.246 | Y46: =X46 -> 3.246
B47: Open circuit voltage at 50% SOC, V | F47: =Chem!C62 -> 3.2 | G47: =F47 -> 3.2 | I47: =Chem!D62 -> 3.2 | J47: =I47 -> 3.2 | L47: =Chem!E62 -> 2.8 | M47: =L47 -> 2.8 | O47: =Chem!F62 -> 3.4 | P47: =O47 -> 3.4 | R47: =Chem!G62 -> 2.8 | S47: =R47 -> 2.8 | U47: =Chem!H62 -> 3.75 | V47: =U47 -> 3.75 | X47: =Chem!I62 -> 3.282 | Y47: =X47 -> 3.282 | AD47: (Ellingsen 2014) | AF47: This work
B48: Electrode system ASI for energy, ohm-cm² | F48: =Chem!C78 -> 16.9 | G48: 16.9 | I48: =Chem!D78 -> 16.9 | J48: 16.9 | L48: =Chem!E78 -> 15.6 | M48: 15.6 | O48: =Chem!F78 -> 32.5 | P48: 32.5 | R48: =Chem!G78 -> 16.9 | S48: 16.9 | U48: =Chem!H78 -> 16.9 | V48: 16.9 | X48: =Chem!I78 -> 32.5 | Y48: 32.5 | AA48: Average cell container composition (PET-Al-PP composite) | AD48: 0.5 | AE48: Al | AF48: =AD48 -> 0.5 | AG48: =AE48 -> Al
B49: Excess negative area, % | G49: =(G97+2)*(G98+2)/G97/G98*100-100 -> 2.500506587 | J49: =(J97+2)*(J98+2)/J97/J98*100-100 -> 3.414414065 | M49: =(M97+2)*(M98+2)/M97/M98*100-100 -> 3.203100858 | P49: =(P97+2)*(P98+2)/P97/P98*100-100 -> 3.125663186 | S49: =(S97+2)*(S98+2)/S97/S98*100-100 -> 3.139743365 | V49: =(V97+2)*(V98+2)/V97/V98*100-100 -> 4.551219795 | Y49: =(Y97+2)*(Y98+2)/Y97/Y98*100-100 -> 3.706885522 | AD49: 0.32 | AE49: PP | AF49: =AD49 -> 0.32 | AG49: =AE49 -> PP
B50: Cell terminal contact voltage loss, % of cell OCV | G50: 0.01 | J50: 0.01 | M50: 0.01 | P50: 0.01 | S50: 0.01 | V50: 0.01 | Y50: 0.01 | AD50: 0.08 | AE50: nylon | AF50: =1-AF49-AF48 -> 0.18 | AG50: PET
B51: Rate of temperature rise of module terminal at full power, oC/sec | G51: 0.05 | J51: 0.05 | M51: 0.05 | P51: 0.05 | S51: 0.05 | V51: 0.05 | Y51: 0.05 | AD51: 0.025 | AE51: PE
B52: Minimum % OCV limit at full power, % | G52: 80 | J52: 80 | M52: 80 | P52: 80 | S52: 80 | V52: 80 | Y52: 80 | AD52: 0.078 | AE52: PET
B53: % OCV at full power adjusted for thickness limit, % | G53: =IF($R$3=0,G52,100/2*(1+1/G46*(G46^2-4*G64*1000*G77/G94)^0.5)) -> 94.98966611 | J53: =IF($R$3=0,J52,100/2*(1+1/J46*(J46^2-4*J64*1000*J77/J94)^0.5)) -> 85.13619035 | M53: =IF($R$3=0,M52,100/2*(1+1/M46*(M46^2-4*M64*1000*M77/M94)^0.5)) -> 83.44294464 | P53: =IF($R$3=0,P52,100/2*(1+1/P46*(P46^2-4*P64*1000*P77/P94)^0.5)) -> 84.5556954 | S53: =IF($R$3=0,S52,100/2*(1+1/S46*(S46^2-4*S64*1000*S77/S94)^0.5)) -> 83.56511056 | V53: =IF($R$3=0,V52,100/2*(1+1/V46*(V46^2-4*V64*1000*V77/V94)^0.5)) -> 86.2504638 | Y53: =IF($R$3=0,Y52,100/2*(1+1/Y46*(Y46^2-4*Y64*1000*Y77/Y94)^0.5)) -> 80 | AD53: =SUM(AD48:AD52) -> 1.003
B55: Maximum current density to avoid lithium deposition, mA/cm² | G55: =Chem!$C79 -> 9 | J55: =Chem!D79 -> 9 | M55: =Chem!E79 -> 15 | P55: =Chem!F79 -> 9 | S55: =Chem!G79 -> 9 | V55: =Chem!H79 -> 9 | Y55: =Chem!I79 -> 9
B56: Positive electrode thickness to meet discharge requirements and C/1 charging, µm | G56: ='Battery Design'!G83 -> 120 | J56: ='Battery Design'!J83 -> 120 | M56: ='Battery Design'!M83 -> 120 | P56: ='Battery Design'!P83 -> 120 | S56: ='Battery Design'!S83 -> 120 | V56: ='Battery Design'!V83 -> 120 | Y56: ='Battery Design'!Y83 -> 114.6378799
B57: Maximum positive elecrode thickness limited by Li deposition during charging, µm | G57: =G55/1000/'Battery Design'!G41/((75%-15%)/$I3*60/10000) -> 547.7248629 | J57: =J55/1000/'Battery Design'!J41/((75%-15%)/$I3*60/10000) -> 183.2611795 | M57: =M55/1000/'Battery Design'!M41/((75%-15%)/$I3*60/10000) -> 300.8244198 | P57: =P55/1000/'Battery Design'!P41/((75%-15%)/$I3*60/10000) -> 325.4062811 | S57: =S55/1000/'Battery Design'!S41/((75%-15%)/$I3*60/10000) -> 197.5901662 | V57: =V55/1000/'Battery Design'!V41/((75%-15%)/$I3*60/10000) -> 152.7176496 | Y57: =Y55/1000/'Battery Design'!Y41/((75%-15%)/$I3*60/10000) -> 240.800648
B58: Positive electrode thickness required for charging, µm | G58: =IF($R$3=0,60,MIN(G56:G57)) -> 120 | J58: =IF($R$3=0,60,MIN(J56:J57)) -> 120 | M58: =IF($R$3=0,60,MIN(M56:M57)) -> 120 | P58: =IF($R$3=0,60,MIN(P56:P57)) -> 120 | S58: =IF($R$3=0,60,MIN(S56:S57)) -> 120 | V58: =IF($R$3=0,60,MIN(V56:V57)) -> 120 | Y58: =IF($R$3=0,60,MIN(Y56:Y57)) -> 114.6378799
B60: Calculated Cell Parameters
B61: Capacity
B62: Target capacity, Wh | G62: 160 | J62: 160 | M62: 160 | P62: 160 | S62: 160 | V62: 160 | Y62: 160 | AB62: Typical parameters: | AD62: Li-Ion SDI94 Battery Cell 3.7V 94AH, Samsung NMC
B63: Cell capacity, Ah | G63: =G62/G47 -> 50 | J63: =J62/J47 -> 50 | M63: =M62/M47 -> 57.14285714 | P63: =P62/P47 -> 47.05882353 | S63: =S62/S47 -> 57.14285714 | V63: =V62/V47 -> 42.66666667 | Y63: =Y62/Y47 -> 48.75076173 | AC63: Weight (kg) | AD63: 2,1
B64: Target battery power, kW | G64: 0.8 | J64: 0.8 | M64: 0.8 | P64: 0.8 | S64: 0.8 | V64: 0.8 | Y64: 0.8
B65: ASI Calculations | AC65: Height (mm) | AD65: 133
B66: Limiting current density for power bursts, mA/cm² | G66: =Chem!$C$57 -> 100 | J66: =Chem!$D$57 -> 100 | M66: =Chem!$E$57 -> 100 | P66: =Chem!$F$57 -> 100 | S66: =Chem!$G$57 -> 100 | V66: =Chem!$H$57 -> 100 | Y66: =Chem!$I$57 -> 100 | AC66: Width (mm) | AD66: 173
B67: Limiting C-rate for power bursts, A/Ah | G67: =Chem!$C$65 -> 120 | J67: =Chem!$D$65 -> 120 | M67: =Chem!$E$65 -> 200 | P67: =Chem!$F$65 -> 120 | S67: =Chem!$G$65 -> 120 | V67: =Chem!$H$65 -> 120 | Y67: =Chem!$I$65 -> 120 | AC67: Depth (mm) | AD67: 45
B68: Negative electrode ASIinf, ohm-cm² | G68: =1/(Chem!$C$66*Chem!$C$42*G87*10^-4) -> 1.158090111 | J68: =1/(Chem!$D$66*Chem!$D$42*J87*10^-4) -> 0.3874809673 | M68: =1/(Chem!$E$66*Chem!$E$42*M87*10^-4) -> 0.381631519 | P68: =1/(Chem!$F$66*Chem!$F$42*P87*10^-4) -> 0.7886416187 | S68: =1/(Chem!$G$66*Chem!$G$42*S87*10^-4) -> 0.4177776709 | V68: =1/(Chem!$H$66*Chem!$H$42*V87*10^-4) -> 0.8914545892 | Y68: =1/(Chem!$I$66*Chem!$I$42*Y87*10^-4) -> 0.742074118 | AC68: Nominal Voltage (V) | AD68: 3.7
B69: Positive electrode ASIinf, ohm-cm² | G69: =1/(Chem!$C$66*Chem!$C$21*G86*10^-4*((1-(G114/G67)^2)*(1-G113/G66))^0.5) -> 0.02873760836 | J69: =1/(Chem!$D$66*Chem!$D$21*J86*10^-4*((1-(J114/J67)^2)*(1-J113/J66))^0.5) -> 0.02874630575 | M69: =1/(Chem!$E$66*Chem!$E$21*M86*10^-4*((1-(M114/M67)^2)*(1-M113/M66))^0.5) -> 0.02872242135 | P69: =1/(Chem!$F$66*Chem!$F$21*P86*10^-4*((1-(P114/P67)^2)*(1-P113/P66))^0.5) -> 0.02319725112 | S69: =1/(Chem!$G$66*Chem!$G$21*S86*10^-4*((1-(S114/S67)^2)*(1-S113/S66))^0.5) -> 0.02874775755 | V69: =1/(Chem!$H$66*Chem!$H$21*V86*10^-4*((1-(V114/V67)^2)*(1-V113/V66))^0.5) -> 0.04311790753 | Y69: =1/(Chem!$I$66*Chem!$I$21*Y86*10^-4*((1-(Y114/Y67)^2)*(1-Y113/Y66))^0.5) -> 0.01821247105 | AC69: Capacity (Ah) | AD69: 94
B70: Electrode system ASI for power at SOC for vehicle type, ohm-cm² | G70: =Chem!$C$75-Chem!$C$68+G68+G69 -> 13.48682772 | J70: =Chem!$D$75-Chem!$D$68+J68+J69 -> 12.71622727 | M70: =Chem!$E$75-Chem!$E$68+M68+M69 -> 11.61035394 | P70: =Chem!$F$75-Chem!$F$68+P68+P69 -> 26.31183887 | S70: =Chem!$G$75-Chem!$G$68+S68+S69 -> 12.74652543 | V70: =Chem!$H$75-Chem!$H$68+V68+V69 -> 12.2345725 | Y70: =Chem!$I$75-Chem!$I$68+Y68+Y69 -> 26.76028659 | AC70: Max discharge current (A) | AD70: 409 | AF70: C-rate | AG70: =AD70/AD69 -> 4.35106383
B71: Cell current collector resistance parameter, ohms | G71: =IF($D21="Cu",1/(_Conductivity_Cu/100*$E$21*0.0001/2)+1/(_Conductivity_Al/100*$E20*0.0001/2),2/(_Conductivity_Al/100*$E20*0.0001/2)) -> 0.007073386384 | J71: =IF($D21="Cu",1/(_Conductivity_Cu/100*$E$21*0.0001/2)+1/(_Conductivity_Al/100*$E20*0.0001/2),2/(_Conductivity_Al/100*$E20*0.0001/2)) -> 0.007073386384 | M71: =IF($D21="Cu",1/(_Conductivity_Cu/100*$E$21*0.0001/2)+1/(_Conductivity_Al/100*$E20*0.0001/2),2/(_Conductivity_Al/100*$E20*0.0001/2)) -> 0.007073386384 | P71: =IF($D21="Cu",1/(_Conductivity_Cu/100*$E$21*0.0001/2)+1/(_Conductivity_Al/100*$E20*0.0001/2),2/(_Conductivity_Al/100*$E20*0.0001/2)) -> 0.007073386384 | S71: =IF($D21="Cu",1/(_Conductivity_Cu/100*$E$21*0.0001/2)+1/(_Conductivity_Al/100*$E20*0.0001/2),2/(_Conductivity_Al/100*$E20*0.0001/2)) -> 0.007073386384 | V71: =IF($D21="Cu",1/(_Conductivity_Cu/100*$E$21*0.0001/2)+1/(_Conductivity_Al/100*$E20*0.0001/2),2/(_Conductivity_Al/100*$E20*0.0001/2)) -> 0.007073386384 | Y71: =IF($D21="Cu",1/(_Conductivity_Cu/100*$E$21*0.0001/2)+1/(_Conductivity_Al/100*$E20*0.0001/2),2/(_Conductivity_Al/100*$E20*0.0001/2)) -> 0.007073386384 | AC71: Optimal discharge current (A) | AD71: 150
A72: X | B72: Cell current collector ASI, ohms-cm² | G72: =G71*(G98^2/3+G98*G99)/100 -> 3.072586111 | J72: =J71*(J98^2/3+J98*J99)/100 -> 1.777872678 | M72: =M71*(M98^2/3+M98*M99)/100 -> 1.985995206 | P72: =P71*(P98^2/3+P98*P99)/100 -> 2.072467158 | S72: =S71*(S98^2/3+S98*S99)/100 -> 2.056290647 | V72: =V71*(V98^2/3+V98*V99)/100 -> 1.091963596 | Y72: =Y71*(Y98^2/3+Y98*Y99)/100 -> 1.543760129 | AC72: Max charging current (A) | AD72: 270
B73: Cell terminal and connection ASI, ohms-cm² | G73: =(100/(_Conductivity_Al)+100/IF(F21=8.96,_Conductivity_Cu,_Conductivity_Al))*(10/G37)*G101/G100*G94 + G50/100*G46/G115*G94 -> 0.8372663906 | J73: =(100/(_Conductivity_Al)+100/IF(I21=8.96,_Conductivity_Cu,_Conductivity_Al))*(10/J37)*J101/J100*J94 + J50/100*J46/J115*J94 -> 0.3892091045 | M73: =(100/(_Conductivity_Al)+100/IF(L21=8.96,_Conductivity_Cu,_Conductivity_Al))*(10/M37)*M101/M100*M94 + M50/100*M46/M115*M94 -> 0.406931367 | P73: =(100/(_Conductivity_Al)+100/IF(O21=8.96,_Conductivity_Cu,_Conductivity_Al))*(10/P37)*P101/P100*P94 + P50/100*P46/P115*P94 -> 0.5925170646 | S73: =(100/(_Conductivity_Al)+100/IF(R21=8.96,_Conductivity_Cu,_Conductivity_Al))*(10/S37)*S101/S100*S94 + S50/100*S46/S115*S94 -> 0.4359510945 | V73: =(100/(_Conductivity_Al)+100/IF(U21=8.96,_Conductivity_Cu,_Conductivity_Al))*(10/V37)*V101/V100*V94 + V50/100*V46/V115*V94 -> 0.3134524741 | Y73: =(100/(_Conductivity_Al)+100/IF(X21=8.96,_Conductivity_Cu,_Conductivity_Al))*(10/Y37)*Y101/Y100*Y94 + Y50/100*Y46/Y115*Y94 -> 0.4683920651 | AC73: Optimal charging current (A) | AD73: 72
AC75: (source) | AD75: https://shop.gwl.eu/Samsung-SDI94-NCM/Li-Ion-SDI94-Battery-Cell-3-7V-94AH-Samsung-NCM.html
B76: Total cell hardware and battery ASI, ohm-cm² | G76: =G72+G73+G75*G94 -> 3.909852501 | J76: =J72+J73+J75*J94 -> 2.167081783 | M76: =M72+M73+M75*M94 -> 2.392926573 | P76: =P72+P73+P75*P94 -> 2.664984223 | S76: =S72+S73+S75*S94 -> 2.492241741 | V76: =V72+V73+V75*V94 -> 1.40541607 | Y76: =Y72+Y73+Y75*Y94 -> 2.012152194
A77: X | B77: Total cell ASI for power, ohm-cm² | G77: =G70+G76 -> 17.39668022 | J77: =J70+J76 -> 14.88330906 | M77: =M70+M76 -> 14.00328051 | P77: =P70+P76 -> 28.97682309 | S77: =S70+S76 -> 15.23876717 | V77: =V70+V76 -> 13.63998857 | Y77: =Y70+Y76 -> 28.77243878 | AC77: Capacity | AD77: =AD69*AD68 -> 347.8
A78: X | B78: Total cell ASI for energy (C/3 rate), ohm-cm² | G78: =G48 + G76 -> 20.8098525 | J78: =J48 + J76 -> 19.06708178 | M78: =M48 + M76 -> 17.99292657 | P78: =P48 + P76 -> 35.16498422 | S78: =S48 + S76 -> 19.39224174 | V78: =V48 + V76 -> 18.30541607 | Y78: =Y48 + Y76 -> 34.51215219
B79: Electrode Coating Thickness Calculation
B80: Negative-to-positive electrode thickness ratio | G80: =G41*G44/G43 -> 0.5508712377 | J80: =J41*J44/J43 -> 1.646425467 | M80: =M41*M44/M43 -> 1.671661016 | P80: =P41*P44/P43 -> 0.8159607967 | S80: =S41*S44/S43 -> 1.527028793 | V80: =V41*V44/V43 -> 1.073456585 | Y80: =Y41*Y44/Y43 -> 0.6807945409
B81: Positive Electrode Thickness Minimum Values for Discharge, µm
B82: Optional override available in Dashboard, µm | G82: =IF(G34=0," ",G34) ->  | J82: =IF(J34=0," ",J34) ->  | M82: =IF(M34=0," ",M34) ->  | P82: =IF(P34=0," ",P34) ->  | S82: =IF(S34=0," ",S34) ->  | V82: =IF(V34=0," ",V34) ->  | Y82: =IF(Y34=0," ",Y34) -> 
B83: Determined by power at target OCV, µm | G83: =MIN(Chem!$C19,G63/G41/G92*10000) -> 120 | J83: =MIN(Chem!$D19,J63/J41/J92*10000) -> 120 | M83: =MIN(Chem!$E19,M63/M41/M92*10000) -> 120 | P83: =MIN(Chem!$F19,P63/P41/P92*10000) -> 120 | S83: =MIN(Chem!$G19,S63/S41/S92*10000) -> 120 | V83: =MIN(Chem!$H19,V63/V41/V92*10000) -> 120 | Y83: =MIN(Chem!$I19,Y63/Y41/Y92*10000) -> 114.6378799
B84: Determined by charging limits (if EV or PHEV), µm | G84: =IF($R$3=0,60,G58) -> 120 | J84: =IF($R$3=0,60,J58) -> 120 | M84: =IF($R$3=0,60,M58) -> 120 | P84: =IF($R$3=0,60,P58) -> 120 | S84: =IF($R$3=0,60,S58) -> 120 | V84: =IF($R$3=0,60,V58) -> 120 | Y84: =IF($R$3=0,60,Y58) -> 114.6378799
B85: Selected Electrode Thicknesses, µm
A86: X | B86: Positive electrode thickness, µm | G86: =IF(G82=" ", MIN('Battery Design'!G83:G84),G82) -> 120 | J86: =IF(J82=" ", MIN('Battery Design'!J83:J84),J82) -> 120 | M86: =IF(M82=" ", MIN('Battery Design'!M83:M84),M82) -> 120 | P86: =IF(P82=" ", MIN('Battery Design'!P83:P84),P82) -> 120 | S86: =IF(S82=" ", MIN('Battery Design'!S83:S84),S82) -> 120 | V86: =IF(V82=" ", MIN('Battery Design'!V83:V84),V82) -> 120 | Y86: =IF(Y82=" ", MIN('Battery Design'!Y83:Y84),Y82) -> 114.6378799
A87: X | B87: Negative electrode thickness, µm | G87: =G86*G80 -> 66.10454853 | J87: =J86*J80 -> 197.5710561 | M87: =M86*M80 -> 200.5993219 | P87: =P86*P80 -> 97.9152956 | S87: =S86*S80 -> 183.2434552 | V87: =V86*V80 -> 128.8147902 | Y87: =Y86*Y80 -> 78.04484284
A88: X | B88: Positive electrode areal capacity, mAh/cm² | G88: =(G86/10000)*F$12*G40 -> 1.711625788 | J88: =(J86/10000)*I$12*J40 -> 5.115649711 | M88: =(M86/10000)*L$12*M40 -> 5.194059715 | P88: =(P86/10000)*O$12*P40 -> 2.881013842 | S88: =(S86/10000)*R$12*S40 -> 4.744669322 | V88: =(V86/10000)*U$12*V40 -> 6.138779653 | Y88: =(Y86/10000)*X$12*Y40 -> 3.719294131
A89: X | B89: Negative electrode areal capacity, mAh/cm² | G89: =(G87/10000)*F$18*G42 -> 2.208549404 | J89: =(J87/10000)*I$18*J42 -> 6.600838336 | M89: =(M87/10000)*L$18*M42 -> 6.702012535 | P89: =(P87/10000)*O$18*P42 -> 3.271344749 | S89: =(S87/10000)*R$18*S42 -> 6.122153964 | V89: =(V87/10000)*U$18*V42 -> 6.614848279 | Y89: =(Y87/10000)*X$18*Y42 -> 4.007729186
B90: Cell Area Calculation, cm²
B91: Area determined by positive thickness override, cm | G91: =IF(G82=" "," ",G12/$F12/G82*10000) ->  | J91: =IF(J82=" "," ",J12/I12/J82*10000) ->  | M91: =IF(M82=" "," ",M12/L12/M82*10000) ->  | P91: =IF(P82=" "," ",P12/O12/P82*10000) ->  | S91: =IF(S82=" "," ",S12/R12/S82*10000) ->  | V91: =IF(V82=" "," ",V12/U12/V82*10000) ->  | Y91: =IF(Y82=" "," ",Y12/X12/Y82*10000) -> 
B92: Area determined by burst power at target % OCV | G92: =IF( $R$3=0, Chem!$D72 * (G64*1000) * (1/G46) * (1/G46) * (100/G52) * (100/(100-G52)), G77 * (G64*1000) * ( (1/G46)) * (1/G46) * (100/G52) * (100/(100-G52)) ) -> 9051.342466 | J92: =IF( $R$3=0, Chem!$D72 * (J64*1000) * (1/J46) * (1/J46) * (100/J52) * (100/(100-J52)), J77 * (J64*1000) * ( (1/J46)) * (1/J46) * (100/J52) * (100/(100-J52)) ) -> 8052.344321 | M92: =IF( $R$3=0, Chem!$D72 * (M64*1000) * (1/M46) * (1/M46) * (100/M52) * (100/(100-M52)), M77 * (M64*1000) * ( (1/M46)) * (1/M46) * (100/M52) * (100/(100-M52)) ) -> 9895.472125 | P92: =IF( $R$3=0, Chem!$D72 * (P64*1000) * (1/P46) * (1/P46) * (100/P52) * (100/(100-P52)), P77 * (P64*1000) * ( (1/P46)) * (1/P46) * (100/P52) * (100/(100-P52)) ) -> 13887.23322 | S92: =IF( $R$3=0, Chem!$D72 * (S64*1000) * (1/S46) * (1/S46) * (100/S52) * (100/(100-S52)), S77 * (S64*1000) * ( (1/S46)) * (1/S46) * (100/S52) * (100/(100-S52)) ) -> 10768.53353 | V92: =IF( $R$3=0, Chem!$D72 * (V64*1000) * (1/V46) * (1/V46) * (100/V52) * (100/(100-V52)), V77 * (V64*1000) * ( (1/V46)) * (1/V46) * (100/V52) * (100/(100-V52)) ) -> 5366.176367 | Y92: =IF( $R$3=0, Chem!$D72 * (Y64*1000) * (1/Y46) * (1/Y46) * (100/Y52) * (100/(100-Y52)), Y77 * (Y64*1000) * ( (1/Y46)) * (1/Y46) * (100/Y52) * (100/(100-Y52)) ) -> 13653.67774
B93: Area determined by EV or PHEV charging | G93: =G12/F12/MIN(G83:G84)*10000 -> 30429.15905 | J93: =J12/I12/MIN(J83:J84)*10000 -> 10181.17664 | M93: =M12/L12/MIN(M83:M84)*10000 -> 11459.9779 | P93: =P12/O12/MIN(P83:P84)*10000 -> 17014.70751 | S93: =S12/R12/MIN(S83:S84)*10000 -> 12545.40738 | V93: =V12/U12/MIN(V83:V84)*10000 -> 7239.947833 | Y93: =Y12/X12/MIN(Y83:Y84)*10000 -> 13653.67774
B94: Selected cell area including charging limits, if for EV batteries | G94: =IF(G82=" ",MAX(G92,G93),G91) -> 30429.15905 | J94: =IF(J82=" ",MAX(J92,J93),J91) -> 10181.17664 | M94: =IF(M82=" ",MAX(M92,M93),M91) -> 11459.9779 | P94: =IF(P82=" ",MAX(P92,P93),P91) -> 17014.70751 | S94: =IF(S82=" ",MAX(S92,S93),S91) -> 12545.40738 | V94: =IF(V82=" ",MAX(V92,V93),V91) -> 7239.947833 | Y94: =IF(Y82=" ",MAX(Y92,Y93),Y91) -> 13653.67774
B95: Cell Dimensions
B96: Number of bicell layers (97% packing density) | G96: =(G35*1000-2*G28-E21)/(E20+E21+2*(E22+G86+G87))*0.97 -> 44.17873231 | J96: =(J35*1000-2*J28-H21)/(H20+H21+2*(H22+J86+J87))*0.97 -> 27.46841209 | M96: =(M35*1000-2*M28-K21)/(K20+K21+2*(K22+M86+M87))*0.97 -> 27.23115649 | P96: =(P35*1000-2*P28-N21)/(N20+N21+2*(N22+P86+P87))*0.97 -> 38.5100281 | S96: =(S35*1000-2*S28-Q21)/(Q20+Q21+2*(Q22+S86+S87))*0.97 -> 28.64939986 | V96: =(V35*1000-2*V28-T21)/(T20+T21+2*(T22+V86+V87))*0.97 -> 34.56076308 | Y96: =(Y35*1000-2*Y28-W21)/(W20+W21+2*(W22+Y86+Y87))*0.97 -> 43.37147747
B97: Width of positive electrode, mm | G97: =(G94/G96/2/G32)^0.5*10 -> 107.1427342 | J97: =(J94/J96/2/J32)^0.5*10 -> 78.59711117 | M97: =(M94/M96/2/M32)^0.5*10 -> 83.74969264 | P97: =(P94/P96/2/P32)^0.5*10 -> 85.81233132 | S97: =(S94/S96/2/S32)^0.5*10 -> 85.42972228 | V97: =(V94/V96/2/V32)^0.5*10 -> 59.08815531 | Y97: =(Y94/Y96/2/Y32)^0.5*10 -> 72.43477083
B98: Length of positive electrode, mm | G98: =G97*G32 -> 321.4282026 | J98: =J97*J32 -> 235.7913335 | M98: =M97*M32 -> 251.2490779 | P98: =P97*P32 -> 257.436994 | S98: =S97*S32 -> 256.2891669 | V98: =V97*V32 -> 177.2644659 | Y98: =Y97*Y32 -> 217.3043125
B99: Length of current collector tabs, mm | G99: =G35+8 -> 28 | J99: =J35+8 -> 28 | M99: =M35+8 -> 28 | P99: =P35+8 -> 28 | S99: =S35+8 -> 28 | V99: =V35+8 -> 28 | Y99: =Y35+8 -> 28
B100: Width of terminals, mm | G100: =G97-8 -> 99.14273419 | J100: =J97-8 -> 70.59711117 | M100: =M97-8 -> 75.74969264 | P100: =P97-8 -> 77.81233132 | S100: =S97-8 -> 77.42972228 | V100: =V97-8 -> 51.08815531 | Y100: =Y97-8 -> 64.43477083
B101: Length of terminal material, mm | G101: =2*G35+10 -> 50 | J101: =2*J35+10 -> 50 | M101: =2*M35+10 -> 50 | P101: =2*P35+10 -> 50 | S101: =2*S35+10 -> 50 | V101: =2*V35+10 -> 50 | Y101: =2*Y35+10 -> 50
B102: Width of cell, mm | G102: =G97+2*G36 -> 109.1427342 | J102: =J97+2*J36 -> 80.59711117 | M102: =M97+2*M36 -> 85.74969264 | P102: =P97+2*P36 -> 87.81233132 | S102: =S97+2*S36 -> 87.42972228 | V102: =V97+2*V36 -> 61.08815531 | Y102: =Y97+2*Y36 -> 74.43477083
B103: Length of cell, mm | G103: =G98+2*G38 -> 351.4282026 | J103: =J98+2*J38 -> 265.7913335 | M103: =M98+2*M38 -> 281.2490779 | P103: =P98+2*P38 -> 287.436994 | S103: =S98+2*S38 -> 286.2891669 | V103: =V98+2*V38 -> 207.2644659 | Y103: =Y98+2*Y38 -> 247.3043125
B104: Volume of cell, cm3 | G104: =G35*G102*G103/1000 -> 767.116698 | J104: =J35*J102*J103/1000 -> 428.4402731 | M104: =M35*M102*M103/1000 -> 482.3404397 | P104: =P35*P102*P103/1000 -> 504.810251 | S104: =S35*S102*S103/1000 -> 500.603647 | V104: =V35*V102*V103/1000 -> 253.2280777 | Y104: =Y35*Y102*Y103/1000 -> 368.1607965
B105: Cell Energy
B106: Cell capacity, Ah | G106: =G63 -> 50 | J106: =J63 -> 50 | M106: 57.14285714 | P106: 47.05882353 | S106: 57.14285714 | V106: 42.66666667 | Y106: 48.75076173
B107: Total cell energy storage, kWh | G107: =G63*(G110-G63/3*G78/G94)/1000 -> 0.1594301011 | J107: =J63*(J110-J63/3*J78/J94)/1000 -> 0.1584393518 | M107: =M63*(M110-M63/3*M78/M94)/1000 -> 0.1582910842 | P107: =P63*(P110-P63/3*P78/P94)/1000 -> 0.1584743784 | S107: =S63*(S110-S63/3*S78/S94)/1000 -> 0.1583175356 | V107: =V63*(V110-V63/3*V78/V94)/1000 -> 0.1584657351 | Y107: =Y63*(Y110-Y63/3*Y78/Y94)/1000 -> 0.1579975395
B108: Useable cell energy storage, kWh | G108: =G107*G116/100 -> 0.1355155859 | J108: =J107*J116/100 -> 0.134673449 | M108: =M107*M116/100 -> 0.1345474215 | P108: =P107*P116/100 -> 0.1347032217 | S108: =S107*S116/100 -> 0.1345699052 | V108: =V107*V116/100 -> 0.1346958749 | Y108: =Y107*Y116/100 -> 0.1342979086
B109: OCV at full power, V | G109: =G46 -> 3.1 | J109: =J46 -> 3.04 | M109: 2.66 | P109: 3.23 | S109: 2.66 | V109: 3.565 | Y109: 3.246
B110: Nominal cell voltage (OCV at 80% SOC for HEV-HP, 50% others) | G110: =G47 -> 3.2 | J110: =J47 -> 3.2 | M110: 2.8 | P110: 3.4 | S110: 2.8 | V110: 3.75 | Y110: 3.282
B112: Maximum current at full power, A | G112: =G64*1000/G46/G53*100 -> 271.6764114 | J112: =J64*1000/J46/J53*100 -> 309.1022674 | M112: =M64*1000/M46/M53*100 -> 360.4281716 | P112: =P64*1000/P46/P53*100 -> 292.9170145 | S112: =S64*1000/S46/S53*100 -> 359.9012527 | V112: =V64*1000/V46/V53*100 -> 260.1770671 | Y112: =Y64*1000/Y46/Y53*100 -> 308.0714726
B113: Maximum current density at full power, mA/cm²
A114: X | B114: C-rate at full power, A/Ah | G114: =IF($R$3=0,5,G112/G63) -> 5.433528229 | J114: =IF($R$3=0,5,J112/J63) -> 6.182045347 | M114: =IF($R$3=0,5,M112/M63) -> 6.307493003 | P114: =IF($R$3=0,5,P112/P63) -> 6.224486559 | S114: =IF($R$3=0,5,S112/S63) -> 6.298271921 | V114: =IF($R$3=0,5,V112/V63) -> 6.09790001 | Y114: =IF($R$3=0,5,Y112/Y63) -> 6.319316081
B115: Current carrying capacity of terminals, A | G115: =1.5*G112 -> 407.5146172 | J115: =1.5*J112 -> 463.6534011 | M115: =1.5*M112 -> 540.6422574 | P115: =1.5*P112 -> 439.3755218 | S115: =1.5*S112 -> 539.851879 | V115: =1.5*V112 -> 390.2656007 | Y115: =1.5*Y112 -> 462.1072089
B116: Available battery energy, % of total | G116: 85 | J116: 85 | M116: 85 | P116: 85 | S116: 85 | V116: 85 | Y116: 85
B118: Addition to cell thickness to adjust for whole number of electrodes | G118: 0 | J118: 0 | M118: 0 | P118: 0 | S118: 0 | V118: 0 | Y118: 0

Sheet Battery Recycling
B1: Recoverable Materials per Cell at End of Battery Life
B2: Battery cell composition and metal content
B3: Cell chemistry | G3: ='Battery Design'!G5 -> NaFCN-HC | H3: ='Battery Design'!J5 -> NaNMMT-HC | I3: ='Battery Design'!M5 -> NaMMO-HC | J3: ='Battery Design'!P5 -> NaMVP-HC | K3: ='Battery Design'!S5 -> NaNMC-HC | L3: ='Battery Design'!V5 -> NMC622-G | M3: ='Battery Design'!Y5 -> LFP-G | P3: =H3 -> NaNMMT-HC | Q3: =I3 -> NaMMO-HC | R3: =J3 -> NaMVP-HC | S3: =K3 -> NaNMC-HC | T3: =L3 -> NMC622-G | U3: =G3 -> NaFCN-HC | V3: =M3 -> LFP-G | X3: =P3 -> NaNMMT-HC | Y3: =Q3 -> NaMMO-HC | Z3: NaMVP-HC | AA3: NaNMC-HC | AB3: NMC622-G | AC3: NaFCN-HC | AD3: =V3 -> LFP-G
B5: Material parameters
B6: Cathode active material molweight | E6: g/mol | G6: =Chem!C7 -> 313.7 | H6: =Chem!D7 -> 105.99325 | I6: =Chem!E7 -> 100.58825 | J6: =Chem!F7 -> 482.79 | K6: =Chem!G7 -> 110.745683 | L6: =Chem!H7 -> 94.387 | M6: =Chem!I7 -> 157.76
B8: Design Details for Recovery Calculations
B9: Mass of positive electrode active material per cell, g | G9: ='Battery Design'!G8 -> 416.6666667 | H9: ='Battery Design'!J8 -> 333.3333333 | I9: ='Battery Design'!M8 -> 336.1344538 | J9: ='Battery Design'!P8 -> 423.9533651 | K9: ='Battery Design'!S8 -> 476.1904762 | L9: ='Battery Design'!V8 -> 237.037037 | M9: ='Battery Design'!Y8 -> 325.0050782
B10: Mass of negative electrode active material per cell, g | G10: ='Battery Design'!G14 -> 266.9284026 | H10: ='Battery Design'!J14 -> 269.30837 | I10: ='Battery Design'!M14 -> 307.1520859 | J10: ='Battery Design'!P14 -> 222.427901 | K10: ='Battery Design'!S14 -> 306.9635219 | L10: ='Battery Design'!V14 -> 136.3038125 | M10: ='Battery Design'!Y14 -> 154.482462
B11: Volume of electrolyte per cell, L | E11: l/cell | G11: ='Battery Design'!G24 -> 0.2378568743 | H11: ='Battery Design'!J24 -> 0.1312091768 | I11: ='Battery Design'!M24 -> 0.1488067245 | J11: ='Battery Design'!P24 -> 0.1540980031 | K11: ='Battery Design'!S24 -> 0.1545152707 | L11: ='Battery Design'!V24 -> 0.07471826732 | M11: ='Battery Design'!Y24 -> 0.110861752
B12: Lithium in electrolyte per cell, g | E12: g/cell | G12: =G11*Chem!C55 -> 0 | H12: =H11*Chem!D55 -> 0 | I12: =I11*Chem!E55 -> 0 | J12: =J11*Chem!F55 -> 0 | K12: =K11*Chem!G55 -> 0 | L12: =L11*Chem!H55 -> 0.6222537302 | M12: =M11*Chem!I55 -> 0.923256671
B13: Sodium in electrolyte per cell, g | E13: g/cell | G13: =G11*Chem!C56 -> 5.47070811 | H13: =H11*Chem!D56 -> 3.017811067 | I13: =I11*Chem!E56 -> 3.422554664 | J13: =J11*Chem!F56 -> 3.544254071 | K13: =K11*Chem!G56 -> 3.553851226 | L13: =L11*Chem!H56 -> 0 | M13: =M11*Chem!I56 -> 0
B14: Other salt in electrolyte | J14: =J13/23*(32/8)*Lists!L39 -> 60.46682364
B15: Total Salt in electrolyte | E15: g/cell | G15: =G12/6.94*151.9+G13/23*168 -> 39.95995489 | H15: =H12/6.94*151.9+H13/23*168 -> 22.04314171 | I15: =I12/6.94*151.9+I13/23*168 -> 24.99952972 | J15: =J12/6.94*151.9+J13/23*Lists!L38+J14 -> 73.10285989 | K15: =K12/6.94*151.9+K13/23*168 -> 25.95856547 | L15: =L12/6.94*151.9+L13/23*168 -> 13.61964577 | M15: =M12/6.94*151.9+M13/23*168 -> 20.20788016
B16: Amount of binder | D16: PvDF | E16: g/cell | G16: =G9*Chem!C12/100+G10*Chem!C35/100 -> 19.01046944 | H16: =H9*Chem!D12/100+H10*Chem!D35/100 -> 17.43900147 | I16: =I9*Chem!E12/100+I10*Chem!E35/100 -> 25.73146159 | J16: =J9*Chem!F12/100+J10*Chem!F35/100 -> 17.37618334 | K16: =K9*Chem!G12/100+K10*Chem!G35/100 -> 21.8023504 | L16: =L9*Chem!H12/100+L10*Chem!H35/100 -> 7.46681699 | M16: =M9*Chem!I12/100+M10*Chem!I35/100 -> 9.589750804
D17: CFC
B18: Recoverable Metals per Pack
B19: From Electrodes or Electrolyte
B20: Sodium in electrodes and electrolyte, g/cell | E20: g/cell | G20: =(Chem!C86*G9+G13) -> 66.56942238 | H20: =(Chem!D86*H9+H13) -> 82.58262612 | I20: =(Chem!E86*I9+I13) -> 54.14936429 | J20: =(Chem!F86*J9+J13) -> 84.33240128 | K20: =(Chem!G86*K9+K13) -> 107.3953707 | L20: =(Chem!H86*L9+L13) -> 0 | M20: =(Chem!I86*M9+M13) -> 0 | O20: Na | P20: =H20/H$63 -> 0.08960393685 | Q20: 0.05373536757 | R20: 0.08113565666 | S20: 0.09246624853 | T20: 0 | U20: =G20/G$63 -> 0.05182485392 | V20: =M20/M$63 -> 0 | W20: =O20 -> Na | X20: =P20*H$63 -> 82.58262612 | Y20: =Q20*I$63 -> 54.14936429 | Z20: =R20*J$63 -> 84.33240128 | AA20: =S20*K$63 -> 107.3953707 | AB20: =T20*L$63 -> 0 | AC20: =U20*G$63 -> 66.56942238 | AD20: =V20*M$63 -> 0
B21: Lithium in electrodes and electrolyte, g/cell | E21: g/cell | G21: =(Chem!C87*G9+Chem!C88*G10+G12) -> 0 | H21: =(Chem!D87*H9+Chem!D88*H10+H12) -> 0 | I21: =(Chem!E87*I9+Chem!E88*I10+I12) -> 0 | J21: =(Chem!F87*J9+Chem!F88*J10+J12) -> 0 | K21: =(Chem!G87*K9+Chem!G88*K10+K12) -> 0 | L21: =(Chem!H87*L9+Chem!H88*L10+L12) -> 18.92232566 | M21: =(Chem!I87*M9+Chem!I88*M10+M12) -> 15.22051353 | O21: Li | P21: 0 | Q21: 0 | R21: 0 | S21: 0 | T21: 0.03249260238 | U21: =G21/G$63 -> 0 | V21: =M21/M$63 -> 0.01901810857 | W21: =O21 -> Li | X21: 0 | Y21: 0 | Z21: 0 | AA21: 0 | AB21: 18.92232566 | AC21: 0 | AD21: 15.22051353
B22: Nickel in positive electrode | E22: g/cell | G22: =G9*Chem!C89 -> 0 | H22: =H9*Chem!D89 -> 55.39031967 | I22: =I9*Chem!E89 -> 0 | J22: =J9*Chem!F89 -> 0 | K22: =K9*Chem!G89 -> 79.86082982 | L22: =L9*Chem!H89 -> 84.04095197 | M22: =M9*Chem!I89 -> 0 | O22: Ni | P22: 0.06009969577 | Q22: 0 | R22: 0 | S22: 0.06875930767 | T22: 0.1443115019 | U22: =G22/G$63 -> 0 | V22: =M22/M$63 -> 0 | W22: Ni | X22: 55.39031967 | Y22: 0 | Z22: 0 | AA22: 79.86082982 | AB22: 84.04095197 | AC22: 0 | AD22: 0
B23: Cobalt in positive electrode | E23: g/cell | G23: =G9*Chem!C90 -> 0 | H23: =H9*Chem!D90 -> 0 | I23: =I9*Chem!E90 -> 0 | J23: =J9*Chem!F90 -> 0 | K23: =K9*Chem!G90 -> 80.16008689 | L23: =L9*Chem!H90 -> 28.11862431 | M23: =M9*Chem!I90 -> 0 | O23: Co | P23: 0 | Q23: 0 | R23: 0 | S23: 0.06901696476 | T23: 0.04828409022 | U23: =G23/G$63 -> 0 | V23: =M23/M$63 -> 0 | W23: Co | X23: 0 | Y23: 0 | Z23: 0 | AA23: 80.16008689 | AB23: 28.11862431 | AC23: 0 | AD23: 0
B24: Manganese in positive electrodes | E24: g/cell | G24: =G9*Chem!C91 -> 0 | H24: =H9*Chem!D91 -> 86.38914899 | I24: =I9*Chem!E91 -> 174.4126729 | J24: =J9*Chem!F91 -> 48.244574 | K24: =K9*Chem!G91 -> 74.73265185 | L24: =L9*Chem!H91 -> 26.21478397 | M24: =M9*Chem!I91 -> 0 | O24: Mn | P24: 0.09373409656 | Q24: 0.1730792081 | R24: 0.04641579194 | S24: 0.0643440021 | T24: 0.04501489761 | U24: =G24/G$63 -> 0 | V24: =M24/M$63 -> 0 | W24: Mn | X24: 86.38914899 | Y24: 174.4126729 | Z24: 48.244574 | AA24: 74.73265185 | AB24: 26.21478397 | AC24: 0 | AD24: 0
A25: X | B25: Lithium in Electrodes and Electrolyte, kg/kWh | G25: =G21/'Battery Design'!G$107 -> 0 | H25: =H21/'Battery Design'!J$107 -> 0 | I25: =I21/'Battery Design'!M$107 -> 0 | J25: =J21/'Battery Design'!P$107 -> 0 | K25: =K21/'Battery Design'!S$107 -> 0 | L25: =L21/'Battery Design'!V$107 -> 119.4095723 | M25: =M21/'Battery Design'!Y$107 -> 96.33386431 | O25: Mg | P25: =H29/H$63 -> 0.004146718633 | Q25: =I29/I$63 -> 0.00402993711 | R25: =J29/J$63 -> 0 | S25: =K29/K$63 -> 0 | T25: =L29/L$63 -> 0 | U25: =G29/G$63 -> 0 | V25: =M29/M$63 -> 0 | W25: Mg | X25: 3.821784249 | Y25: 4.060985204 | Z25: 0 | AA25: 0 | AB25: 0 | AC25: 0 | AD25: 0
A26: X | B26: Nickel in positive electrode, kg/kWh | G26: =G22/'Battery Design'!G$107 -> 0 | H26: =H22/'Battery Design'!J$107 -> 349.5995094 | I26: =I22/'Battery Design'!M$107 -> 0 | J26: =J22/'Battery Design'!P$107 -> 0 | K26: =K22/'Battery Design'!S$107 -> 504.4345185 | L26: =L22/'Battery Design'!V$107 -> 530.3414767 | M26: =M22/'Battery Design'!Y$107 -> 0 | O26: Ti | P26: =H31/H$63 -> 0.008172302922 | Q26: =I31/I$63 -> 0 | R26: =J31/J$63 -> 0 | S26: =K31/K$63 -> 0 | T26: =L31/L$63 -> 0 | U26: =G31/G$63 -> 0 | V26: =M31/M$63 -> 0 | W26: Ti | X26: 7.531926168 | Y26: 0 | Z26: 0 | AA26: 0 | AB26: 0 | AC26: 0 | AD26: 0
A27: X | B27: Cobalt in positive electrode, kg/kWh | G27: =G23/'Battery Design'!G$107 -> 0 | H27: =H23/'Battery Design'!J$107 -> 0 | I27: =I23/'Battery Design'!M$107 -> 0 | J27: =J23/'Battery Design'!P$107 -> 0 | K27: =K23/'Battery Design'!S$107 -> 506.3247517 | L27: =L23/'Battery Design'!V$107 -> 177.4429298 | M27: =M23/'Battery Design'!Y$107 -> 0 | O27: Al | P27: =H39/H$63 -> 0.07250688835 | Q27: =I39/I$63 -> 0.073255172 | R27: =J39/J$63 -> 0.09582483159 | S27: =K39/K$63 -> 0.06814058549 | T27: =L39/L$63 -> 0.04099467052 | U27: =G39/G$63 -> 0.1276259012 | V27: =M39/M$63 -> 0.04986770833 | W27: Al | X27: 66.82529208 | Y27: 73.81955635 | Z27: 99.60032966 | AA27: 79.14221196 | AB27: 23.87357272 | AC27: 163.936449 | AD27: 39.90996931
A28: X | B28: Manganese in positive electrode, kg/kWh | G28: =G24/'Battery Design'!G$107 -> 0 | H28: =H24/'Battery Design'!J$107 -> 545.2505833 | I28: =I24/'Battery Design'!M$107 -> 1101.847737 | J28: =J24/'Battery Design'!P$107 -> 304.4313817 | K28: =K24/'Battery Design'!S$107 -> 472.0427942 | L28: =L24/'Battery Design'!V$107 -> 165.4287216 | M28: =M24/'Battery Design'!Y$107 -> 0 | O28: Cu | P28: =H48/H$63 -> 0 | Q28: =I48/I$63 -> 0 | R28: =J48/J$63 -> 0 | S28: =K48/K$63 -> 0 | T28: =L48/L$63 -> 0.1085755235 | U28: =G48/G$63 -> 0 | V28: =M48/M$63 -> 0.1275136572 | W28: Cu | X28: 0 | Y28: 0 | Z28: 0 | AA28: 0 | AB28: 63.22982045 | AC28: 0 | AD28: 102.0513338
B29: Magnesium in positive electrode | E29: g/cell | G29: =G9*Chem!C92 -> 0 | H29: =H9*Chem!D92 -> 3.821784249 | I29: =I9*Chem!E92 -> 4.060985204 | J29: =J9*Chem!F92 -> 0 | K29: =K9*Chem!G92 -> 0 | L29: =L9*Chem!H92 -> 0 | M29: =M9*Chem!I92 -> 0 | O29: C (Graphite) | P29: =H53/H$63 -> 0.3091662641 | Q29: =I53/I$63 -> 0.3215854084 | R29: =J53/J$63 -> 0.2293971109 | S29: =K53/K$63 -> 0.2813593764 | T29: =L53/L$63 -> 0.2425348216 | U29: =G53/G$63 -> 0.221267306 | V29: =M53/M$63 -> 0.2014869396 | W29: C (Graphite) | X29: 284.9401812 | Y29: 324.0630188 | Z29: 238.4353563 | AA29: 326.7862059 | AB29: 141.2420841 | AC29: 284.2195518 | AD29: 161.2534011
B30: Vanadium in positive electrode | E30: g/cell | G30: =G$9*Chem!C93 -> 0 | H30: =H$9*Chem!D93 -> 0 | I30: =I$9*Chem!E93 -> 0 | J30: =J$9*Chem!F93 -> 44.73204586 | K30: =K$9*Chem!G93 -> 0 | L30: =L$9*Chem!H93 -> 0 | M30: =M$9*Chem!I93 -> 0
B31: Titanium in active materials | E31: g/cell | G31: =G9*Chem!C94 -> 0 | H31: =H9*Chem!D94 -> 7.531926168 | I31: =I9*Chem!E94 -> 0 | J31: =J9*Chem!F94 -> 0 | K31: =K9*Chem!G94 -> 0 | L31: =L9*Chem!H94 -> 0 | M31: =M9*Chem!I94 -> 0 | O31: Other | P31: =1-SUM(P20:P29) -> 0.3625700968 | Q31: 0.3743149068 | R31: 0.5472266089 | S31: 0.3559135151 | T31: 0.3377918922 | U31: 0.599281939 | V31: 0.6021135863 | W31: Other | X31: =H$63 -> 921.6406 | Y31: 1007.704362 | Z31: 1039.399997 | AA31: 1161.454827 | AB31: 582.3579606 | AC31: =G$63 -> 1284.507671 | AD31: =M$63 -> 800.3168915
B32: As scrap metal from Cells, Modules, and Packs | P32: =SUM(P20:P29) -> 0.6374299032 | Q32: 0.6256850932 | R32: 0.4527733911 | S32: 0.6440864849 | T32: 0.6622081078 | U32: 0.400718061 | V32: 0.3978864137 | X32: =SUM(X20:X29) -> 587.4812785 | Y32: 630.5055976 | Z32: 470.6126613 | AA32: 748.0773572 | AB32: 385.6421632 | AC32: 514.7254231 | AD32: 318.4352177
B33: Aluminum
B34: Aluminum in cell current collectors | E34: g/cell | G34: =IF('Battery Design'!F21=2.7,'Battery Design'!AC10+'Battery Design'!AC15,'Battery Design'!AC15) -> 137.1679108 | H34: =IF('Battery Design'!I21=2.7,'Battery Design'!AF10+'Battery Design'!AF15,'Battery Design'!AF15) -> 47.76407206 | I34: =IF('Battery Design'!L21=2.7,'Battery Design'!AI10+'Battery Design'!AI15,'Battery Design'!AI15) -> 53.36713934 | J34: =IF('Battery Design'!O21=2.7,'Battery Design'!AL10+'Battery Design'!AL15,'Battery Design'!AL15) -> 78.5910002 | K34: =IF('Battery Design'!R21=2.7,'Battery Design'!AO10+'Battery Design'!AO15,'Battery Design'!AO15) -> 58.23618694 | L34: =IF('Battery Design'!U21=2.7,'Battery Design'!AR10+'Battery Design'!AR15,'Battery Design'!AR15) -> 16.97667175 | M34: =IF('Battery Design'!X21=2.7,'Battery Design'!AU10+'Battery Design'!AU15,'Battery Design'!AU15) -> 31.21127525
B35: Aluminum in cell terminal | E35: g/cell | G35: =IF('Battery Design'!F21=2.7,'Battery Design'!G25+'Battery Design'!G26,'Battery Design'!G25) -> 26.76853823 | H35: =IF('Battery Design'!I21=2.7,'Battery Design'!J25+'Battery Design'!J26,'Battery Design'!J25) -> 19.06122002 | I35: =IF('Battery Design'!L21=2.7,'Battery Design'!M25+'Battery Design'!M26,'Battery Design'!M25) -> 20.45241701 | J35: =IF('Battery Design'!O21=2.7,'Battery Design'!P25+'Battery Design'!P26,'Battery Design'!P25) -> 21.00932946 | K35: =IF('Battery Design'!R21=2.7,'Battery Design'!S25+'Battery Design'!S26,'Battery Design'!S25) -> 20.90602502 | L35: =IF('Battery Design'!U21=2.7,'Battery Design'!V25+'Battery Design'!V26,'Battery Design'!V25) -> 6.896900967 | M35: =IF('Battery Design'!X21=2.7,'Battery Design'!Y25+'Battery Design'!Y26,'Battery Design'!Y25) -> 8.698694062 | T35: =IF('Battery Design'!S21=2.7,'Battery Design'!T25+'Battery Design'!T26,'Battery Design'!T25) -> 0 | U35: =IF('Battery Design'!T21=2.7,'Battery Design'!U25+'Battery Design'!U26,'Battery Design'!U25) -> 0
B36: Aluminum in thermal conductors, kg/pk
B37: Aluminum in module enclosures, kg/pk
B38: Aluminum in battery enclosure, kg/pk
B39: Total aluminum content | E39: g/cell | G39: =SUM(G34:G38) -> 163.936449 | H39: =SUM(H34:H38) -> 66.82529208 | I39: 73.81955635 | J39: 99.60032966 | K39: 79.14221196 | L39: 23.87357272 | M39: 39.90996931
A40: X | B40: Aluminum content, kg/kWh | E40: g/Wh | G40: =G39/'Battery Design'!G$107/1000 -> 1.028265352 | H40: =H39/'Battery Design'!J$107/1000 -> 0.4217720618 | I40: =I39/'Battery Design'!M$107/1000 -> 0.4663532172 | J40: =J39/'Battery Design'!P$107/1000 -> 0.6284948434 | K40: =K39/'Battery Design'!S$107/1000 -> 0.4998954265 | L40: =L39/'Battery Design'!V$107/1000 -> 0.1506544787 | M40: =M39/'Battery Design'!Y$107/1000 -> 0.2525986761
B41: Copper
B42: Copper in cell current collectors | E42: g/cell | G42: =IF('Battery Design'!F21=8.96,'Battery Design'!AC10,0) -> 0 | H42: =IF('Battery Design'!I21=8.96,'Battery Design'!AF10,0) -> 0 | I42: =IF('Battery Design'!L21=8.96,'Battery Design'!AI10,0) -> 0 | J42: =IF('Battery Design'!O21=8.96,'Battery Design'!AL10,0) -> 0 | K42: =IF('Battery Design'!R21=8.96,'Battery Design'!AO10,0) -> 0 | L42: =IF('Battery Design'!U21=8.96,'Battery Design'!AR10,0) -> 40.34232687 | M42: =IF('Battery Design'!X21=8.96,'Battery Design'!AU10,0) -> 73.18455642 | Z42: =IF('Battery Design'!Y21=8.96,'Battery Design'!AV10,0) -> 0 | AA42: =IF('Battery Design'!Z21=8.96,'Battery Design'!AW10,0) -> 0 | AB42: =IF('Battery Design'!AA21=8.96,'Battery Design'!AX10,0) -> 0 | AC42: =IF('Battery Design'!AB21=8.96,'Battery Design'!AY10,0) -> 0
B43: Copper in cell terminals | E43: g/cell | G43: =IF('Battery Design'!F21=8.96,'Battery Design'!G26,0) -> 0 | H43: =IF('Battery Design'!I21=8.96,'Battery Design'!J26,0) -> 0 | I43: =IF('Battery Design'!L21=8.96,'Battery Design'!M26,0) -> 0 | J43: =IF('Battery Design'!O21=8.96,'Battery Design'!P26,0) -> 0 | K43: =IF('Battery Design'!R21=8.96,'Battery Design'!S26,0) -> 0 | L43: =IF('Battery Design'!U21=8.96,'Battery Design'!V26,0) -> 22.88749358 | M43: =IF('Battery Design'!X21=8.96,'Battery Design'!Y26,0) -> 28.86677733
B44: Copper in cell group interconnects for parallel connected cells, kg/pk
B45: Copper in module terminals, kg/pk
B46: Copper in module interconnects, kg/pk
B47: Copper in pack terminals, kg/pk
B48: Total copper content | E48: g/cell | G48: =SUM(G42:G47) -> 0 | H48: 0 | I48: 0 | J48: 0 | K48: 0 | L48: 63.22982045 | M48: =SUM(M42:M47) -> 102.0513338
A49: X | B49: Copper content | E49: g/Wh | G49: =G48/'Battery Design'!G107/1000 -> 0 | H49: =H48/'Battery Design'!J107/1000 -> 0 | I49: =I48/'Battery Design'!M107/1000 -> 0 | J49: =J48/'Battery Design'!P107/1000 -> 0 | K49: =K48/'Battery Design'!S107/1000 -> 0 | L49: =L48/'Battery Design'!V107/1000 -> 0.3990125714 | M49: =M48/'Battery Design'!Y107/1000 -> 0.6459045758 | Q49: 63.546 | R49: g/mol Cu
B50: Steel, compression plates and straps, kg/pk | Q50: 55.85 | R50: g/mol Fe
B51: Total recoverable metals | E51: g/cell | G51: =G21+G22+G23+G24+G39+G48+G50 -> 163.936449 | H51: 208.6047607 | I51: 248.2322293 | J51: 147.8449037 | K51: 313.8957805 | L51: 244.4000791 | M51: 157.1818166
B52: Balance of Battery
B53: Graphite and carbon in electrodes | E53: g/cell | G53: =('Battery Design'!G9+'Battery Design'!G14+'Battery Design'!G15) -> 284.2195518 | H53: =('Battery Design'!J9+'Battery Design'!J14+'Battery Design'!J15) -> 284.9401812 | I53: =('Battery Design'!M9+'Battery Design'!M14+'Battery Design'!M15) -> 324.0630188 | J53: =('Battery Design'!P9+'Battery Design'!P14+'Battery Design'!P15) -> 238.4353563 | K53: =('Battery Design'!S9+'Battery Design'!S14+'Battery Design'!S15) -> 326.7862059 | L53: =('Battery Design'!V9+'Battery Design'!V14+'Battery Design'!V15) -> 141.2420841 | M53: =('Battery Design'!Y9+'Battery Design'!Y14+'Battery Design'!Y15) -> 161.2534011 | Z53: =('Battery Design'!Z9+'Battery Design'!Z14+'Battery Design'!Z15) -> 0 | AA53: =('Battery Design'!AA9+'Battery Design'!AA14+'Battery Design'!AA15) -> 0
B54: Balance of electrodes (oxygen, binder, etc.) | E54: g/cell | G54: =('Battery Design'!G12+'Battery Design'!G18)-(G21-G12+G22+G23+G24+G53) -> 436.8280137 | H54: =('Battery Design'!J12+'Battery Design'!J18)-(H21-H12/1000+H22+H23+H24+H53) -> 210.0814648 | I54: =('Battery Design'!M12+'Battery Design'!M18)-(I21-I12+I22+I23+I24+I53) -> 181.9354244 | J54: =('Battery Design'!P12+'Battery Design'!P18)-(J21-J12+J22+J23+J24+J53) -> 394.1079443 | K54: =('Battery Design'!S12+'Battery Design'!S18)-(K21-K12+K22+K23+K24+K53) -> 264.5602747 | L54: =('Battery Design'!V12+'Battery Design'!V18)-(L21-L12+L22+L23+L24+L53) -> 88.08258693 | M54: =('Battery Design'!Y12+'Battery Design'!Y18)-(M21-M12+M22+M23+M24+M53) -> 320.6314638
B55: Electrolyte (less lithium content) | E55: g/cell | G55: =(G11*'Battery Design'!F24*1000-G12) -> 342.513899 | H55: =(H11*'Battery Design'!I24*1000-H12) -> 188.9412146 | I55: =(I11*'Battery Design'!$L24*1000-I12) -> 214.2816833 | J55: =(J11*'Battery Design'!$O24*1000-J12) -> 221.9011245 | K55: =(K11*'Battery Design'!$R24*1000-K12) -> 222.5019898 | L55: =(L11*'Battery Design'!$U24*1000-L12) -> 89.03966705 | M55: =(M11*'Battery Design'!$X24*1000-M12) -> 132.1108458
B56: Electrolyte (less salt) | E56: g/cell | G56: =(G11*'Battery Design'!F24*1000-G15) -> 302.5539442 | H56: =(H11*'Battery Design'!I24*1000-H15) -> 166.8980729 | I56: =(I11*'Battery Design'!$L24*1000-I15) -> 189.2821536 | J56: =(J11*'Battery Design'!$O24*1000-J15) -> 148.7982646 | K56: =(K11*'Battery Design'!$R24*1000-K15) -> 196.5434243 | L56: =(L11*'Battery Design'!$U24*1000-L15) -> 76.04227502 | M56: =(M11*'Battery Design'!$X24*1000-M15) -> 112.8262223
B57: Cell separators | E57: g/cell | G57: ='Battery Design'!AC17 -> 21.7042198 | H57: ='Battery Design'!AF17 -> 7.405815892 | I57: ='Battery Design'!AI17 -> 8.298494015 | J57: ='Battery Design'!AL17 -> 12.30043119 | K57: ='Battery Design'!AO17 -> 9.072177383 | L57: ='Battery Design'!AR17 -> 5.394400486 | M57: ='Battery Design'!AU17 -> 9.993694367
B58: Multilayer, polymer/aluminum cell containers | E58: g/cell | G58: ='Battery Design'!G30 -> 35.30553723 | H58: ='Battery Design'!J30 -> 21.66716274 | I58: ='Battery Design'!M30 -> 23.89071095 | J58: ='Battery Design'!P30 -> 24.8102369 | K58: ='Battery Design'!S30 -> 24.63839907 | L58: ='Battery Design'!V30 -> 14.19914301 | M58: ='Battery Design'!Y30 -> 19.1456698
C59: ='Battery Design'!AE48 -> Al | D59: ='Battery Design'!AF48 -> 0.5
C60: ='Battery Design'!AE49 -> PP | D60: ='Battery Design'!AF49 -> 0.32
C61: ='Battery Design'!AE50 -> nylon | D61: ='Battery Design'!AF50 -> 0.18
B62: Total recoverable materials | G62: =G51+G53+G56 -> 750.7099449 | H62: =H51+H53+H56 -> 660.4430148 | I62: 761.5774017 | J62: 535.0785246 | K62: 837.2254107 | L62: 461.6844382 | M62: 431.26144
B63: Total battery mass (cell level) | E63: g | G63: ='Battery Design'!AC20 -> 1284.507671 | H63: ='Battery Design'!AF20 -> 921.6406 | I63: ='Battery Design'!AI20 -> 1007.704362 | J63: ='Battery Design'!AL20 -> 1039.399997 | K63: ='Battery Design'!AO20 -> 1161.454827 | L63: ='Battery Design'!AR20 -> 582.3579606 | M63: ='Battery Design'!AU20 -> 800.3168915
B64: Organic electrolyte (1=organic; 0=aqueous) | G64: 1 | H64: 1 | I64: 1 | J64: 1 | K64: 1 | L64: 1 | M64: 1
B66: Pyrometallurgical recycling | G66: (Mohr et al. 2020, based on Fisher 2004)
B67: =RecyclingProcessData!Q7 -> INPUTS
C68: =RecyclingProcessData!Q8 -> Waste batteries | E68: kg/cell | G68: =G63/1000 -> 1.284507671 | H68: 0.9216406 | I68: 1.007704362 | J68: 1.039399997 | K68: 1.161454827 | L68: 0.5823579606 | M68: 0.8003168915
C69: =RecyclingProcessData!Q9 -> NaOH | E69: kg/cell | F69: =G69/G68 -> 0.21 | G69: =RecyclingProcessData!$R9*G$68 -> 0.2697466108 | H69: =RecyclingProcessData!$R9*H$68 -> 0.193544526 | I69: =RecyclingProcessData!$R9*I$68 -> 0.211617916 | J69: =RecyclingProcessData!$R9*J$68 -> 0.2182739994 | K69: =RecyclingProcessData!$R9*K$68 -> 0.2439055137 | L69: =RecyclingProcessData!$R9*L$68 -> 0.1222951717 | M69: =RecyclingProcessData!$R9*M$68 -> 0.1680665472
C70: =RecyclingProcessData!Q10 -> Electricity | E70: kWh/cell | F70: =G70/G68 -> 0.8 | G70: =RecyclingProcessData!$R10*G$68 -> 1.027606136 | H70: =RecyclingProcessData!$R10*H$68 -> 0.73731248 | I70: =RecyclingProcessData!$R10*I$68 -> 0.8061634895 | J70: =RecyclingProcessData!$R10*J$68 -> 0.8315199975 | K70: =RecyclingProcessData!$R10*K$68 -> 0.9291638619 | L70: =RecyclingProcessData!$R10*L$68 -> 0.4658863685 | M70: =RecyclingProcessData!$R10*M$68 -> 0.6402535132
C71: =RecyclingProcessData!Q11 -> Water | E71: l/cell | G71: =RecyclingProcessData!$R11*G$68 -> 1.284507671 | H71: =RecyclingProcessData!$R11*H$68 -> 0.9216406 | I71: =RecyclingProcessData!$R11*I$68 -> 1.007704362 | J71: =RecyclingProcessData!$R11*J$68 -> 1.039399997 | K71: =RecyclingProcessData!$R11*K$68 -> 1.161454827 | L71: =RecyclingProcessData!$R11*L$68 -> 0.5823579606 | M71: =RecyclingProcessData!$R11*M$68 -> 0.8003168915
B73: OUTPUTS
B74: Materials | P74: =AI76 -> 23 | Q74: Na | R74: =AI76*2+AH76+AF76*3 -> 106 | S74: Na2CO3
C75: Lithium | D75: Li | E75: g/cell | G75: =G21*RecyclingProcessData!$R16 -> 0 | H75: =H21*RecyclingProcessData!$R16 -> 0 | I75: =I21*RecyclingProcessData!$R16 -> 0 | J75: =J21*RecyclingProcessData!$R16 -> 0 | K75: =K21*RecyclingProcessData!$R16 -> 0 | L75: =L21*RecyclingProcessData!$R16 -> 0 | M75: =M21*RecyclingProcessData!$R16 -> 0 | P75: =X76 -> 6.94 | Q75: Li | R75: =X76*2+AH76+AF76*3 -> 73.88 | S75: Li2CO3 | X75: Li | Y75: Ni | Z75: Mn | AA75: Co | AB75: Al | AC75: Fe | AD75: P | AE75: Ti | AF75: O | AG75: S | AH75: C | AI75: Na | AJ75: Mg | AK75: F
C76: Nickel | D76: Ni | E76: g/cell | G76: =G22*RecyclingProcessData!$R17 -> 0 | H76: =H22*RecyclingProcessData!$R17 -> 51.84533921 | I76: =I22*RecyclingProcessData!$R17 -> 0 | J76: =J22*RecyclingProcessData!$R17 -> 0 | K76: =K22*RecyclingProcessData!$R17 -> 74.74973671 | L76: =L22*RecyclingProcessData!$R17 -> 78.66233104 | M76: =M22*RecyclingProcessData!$R17 -> 0 | P76: =Y76 -> 58.71 | Q76: Ni | R76: =Y76+AG76+AF76*4 -> 154.71 | S76: NiSO4 | X76: 6.94 | Y76: 58.71 | Z76: 54.94 | AA76: 58.93 | AB76: 26.98 | AC76: 55.85 | AD76: 30.97 | AE76: 47.9 | AF76: 16 | AG76: 32 | AH76: 12 | AI76: 23 | AJ76: 24.305 | AK76: 19
C77: Cobalt | D77: Co | E77: g/cell | G77: =G23*RecyclingProcessData!$R18 -> 0 | H77: =H23*RecyclingProcessData!$R18 -> 0 | I77: =I23*RecyclingProcessData!$R18 -> 0 | J77: =J23*RecyclingProcessData!$R18 -> 0 | K77: =K23*RecyclingProcessData!$R18 -> 75.02984132 | L77: =L23*RecyclingProcessData!$R18 -> 26.31903235 | M77: =M23*RecyclingProcessData!$R18 -> 0 | P77: =AA76 -> 58.93 | Q77: Co | R77: =AA76+AG76+AF76*4 -> 154.93 | S77: CoSO4
C78: Manganese | D78: Mn | E78: g/cell | G78: =G24*RecyclingProcessData!$R19 -> 0 | H78: =H24*RecyclingProcessData!$R19 -> 0 | I78: =I24*RecyclingProcessData!$R19 -> 0 | J78: =J24*RecyclingProcessData!$R19 -> 0 | K78: =K24*RecyclingProcessData!$R19 -> 0 | L78: =L24*RecyclingProcessData!$R19 -> 0 | M78: =M24*RecyclingProcessData!$R19 -> 0 | P78: =Z76 -> 54.94 | Q78: Mn | R78: =Z76+AG76+AF76*4 -> 150.94 | S78: MnSO4 | T78: =Z76+AH76+AF76*3 -> 114.94 | U78: MnCO3
C79: Magnesium | D79: Mg | E79: g/cell | G79: =G29*RecyclingProcessData!$R20 -> 0 | H79: =H29*RecyclingProcessData!$R20 -> 3.745348564 | I79: =I29*RecyclingProcessData!$R20 -> 3.9797655 | J79: =J29*RecyclingProcessData!$R20 -> 0 | K79: =K29*RecyclingProcessData!$R20 -> 0 | L79: =L29*RecyclingProcessData!$R20 -> 0 | M79: =M29*RecyclingProcessData!$R20 -> 0 | P79: =AJ76 -> 24.305 | Q79: Mg | R79: =AJ76+(AF76+1)*2 -> 58.305 | S79: Mg(OH)2
C80: Titanium | D80: Ti | E80: g/cell | G80: =G31*RecyclingProcessData!$R21 -> 0 | H80: =H31*RecyclingProcessData!$R21 -> 0 | I80: =I31*RecyclingProcessData!$R21 -> 0 | J80: =J31*RecyclingProcessData!$R21 -> 0 | K80: =K31*RecyclingProcessData!$R21 -> 0 | L80: =L31*RecyclingProcessData!$R21 -> 0 | M80: =M31*RecyclingProcessData!$R21 -> 0 | P80: =AE76 -> 47.9 | Q80: Ti | R80: =AE76+AF76*2 -> 79.9 | S80: TiO2
C81: =RecyclingProcessData!Q20 -> Steel | D81: Fe | E81: g/cell | G81: 0 | H81: 0 | I81: 0 | J81: 0 | K81: 0 | L81: 0 | M81: 0 | N81: 0 | P81: 50.9 | Q81: V | R81: =AA76+AH76+AF76*3 -> 118.93 | S81: CoCO3
C82: Aluminium | D82: Al | E82: g/cell | G82: =G39*RecyclingProcessData!$R21 -> 0 | H82: =H39*RecyclingProcessData!$R21 -> 0 | I82: =I39*RecyclingProcessData!$R21 -> 0 | J82: =J39*RecyclingProcessData!$R21 -> 0 | K82: =K39*RecyclingProcessData!$R21 -> 0 | L82: =L39*RecyclingProcessData!$R21 -> 0 | M82: =M39*RecyclingProcessData!$R21 -> 0 | R82: =P81*2++AF76*5 -> 181.8 | S82: V2O5
C83: Copper | D83: Cu | E83: g/cell | G83: =G48*RecyclingProcessData!$R22 -> 0 | H83: =H48*RecyclingProcessData!$R22 -> 0 | I83: =I48*RecyclingProcessData!$R22 -> 0 | J83: =J48*RecyclingProcessData!$R22 -> 0 | K83: =K48*RecyclingProcessData!$R22 -> 0 | L83: =L48*RecyclingProcessData!$R22 -> 59.18311194 | M83: =M48*RecyclingProcessData!$R22 -> 95.52004839
B84: =RecyclingProcessData!Q23 -> Emissions to air
C85: CO2 | E85: g/cell | G85: =G57*RecyclingProcessData!$K$33+G64*G56*(RecyclingProcessData!$K$30+RecyclingProcessData!$K$31)/2+G58*($D$60*RecyclingProcessData!$K$33+$D$61*RecyclingProcessData!$K$35)+G53*44/12+G16*RecyclingProcessData!$K$36+G17*RecyclingProcessData!$K$37 -> 1634.998299 | H85: =H57*RecyclingProcessData!$K$33+H64*H56*(RecyclingProcessData!$K$30+RecyclingProcessData!$K$31)/2+H58*($D$60*RecyclingProcessData!$K$33+$D$61*RecyclingProcessData!$K$35)+H53*44/12+H16*RecyclingProcessData!$K$36+H17*RecyclingProcessData!$K$37 -> 1370.134758 | I85: =I57*RecyclingProcessData!$K$33+I64*I56*(RecyclingProcessData!$K$30+RecyclingProcessData!$K$31)/2+I58*($D$60*RecyclingProcessData!$K$33+$D$61*RecyclingProcessData!$K$35)+I53*44/12+I16*RecyclingProcessData!$K$36+I17*RecyclingProcessData!$K$37 -> 1564.123342 | J85: =J57*RecyclingProcessData!$K$33+J64*J56*(RecyclingProcessData!$K$30+RecyclingProcessData!$K$31)/2+J58*($D$60*RecyclingProcessData!$K$33+$D$61*RecyclingProcessData!$K$35)+J53*44/12+J16*RecyclingProcessData!$K$36+J17*RecyclingProcessData!$K$37 -> 1192.544323 | K85: =K57*RecyclingProcessData!$K$33+K64*K56*(RecyclingProcessData!$K$30+RecyclingProcessData!$K$31)/2+K58*($D$60*RecyclingProcessData!$K$33+$D$61*RecyclingProcessData!$K$35)+K53*44/12+K16*RecyclingProcessData!$K$36+K17*RecyclingProcessData!$K$37 -> 1582.960232 | L85: =L57*RecyclingProcessData!$K$33+L64*L56*(RecyclingProcessData!$K$30+RecyclingProcessData!$K$31)/2+L58*($D$60*RecyclingProcessData!$K$33+$D$61*RecyclingProcessData!$K$35)+L53*44/12+L16*RecyclingProcessData!$K$36+L17*RecyclingProcessData!$K$37 -> 677.9533734 | M85: =M57*RecyclingProcessData!$K$33+M64*M56*(RecyclingProcessData!$K$30+RecyclingProcessData!$K$31)/2+M58*($D$60*RecyclingProcessData!$K$33+$D$61*RecyclingProcessData!$K$35)+M53*44/12+M16*RecyclingProcessData!$K$36+M17*RecyclingProcessData!$K$37 -> 830.2374691
C86: =RecyclingProcessData!Q24 -> SO2 | E86: g/cell | G86: =RecyclingProcessData!$R24*'Battery Recycling'!G$63 -> 0.06165636819 | H86: =RecyclingProcessData!$R24*'Battery Recycling'!H$63 -> 0.0442387488 | I86: =RecyclingProcessData!$R24*'Battery Recycling'!I$63 -> 0.04836980937 | J86: =RecyclingProcessData!$R24*'Battery Recycling'!J$63 -> 0.04989119985 | K86: =RecyclingProcessData!$R24*'Battery Recycling'!K$63 -> 0.05574983171 | L86: =RecyclingProcessData!$R24*'Battery Recycling'!L$63 -> 0.02795318211 | M86: =RecyclingProcessData!$R24*'Battery Recycling'!M$63 -> 0.03841521079
C87: HF
C88: =RecyclingProcessData!Q25 -> dust | E88: g/cell | G88: =RecyclingProcessData!$R25*'Battery Recycling'!G$63 -> 0.2671775955 | H88: =RecyclingProcessData!$R25*'Battery Recycling'!H$63 -> 0.1917012448 | I88: =RecyclingProcessData!$R25*'Battery Recycling'!I$63 -> 0.2096025073 | J88: =RecyclingProcessData!$R25*'Battery Recycling'!J$63 -> 0.2161951994 | K88: =RecyclingProcessData!$R25*'Battery Recycling'!K$63 -> 0.2415826041 | L88: =RecyclingProcessData!$R25*'Battery Recycling'!L$63 -> 0.1211304558 | M88: =RecyclingProcessData!$R25*'Battery Recycling'!M$63 -> 0.1664659134
B89: =RecyclingProcessData!Q26 -> Emissions to water
C90: =RecyclingProcessData!Q27 -> SO2 | E90: kg/cell | G90: =RecyclingProcessData!$R27*'Battery Recycling'!G$68 -> 0.05138030682 | H90: =RecyclingProcessData!$R27*'Battery Recycling'!H$68 -> 0.036865624 | I90: =RecyclingProcessData!$R27*'Battery Recycling'!I$68 -> 0.04030817448 | J90: =RecyclingProcessData!$R27*'Battery Recycling'!J$68 -> 0.04157599988 | K90: =RecyclingProcessData!$R27*'Battery Recycling'!K$68 -> 0.04645819309 | L90: =RecyclingProcessData!$R27*'Battery Recycling'!L$68 -> 0.02329431842 | M90: =RecyclingProcessData!$R27*'Battery Recycling'!M$68 -> 0.03201267566
C91: =RecyclingProcessData!Q28 -> Cl | E91: kg/cell | G91: =RecyclingProcessData!$R28*'Battery Recycling'!G$68 -> 0.05138030682 | H91: =RecyclingProcessData!$R28*'Battery Recycling'!H$68 -> 0.036865624 | I91: =RecyclingProcessData!$R28*'Battery Recycling'!I$68 -> 0.04030817448 | J91: =RecyclingProcessData!$R28*'Battery Recycling'!J$68 -> 0.04157599988 | K91: =RecyclingProcessData!$R28*'Battery Recycling'!K$68 -> 0.04645819309 | L91: =RecyclingProcessData!$R28*'Battery Recycling'!L$68 -> 0.02329431842 | M91: =RecyclingProcessData!$R28*'Battery Recycling'!M$68 -> 0.03201267566
C92: =RecyclingProcessData!Q29 -> Water to sewer | E92: l/cell | G92: =RecyclingProcessData!$R29*'Battery Recycling'!G$68 -> 1.284507671 | H92: =RecyclingProcessData!$R29*'Battery Recycling'!H$68 -> 0.9216406 | I92: =RecyclingProcessData!$R29*'Battery Recycling'!I$68 -> 1.007704362 | J92: =RecyclingProcessData!$R29*'Battery Recycling'!J$68 -> 1.039399997 | K92: =RecyclingProcessData!$R29*'Battery Recycling'!K$68 -> 1.161454827 | L92: =RecyclingProcessData!$R29*'Battery Recycling'!L$68 -> 0.5823579606 | M92: =RecyclingProcessData!$R29*'Battery Recycling'!M$68 -> 0.8003168915
B93: Waste
C94: =RecyclingProcessData!Q31 -> Solid waste | E94: kg/cell | G94: =(G54+G51-SUM(G75:G83))/1000 -> 0.6007644627 | H94: =(H54+H51-SUM(H75:H83))/1000 -> 0.3630955378 | I94: 0.4261878882 | J94: 0.541952848 | K94: 0.4286764772 | L94: 0.1683181907 | M94: 0.382293232
C95: =RecyclingProcessData!Q32 -> Plastics to incinerator | E95: kg/cell | G95: =RecyclingProcessData!$R32*'Battery Recycling'!G$68 -> 0.1249678371 | H95: =RecyclingProcessData!$R32*'Battery Recycling'!H$68 -> 0.08966504052 | I95: =RecyclingProcessData!$R32*'Battery Recycling'!I$68 -> 0.09803805566 | J95: =RecyclingProcessData!$R32*'Battery Recycling'!J$68 -> 0.1011216768 | K95: =RecyclingProcessData!$R32*'Battery Recycling'!K$68 -> 0.1129962093 | L95: =RecyclingProcessData!$R32*'Battery Recycling'!L$68 -> 0.05665673814 | M95: =RecyclingProcessData!$R32*'Battery Recycling'!M$68 -> 0.07786163772 | O95: all plastics assumed to be burned in smelter (plastics from original inventory probably attributable to module/pack housing)
B98: Hydrometallurgical recycling | G98: (adapted from Mohr et al. 2020, stoichiometric estimations, based on Fisher 2004)
B99: =RecyclingProcessData!B7 -> INPUTS
C100: =RecyclingProcessData!B8 -> Waste batteries | E100: kg/cell | G100: =G63/1000 -> 1.284507671 | H100: 0.9216406 | I100: 1.007704362 | J100: 1.039399997 | K100: 1.161454827 | L100: 0.5823579606 | M100: 0.8003168915
C101: =RecyclingProcessData!B9 -> Reagent | E101: kg/cell | G101: =G$100*RecyclingProcessData!$C9 -> 0.03211269176 | H101: =H$100*RecyclingProcessData!$C9 -> 0.023041015 | I101: =I$100*RecyclingProcessData!$C9 -> 0.02519260905 | J101: =J$100*RecyclingProcessData!$C9 -> 0.02598499992 | K101: =K$100*RecyclingProcessData!$C9 -> 0.02903637068 | L101: =L$100*RecyclingProcessData!$C9 -> 0.01455894902 | M101: =M$100*RecyclingProcessData!$C9 -> 0.02000792229
C102: =RecyclingProcessData!B10 -> Electricity | E102: kWh/cell | G102: =G$100*RecyclingProcessData!$C10 -> 0.1798310739 | H102: =H$100*RecyclingProcessData!$C10 -> 0.129029684 | I102: =I$100*RecyclingProcessData!$C10 -> 0.1410786107 | J102: =J$100*RecyclingProcessData!$C10 -> 0.1455159996 | K102: =K$100*RecyclingProcessData!$C10 -> 0.1626036758 | L102: =L$100*RecyclingProcessData!$C10 -> 0.08153011449 | M102: =M$100*RecyclingProcessData!$C10 -> 0.1120443648
C103: =RecyclingProcessData!B11 -> Water | E103: l/cell | G103: =G$100*RecyclingProcessData!$C11 -> 0.9248455228 | H103: =H$100*RecyclingProcessData!$C11 -> 0.663581232 | I103: =I$100*RecyclingProcessData!$C11 -> 0.7255471406 | J103: =J$100*RecyclingProcessData!$C11 -> 0.7483679978 | K103: =K$100*RecyclingProcessData!$C11 -> 0.8362474757 | L103: =L$100*RecyclingProcessData!$C11 -> 0.4192977316 | M103: =M$100*RecyclingProcessData!$C11 -> 0.5762281619
C104: =RecyclingProcessData!B12 -> H2SO4 (100%) | E104: kg/cell | G104: =G9/G6*18/12*RecyclingProcessData!$G7/1000 -> 0.1953797418 | H104: =H9/H6*18/12*RecyclingProcessData!$G7/1000 -> 0.4626002127 | I104: =I9/I6*18/12*RecyclingProcessData!$G7/1000 -> 0.4915538128 | J104: =J9/J6*18/12*RecyclingProcessData!$G7/1000 -> 0.129171027 | K104: =K9/K6*18/12*RecyclingProcessData!$G7/1000 -> 0.6324980503 | L104: =L9/L6*18/12*RecyclingProcessData!$G7/1000 -> 0.3694105709 | M104: =M9/M6*18/12*RecyclingProcessData!$G7/1000 -> 0.3030390117
C105: =RecyclingProcessData!B13 -> Lime | E105: kg/cell | G105: =G9/G6*1.05/2*RecyclingProcessData!$G8/1000 -> 0.06973222824 | H105: =H9/H6*1.05/2*RecyclingProcessData!$G8/1000 -> 0.1651048534 | I105: =I9/I6*1.05/2*RecyclingProcessData!$G8/1000 -> 0.1754385708 | J105: =J9/J6*1.05/2*RecyclingProcessData!$G8/1000 -> 0.04610193183 | K105: =K9/K6*1.05/2*RecyclingProcessData!$G8/1000 -> 0.2257424337 | L105: =L9/L6*1.05/2*RecyclingProcessData!$G8/1000 -> 0.1318448986 | M105: =M9/M6*1.05/2*RecyclingProcessData!$G8/1000 -> 0.108156482
B107: OUTPUTS
B108: Materials
C109: Sodium | D109: =RecyclingProcessData!B16 -> Na2CO3 | E109: g/cell | G109: =G20*RecyclingProcessData!$C16*$R74/$P74 -> 287.1631222 | H109: =H20*RecyclingProcessData!$C16*$R74/$P74 -> 356.2399058 | I109: =I20*RecyclingProcessData!$C16*$R74/$P74 -> 233.5862316 | J109: =J20*RecyclingProcessData!$C16*$R74/$P74 -> 363.7879794 | K109: =K20*RecyclingProcessData!$C16*$R74/$P74 -> 463.2756131 | L109: =L20*RecyclingProcessData!$C16*$R74/$P74 -> 0 | M109: =M20*RecyclingProcessData!$C16*$R74/$P74 -> 0
C110: Lithium | D110: =RecyclingProcessData!B17 -> Li2CO3 | E110: g/cell | G110: =G21*RecyclingProcessData!$C17*$R75/$P75 -> 0 | H110: =H21*RecyclingProcessData!$C17*$R75/$P75 -> 0 | I110: =I21*RecyclingProcessData!$C17*$R75/$P75 -> 0 | J110: =J21*RecyclingProcessData!$C17*$R75/$P75 -> 0 | K110: =K21*RecyclingProcessData!$C17*$R75/$P75 -> 0 | L110: =L21*RecyclingProcessData!$C17*$R75/$P75 -> 188.5461972 | M110: =M21*RecyclingProcessData!$C17*$R75/$P75 -> 151.6605305
C111: Nickel | D111: =RecyclingProcessData!B18 -> NiSO4 | E111: g/cell | G111: =G22*RecyclingProcessData!$C18*$R76/$P76 -> 0 | H111: =H22*RecyclingProcessData!$C18*$R76/$P76 -> 136.620549 | I111: =I22*RecyclingProcessData!$C18*$R76/$P76 -> 0 | J111: =J22*RecyclingProcessData!$C18*$R76/$P76 -> 0 | K111: =K22*RecyclingProcessData!$C18*$R76/$P76 -> 196.977206 | L111: =L22*RecyclingProcessData!$C18*$R76/$P76 -> 207.2875019 | M111: =M22*RecyclingProcessData!$C18*$R76/$P76 -> 0
C112: Cobalt | D112: CoCO3 | E112: g/cell | G112: =G23*RecyclingProcessData!$C19*$R81/$P77 -> 0 | H112: =H23*RecyclingProcessData!$C19*$R81/$P77 -> 0 | I112: =I23*RecyclingProcessData!$C19*$R81/$P77 -> 0 | J112: =J23*RecyclingProcessData!$C19*$R81/$P77 -> 0 | K112: =K23*RecyclingProcessData!$C19*$R81/$P77 -> 151.4220097 | L112: =L23*RecyclingProcessData!$C19*$R81/$P77 -> 53.11594294 | M112: =M23*RecyclingProcessData!$C19*$R81/$P77 -> 0
C113: Manganese | D113: =RecyclingProcessData!B20 -> MnSO4 | E113: g/cell | G113: =G24*RecyclingProcessData!$C20*$R78/$P78 -> 0 | H113: =H24*RecyclingProcessData!$C20*$R78/$P78 -> 222.1522597 | I113: =I24*RecyclingProcessData!$C20*$R78/$P78 -> 448.507363 | J113: =J24*RecyclingProcessData!$C20*$R78/$P78 -> 124.0623534 | K113: =K24*RecyclingProcessData!$C20*$R78/$P78 -> 192.1772315 | L113: =L24*RecyclingProcessData!$C20*$R78/$P78 -> 67.41209474 | M113: =M24*RecyclingProcessData!$C20*$R78/$P78 -> 0
C114: Magnesium | D114: =RecyclingProcessData!B21 -> Mg(OH)2 | E114: g/cell | G114: =G29*RecyclingProcessData!$C21*$R79/$P79 -> 0 | H114: =H29*RecyclingProcessData!$C21*$R79/$P79 -> 8.581282299 | I114: =I29*RecyclingProcessData!$C21*$R79/$P79 -> 9.118374607 | J114: =J29*RecyclingProcessData!$C21*$R79/$P79 -> 0 | K114: =K29*RecyclingProcessData!$C21*$R79/$P79 -> 0 | L114: =L29*RecyclingProcessData!$C21*$R79/$P79 -> 0 | M114: =M29*RecyclingProcessData!$C21*$R79/$P79 -> 0
C115: Titanium | D115: =RecyclingProcessData!B22 -> TiO2 | E115: g/cell | G115: =G31*RecyclingProcessData!$C22*$R80/$P80 -> 0 | H115: =H31*RecyclingProcessData!$C22*$R80/$P80 -> 11.75961677 | I115: =I31*RecyclingProcessData!$C22*$R80/$P80 -> 0 | J115: =J31*RecyclingProcessData!$C22*$R80/$P80 -> 0 | K115: =K31*RecyclingProcessData!$C22*$R80/$P80 -> 0 | L115: =L31*RecyclingProcessData!$C22*$R80/$P80 -> 0 | M115: =M31*RecyclingProcessData!$C22*$R80/$P80 -> 0
C116: Vanadium | D116: V2O5 | E116: g/cell
C117: Steel | D117: =RecyclingProcessData!B23 -> Steel/Iron | E117: g/cell | G117: =G50 -> 0 | H117: =H50 -> 0 | I117: 0 | J117: 0 | K117: 0 | L117: 0 | M117: 0
C118: Aluminium | D118: =RecyclingProcessData!B24 -> Aluminium | E118: g/cell | G118: =G39 -> 163.936449 | H118: =H39 -> 66.82529208 | I118: 73.81955635 | J118: 99.60032966 | K118: 79.14221196 | L118: 23.87357272 | M118: 39.90996931
C119: Copper | D119: =RecyclingProcessData!B25 -> Copper | E119: g/cell | G119: =G48 -> 0 | H119: =H48 -> 0 | I119: 0 | J119: 0 | K119: =K48 -> 0 | L119: 63.22982045 | M119: 102.0513338
B120: =RecyclingProcessData!B27 -> Emissions to air
C121: =RecyclingProcessData!B28 -> SO2 | E121: g/cell | G121: =RecyclingProcessData!$C28*G63 -> 0.005780284518 | H121: =RecyclingProcessData!$C28*H63 -> 0.0041473827 | I121: =RecyclingProcessData!$C28*I63 -> 0.004534669628 | J121: =RecyclingProcessData!$C28*J63 -> 0.004677299986 | K121: =RecyclingProcessData!$C28*K63 -> 0.005226546723 | L121: =RecyclingProcessData!$C28*L63 -> 0.002620610823 | M121: =RecyclingProcessData!$C28*M63 -> 0.003601426012
C122: =RecyclingProcessData!B29 -> VOC | E122: g/cell | G122: =RecyclingProcessData!$C29*G63 -> 0.003211269176 | H122: =RecyclingProcessData!$C29*H63 -> 0.0023041015 | I122: =RecyclingProcessData!$C29*I63 -> 0.002519260905 | J122: =RecyclingProcessData!$C29*J63 -> 0.002598499992 | K122: =RecyclingProcessData!$C29*K63 -> 0.002903637068 | L122: =RecyclingProcessData!$C29*L63 -> 0.001455894902 | M122: =RecyclingProcessData!$C29*M63 -> 0.002000792229
C123: =RecyclingProcessData!B30 -> CO2 | E123: g/cell
B124: =RecyclingProcessData!B31 -> Emissions to water
C125: =RecyclingProcessData!B32 -> Solid suspension | E125: kg/cell | G125: =RecyclingProcessData!$C32*G$68 -> 1.541409205e-05 | H125: =RecyclingProcessData!$C32*H$68 -> 1.10596872e-05 | I125: =RecyclingProcessData!$C32*I$68 -> 1.209245234e-05 | J125: =RecyclingProcessData!$C32*J$68 -> 1.247279996e-05 | K125: =RecyclingProcessData!$C32*K$68 -> 1.393745793e-05 | L125: =RecyclingProcessData!$C32*L$68 -> 6.988295527e-06 | M125: =RecyclingProcessData!$C32*M$68 -> 9.603802698e-06
C126: =RecyclingProcessData!B33 -> Chemical oxygen | E126: kg/cell | G126: =RecyclingProcessData!$C33*G$68 -> 3.853523012e-05 | H126: =RecyclingProcessData!$C33*H$68 -> 2.7649218e-05 | I126: =RecyclingProcessData!$C33*I$68 -> 3.023113086e-05 | J126: =RecyclingProcessData!$C33*J$68 -> 3.118199991e-05 | K126: =RecyclingProcessData!$C33*K$68 -> 3.484364482e-05 | L126: =RecyclingProcessData!$C33*L$68 -> 1.747073882e-05 | M126: =RecyclingProcessData!$C33*M$68 -> 2.400950674e-05
C127: =RecyclingProcessData!B34 -> Total hydrocarbon | E127: kg/cell | G127: =RecyclingProcessData!$C34*G$68 -> 1.284507671e-08 | H127: =RecyclingProcessData!$C34*H$68 -> 9.216406e-09 | I127: =RecyclingProcessData!$C34*I$68 -> 1.007704362e-08 | J127: =RecyclingProcessData!$C34*J$68 -> 1.039399997e-08 | K127: =RecyclingProcessData!$C34*K$68 -> 1.161454827e-08 | L127: =RecyclingProcessData!$C34*L$68 -> 5.823579606e-09 | M127: =RecyclingProcessData!$C34*M$68 -> 8.003168915e-09
C128: =RecyclingProcessData!B35 -> Cu | E128: kg/cell | G128: =RecyclingProcessData!$C35*G$68 -> 2.140846118e-05 | H128: =RecyclingProcessData!$C35*H$68 -> 1.536067667e-05 | I128: =RecyclingProcessData!$C35*I$68 -> 1.67950727e-05 | J128: =RecyclingProcessData!$C35*J$68 -> 1.732333328e-05 | K128: =RecyclingProcessData!$C35*K$68 -> 1.935758046e-05 | L128: =RecyclingProcessData!$C35*L$68 -> 9.70596601e-06 | M128: =RecyclingProcessData!$C35*M$68 -> 1.333861486e-05
C129: =RecyclingProcessData!B36 -> Co | E129: kg/cell | G129: =RecyclingProcessData!$C36*G$68 -> 2.140846118e-05 | H129: =RecyclingProcessData!$C36*H$68 -> 1.536067667e-05 | I129: =RecyclingProcessData!$C36*I$68 -> 1.67950727e-05 | J129: =RecyclingProcessData!$C36*J$68 -> 1.732333328e-05 | K129: =RecyclingProcessData!$C36*K$68 -> 1.935758046e-05 | L129: =RecyclingProcessData!$C36*L$68 -> 9.70596601e-06 | M129: =RecyclingProcessData!$C36*M$68 -> 1.333861486e-05
C130: =RecyclingProcessData!B37 -> Ni | E130: kg/cell | G130: =RecyclingProcessData!$C37*G$68 -> 2.140846118e-05 | H130: =RecyclingProcessData!$C37*H$68 -> 1.536067667e-05 | I130: =RecyclingProcessData!$C37*I$68 -> 1.67950727e-05 | J130: =RecyclingProcessData!$C37*J$68 -> 1.732333328e-05 | K130: =RecyclingProcessData!$C37*K$68 -> 1.935758046e-05 | L130: =RecyclingProcessData!$C37*L$68 -> 9.70596601e-06 | M130: =RecyclingProcessData!$C37*M$68 -> 1.333861486e-05
C132: =RecyclingProcessData!B39 -> Fluoride | E132: kg/cell | G132: =RecyclingProcessData!$C39*G$68 -> 3.853523012e-08 | H132: =RecyclingProcessData!$C39*H$68 -> 2.7649218e-08 | I132: =RecyclingProcessData!$C39*I$68 -> 3.023113086e-08 | J132: =RecyclingProcessData!$C39*J$68 -> 3.118199991e-08 | K132: =RecyclingProcessData!$C39*K$68 -> 3.484364482e-08 | L132: =RecyclingProcessData!$C39*L$68 -> 1.747073882e-08 | M132: =RecyclingProcessData!$C39*M$68 -> 2.400950674e-08
C133: =RecyclingProcessData!B40 -> Water to sewer | E133: kg/cell | G133: =RecyclingProcessData!$C40*G$68 -> 0.432879085 | H133: =RecyclingProcessData!$C40*H$68 -> 0.3105928822 | I133: =RecyclingProcessData!$C40*I$68 -> 0.33959637 | J133: =RecyclingProcessData!$C40*J$68 -> 0.350277799 | K133: =RecyclingProcessData!$C40*K$68 -> 0.3914102768 | L133: =RecyclingProcessData!$C40*L$68 -> 0.1962546327 | M133: =RecyclingProcessData!$C40*M$68 -> 0.2697067924
B134: =RecyclingProcessData!B41 -> Solid waste
C135: =RecyclingProcessData!B42 -> Paper and plastic to refining | E135: kg/cell | G135: 0
C136: =RecyclingProcessData!B43 -> Residue to landfill | E136: kg/cell | G136: =RecyclingProcessData!$C43*G100 -> 0.2594705495 | H136: =RecyclingProcessData!$C43*H100 -> 0.1861714012 | I136: =RecyclingProcessData!$C43*I100 -> 0.2035562811 | J136: =RecyclingProcessData!$C43*J100 -> 0.2099587994 | K136: =RecyclingProcessData!$C43*K100 -> 0.2346138751 | L136: =RecyclingProcessData!$C43*L100 -> 0.117636308 | M136: =RecyclingProcessData!$C43*M100 -> 0.1616640121
C137: =RecyclingProcessData!B44 -> Gypsum | E137: kg/cell | G137: =G105/RecyclingProcessData!$G8*RecyclingProcessData!$K9 -> 0.1199394326 | H137: =H105/RecyclingProcessData!$G8*RecyclingProcessData!$K9 -> 0.2839803478 | I137: =I105/RecyclingProcessData!$G8*RecyclingProcessData!$K9 -> 0.3017543418 | J137: =J105/RecyclingProcessData!$G8*RecyclingProcessData!$K9 -> 0.07929532275 | K137: =K105/RecyclingProcessData!$G8*RecyclingProcessData!$K9 -> 0.3882769859 | L137: =L105/RecyclingProcessData!$G8*RecyclingProcessData!$K9 -> 0.2267732256 | M137: =M105/RecyclingProcessData!$G8*RecyclingProcessData!$K9 -> 0.1860291491
B143: advanced hydrometallurgical recycling | G143: (based on Mohr et al. 2020, expanded based on Duesnfeld patent and stoichiometric estimations)
B144: Mechanical pre-treatment | R144: Estimation of input of process chemicals for hydrometallurgical stage
B145: =RecyclingProcessData!X7 -> INPUTS
C146: =RecyclingProcessData!X8 -> Battery cells (NMC) | E146: kg/cell | G146: =RecyclingProcessData!$Z8*G$100 -> 1.284507671 | H146: =RecyclingProcessData!$Z8*H$100 -> 0.9216406 | I146: =RecyclingProcessData!$Z8*I$100 -> 1.007704362 | J146: =RecyclingProcessData!$Z8*J$100 -> 1.039399997 | K146: =RecyclingProcessData!$Z8*K$100 -> 1.161454827 | L146: =RecyclingProcessData!$Z8*L$100 -> 0.5823579606 | M146: =RecyclingProcessData!$Z8*M$100 -> 0.8003168915 | S146: =G3 -> NaFCN-HC | T146: NaNMMT-HC | U146: NaMMO-HC | V146: NaMVP-HC | W146: NaNMC-HC | X146: NMC622-G | Y146: LFP-G
C147: =RecyclingProcessData!X9 -> Electricity | E147: kWh/cell | G147: =RecyclingProcessData!$Z9*G$100 -> 0.5303732172 | H147: =RecyclingProcessData!$Z9*H$100 -> 0.3805454037 | I147: =RecyclingProcessData!$Z9*I$100 -> 0.416081131 | J147: =RecyclingProcessData!$Z9*J$100 -> 0.4291682587 | K147: =RecyclingProcessData!$Z9*K$100 -> 0.4795646982 | L147: =RecyclingProcessData!$Z9*L$100 -> 0.2404556019 | M147: =RecyclingProcessData!$Z9*M$100 -> 0.3304508445 | S147: H2SO4 demand | T147: H2SO4 demand | U147: H2SO4 demand | V147: H2SO4 demand | W147: H2SO4 demand | X147: H2SO4 demand | Y147: H2SO4 demand
C148: =RecyclingProcessData!X10 -> Inert gas (nitrogen) | E148: kg/cell | G148: =RecyclingProcessData!$Z10*G$100*G64 -> 0.0300700496 | H148: =RecyclingProcessData!$Z10*H$100*H64 -> 0.02157540915 | I148: =RecyclingProcessData!$Z10*I$100*I64 -> 0.0235901434 | J148: =RecyclingProcessData!$Z10*J$100*J64 -> 0.02433213143 | K148: =RecyclingProcessData!$Z10*K$100*K64 -> 0.02718940888 | L148: =RecyclingProcessData!$Z10*L$100*L64 -> 0.01363287519 | M148: =RecyclingProcessData!$Z10*M$100*M64 -> 0.01873524711 | N148: <- | O148: not needed for aqueous electrolyte | R148: Na | S148: =G20*RecyclingProcessData!$Z$18*RecyclingProcessData!$AE54 -> 292.7948649 | T148: =H20*RecyclingProcessData!$Z$18*RecyclingProcessData!$AE54 -> 363.2263582 | U148: =I20*RecyclingProcessData!$Z$18*RecyclingProcessData!$AE54 -> 238.1672431 | V148: =J20*RecyclingProcessData!$Z$18*RecyclingProcessData!$AE54 -> 370.9224619 | W148: =K20*RecyclingProcessData!$Z$18*RecyclingProcessData!$AE54 -> 472.3612123 | X148: =L20*RecyclingProcessData!$Z$18*RecyclingProcessData!$AE54 -> 0 | Y148: =M20*RecyclingProcessData!$Z$18*RecyclingProcessData!$AE54 -> 0
C149: =RecyclingProcessData!X11 -> Treatment of activated carbon (filter reprocessing) | E149: g/cell | G149: =RecyclingProcessData!$Z11*G$100*1000*G64 -> 28.84839297 | H149: =RecyclingProcessData!$Z11*H$100*1000*H64 -> 20.69886449 | I149: =RecyclingProcessData!$Z11*I$100*1000*I64 -> 22.63174608 | J149: =RecyclingProcessData!$Z11*J$100*1000*J64 -> 23.34358934 | K149: =RecyclingProcessData!$Z11*K$100*1000*K64 -> 26.08478411 | L149: =RecyclingProcessData!$Z11*L$100*1000*L64 -> 13.07901205 | M149: =RecyclingProcessData!$Z11*M$100*1000*M64 -> 17.97408978 | N149: <- | O149: not needed for aqueous electrolyte | R149: Li | S149: =G21*RecyclingProcessData!$Z$18*RecyclingProcessData!$AE55 -> 0 | T149: =H21*RecyclingProcessData!$Z$18*RecyclingProcessData!$AE55 -> 0 | U149: =I21*RecyclingProcessData!$Z$18*RecyclingProcessData!$AE55 -> 0 | V149: =J21*RecyclingProcessData!$Z$18*RecyclingProcessData!$AE55 -> 0 | W149: =K21*RecyclingProcessData!$Z$18*RecyclingProcessData!$AE55 -> 0 | X149: =L21*RecyclingProcessData!$Z$18*RecyclingProcessData!$AE55 -> 137.9118389 | Y149: =M21*RecyclingProcessData!$Z$18*RecyclingProcessData!$AE55 -> 110.9318722
C150: =RecyclingProcessData!X12 -> Activated carbon (filter make up) | E150: g/cell | G150: =RecyclingProcessData!$Z12*G$100*1000*G64 -> 2.884838527 | H150: =RecyclingProcessData!$Z12*H$100*1000*H64 -> 2.069885896 | I150: =RecyclingProcessData!$Z12*I$100*1000*I64 -> 2.263174003 | J150: =RecyclingProcessData!$Z12*J$100*1000*J64 -> 2.33435831 | K150: =RecyclingProcessData!$Z12*K$100*1000*K64 -> 2.608477715 | L150: =RecyclingProcessData!$Z12*L$100*1000*L64 -> 1.307900855 | M150: =RecyclingProcessData!$Z12*M$100*1000*M64 -> 1.797408497 | N150: <- | O150: not needed for aqueous electrolyte | R150: Ni | S150: =G22*RecyclingProcessData!$Z$18*RecyclingProcessData!$AE56 -> 0 | T150: =H22*RecyclingProcessData!$Z$18*RecyclingProcessData!$AE56 -> 95.4417281 | U150: =I22*RecyclingProcessData!$Z$18*RecyclingProcessData!$AE56 -> 0 | V150: =J22*RecyclingProcessData!$Z$18*RecyclingProcessData!$AE56 -> 0 | W150: =K22*RecyclingProcessData!$Z$18*RecyclingProcessData!$AE56 -> 137.6062758 | X150: =L22*RecyclingProcessData!$Z$18*RecyclingProcessData!$AE56 -> 144.8089438 | Y150: =M22*RecyclingProcessData!$Z$18*RecyclingProcessData!$AE56 -> 0
B151: =RecyclingProcessData!X13 -> OUTPUTS | R151: Co | S151: =G23*RecyclingProcessData!$Z$18*RecyclingProcessData!$AE57 -> 0 | T151: =H23*RecyclingProcessData!$Z$18*RecyclingProcessData!$AE57 -> 0 | U151: =I23*RecyclingProcessData!$Z$18*RecyclingProcessData!$AE57 -> 0 | V151: =J23*RecyclingProcessData!$Z$18*RecyclingProcessData!$AE57 -> 0 | W151: =K23*RecyclingProcessData!$Z$18*RecyclingProcessData!$AE57 -> 137.6062758 | X151: =L23*RecyclingProcessData!$Z$18*RecyclingProcessData!$AE57 -> 48.26964793 | Y151: =M23*RecyclingProcessData!$Z$18*RecyclingProcessData!$AE57 -> 0
C152: =RecyclingProcessData!X14 -> Fe | E152: g/cell | G152: =RecyclingProcessData!$Z14*G50 -> 0 | H152: =RecyclingProcessData!$Z14*H50 -> 0 | I152: =RecyclingProcessData!$Z14*I50 -> 0 | J152: =RecyclingProcessData!$Z14*J50 -> 0 | K152: =RecyclingProcessData!$Z14*K50 -> 0 | L152: =RecyclingProcessData!$Z14*L50 -> 0 | M152: =RecyclingProcessData!$Z14*M50 -> 0 | R152: Mn | S152: =G24*RecyclingProcessData!$Z$18*RecyclingProcessData!$AE58 -> 0 | T152: =H24*RecyclingProcessData!$Z$18*RecyclingProcessData!$AE58 -> 159.0695468 | U152: =I24*RecyclingProcessData!$Z$18*RecyclingProcessData!$AE58 -> 321.1484911 | V152: =J24*RecyclingProcessData!$Z$18*RecyclingProcessData!$AE58 -> 88.83340804 | W152: =K24*RecyclingProcessData!$Z$18*RecyclingProcessData!$AE58 -> 137.6062758 | X152: =L24*RecyclingProcessData!$Z$18*RecyclingProcessData!$AE58 -> 48.26964793 | Y152: =M24*RecyclingProcessData!$Z$18*RecyclingProcessData!$AE58 -> 0
R153: Mg | S153: =G29*RecyclingProcessData!$Z$18*RecyclingProcessData!$AE59 -> 0 | T153: =H29*RecyclingProcessData!$Z$18*RecyclingProcessData!$AE59 -> 15.90695468 | U153: =I29*RecyclingProcessData!$Z$18*RecyclingProcessData!$AE59 -> 16.90255216 | V153: =J29*RecyclingProcessData!$Z$18*RecyclingProcessData!$AE59 -> 0 | W153: =K29*RecyclingProcessData!$Z$18*RecyclingProcessData!$AE59 -> 0 | X153: =L29*RecyclingProcessData!$Z$18*RecyclingProcessData!$AE59 -> 0 | Y153: =M29*RecyclingProcessData!$Z$18*RecyclingProcessData!$AE59 -> 0
C154: =RecyclingProcessData!X16 -> Al | E154: g/cell | G154: =G39*RecyclingProcessData!$Z16 -> 160.65772 | H154: =H39*RecyclingProcessData!$Z16 -> 65.48878624 | I154: =I39*RecyclingProcessData!$Z16 -> 72.34316522 | J154: =J39*RecyclingProcessData!$Z16 -> 97.60832307 | K154: =K39*RecyclingProcessData!$Z16 -> 77.55936772 | L154: =L39*RecyclingProcessData!$Z16 -> 23.39610126 | M154: =M39*RecyclingProcessData!$Z16 -> 39.11176993 | R154: Ti | S154: =G31*RecyclingProcessData!$Z$18*RecyclingProcessData!$AE61 -> 0 | T154: =H31*RecyclingProcessData!$Z$18*RecyclingProcessData!$AE61 -> 15.90695468 | U154: =I31*RecyclingProcessData!$Z$18*RecyclingProcessData!$AE61 -> 0 | V154: =J31*RecyclingProcessData!$Z$18*RecyclingProcessData!$AE61 -> 0 | W154: =K31*RecyclingProcessData!$Z$18*RecyclingProcessData!$AE61 -> 0 | X154: =L31*RecyclingProcessData!$Z$18*RecyclingProcessData!$AE61 -> 0 | Y154: =M31*RecyclingProcessData!$Z$18*RecyclingProcessData!$AE61 -> 0
C155: =RecyclingProcessData!X17 -> Cu | E155: g/cell | G155: =G48*RecyclingProcessData!$Z17 -> 0 | H155: =H48*RecyclingProcessData!$Z17 -> 0 | I155: =I48*RecyclingProcessData!$Z17 -> 0 | J155: =J48*RecyclingProcessData!$Z17 -> 0 | K155: =K48*RecyclingProcessData!$Z17 -> 0 | L155: =L48*RecyclingProcessData!$Z17 -> 61.96522404 | M155: =M48*RecyclingProcessData!$Z17 -> 100.0103071
C156: =RecyclingProcessData!X18 -> Black Mass | E156: g/cell | G156: =(G9+G10+G12+G13)*RecyclingProcessData!$Z18 -> 675.2844618 | H156: =(H9+H10+H12+H13)*RecyclingProcessData!$Z18 -> 593.5463241 | I156: =(I9+I10+I12+I13)*RecyclingProcessData!$Z18 -> 633.7749124 | J156: =(J9+J10+J12+J13)*RecyclingProcessData!$Z18 -> 636.9270098 | K156: =(K9+K10+K12+K13)*RecyclingProcessData!$Z18 -> 770.9736923 | L156: =(L9+L10+L12+L13)*RecyclingProcessData!$Z18 -> 366.4838412 | M156: =(M9+M10+M12+M13)*RecyclingProcessData!$Z18 -> 470.802581 | S156: =SUM(S148:S155) -> 292.7948649 | T156: =SUM(T148:T155) -> 649.5515425 | U156: 576.2182863 | V156: 459.75587 | W156: 885.1800397 | X156: 379.2600786 | Y156: 110.9318722
C158: =RecyclingProcessData!X22 -> solid Waste | E158: g/cell | G158: =G146*1000-G154-G155-G156-G159-G55 -> 49.04183267 | H158: =H146*1000-H154-H155-H156-H159-H55 -> 44.59129642 | I158: 55.11539592 | J158: 45.85287149 | K158: 56.70920106 | L158: 21.8795836 | M158: 29.14202356 | S158: Lime demand | T158: Lime demand | U158: Lime demand | V158: Lime demand | W158: Lime demand | X158: Lime demand | Y158: Lime demand
C159: =RecyclingProcessData!X23 -> Plastics | E159: g/cell | G159: =G57+G58 -> 57.00975702 | H159: =H57+H58 -> 29.07297863 | I159: 32.18920497 | J159: 37.11066809 | K159: 33.71057645 | L159: 19.59354349 | M159: 29.13936417 | N159: <- | O159: assuming that pouches are all sent to waste and not separated | R159: Na | S159: =G20*RecyclingProcessData!$Z$18*RecyclingProcessData!$AF54 -> 149.2861188 | T159: =H20*RecyclingProcessData!$Z$18*RecyclingProcessData!$AF54 -> 185.1967359 | U159: =I20*RecyclingProcessData!$Z$18*RecyclingProcessData!$AF54 -> 121.433357 | V159: =J20*RecyclingProcessData!$Z$18*RecyclingProcessData!$AF54 -> 189.1207168 | W159: =K20*RecyclingProcessData!$Z$18*RecyclingProcessData!$AF54 -> 240.8408771 | X159: =L20*RecyclingProcessData!$Z$18*RecyclingProcessData!$AF54 -> 0 | Y159: =M20*RecyclingProcessData!$Z$18*RecyclingProcessData!$AF54 -> 0
C160: =RecyclingProcessData!X24 -> Activated carbon (spent filter) | E160: g/cell | G160: =G150*G64 -> 2.884838527 | H160: =H150*H64 -> 2.069885896 | I160: 2.263174003 | J160: 2.33435831 | K160: 2.608477715 | L160: 1.307900855 | M160: 1.797408497 | R160: Li
C161: =RecyclingProcessData!X26 -> Electrolyte (solvent without salt) | E161: g/cell | G161: =G55*RecyclingProcessData!$Z26 -> 325.3882041 | H161: =H55*RecyclingProcessData!$Z26 -> 179.4941539 | I161: =I55*RecyclingProcessData!$Z26 -> 203.5675992 | J161: =J55*RecyclingProcessData!$Z26 -> 210.8060683 | K161: =K55*RecyclingProcessData!$Z26 -> 211.3768903 | L161: =L55*RecyclingProcessData!$Z26 -> 84.5876837 | M161: =M55*RecyclingProcessData!$Z26 -> 125.5053035 | R161: Ni | S161: =G22*RecyclingProcessData!$Z$18*RecyclingProcessData!$AF56 -> 0 | T161: =H22*RecyclingProcessData!$Z$18*RecyclingProcessData!$AF56 -> 0 | U161: =I22*RecyclingProcessData!$Z$18*RecyclingProcessData!$AF56 -> 0 | V161: =J22*RecyclingProcessData!$Z$18*RecyclingProcessData!$AF56 -> 0 | W161: =K22*RecyclingProcessData!$Z$18*RecyclingProcessData!$AF56 -> 0 | X161: =L22*RecyclingProcessData!$Z$18*RecyclingProcessData!$AF56 -> 0 | Y161: =M22*RecyclingProcessData!$Z$18*RecyclingProcessData!$AF56 -> 0
C162: (Electrolyte emission (absorbed in active carbon filter)) | E162: g/cell | G162: =G63-(SUM(G152:G159)+G161) -> 17.12569495 | H162: 9.447060731 | I162: 10.71408417 | J162: 11.09505622 | K162: 11.12509949 | L162: 4.451983353 | M162: 6.605542289 | R162: Co | S162: =G23*RecyclingProcessData!$Z$18*RecyclingProcessData!$AF57 -> 0 | T162: =H23*RecyclingProcessData!$Z$18*RecyclingProcessData!$AF57 -> 0 | U162: =I23*RecyclingProcessData!$Z$18*RecyclingProcessData!$AF57 -> 0 | V162: =J23*RecyclingProcessData!$Z$18*RecyclingProcessData!$AF57 -> 0 | W162: =K23*RecyclingProcessData!$Z$18*RecyclingProcessData!$AF57 -> 0 | X162: =L23*RecyclingProcessData!$Z$18*RecyclingProcessData!$AF57 -> 0 | Y162: =M23*RecyclingProcessData!$Z$18*RecyclingProcessData!$AF57 -> 0
R163: Mn | S163: =G24*RecyclingProcessData!$Z$18*RecyclingProcessData!$AF58 -> 0 | T163: =H24*RecyclingProcessData!$Z$18*RecyclingProcessData!$AF58 -> 0 | U163: =I24*RecyclingProcessData!$Z$18*RecyclingProcessData!$AF58 -> 0 | V163: =J24*RecyclingProcessData!$Z$18*RecyclingProcessData!$AF58 -> 0 | W163: =K24*RecyclingProcessData!$Z$18*RecyclingProcessData!$AF58 -> 0 | X163: =L24*RecyclingProcessData!$Z$18*RecyclingProcessData!$AF58 -> 0 | Y163: =M24*RecyclingProcessData!$Z$18*RecyclingProcessData!$AF58 -> 0
B164: Hydrometallurgy | F164: (values acc to Mohr et al. 2020) | R164: Mg | S164: =G29*RecyclingProcessData!$Z$18*RecyclingProcessData!$AF59 -> 0 | T164: =H29*RecyclingProcessData!$Z$18*RecyclingProcessData!$AF59 -> 0 | U164: =I29*RecyclingProcessData!$Z$18*RecyclingProcessData!$AF59 -> 0 | V164: =J29*RecyclingProcessData!$Z$18*RecyclingProcessData!$AF59 -> 0 | W164: =K29*RecyclingProcessData!$Z$18*RecyclingProcessData!$AF59 -> 0 | X164: =L29*RecyclingProcessData!$Z$18*RecyclingProcessData!$AF59 -> 0 | Y164: =M29*RecyclingProcessData!$Z$18*RecyclingProcessData!$AF59 -> 0
B165: =RecyclingProcessData!X42 -> INPUTS | R165: Ti | S165: =G31*RecyclingProcessData!$Z$18*RecyclingProcessData!$AF61 -> 0 | T165: =H31*RecyclingProcessData!$Z$18*RecyclingProcessData!$AF61 -> 0 | U165: =I31*RecyclingProcessData!$Z$18*RecyclingProcessData!$AF61 -> 0 | V165: =J31*RecyclingProcessData!$Z$18*RecyclingProcessData!$AF61 -> 0 | W165: =K31*RecyclingProcessData!$Z$18*RecyclingProcessData!$AF61 -> 0 | X165: =L31*RecyclingProcessData!$Z$18*RecyclingProcessData!$AF61 -> 0 | Y165: =M31*RecyclingProcessData!$Z$18*RecyclingProcessData!$AF61 -> 0
C166: =RecyclingProcessData!X43 -> Black mass | E166: g | G166: =G156 -> 675.2844618 | H166: =H156 -> 593.5463241 | I166: 633.7749124 | J166: 636.9270098 | K166: 770.9736923 | L166: 366.4838412 | M166: 470.802581 | R166: Electrolyte salt | S166: =(G12*RecyclingProcessData!$Z$18*RecyclingProcessData!$AF62+G13*RecyclingProcessData!$Z$18*RecyclingProcessData!$AF63)*G64 -> 147.2208864 | T166: =(H12*RecyclingProcessData!$Z$18*RecyclingProcessData!$AF62+H13*RecyclingProcessData!$Z$18*RecyclingProcessData!$AF63)*H64 -> 81.21157471 | U166: =(I12*RecyclingProcessData!$Z$18*RecyclingProcessData!$AF62+I13*RecyclingProcessData!$Z$18*RecyclingProcessData!$AF63)*I64 -> 92.10353055 | V166: =(J12*RecyclingProcessData!$Z$18*RecyclingProcessData!$AF62+J13*RecyclingProcessData!$Z$18*RecyclingProcessData!$AF63)*J64 -> 95.3785535 | W166: =(K12*RecyclingProcessData!$Z$18*RecyclingProcessData!$AF62+K13*RecyclingProcessData!$Z$18*RecyclingProcessData!$AF63)*K64 -> 95.63682017 | X166: =(L12*RecyclingProcessData!$Z$18*RecyclingProcessData!$AF62+L13*RecyclingProcessData!$Z$18*RecyclingProcessData!$AF63)*L64 -> 55.49600992 | Y166: =(M12*RecyclingProcessData!$Z$18*RecyclingProcessData!$AF62+M13*RecyclingProcessData!$Z$18*RecyclingProcessData!$AF63)*M64 -> 82.34110762 | Z166: (HF scrubbing)
C167: =RecyclingProcessData!X44 -> Electricity | E167: kWh | G167: =RecyclingProcessData!$Z44*G$166/1000 -> 1.209232368 | H167: =RecyclingProcessData!$Z44*H$166/1000 -> 1.062863826 | I167: =RecyclingProcessData!$Z44*I$166/1000 -> 1.134901188 | J167: =RecyclingProcessData!$Z44*J$166/1000 -> 1.140545651 | K167: =RecyclingProcessData!$Z44*K$166/1000 -> 1.380583141 | L167: =RecyclingProcessData!$Z44*L$166/1000 -> 0.656262876 | M167: =RecyclingProcessData!$Z44*M$166/1000 -> 0.8430665178 | S167: =SUM(S159:S166) -> 296.5070053 | T167: =SUM(T159:T166) -> 266.4083106 | U167: 213.5368875 | V167: 284.4992703 | W167: 336.4776973 | X167: 55.49600992 | Y167: 82.34110762
C168: =RecyclingProcessData!X45 -> Lime | E168: g | F168: 74.48192568 | G168: =S167 -> 296.5070053 | H168: 266.4083106 | I168: 213.5368875 | J168: 284.4992703 | K168: 336.4776973 | L168: 55.49600992 | M168: 82.34110762
C169: =RecyclingProcessData!X46 -> Silica Sand | E169: g | F169: 74.48192568 | G169: =RecyclingProcessData!$Z46*G$166 -> 100.5929742 | H169: =RecyclingProcessData!$Z46*H$166 -> 88.4169464 | I169: =RecyclingProcessData!$Z46*I$166 -> 94.40955186 | J169: =RecyclingProcessData!$Z46*J$166 -> 94.87910042 | K169: =RecyclingProcessData!$Z46*K$166 -> 114.8472105 | L169: =RecyclingProcessData!$Z46*L$166 -> 54.59284445 | M169: =RecyclingProcessData!$Z46*M$166 -> 70.13256569 | S169: Na2CO3 demand | T169: Na2CO3 demand | U169: Na2CO3 demand | V169: Na2CO3 demand | W169: Na2CO3 demand | X169: Na2CO3 demand | Y169: Na2CO3 demand
C170: =RecyclingProcessData!X47 -> H2SO4 | E170: g | F170: 744.8192568 | G170: =S156 -> 292.7948649 | H170: 649.5515425 | I170: 576.2182863 | J170: 459.75587 | K170: 885.1800397 | L170: 379.2600786 | M170: 110.9318722 | R170: Na | S170: =G20*RecyclingProcessData!$Z$18*RecyclingProcessData!$AH54 -> 0 | T170: =H20*RecyclingProcessData!$Z$18*RecyclingProcessData!$AH54 -> 0 | U170: =I20*RecyclingProcessData!$Z$18*RecyclingProcessData!$AH54 -> 0 | V170: =J20*RecyclingProcessData!$Z$18*RecyclingProcessData!$AH54 -> 0 | W170: =K20*RecyclingProcessData!$Z$18*RecyclingProcessData!$AH54 -> 0 | X170: =L20*RecyclingProcessData!$Z$18*RecyclingProcessData!$AH54 -> 0 | Y170: =M20*RecyclingProcessData!$Z$18*RecyclingProcessData!$AH54 -> 0
A171: 2 | B171: excess factor | C171: =RecyclingProcessData!X48 -> Oxygen Liquid | E171: g | F171: 89.37831082 | G171: =(G175+G50-G152)/$Q50*16*$A171 -> 0 | H171: =(H175+H50-H152)/$Q50*16*$A171 -> 0 | I171: 0 | J171: 0 | K171: 0 | L171: 0.6368156153 | M171: 1.027804324 | N171: <- | O171: for oxidising Fe-Ions (acc. to patent EP18170117NWB1; see Tab "Recycling Processes") | R171: Li | S171: =G21*RecyclingProcessData!$Z$18*RecyclingProcessData!$AH55 -> 0 | T171: =H21*RecyclingProcessData!$Z$18*RecyclingProcessData!$AH55 -> 0 | U171: =I21*RecyclingProcessData!$Z$18*RecyclingProcessData!$AH55 -> 0 | V171: =J21*RecyclingProcessData!$Z$18*RecyclingProcessData!$AH55 -> 0 | W171: =K21*RecyclingProcessData!$Z$18*RecyclingProcessData!$AH55 -> 0 | X171: =L21*RecyclingProcessData!$Z$18*RecyclingProcessData!$AH55 -> 149.0710746 | Y171: =M21*RecyclingProcessData!$Z$18*RecyclingProcessData!$AH55 -> 119.9080044 | Z171: (Li precipitation)
C172: Sodium hydroxid (100%) | E172: g | F172: 178.7566216 | G172: =S192 -> 180.0080606 | H172: 94.8332272 | I172: 98.27528538 | J172: 111.7382456 | K172: 96.7266634 | L172: 39.83670299 | M172: 62.42277009 | R172: Ni | S172: =G22*RecyclingProcessData!$Z$18*RecyclingProcessData!$AH56 -> 0 | T172: =H22*RecyclingProcessData!$Z$18*RecyclingProcessData!$AH56 -> 0 | U172: =I22*RecyclingProcessData!$Z$18*RecyclingProcessData!$AH56 -> 0 | V172: =J22*RecyclingProcessData!$Z$18*RecyclingProcessData!$AH56 -> 0 | W172: =K22*RecyclingProcessData!$Z$18*RecyclingProcessData!$AH56 -> 0 | X172: =L22*RecyclingProcessData!$Z$18*RecyclingProcessData!$AH56 -> 0 | Y172: =M22*RecyclingProcessData!$Z$18*RecyclingProcessData!$AH56 -> 0
C173: =RecyclingProcessData!X50 -> Sodium carbonate | E173: g | F173: 446.8915541 | G173: =S178 -> 0 | H173: 85.97038681 | I173: 173.5672261 | J173: 48.01071357 | K173: 74.37039329 | L173: 175.1587852 | M173: 119.9080044 | R173: Co | S173: =G23*RecyclingProcessData!$Z$18*RecyclingProcessData!$AH57 -> 0 | T173: =H23*RecyclingProcessData!$Z$18*RecyclingProcessData!$AH57 -> 0 | U173: =I23*RecyclingProcessData!$Z$18*RecyclingProcessData!$AH57 -> 0 | V173: =J23*RecyclingProcessData!$Z$18*RecyclingProcessData!$AH57 -> 0 | W173: =K23*RecyclingProcessData!$Z$18*RecyclingProcessData!$AH57 -> 0 | X173: =L23*RecyclingProcessData!$Z$18*RecyclingProcessData!$AH57 -> 0 | Y173: =M23*RecyclingProcessData!$Z$18*RecyclingProcessData!$AH57 -> 0
C174: =RecyclingProcessData!X51 -> Activated carbon | E174: g | F174: 37.24096284 | G174: =RecyclingProcessData!$Z51*G$166*G64 -> 50.2964871 | H174: =RecyclingProcessData!$Z51*H$166*H64 -> 44.2084732 | I174: =RecyclingProcessData!$Z51*I$166*I64 -> 47.20477593 | J174: =RecyclingProcessData!$Z51*J$166*J64 -> 47.43955021 | K174: =RecyclingProcessData!$Z51*K$166*K64 -> 57.42360526 | L174: =RecyclingProcessData!$Z51*L$166*L64 -> 27.29642222 | M174: =RecyclingProcessData!$Z51*M$166*M64 -> 35.06628285 | R174: Mn | S174: =G24*RecyclingProcessData!$Z$18*RecyclingProcessData!$AH58 -> 0 | T174: =H24*RecyclingProcessData!$Z$18*RecyclingProcessData!$AH58 -> 85.97038681 | U174: =I24*RecyclingProcessData!$Z$18*RecyclingProcessData!$AH58 -> 173.5672261 | V174: =J24*RecyclingProcessData!$Z$18*RecyclingProcessData!$AH58 -> 48.01071357 | W174: =K24*RecyclingProcessData!$Z$18*RecyclingProcessData!$AH58 -> 74.37039329 | X174: =L24*RecyclingProcessData!$Z$18*RecyclingProcessData!$AH58 -> 26.0877106 | Y174: =M24*RecyclingProcessData!$Z$18*RecyclingProcessData!$AH58 -> 0 | Z174: (Mn precipitation)
C175: Iron | E175: g | G175: =(G48-G155)/$Q49*$Q50 -> 0 | H175: 0 | I175: 0 | J175: 0 | K175: 0 | L175: 1.111442254 | M175: 1.793839735 | N175: <- | O175: for eliminating remaining copper in solution (acc. to patent EP18170117NWB1; see Tab "Recycling Processes") | R175: Mg | S175: =G29*RecyclingProcessData!$Z$18*RecyclingProcessData!$AH59 -> 0 | T175: =H29*RecyclingProcessData!$Z$18*RecyclingProcessData!$AH59 -> 0 | U175: =I29*RecyclingProcessData!$Z$18*RecyclingProcessData!$AH59 -> 0 | V175: =J29*RecyclingProcessData!$Z$18*RecyclingProcessData!$AH59 -> 0 | W175: =K29*RecyclingProcessData!$Z$18*RecyclingProcessData!$AH59 -> 0 | X175: =L29*RecyclingProcessData!$Z$18*RecyclingProcessData!$AH59 -> 0 | Y175: =M29*RecyclingProcessData!$Z$18*RecyclingProcessData!$AH59 -> 0
B176: =RecyclingProcessData!X53 -> OUTPUTS | R176: Ti | S176: =G31*RecyclingProcessData!$Z$18*RecyclingProcessData!$AH61 -> 0 | T176: =H31*RecyclingProcessData!$Z$18*RecyclingProcessData!$AH61 -> 0 | U176: =I31*RecyclingProcessData!$Z$18*RecyclingProcessData!$AH61 -> 0 | V176: =J31*RecyclingProcessData!$Z$18*RecyclingProcessData!$AH61 -> 0 | W176: =K31*RecyclingProcessData!$Z$18*RecyclingProcessData!$AH61 -> 0 | X176: =L31*RecyclingProcessData!$Z$18*RecyclingProcessData!$AH61 -> 0 | Y176: =M31*RecyclingProcessData!$Z$18*RecyclingProcessData!$AH61 -> 0
B177: Materials
C178: Sodium | D178: =RecyclingProcessData!X54 -> Na2CO3 | E178: g | G178: =G20*RecyclingProcessData!$Z54*$R74/$P74 -> 291.4582971 | H178: =H20*RecyclingProcessData!$Z54*$R74/$P74 -> 361.5682805 | I178: =I20*RecyclingProcessData!$Z54*$R74/$P74 -> 237.0800428 | J178: =J20*RecyclingProcessData!$Z54*$R74/$P74 -> 369.2292526 | K178: =K20*RecyclingProcessData!$Z54*$R74/$P74 -> 470.2049492 | L178: =L20*RecyclingProcessData!$Z54*$R74/$P74 -> 0 | M178: =M20*RecyclingProcessData!$Z54*$R74/$P74 -> 0 | S178: =SUM(S170:S177) -> 0 | T178: =SUM(T170:T177) -> 85.97038681 | U178: =SUM(U170:U177) -> 173.5672261 | V178: =SUM(V170:V177) -> 48.01071357 | W178: =SUM(W170:W177) -> 74.37039329 | X178: =SUM(X170:X177) -> 175.1587852 | Y178: =SUM(Y170:Y177) -> 119.9080044
C179: Lithium | D179: =RecyclingProcessData!X55 -> Li2CO3 | E179: g | G179: =G21*RecyclingProcessData!$Z55*$R75/$P75 -> 0 | H179: =H21*RecyclingProcessData!$Z55*$R75/$P75 -> 0 | I179: =I21*RecyclingProcessData!$Z55*$R75/$P75 -> 0 | J179: =J21*RecyclingProcessData!$Z55*$R75/$P75 -> 0 | K179: =K21*RecyclingProcessData!$Z55*$R75/$P75 -> 0 | L179: =L21*RecyclingProcessData!$Z55*$R75/$P75 -> 191.3663326 | M179: =M21*RecyclingProcessData!$Z55*$R75/$P75 -> 153.9289572
C180: Nickel | D180: =RecyclingProcessData!X56 -> NiSO4 | E180: g | G180: =G22*RecyclingProcessData!$Z56*$R76/$P76 -> 0 | H180: =H22*RecyclingProcessData!$Z56*$R76/$P76 -> 138.6640187 | I180: =I22*RecyclingProcessData!$Z56*$R76/$P76 -> 0 | J180: =J22*RecyclingProcessData!$Z56*$R76/$P76 -> 0 | K180: =K22*RecyclingProcessData!$Z56*$R76/$P76 -> 199.9234463 | L180: =L22*RecyclingProcessData!$Z56*$R76/$P76 -> 210.387956 | M180: =M22*RecyclingProcessData!$Z56*$R76/$P76 -> 0 | S180: NaOH | T180: NaOH | U180: NaOH | V180: NaOH | W180: NaOH | X180: NaOH | Y180: NaOH
C181: Cobalt | D181: CoCO3 | E181: g | G181: =G23*RecyclingProcessData!$Z57*$R81/$P77 -> 0 | H181: =H23*RecyclingProcessData!$Z57*$R81/$P77 -> 0 | I181: =I23*RecyclingProcessData!$Z57*$R81/$P77 -> 0 | J181: =J23*RecyclingProcessData!$Z57*$R81/$P77 -> 0 | K181: =K23*RecyclingProcessData!$Z57*$R81/$P77 -> 153.6868688 | L181: =L23*RecyclingProcessData!$Z57*$R81/$P77 -> 53.91041218 | M181: =M23*RecyclingProcessData!$Z57*$R81/$P77 -> 0 | R181: Na | S181: =G20*RecyclingProcessData!$Z$18*RecyclingProcessData!$AG54 -> 0 | T181: =H20*RecyclingProcessData!$Z$18*RecyclingProcessData!$AG54 -> 0 | U181: =I20*RecyclingProcessData!$Z$18*RecyclingProcessData!$AG54 -> 0 | V181: =J20*RecyclingProcessData!$Z$18*RecyclingProcessData!$AG54 -> 0 | W181: =K20*RecyclingProcessData!$Z$18*RecyclingProcessData!$AG54 -> 0 | X181: =L20*RecyclingProcessData!$Z$18*RecyclingProcessData!$AG54 -> 0 | Y181: =M20*RecyclingProcessData!$Z$18*RecyclingProcessData!$AG54 -> 0
C182: Manganese | D182: MnCO3 * | E182: g | G182: =G24*RecyclingProcessData!$Z58*$T78/$P78 -> 0 | H182: =H24*RecyclingProcessData!$Z58*$T78/$P78 -> 171.6980405 | I182: =I24*RecyclingProcessData!$Z58*$T78/$P78 -> 346.6443938 | J182: =J24*RecyclingProcessData!$Z58*$T78/$P78 -> 95.88587129 | K182: =K24*RecyclingProcessData!$Z58*$T78/$P78 -> 148.5308055 | L182: =L24*RecyclingProcessData!$Z58*$T78/$P78 -> 52.10176386 | M182: =M24*RecyclingProcessData!$Z58*$T78/$P78 -> 0 | R182: Li | S182: =G21*RecyclingProcessData!$Z$18*RecyclingProcessData!$AG55 -> 0 | T182: =H21*RecyclingProcessData!$Z$18*RecyclingProcessData!$AG55 -> 0 | U182: =I21*RecyclingProcessData!$Z$18*RecyclingProcessData!$AG55 -> 0 | V182: =J21*RecyclingProcessData!$Z$18*RecyclingProcessData!$AG55 -> 0 | W182: =K21*RecyclingProcessData!$Z$18*RecyclingProcessData!$AG55 -> 0 | X182: =L21*RecyclingProcessData!$Z$18*RecyclingProcessData!$AG55 -> 0 | Y182: =M21*RecyclingProcessData!$Z$18*RecyclingProcessData!$AG55 -> 0
C183: Magnesium | D183: =RecyclingProcessData!X59 -> Mg(OH)2 | E183: g | G183: =G29*RecyclingProcessData!$Z59*$R79/$P79 -> 0 | H183: =H29*RecyclingProcessData!$Z59*$R79/$P79 -> 8.526274079 | I183: =I29*RecyclingProcessData!$Z59*$R79/$P79 -> 9.059923487 | J183: =J29*RecyclingProcessData!$Z59*$R79/$P79 -> 0 | K183: =K29*RecyclingProcessData!$Z59*$R79/$P79 -> 0 | L183: =L29*RecyclingProcessData!$Z59*$R79/$P79 -> 0 | M183: =M29*RecyclingProcessData!$Z59*$R79/$P79 -> 0 | R183: Ni | S183: =G22*RecyclingProcessData!$Z$18*RecyclingProcessData!$AG56 -> 0 | T183: =H22*RecyclingProcessData!$Z$18*RecyclingProcessData!$AG56 -> 0 | U183: =I22*RecyclingProcessData!$Z$18*RecyclingProcessData!$AG56 -> 0 | V183: =J22*RecyclingProcessData!$Z$18*RecyclingProcessData!$AG56 -> 0 | W183: =K22*RecyclingProcessData!$Z$18*RecyclingProcessData!$AG56 -> 0 | X183: =L22*RecyclingProcessData!$Z$18*RecyclingProcessData!$AG56 -> 0 | Y183: =M22*RecyclingProcessData!$Z$18*RecyclingProcessData!$AG56 -> 0
C184: Vanadium | D184: V2O5 | E184: g | G184: =G30*RecyclingProcessData!$Z60*$R82/$P81 -> 0 | H184: =H30*RecyclingProcessData!$Z60*$R82/$P81 -> 0 | I184: =I30*RecyclingProcessData!$Z60*$R82/$P81 -> 0 | J184: =J30*RecyclingProcessData!$Z60*$R82/$P81 -> 0 | K184: =K30*RecyclingProcessData!$Z60*$R82/$P81 -> 0 | L184: =L30*RecyclingProcessData!$Z60*$R82/$P81 -> 0 | M184: =M30*RecyclingProcessData!$Z60*$R82/$P81 -> 0
C185: Titanium | D185: =RecyclingProcessData!X61 -> TiO2 | E185: g | G185: =G31*RecyclingProcessData!$Z61*$R80/$P80 -> 0 | H185: =H31*RecyclingProcessData!$Z61*$R80/$P80 -> 11.68423461 | I185: =I31*RecyclingProcessData!$Z61*$R80/$P80 -> 0 | J185: =J31*RecyclingProcessData!$Z61*$R80/$P80 -> 0 | K185: =K31*RecyclingProcessData!$Z61*$R80/$P80 -> 0 | L185: =L31*RecyclingProcessData!$Z61*$R80/$P80 -> 0 | M185: =M31*RecyclingProcessData!$Z61*$R80/$P80 -> 0 | R185: Co | S185: =G23*RecyclingProcessData!$Z$18*RecyclingProcessData!$AG57 -> 0 | T185: =H23*RecyclingProcessData!$Z$18*RecyclingProcessData!$AG57 -> 0 | U185: =I23*RecyclingProcessData!$Z$18*RecyclingProcessData!$AG57 -> 0 | V185: =J23*RecyclingProcessData!$Z$18*RecyclingProcessData!$AG57 -> 0 | W185: =K23*RecyclingProcessData!$Z$18*RecyclingProcessData!$AG57 -> 0 | X185: =L23*RecyclingProcessData!$Z$18*RecyclingProcessData!$AG57 -> 0 | Y185: =M23*RecyclingProcessData!$Z$18*RecyclingProcessData!$AG57 -> 0
C186: Graphite / carbon | E186: g | G186: =(G10-G10*Chem!C35/100)*RecyclingProcessData!$Z62 -> 238.3136778 | H186: =(H10-H10*Chem!D35/100)*RecyclingProcessData!$Z62 -> 240.4385127 | I186: =(I10-I10*Chem!E35/100)*RecyclingProcessData!$Z62 -> 274.2253823 | J186: =(J10-J10*Chem!F35/100)*RecyclingProcessData!$Z62 -> 198.58363 | K186: =(K10-K10*Chem!G35/100)*RecyclingProcessData!$Z62 -> 274.0570324 | L186: =(L10-L10*Chem!H35/100)*RecyclingProcessData!$Z62 -> 124.2272947 | M186: =(M10-M10*Chem!I35/100)*RecyclingProcessData!$Z62 -> 140.7953159 | R186: Mn | S186: =G24*RecyclingProcessData!$Z$18*RecyclingProcessData!$AG58 -> 0 | T186: =H24*RecyclingProcessData!$Z$18*RecyclingProcessData!$AG58 -> 0 | U186: =I24*RecyclingProcessData!$Z$18*RecyclingProcessData!$AG58 -> 0 | V186: =J24*RecyclingProcessData!$Z$18*RecyclingProcessData!$AG58 -> 0 | W186: =K24*RecyclingProcessData!$Z$18*RecyclingProcessData!$AG58 -> 0 | X186: =L24*RecyclingProcessData!$Z$18*RecyclingProcessData!$AG58 -> 0 | Y186: =M24*RecyclingProcessData!$Z$18*RecyclingProcessData!$AG58 -> 0
B187: Waste | R187: Mg | S187: =G29*RecyclingProcessData!$Z$18*RecyclingProcessData!$AG59 -> 0 | T187: =H29*RecyclingProcessData!$Z$18*RecyclingProcessData!$AG59 -> 6.48833108 | U187: =I29*RecyclingProcessData!$Z$18*RecyclingProcessData!$AG59 -> 6.894428047 | V187: =J29*RecyclingProcessData!$Z$18*RecyclingProcessData!$AG59 -> 0 | W187: =K29*RecyclingProcessData!$Z$18*RecyclingProcessData!$AG59 -> 0 | X187: =L29*RecyclingProcessData!$Z$18*RecyclingProcessData!$AG59 -> 0 | Y187: =M29*RecyclingProcessData!$Z$18*RecyclingProcessData!$AG59 -> 0
C188: =RecyclingProcessData!X64 -> Activated carbon | G188: =G174 -> 50.2964871 | H188: =H174 -> 44.2084732 | I188: 47.20477593 | J188: 47.43955021 | K188: 57.42360526 | L188: 27.29642222 | M188: 35.06628285 | R188: Ti | S188: =G31*RecyclingProcessData!$Z$18*RecyclingProcessData!$AG61 -> 0 | T188: =H31*RecyclingProcessData!$Z$18*RecyclingProcessData!$AG61 -> 6.48833108 | U188: =I31*RecyclingProcessData!$Z$18*RecyclingProcessData!$AG61 -> 0 | V188: =J31*RecyclingProcessData!$Z$18*RecyclingProcessData!$AG61 -> 0 | W188: =K31*RecyclingProcessData!$Z$18*RecyclingProcessData!$AG61 -> 0 | X188: =L31*RecyclingProcessData!$Z$18*RecyclingProcessData!$AG61 -> 0 | Y188: =M31*RecyclingProcessData!$Z$18*RecyclingProcessData!$AG61 -> 0
C189: =RecyclingProcessData!X65 -> binder as plastic waste | G189: =G16 -> 19.01046944 | H189: 17.43900147 | I189: 25.73146159 | J189: 17.37618334 | K189: 21.8023504 | L189: 7.46681699 | M189: 9.589750804 | R189: Electrolyte salt | S189: =(G12*RecyclingProcessData!$Z$18*RecyclingProcessData!$AG62+G13*RecyclingProcessData!$Z$18*RecyclingProcessData!$AG63)*G64 -> 58.88835457 | T189: =(H12*RecyclingProcessData!$Z$18*RecyclingProcessData!$AG62+H13*RecyclingProcessData!$Z$18*RecyclingProcessData!$AG63)*H64 -> 32.48462988 | U189: =(I12*RecyclingProcessData!$Z$18*RecyclingProcessData!$AG62+I13*RecyclingProcessData!$Z$18*RecyclingProcessData!$AG63)*I64 -> 36.84141222 | V189: =(J12*RecyclingProcessData!$Z$18*RecyclingProcessData!$AG62+J13*RecyclingProcessData!$Z$18*RecyclingProcessData!$AG63)*J64 -> 38.1514214 | W189: =(K12*RecyclingProcessData!$Z$18*RecyclingProcessData!$AG62+K13*RecyclingProcessData!$Z$18*RecyclingProcessData!$AG63)*K64 -> 38.25472807 | X189: =(L12*RecyclingProcessData!$Z$18*RecyclingProcessData!$AG62+L13*RecyclingProcessData!$Z$18*RecyclingProcessData!$AG63)*L64 -> 22.19840397 | Y189: =(M12*RecyclingProcessData!$Z$18*RecyclingProcessData!$AG62+M13*RecyclingProcessData!$Z$18*RecyclingProcessData!$AG63)*M64 -> 32.93644305 | Z189: (HF scrubbing)
C190: Gypsum | E190: g | G190: =G168/RecyclingProcessData!$G8*RecyclingProcessData!$K9 -> 509.9920491 | R190: Fe | S190: =(G50)*RecyclingProcessData!$Z$18*RecyclingProcessData!$AG63 -> 0 | T190: =H50*RecyclingProcessData!$Z$18*RecyclingProcessData!$AG63 -> 0 | U190: =I50*RecyclingProcessData!$Z$18*RecyclingProcessData!$AG63 -> 0 | V190: =J50*RecyclingProcessData!$Z$18*RecyclingProcessData!$AG63 -> 0 | W190: =K50*RecyclingProcessData!$Z$18*RecyclingProcessData!$AG63 -> 0 | X190: =L50*RecyclingProcessData!$Z$18*RecyclingProcessData!$AG63 -> 0 | Y190: =M50*RecyclingProcessData!$Z$18*RecyclingProcessData!$AG63 -> 0
C191: Resdiual solid waste | G191: =G166+G168+G169+G170+G172+G173+G175-SUM(G178:G187)-G189 -> 996.4049224 | H191: =H166+H168+H169+H170+H172+H173+H175-SUM(H178:H187)-H189 -> 828.7083751 | I191: =I166+I168+I169+I170+I172+I173+I175-SUM(I178:I187)-I189 -> 897.0409457 | J191: 954.7352724 | K191: 1010.370244 | L191: 432.4791282 | M191: 614.0187168 | R191: Al | S191: =G39*RecyclingProcessData!$Z$18*RecyclingProcessData!$AG64 -> 121.119706 | T191: =H39*RecyclingProcessData!$Z$18*RecyclingProcessData!$AG64 -> 49.37193516 | U191: =I39*RecyclingProcessData!$Z$18*RecyclingProcessData!$AG64 -> 54.53944511 | V191: =J39*RecyclingProcessData!$Z$18*RecyclingProcessData!$AG64 -> 73.58682416 | W191: =K39*RecyclingProcessData!$Z$18*RecyclingProcessData!$AG64 -> 58.47193533 | X191: =L39*RecyclingProcessData!$Z$18*RecyclingProcessData!$AG64 -> 17.63829903 | Y191: =M39*RecyclingProcessData!$Z$18*RecyclingProcessData!$AG64 -> 29.48632704
B192: Emissions to air | S192: =SUM(S181:S191) -> 180.0080606 | T192: =SUM(T181:T191) -> 94.8332272 | U192: 98.27528538 | V192: 111.7382456 | W192: 96.7266634 | X192: 39.83670299 | Y192: 62.42277009
D194: * MnSO4 eq | E194: g MnSO4-eq | G194: =G24*RecyclingProcessData!$Z58*$R78/$P78 -> 0 | H194: =H24*RecyclingProcessData!$Z58*$R78/$P78 -> 225.4750499 | I194: =I24*RecyclingProcessData!$Z58*$R78/$P78 -> 455.2158065 | J194: =J24*RecyclingProcessData!$Z58*$R78/$P78 -> 125.9179869 | K194: =K24*RecyclingProcessData!$Z58*$R78/$P78 -> 195.0516772 | L194: =L24*RecyclingProcessData!$Z58*$R78/$P78 -> 68.42039531 | M194: =M24*RecyclingProcessData!$Z58*$R78/$P78 -> 0
C198: per kg
C199: Electricity | E199: MJ/kg | G199: =(G147+G167)/G146*3.6 -> 4.875471162 | H199: =(H147+H167)/H146*3.6 -> 5.638068926 | I199: 5.540847653 | J199: 5.436761682 | K199: 5.765641559 | L199: 5.543302812 | M199: 5.278737147
C201: Lime | G201: =G168/G$146/1000 -> 0.2308331916 | H201: =H168/H$146/1000 -> 0.2890587835 | I201: 0.2119043001 | J201: 0.273714904 | K201: 0.2897036453 | L201: 0.09529535727 | M201: 0.1028856301
C202: Sand | G202: =G169/G$146/1000 -> 0.0783124745 | H202: 0.09593430064 | I202: 0.09368774755 | J202: 0.09128256754 | K202: 0.09888220171 | L202: 0.09374448044 | M202: 0.08763099522
C203: Sulfuric acid | G203: 0.2279432592 | H203: 0.7047774832 | I203: 0.5718128333 | J203: 0.4423281425 | K203: 0.7621304065 | L203: 0.6512490671 | M203: 0.1386099348
C204: Oxygen | G204: 0 | H204: 0 | I204: 0 | J204: 0 | K204: 0 | L204: 0.001093512338 | M204: 0.001284246697
C205: NaOH | G205: 0.1401377856 | H205: 0.1028961042 | I205: 0.09752392576 | J205: 0.1075026418 | K205: 0.08328060732 | L205: 0.06840587008 | M205: 0.07799756666
C206: Na2CO3 | G206: 0 | H206: 0.09327973053 | I206: 0.1722402251 | J206: 0.04619079634 | K206: 0.06403210141 | L206: 0.3007751194 | M206: 0.1498256574

Sheet Inventory Tables
A1: BATTERY CELL PRODUCTION
A2: I | E2: electrode area | F2: ='Battery Design'!G21 -> 1.732867997 | G2: m2 | J2: electrode area | K2: ='Battery Design'!J21 -> 0.6098507126 | L2: m2 | O2: electrode area | P2: ='Battery Design'!M21 -> 0.6808514217 | Q2: m2 | T2: electrode area | U2: ='Battery Design'!P21 -> 0.9972533601 | V2: m2 | Y2: electrode area | Z2: ='Battery Design'!S21 -> 0.7421298851 | AA2: m2 | AD2: electrode area | AE2: ='Battery Design'!V21 -> 0.4502491838 | AF2: m2 | AI2: electrode area | AJ2: ='Battery Design'!Y21 -> 0.8167919244 | AK2: m2
A4: Battery cells | C4: ='Battery Design'!AC5 -> NaFCN-HC | H4: ='Battery Design'!AF5 -> NaNMMT-HC | M4: ='Battery Design'!AI5 -> NaMMO-HC | R4: ='Battery Design'!AL5 -> NaMVP-HC | W4: ='Battery Design'!AO5 -> NaNMC-HC | AB4: ='Battery Design'!AR5 -> NMC622-G | AG4: ='Battery Design'!AU5 -> LFP-G
B5: Item | C5: Flow | D5: Provider | E5: mass | F5: unit | G5: Source | H5: Flow | I5: Provider | J5: mass | K5: unit | L5: Source | M5: Flow | N5: Provider | O5: mass | P5: unit | Q5: Source | R5: Flow | S5: Provider | T5: mass | U5: unit | V5: Source | W5: Flow | X5: Provider | Y5: mass | Z5: unit | AA5: Source | AB5: Flow | AC5: Provider | AD5: mass | AE5: unit | AF5: Source | AG5: Flow | AH5: Provider | AI5: mass | AJ5: unit | AK5: Source
H6: Inputs
A7: Anode | C7: =C58 -> Anode, hard carbon-Al, for NaFCN-HC Na-Ion battery | E7: =SUM(E8:E11) -> 357.2009416 | F7: g | H7: =H58 -> Anode, hard carbon-Al, for NaNMMT-HC Na-Ion battery | J7: =SUM(J8:J11) -> 314.2778463 | K7: g | M7: =M58 -> Anode, hard carbon-Al, for NaMMO-HC Na-Ion battery | O7: =SUM(O8:O11) -> 357.8455427 | P7: g | R7: =R58 -> Anode, hard carbon-Al, for NaMVP-HC Na-Ion battery | T7: =SUM(T8:T11) -> 279.5585471 | U7: g | W7: =W58 -> Anode, hard carbon-Al, for NaNMC-HC Na-Ion battery | X7: =W58 -> Anode, hard carbon-Al, for NaNMC-HC Na-Ion battery | Y7: =SUM(Y8:Y11) -> 360.1245635 | Z7: g | AB7: =AB58 -> Anode, Graphite-Cu, for NMC622-G Li-Ion battery | AC7: =AB58 -> Anode, Graphite-Cu, for NMC622-G Li-Ion battery | AD7: =SUM(AD8:AD11) -> 179.4278498 | AE7: g | AG7: =AG58 -> Anode, Graphite-Cu, for LFP-G Li-Ion battery | AH7: =AG58 -> Anode, Graphite-Cu, for LFP-G Li-Ion battery | AI7: =SUM(AI8:AI11) -> 230.8197217 | AJ7: g
B8: ='Battery Design'!AB7 -> Active material | C8: Graphite, battery grade | D8: ecoinvent | E8: ='Battery Design'!AC7 -> 266.9284026 | F8: g | G8: ='Battery Design'!AD7 -> 0.2078060012 | H8: Hard carbon, from org waste | I8: Peters & Abdelbaky | J8: ='Battery Design'!AF7 -> 269.30837 | K8: g | L8: Peters & Abdelbaky | M8: Hard carbon, from org waste | N8: Peters & Abdelbaky | O8: ='Battery Design'!AI7 -> 307.1520859 | P8: g | Q8: =O8/SUM(O$8:O$11) -> 0.8583370456 | R8: Hard carbon, from org waste | S8: Peters & Abdelbaky | T8: ='Battery Design'!AL7 -> 222.427901 | U8: g | V8: =T8/SUM(T$8:T$11) -> 0.7956397803 | W8: Hard carbon, from org waste | Y8: ='Battery Design'!AO7 -> 306.9635219 | Z8: g | AA8: =Y8/SUM(Y$8:Y$11) -> 0.8523815175 | AB8: Graphite, battery grade, market | AD8: ='Battery Design'!AR7 -> 136.3038125 | AE8: g | AF8: ='Battery Design'!AS7 -> 0.2340550343 | AG8: Graphite, battery grade | AI8: ='Battery Design'!AU7 -> 154.482462 | AJ8: g | AK8: ='Battery Design'!AV7 -> 0.1930266169
B9: ='Battery Design'!AB8 -> Conducting carbon | C9: Carbon black, market | D9: ecoinvent | E9: ='Battery Design'!AC8 -> 8.610593631 | H9: Carbon black, market | I9: ecoinvent | J9: ='Battery Design'!AF8 -> 8.687366773 | L9: ecoinvent | M9: Carbon black, market | N9: ecoinvent | O9: ='Battery Design'!AI8 -> 9.908131803 | Q9: =O9/SUM(O$8:O$11) -> 0.02768829179 | R9: Carbon black, market | S9: ecoinvent | T9: ='Battery Design'!AL8 -> 7.17509358 | V9: =T9/SUM(T$8:T$11) -> 0.02566579936 | W9: Carbon black, market | Y9: ='Battery Design'!AO8 -> 9.902049094 | AA9: =Y9/SUM(Y$8:Y$11) -> 0.02749617798 | AB9: Carbon black, market
B10: ='Battery Design'!AB9 -> Binder | C10: Binder, water-based (CMC-SRB) | D10: Peters (SIB) | E10: ='Battery Design'!AC9 -> 11.48079151 | F10: g | G10: ='Battery Design'!AD9 -> 0.008937892526 | H10: Binder, water-based (CMC-SRB) | I10: Peters (SIB) | J10: ='Battery Design'!AF9 -> 11.5831557 | K10: g | L10: Peters (SIB) | M10: Binder, water-based (CMC-SRB) | N10: Peters (SIB) | O10: ='Battery Design'!AI9 -> 13.2108424 | P10: g | Q10: 0.03691772239 | R10: =W10 -> Binder, water-based (CMC-SRB) | S10: =X10 -> 0 | T10: ='Battery Design'!AL9 -> 9.56679144 | U10: g | V10: 0.03422106582 | W10: Binder, water-based (CMC-SRB) | Y10: ='Battery Design'!AO9 -> 13.20273213 | Z10: g | AA10: 0.03666157065 | AB10: Binder, water-based (CMC-SRB) | AD10: ='Battery Design'!AR9 -> 2.781710459 | AE10: g | AF10: ='Battery Design'!AS9 -> 0.004776633354 | AG10: Binder, water-based (CMC-SRB) | AI10: ='Battery Design'!AU9 -> 3.152703306 | AJ10: g | AK10: ='Battery Design'!AV9 -> 0.003939318712
B11: ='Battery Design'!AB10 -> Foil | C11: Aluminium current collector production, for Li-Ion battery (Ellingsen) | D11: Ellingsen | E11: ='Battery Design'!AC10 -> 70.1811539 | F11: g | G11: ='Battery Design'!AD10 -> 0.05463661721 | H11: Aluminium current collector production, for Li-Ion battery (Ellingsen) | I11: Ellingsen | J11: ='Battery Design'!AF10 -> 24.69895386 | K11: g | L11: Ellingsen | M11: Aluminium current collector production, for Li-Ion battery (Ellingsen) | N11: Ellingsen | O11: ='Battery Design'!AI10 -> 27.57448258 | P11: g | Q11: 0.07705694019 | R11: Aluminium current collector production, for Li-Ion battery (Ellingsen) | S11: Ellingsen | T11: ='Battery Design'!AL10 -> 40.38876108 | U11: g | V11: 0.1444733545 | W11: Aluminium current collector production, for Li-Ion battery (Ellingsen) | Y11: ='Battery Design'!AO10 -> 30.05626035 | Z11: g | AA11: 0.08346073386 | AB11: Copper current collector production, Li-Ion battery | AD11: ='Battery Design'!AR10 -> 40.34232687 | AE11: g | AF11: ='Battery Design'!AS10 -> 0.06927410562 | AG11: Copper current collector production, Li-Ion battery | AI11: ='Battery Design'!AU10 -> 73.18455642 | AJ11: g | AK11: ='Battery Design'!AV10 -> 0.09144447306
A12: Cathode | C12: =C82 -> Cathode, Prussian Blue, for Na-Ion battery | E12: =SUM(E13:E16) -> 501.0145347 | F12: g | H12: =H82 -> Cathode, NMMT, for Na-Ion battery | J12: =SUM(J13:J16) -> 370.2873404 | K12: g | M12: =M82 -> Cathode, NMO, for Na-Ion battery | O12: =SUM(O13:O16) -> 382.9355139 | P12: g | Q12: =SUM(Q8:Q11) -> 1 | R12: =R82 -> Cathode, NMO, for Na-Ion battery | T12: =SUM(T13:T16) -> 479.8203278 | U12: g | V12: =SUM(V8:V11) -> 1 | W12: =W82 -> Cathode, NMC, for Na-Ion battery | X12: =W82 -> Cathode, NMC, for Na-Ion battery | Y12: =SUM(Y13:Y16) -> 524.2116726 | Z12: g | AA12: =SUM(AA8:AA11) -> 1 | AB12: =AB82 -> Cathode, layered oxide, for Na-Ion battery | AC12: =AB82 -> Cathode, layered oxide, for Na-Ion battery | AD12: =SUM(AD13:AD16) -> 263.890252 | AE12: g | AG12: =AG82 -> Cathode, LFP, for Na-Ion battery | AH12: =AG82 -> Cathode, LFP, for Na-Ion battery | AI12: =SUM(AI13:AI16) -> 369.7582317 | AJ12: g | AN12: Manufacturing energy demand (MJ) (Dai et al. 2019)
B13: ='Battery Design'!AB12 -> Active material | C13: NMC622 active material | D13: Mohr | E13: ='Battery Design'!AC12 -> 416.6666667 | F13: g | G13: ='Battery Design'!AD12 -> 0.3243784963 | H13: NMMT | I13: Peters (SIB) | J13: ='Battery Design'!AF12 -> 333.3333333 | K13: g | L13: Peters (SIB) | M13: =M102 -> Magnesium Oxide (waste) | O13: ='Battery Design'!AI12 -> 336.1344538 | P13: g | Q13: =O13/SUM(O$13:O$16) -> 0.8777834428 | R13: =M102 -> Magnesium Oxide (waste) | T13: ='Battery Design'!AL12 -> 423.9533651 | U13: g | V13: =T13/SUM(T$13:T$16) -> 0.8835669115 | W13: =W98 -> Na-NMC (SIB) active material, for Na-Ion battery | Y13: ='Battery Design'!AO12 -> 476.1904762 | Z13: g | AA13: =Y13/SUM(Y$13:Y$16) -> 0.9083935003 | AB13: NMC111 active material | AD13: ='Battery Design'!AR12 -> 237.037037 | AE13: g | AF13: ='Battery Design'!AS12 -> 0.4070297876 | AI13: ='Battery Design'!AU12 -> 325.0050782 | AJ13: g | AK13: ='Battery Design'!AV12 -> 0.4060954875 | AN13: Electricity | AO13: dry room | AP13: 26
B14: ='Battery Design'!AB13 -> Conducting carbon | C14: Carbon black, market | D14: ecoinvent | E14: ='Battery Design'!AC13 -> 8.680555556 | F14: g | G14: ='Battery Design'!AD13 -> 0.00675788534 | H14: Carbon black, market | I14: ecoinvent | J14: ='Battery Design'!AF13 -> 6.944444444 | K14: g | L14: ecoinvent | M14: Carbon black, market | N14: ecoinvent | O14: ='Battery Design'!AI13 -> 7.00280112 | P14: g | Q14: =O14/SUM(O$13:O$16) -> 0.01828715506 | R14: Carbon black, market | S14: ecoinvent | T14: ='Battery Design'!AL13 -> 8.832361774 | U14: g | V14: =T14/SUM(T$13:T$16) -> 0.01840764399 | W14: Carbon black, market | Y14: ='Battery Design'!AO13 -> 9.920634921 | Z14: g | AA14: =Y14/SUM(Y$13:Y$16) -> 0.01892486459 | AB14: Carbon black, market | AD14: ='Battery Design'!AR13 -> 4.938271605 | AE14: g | AF14: ='Battery Design'!AS13 -> 0.008479787242 | AG14: Carbon black, market | AI14: ='Battery Design'!AU13 -> 6.770939129 | AJ14: g | AK14: ='Battery Design'!AV13 -> 0.008460322657 | AO14: other | AP14: =AP13*0.25 -> 6.5
B15: ='Battery Design'!AB14 -> Binder | C15: PVF-NMP binder, for LIB | D15: Peters | E15: ='Battery Design'!AC14 -> 8.680555556 | F15: g | G15: ='Battery Design'!AD14 -> 0.00675788534 | H15: PVF-NMP binder, for LIB | I15: Peters | J15: ='Battery Design'!AF14 -> 6.944444444 | K15: g | L15: Peters | M15: Binder, water-based (CMC-SRB) | N15: Peters (SIB) | O15: ='Battery Design'!AI14 -> 14.00560224 | P15: g | Q15: 0.03657431012 | R15: PVF-NMP binder, for LIB | S15: Peters | T15: ='Battery Design'!AL14 -> 8.832361774 | U15: g | V15: 0.01840764399 | W15: PVF-NMP binder, for LIB | Y15: ='Battery Design'!AO14 -> 9.920634921 | Z15: g | AA15: 0.01892486459 | AB15: PVF-NMP binder, for LIB | AD15: ='Battery Design'!AR14 -> 4.938271605 | AE15: g | AF15: ='Battery Design'!AS14 -> 0.008479787242 | AG15: PVF-NMP binder, for LIB | AI15: ='Battery Design'!AU14 -> 6.770939129 | AJ15: g | AK15: ='Battery Design'!AV14 -> 0.008460322657 | AP15: =SUM(AP13:AP14) -> 32.5
B16: ='Battery Design'!AB15 -> Foil | C16: Aluminium current collector production, for Li-Ion battery (Ellingsen) | D16: Ellingsen | E16: ='Battery Design'!AC15 -> 66.98675689 | F16: g | G16: ='Battery Design'!AD15 -> 0.05214975233 | H16: Aluminium current collector production, for Li-Ion battery (Ellingsen) | I16: Ellingsen | J16: ='Battery Design'!AF15 -> 23.06511821 | K16: g | L16: Ellingsen | M16: Aluminium current collector production, for Li-Ion battery (Ellingsen) | N16: Ellingsen | O16: ='Battery Design'!AI15 -> 25.79265676 | P16: g | Q16: 0.06735509197 | R16: Aluminium current collector production, for Li-Ion battery (Ellingsen) | S16: Ellingsen | T16: ='Battery Design'!AL15 -> 38.20223912 | U16: g | V16: 0.07961780047 | W16: Aluminium current collector production, for Li-Ion battery (Ellingsen) | Y16: ='Battery Design'!AO15 -> 28.17992659 | Z16: g | AA16: 0.05375677053 | AB16: Aluminium current collector production, for Li-Ion battery (Ellingsen) | AD16: ='Battery Design'!AR15 -> 16.97667175 | AE16: g | AF16: ='Battery Design'!AS15 -> 0.02915160932 | AG16: Aluminium current collector production, for Li-Ion battery (Ellingsen) | AI16: ='Battery Design'!AU15 -> 31.21127525 | AJ16: g | AK16: ='Battery Design'!AV15 -> 0.03899864614 | AN16: Heat | AO16: dry room | AP16: 70
AO17: other | AP17: 70
A18: ='Battery Design'!AA16 -> Electrolyte | B18: ='Battery Design'!AB16 -> Electrolyte | C18: Electrolyte for Na-Ion battery | D18: Electrolyte production, NaPF6, for Na-Ion battery (Peters) | E18: ='Battery Design'!AC16 -> 342.513899 | F18: g | G18: ='Battery Design'!AD16 -> 0.2666499445 | H18: Electrolyte for Na-Ion battery | I18: Electrolyte production, NaPF6, for Na-Ion battery (Peters) | J18: ='Battery Design'!AF16 -> 188.9412146 | K18: g | L18: own | M18: Electrolyte for Na-Ion battery | N18: Electrolyte production, NaPF6, for Na-Ion battery (Peters) | O18: ='Battery Design'!AI16 -> 214.2816833 | P18: g | Q18: ='Battery Design'!AJ16 -> 0.2126434016 | R18: Electrolyte for Na-Ion battery | S18: Electrolyte production, NaPF6, for Na-Ion battery (Peters) | T18: ='Battery Design'!AL16 -> 221.9011245 | U18: g | V18: ='Battery Design'!AM16 -> 0.2134896336 | W18: Electrolyte for Na-Ion battery | X18: Electrolyte production, NaPF6, for Na-Ion battery (Peters) | Y18: ='Battery Design'!AO16 -> 222.5019898 | Z18: g | AA18: ='Battery Design'!AP16 -> 0.1915717982 | AB18: Electrolyte for Li-Ion battery, 1M LiPF6 | AC18: Electrolyte for Li­ion battery, 1M LiPF6, at plant (Notter) | AD18: ='Battery Design'!AR16 -> 89.66192078 | AE18: g | AF18: ='Battery Design'!AS16 -> 0.1539635874 | AG18: Electrolyte for Li-Ion battery, 1M LiPF6 | AH18: Electrolyte for Li­ion battery, 1M LiPF6, at plant (Notter) | AI18: ='Battery Design'!AU16 -> 133.0341024 | AJ18: g | AK18: ='Battery Design'!AV16 -> 0.1662267832 | AT18: capacity | AU18: =E34 -> 159.4301011 | AV18: =J34 -> 158.4393518 | AW18: =O34 -> 158.2910842 | AX18: =T34 -> 158.4743784 | AY18: =Y34 -> 158.3175356 | AZ18: =AD34 -> 158.4657351 | BA18: =AI34 -> 157.9975395 | BB18: Wh
A19: ='Battery Design'!AA17 -> Separator | B19: ='Battery Design'!AB17 -> Separator | C19: Battery separator, PE/PP | D19: market for battery separator - GLO | E19: ='Battery Design'!AC17 -> 21.7042198 | F19: g | G19: ='Battery Design'!AD17 -> 0.01689691724 | H19: Battery separator, PE/PP | I19: market for battery separator - GLO | J19: ='Battery Design'!AF17 -> 7.405815892 | K19: g | L19: Ellingsen | M19: Battery separator, PE/PP | N19: market for battery separator - GLO | O19: ='Battery Design'!AI17 -> 8.298494015 | P19: g | Q19: ='Battery Design'!AJ17 -> 0.008235048223 | R19: Battery separator, PE/PP | S19: market for battery separator - GLO | T19: ='Battery Design'!AL17 -> 12.30043119 | U19: g | V19: ='Battery Design'!AM17 -> 0.01183416512 | W19: Battery separator, PE/PP | X19: market for battery separator - GLO | Y19: ='Battery Design'!AO17 -> 9.072177383 | Z19: g | AA19: ='Battery Design'!AP17 -> 0.007811046258 | AB19: Battery separator, PE/PP | AC19: market for battery separator - GLO | AD19: ='Battery Design'!AR17 -> 5.394400486 | AE19: g | AF19: ='Battery Design'!AS17 -> 0.009263032106 | AG19: Battery separator, PE/PP | AH19: market for battery separator - GLO | AI19: ='Battery Design'!AU17 -> 9.993694367 | AJ19: g | AK19: ='Battery Design'!AV17 -> 0.01248717161
A20: ='Battery Design'!AA18 -> Cell | B20: ='Battery Design'!AB18 -> Cell housing | C20: Multilayer pouch, for pouch cell production | D20: Multilayer pouch, for pouch cell production (Ellingsen) | E20: ='Battery Design'!AC18 -> 35.30553723 | F20: g | G20: ='Battery Design'!AD18 -> 0.02748565698 | H20: Multilayer pouch, for pouch cell production | I20: Multilayer pouch, for pouch cell production (Ellingsen) | J20: ='Battery Design'!AF18 -> 21.66716274 | K20: g | L20: Ellingsen | M20: Multilayer pouch, for pouch cell production | N20: Multilayer pouch, for pouch cell production (Ellingsen) | O20: ='Battery Design'!AI18 -> 23.89071095 | P20: g | Q20: ='Battery Design'!AJ18 -> 0.02370805552 | R20: Multilayer pouch, for pouch cell production | S20: Multilayer pouch, for pouch cell production (Ellingsen) | T20: ='Battery Design'!AL18 -> 24.8102369 | U20: g | V20: ='Battery Design'!AM18 -> 0.02386976811 | W20: Multilayer pouch, for pouch cell production | X20: Multilayer pouch, for pouch cell production (Ellingsen) | Y20: ='Battery Design'!AO18 -> 24.63839907 | Z20: g | AA20: ='Battery Design'!AP18 -> 0.02121339418 | AB20: Multilayer pouch, for pouch cell production | AC20: Multilayer pouch, for pouch cell production (Ellingsen) | AD20: ='Battery Design'!AR18 -> 14.19914301 | AE20: g | AF20: ='Battery Design'!AS18 -> 0.02438215662 | AG20: Multilayer pouch, for pouch cell production | AH20: Multilayer pouch, for pouch cell production (Ellingsen) | AI20: ='Battery Design'!AU18 -> 19.1456698 | AJ20: g | AK20: ='Battery Design'!AV18 -> 0.02392261116
B21: Positive terminal | C21: Aluminium tab, for LIB pouch cell | D21: Aluminium tab, for Li-Ion pouch cell (Ellingsen) | E21: ='Battery Design'!G25 -> 13.38426912 | F21: g | G21: =E21/E$31 -> 0.01041976582 | H21: Aluminium tab, for LIB pouch cell | I21: Aluminium tab, for Li-Ion pouch cell (Ellingsen) | J21: ='Battery Design'!J25 -> 9.530610008 | K21: g | L21: Ellingsen | M21: Aluminium tab, for LIB pouch cell | N21: Aluminium tab, for Li-Ion pouch cell (Ellingsen) | O21: ='Battery Design'!M25 -> 10.22620851 | P21: g | Q21: =O21/O$31 -> 0.01014802445 | R21: Aluminium tab, for LIB pouch cell | S21: Aluminium tab, for Li-Ion pouch cell (Ellingsen) | T21: ='Battery Design'!P25 -> 10.50466473 | U21: g | V21: =T21/T$31 -> 0.01010646985 | W21: Aluminium tab, for LIB pouch cell | X21: Aluminium tab, for Li-Ion pouch cell (Ellingsen) | Y21: ='Battery Design'!S25 -> 10.45301251 | Z21: g | AA21: =Y21/Y$31 -> 0.008999930313 | AB21: Aluminium tab, for LIB pouch cell | AC21: Aluminium tab, for Li-Ion pouch cell (Ellingsen) | AD21: ='Battery Design'!V25 -> 6.896900967 | AE21: g | AF21: =AD21/AD$31 -> 0.0118430612 | AG21: Aluminium tab, for LIB pouch cell | AH21: Aluminium tab, for Li-Ion pouch cell (Ellingsen) | AI21: ='Battery Design'!Y25 -> 8.698694062 | AJ21: g | AK21: =AI21/AI$31 -> 0.01086906219 | AT21: Manufacturing energy demand
B22: Negative terminal | C22: Aluminium tab, for LIB pouch cell | D22: Aluminium tab, for Li-Ion pouch cell (Ellingsen) | E22: ='Battery Design'!G26 -> 13.38426912 | F22: g | G22: =E22/E$31 -> 0.01041976582 | H22: Aluminium tab, for LIB pouch cell | I22: Aluminium tab, for Li-Ion pouch cell (Ellingsen) | J22: ='Battery Design'!J26 -> 9.530610008 | K22: g | L22: Ellingsen | M22: Aluminium tab, for LIB pouch cell | N22: Aluminium tab, for Li-Ion pouch cell (Ellingsen) | O22: ='Battery Design'!M26 -> 10.22620851 | P22: g | Q22: =O22/O$31 -> 0.01014802445 | R22: Aluminium tab, for LIB pouch cell | S22: Aluminium tab, for Li-Ion pouch cell (Ellingsen) | T22: ='Battery Design'!P26 -> 10.50466473 | U22: g | V22: =T22/T$31 -> 0.01010646985 | W22: Aluminium tab, for LIB pouch cell | X22: Aluminium tab, for Li-Ion pouch cell (Ellingsen) | Y22: ='Battery Design'!S26 -> 10.45301251 | Z22: g | AA22: =Y22/Y$31 -> 0.008999930313 | AB22: Copper tab, for LIB pouch cell | AC22: Copper tab, for Li-Ion pouch cell (Ellingsen) | AD22: ='Battery Design'!V26 -> 22.88749358 | AE22: g | AF22: =AD22/AD$31 -> 0.0393014179 | AG22: Copper tab, for LIB pouch cell | AH22: Copper tab, for Li-Ion pouch cell (Ellingsen) | AI22: ='Battery Design'!Y26 -> 28.86677733 | AJ22: g | AK22: =AI22/AI$31 -> 0.03606918414 | AP22: DMC | AQ22: Water | AU22: =C4 -> NaFCN-HC | AV22: =H4 -> NaNMMT-HC | AW22: =M4 -> NaMMO-HC | AX22: =R4 -> NaMVP-HC | AY22: =W4 -> NaNMC-HC | AZ22: =AB4 -> NMC622-G | BA22: =AG4 -> LFP-G | BB22: Unit
A23: Manufacturing | B23: Electricity (dry room) | C23: Electricity, EU mix | D23: market group for electricity, medium voltage - Europe without Switzerland | E23: =$AD23/$AD31*E31 -> 2.524369373 | F23: kWh | H23: Electricity, EU mix | I23: market group for electricity, medium voltage - Europe without Switzerland | J23: =$AD23/$AD31*J31 -> 1.811247497 | K23: kWh | L23: Dai 2019 (26.5MJ/kWh) | M23: Electricity, EU mix | N23: market group for electricity, medium voltage - Europe without Switzerland | O23: =$AD23/$AD31*O31 -> 1.98038368 | P23: kWh | R23: Electricity, EU mix | S23: market group for electricity, medium voltage - Europe without Switzerland | T23: =$AD23/$AD31*T31 -> 2.042673297 | U23: kWh | W23: Electricity, EU mix | X23: market group for electricity, medium voltage - Europe without Switzerland | Y23: =$AD23/$AD31*Y31 -> 2.282540666 | Z23: kWh | AB23: Electricity, EU mix | AC23: market group for electricity, medium voltage - Europe without Switzerland | AD23: =26/1000/3.6*AD34 -> 1.144474754 | AE23: kWh | AG23: Electricity, EU mix | AH23: market group for electricity, medium voltage - Europe without Switzerland | AI23: =$AD23/$AD31*AI31 -> 1.57281696 | AJ23: kWh | AN23: Latent heat of vaporization, kJ/kmol | AO23: kJ/kmol | AP23: 8382 | AQ23: 40660 | AT23: Electricity (dry room) | AU23: =E23 -> 2.524369373 | AV23: =J23 -> 1.811247497 | AW23: =O23 -> 1.98038368 | AX23: =T23 -> 2.042673297 | AY23: =Y23 -> 2.282540666 | AZ23: =AD23 -> 1.144474754 | BA23: =AI23 -> 1.57281696 | BB23: kWh
B24: Electricity (other) | C24: Electricity, EU mix | D24: market group for electricity, medium voltage - Europe without Switzerland | E24: =$AD24/$AE2*F2 -> 1.10118116 | F24: kWh | H24: Electricity, EU mix | I24: market group for electricity, medium voltage - Europe without Switzerland | J24: =$AD24/$AE2*K2 -> 0.3875402606 | K24: kWh | L24: Deng 2017 | M24: Electricity, EU mix | N24: market group for electricity, medium voltage - Europe without Switzerland | O24: =$AD24/$AE2*P2 -> 0.4326588982 | P24: kWh | R24: Electricity, EU mix | S24: market group for electricity, medium voltage - Europe without Switzerland | T24: =$AD24/$AE2*U2 -> 0.6337220225 | U24: kWh | W24: Electricity, EU mix | X24: market group for electricity, medium voltage - Europe without Switzerland | Y24: =$AD24/$AE2*Z2 -> 0.4715993654 | Z24: kWh | AB24: Electricity, EU mix | AC24: market group for electricity, medium voltage - Europe without Switzerland | AD24: =AD23*0.25 -> 0.2861186884 | AE24: kWh | AG24: Electricity, EU mix | AH24: market group for electricity, medium voltage - Europe without Switzerland | AI24: =$AD24/$AE2*AJ2 -> 0.519044659 | AJ24: kWh | AN24: Latent heat of vaporization, kJ/kmol | AO24: kJ/kg | AP24: =AP23/AP25 -> 93.05062167 | AQ24: =AQ23/AQ25 -> 2258.888889 | AT24: Electricity (other) | AU24: =E24 -> 1.10118116 | AV24: =J24 -> 0.3875402606 | AW24: =O24 -> 0.4326588982 | AX24: =T24 -> 0.6337220225 | AY24: =Y24 -> 0.4715993654 | AZ24: =AD24 -> 0.2861186884 | BA24: 0.519044659 | BB24: kWh
B25: Heat (dry room) | C25: Heat | D25: market for heat, central or small-scale, natural gas - Europe without Switzerland | E25: =$AD25/$AD31*E31 -> 24.46696469 | F25: MJ | H25: Heat | I25: market for heat, central or small-scale, natural gas - Europe without Switzerland | J25: =$AD25/$AD31*J31 -> 17.55516805 | K25: MJ | L25: Dai 2019 (140MJ/kWh) | M25: Heat | N25: market for heat, central or small-scale, natural gas - Europe without Switzerland | O25: =$AD25/$AD31*O31 -> 19.19448798 | P25: MJ | R25: Heat | S25: market for heat, central or small-scale, natural gas - Europe without Switzerland | T25: =$AD25/$AD31*T31 -> 19.79821811 | U25: MJ | W25: Heat | X25: market for heat, central or small-scale, natural gas - Europe without Switzerland | Y25: =$AD25/$AD31*Y31 -> 22.12308646 | Z25: MJ | AB25: Heat | AC25: market for heat, central or small-scale, natural gas - Europe without Switzerland | AD25: =70/1000*AD34 -> 11.09260146 | AE25: MJ | AG25: Heat | AH25: market for heat, central or small-scale, natural gas - Europe without Switzerland | AI25: =$AD25/$AD31*AI31 -> 15.24422592 | AJ25: MJ | AN25: Relative molecular weight: | AO25: g/mol | AP25: 90.08 | AQ25: 18 | AT25: Heat (dry room) | AU25: 24.46696469 | AV25: =J25 -> 17.55516805 | AW25: =O25 -> 19.19448798 | AX25: =T25 -> 19.79821811 | AY25: =Y25 -> 22.12308646 | AZ25: =AD25 -> 11.09260146 | BA25: 15.24422592 | BB25: MJ
B26: Heat (other) | C26: Heat | D26: market for heat, central or small-scale, natural gas - Europe without Switzerland | E26: =$AD26/$AE2*F2 -> 42.69194652 | F26: MJ | H26: Heat | I26: market for heat, central or small-scale, natural gas - Europe without Switzerland | J26: =$AD26/$AE2*K2 -> 15.02463779 | K26: MJ | L26: Dai 2019 (140MJ/kWh) | M26: Heat | N26: market for heat, central or small-scale, natural gas - Europe without Switzerland | O26: =$AD26/$AE2*P2 -> 16.77385267 | P26: MJ | R26: Heat | S26: market for heat, central or small-scale, natural gas - Europe without Switzerland | T26: =$AD26/$AE2*U2 -> 24.56891533 | U26: MJ | W26: Heat | X26: market for heat, central or small-scale, natural gas - Europe without Switzerland | Y26: =$AD26/$AE2*Z2 -> 18.28354463 | Z26: MJ | AB26: Heat | AC26: market for heat, central or small-scale, natural gas - Europe without Switzerland | AD26: =70/1000*AD34 -> 11.09260146 | AE26: MJ | AG26: Heat | AH26: market for heat, central or small-scale, natural gas - Europe without Switzerland | AI26: =$AD26/$AE2*AJ2 -> 20.12296217 | AJ26: MJ | AN26: density | AO26: g/cm3 | AP26: 1.073 | AQ26: 1 | AT26: Heat (other) | AU26: 42.69194652 | AV26: =J26 -> 15.02463779 | AW26: =O26 -> 16.77385267 | AX26: =T26 -> 24.56891533 | AY26: =Y26 -> 18.28354463 | AZ26: =AD26 -> 11.09260146 | BA26: 20.12296217 | BB26: MJ
B27: Infrastructure | C27: Factory | D27: market for chemical factory, organics - GLO | E27: 4.2e-10 | F27: u | H27: Factory | I27: market for chemical factory, organics - GLO | J27: 4.2e-10 | K27: u | M27: Factory | N27: market for chemical factory, organics - GLO | O27: 4.2e-10 | P27: u | R27: Factory | S27: market for chemical factory, organics - GLO | T27: 4.2e-10 | U27: u | W27: Factory | X27: market for chemical factory, organics - GLO | Y27: 4.2e-10 | Z27: u | AB27: Factory | AC27: market for chemical factory, organics - GLO | AD27: 4.2e-10 | AE27: u | AG27: Factory | AH27: market for chemical factory, organics - GLO | AI27: 4.2e-10 | AJ27: u | AN27: Heat of combustion, kcal/kg | AO27: kcal/kg | AP27: 3452 | AQ27: --
A28: Transport | B28: Lorry | C28: transport, lorry | D28: transport, freight, lorry 16-32 metric ton, EURO5 - RER | E28: =SUM(E8:E11,E13:E16,E19:E22)*100/1000000 -> 0.09419937715 | F28: t·km | H28: transport, lorry | I28: transport, freight, lorry 16-32 metric ton, EURO5 - RER | J28: =SUM(J8:J11,J13:J16,J19:J22)*100/1000000 -> 0.07326993854 | K28: t·km | M28: transport, lorry | N28: transport, freight, lorry 16-32 metric ton, EURO5 - RER | O28: =SUM(O8:O11,O13:O16,O19:O22)*100/1000000 -> 0.07934226786 | P28: t·km | R28: transport, lorry | S28: transport, freight, lorry 16-32 metric ton, EURO5 - RER | T28: =SUM(T8:T11,T13:T16,T19:T22)*100/1000000 -> 0.08174988724 | U28: t·km | W28: transport, lorry | X28: transport, freight, lorry 16-32 metric ton, EURO5 - RER | Y28: =SUM(Y8:Y11,Y13:Y16,Y19:Y22)*100/1000000 -> 0.09389528376 | Z28: t·km | AB28: transport, lorry | AC28: transport, freight, lorry 16-32 metric ton, EURO5 - RER | AD28: =SUM(AD8:AD11,AD13:AD16,AD19:AD22)*100/1000000 -> 0.04926960398 | AE28: t·km | AG28: transport, lorry | AH28: transport, freight, lorry 16-32 metric ton, EURO5 - RER | AI28: =SUM(AI8:AI11,AI13:AI16,AI19:AI22)*100/1000000 -> 0.0667282789 | AJ28: t·km | AP28: http://www.elecs-korea.com/board/file/1135059729.pdf | AT28: Total energy demand | AU28: =(AU26+AU25)/3.6+AU24+AU23 -> 22.28080365 | AV28: =(AV26+AV25)/3.6+AV24+AV23 -> 11.24873383 | AW28: 12.40424831 | AX28: 15.00059905 | AY28: 13.97820422 | AZ28: 7.593149808 | BA28: 11.91608053 | BB28: Wh/cell
B29: Train | C29: transport, train | D29: market for transport, freight train - Europe without Switzerland | E29: =(SUM(E19:E20,E13:E15,E8:E10)*600+(E11+E16+E21+E22)*200)/1000000 -> 0.4996216833 | F29: t·km | H29: transport, train | I29: market for transport, freight train - Europe without Switzerland | J29: =(SUM(J19:J20,J13:J15,J8:J10)*600+(J11+J16+J21+J22)*200)/1000000 -> 0.4128895144 | K29: t·km | M29: transport, train | N29: market for transport, freight train - Europe without Switzerland | O29: =(SUM(O19:O20,O13:O15,O8:O10)*600+(O11+O16+O21+O22)*200)/1000000 -> 0.4465257846 | P29: t·km | R29: transport, train | S29: market for transport, freight train - Europe without Switzerland | T29: =(SUM(T19:T20,T13:T15,T8:T10)*600+(T11+T16+T21+T22)*200)/1000000 -> 0.4506591916 | U29: t·km | W29: transport, train | X29: market for transport, freight train - Europe without Switzerland | Y29: =(SUM(Y19:Y20,Y13:Y15,Y8:Y10)*600+(Y11+Y16+Y21+Y22)*200)/1000000 -> 0.5317148178 | Z29: t·km | AB29: transport, train | AC29: market for transport, freight train - Europe without Switzerland | AD29: =(SUM(AD19:AD20,AD13:AD15,AD8:AD10)*600+(AD11+AD16+AD21+AD22)*200)/1000000 -> 0.2607762666 | AE29: t·km | AG29: transport, train | AH29: market for transport, freight train - Europe without Switzerland | AI29: =(SUM(AI19:AI20,AI13:AI15,AI8:AI10)*600+(AI11+AI16+AI21+AI22)*200)/1000000 -> 0.3435851522 | AJ29: t·km | AU29: =AU28/AU18*1000 -> 139.7528038 | AV29: =AV28/AV18*1000 -> 70.99709571 | AW29: 78.36353121 | AX29: 94.6563047 | AY29: 88.29220448 | AZ29: 47.91666667 | BA29: 75.41940569 | BB29: Wh/Wh
C30: Output | H30: Output
B31: ='Battery Design'!AA20 -> Total | C31: =CONCATENATE("Battery cell, Li-Ion, prismatic, ",C4) -> Battery cell, Li-Ion, prismatic, NaFCN-HC | E31: ='Battery Design'!AC20 -> 1284.507671 | F31: ='Battery Design'!AD20 -> g | G31: =SUM(G13:G22,G8:G11) -> 0.9932965806 | H31: =CONCATENATE("Battery cell, Na-Ion, prismatic, ",H4) -> Battery cell, Na-Ion, prismatic, NaNMMT-HC | J31: ='Battery Design'!AF20 -> 921.6406 | K31: ='Battery Design'!AG20 -> g | L31: =SUM(L13:L22,L8:L11) -> 0 | M31: =CONCATENATE("Battery cell, Na-Ion, prismatic, ",M4) -> Battery cell, Na-Ion, prismatic, NaMMO-HC | O31: ='Battery Design'!AI20 -> 1007.704362 | P31: ='Battery Design'!AJ20 -> g | R31: =CONCATENATE("Battery cell, Na-Ion, prismatic, ",R4) -> Battery cell, Na-Ion, prismatic, NaMVP-HC | T31: ='Battery Design'!AL20 -> 1039.399997 | U31: ='Battery Design'!AM20 -> g | V31: =SUM(V13:V22,V8:V11) -> 2.269406506 | W31: =CONCATENATE("Battery cell, Na-Ion, prismatic, ",W4) -> Battery cell, Na-Ion, prismatic, NaNMC-HC | Y31: ='Battery Design'!AO20 -> 1161.454827 | Z31: ='Battery Design'!AP20 -> g | AA31: =SUM(AA13:AA22,AA8:AA11) -> 2.238596099 | AB31: =CONCATENATE("Battery cell, Li-Ion, prismatic, ",AB4) -> Battery cell, Li-Ion, prismatic, NMC622-G | AD31: ='Battery Design'!AR20 -> 582.3579606 | AE31: ='Battery Design'!AS20 -> g | AF31: =SUM(AF13:AF22,AF8:AF11) -> 1 | AG31: =CONCATENATE("Battery cell, Li-Ion, prismatic, ",AG4) -> Battery cell, Li-Ion, prismatic, LFP-G | AI31: ='Battery Design'!AU20 -> 800.3168915 | AJ31: ='Battery Design'!AV20 -> g | AK31: =SUM(AK13:AK22,AK8:AK11) -> 1
C32: Heat, waste | E32: =SUM(E25:E26)+SUM(E23:E24)*3.6 -> 80.21089313 | F32: MJ | H32: Heat, waste | J32: =SUM(J25:J26)+SUM(J23:J24)*3.6 -> 40.49544177 | K32: MJ | M32: Heat, waste | O32: =SUM(O25:O26)+SUM(O23:O24)*3.6 -> 44.65529393 | P32: MJ | R32: Heat, waste | T32: =SUM(T25:T26)+SUM(T23:T24)*3.6 -> 54.00215659 | U32: MJ | W32: Heat, waste | Y32: =SUM(Y25:Y26)+SUM(Y23:Y24)*3.6 -> 50.3215352 | Z32: MJ | AB32: Heat, waste | AD32: =SUM(AD25:AD26)+SUM(AD23:AD24)*3.6 -> 27.33533931 | AE32: MJ | AG32: Heat, waste | AI32: =SUM(AI25:AI26)+SUM(AI23:AI24)*3.6 -> 42.89788991 | AJ32: MJ
E34: ='Battery Design'!AC22 -> 159.4301011 | F34: ='Battery Design'!AD22 -> Wh | H34: ='Battery Design'!AA22 -> Capacity | I34: ='Battery Design'!AB22 -> Total cell energy storage, kWh | J34: ='Battery Design'!AF22 -> 158.4393518 | K34: ='Battery Design'!AG22 -> Wh | O34: ='Battery Design'!AI22 -> 158.2910842 | P34: ='Battery Design'!AJ22 -> Wh | T34: ='Battery Design'!AL22 -> 158.4743784 | U34: ='Battery Design'!AM22 -> Wh | Y34: ='Battery Design'!AO22 -> 158.3175356 | Z34: ='Battery Design'!AP22 -> Wh | AD34: ='Battery Design'!AR22 -> 158.4657351 | AE34: ='Battery Design'!AS22 -> Wh | AI34: ='Battery Design'!AU22 -> 157.9975395 | AJ34: ='Battery Design'!AV22 -> Wh
E35: ='Battery Design'!AC24 -> 135.5155859 | F35: ='Battery Design'!AD24 -> Wh | I35: ='Battery Design'!AB24 -> Useable cell energy storage, kWh | J35: ='Battery Design'!AF24 -> 134.673449 | K35: ='Battery Design'!AG24 -> Wh | O35: ='Battery Design'!AI24 -> 134.5474215 | P35: ='Battery Design'!AJ24 -> Wh | T35: ='Battery Design'!AL24 -> 134.7032217 | U35: ='Battery Design'!AM24 -> Wh | Y35: ='Battery Design'!AO24 -> 134.5699052 | Z35: ='Battery Design'!AP24 -> Wh | AD35: ='Battery Design'!AR24 -> 134.6958749 | AE35: ='Battery Design'!AS24 -> Wh | AI35: ='Battery Design'!AU24 -> 134.2979086 | AJ35: ='Battery Design'!AV24 -> Wh
E36: ='Battery Design'!AC25 -> 124.1176715 | F36: ='Battery Design'!AD25 -> Wh/kg | H36: ='Battery Design'!AA25 -> Energy density | I36: ='Battery Design'!AB25 -> Total | J36: ='Battery Design'!AF25 -> 171.9101262 | K36: ='Battery Design'!AG25 -> Wh/kg | O36: ='Battery Design'!AI25 -> 157.0808762 | P36: ='Battery Design'!AJ25 -> Wh/kg | T36: ='Battery Design'!AL25 -> 152.4671723 | U36: ='Battery Design'!AM25 -> Wh/kg | Y36: ='Battery Design'!AO25 -> 136.3096797 | Z36: ='Battery Design'!AP25 -> Wh/kg | AD36: ='Battery Design'!AR25 -> 272.1105331 | AE36: ='Battery Design'!AS25 -> Wh/kg | AI36: ='Battery Design'!AU25 -> 197.418724 | AJ36: ='Battery Design'!AV25 -> Wh/kg
E37: ='Battery Design'!AC26 -> 105.5000208 | F37: ='Battery Design'!AD26 -> Wh/kg | I37: ='Battery Design'!AB26 -> Useable | J37: ='Battery Design'!AF26 -> 146.1236072 | K37: ='Battery Design'!AG26 -> Wh/kg | O37: ='Battery Design'!AI26 -> 133.5187448 | P37: ='Battery Design'!AJ26 -> Wh/kg | T37: ='Battery Design'!AL26 -> 129.5970965 | U37: ='Battery Design'!AM26 -> Wh/kg | Y37: ='Battery Design'!AO26 -> 115.8632278 | Z37: ='Battery Design'!AP26 -> Wh/kg | AD37: ='Battery Design'!AR26 -> 231.2939531 | AE37: ='Battery Design'!AS26 -> Wh/kg | AI37: ='Battery Design'!AU26 -> 167.8059154 | AJ37: ='Battery Design'!AV26 -> Wh/kg
A40: ANODES | C40: =CONCATENATE("Anode, for ",C4," - type LIB") -> Anode, for NaFCN-HC - type LIB | H40: =CONCATENATE("Anode, for ",H4," - type SIB") -> Anode, for NaNMMT-HC - type SIB | M40: =CONCATENATE("Anode, for ",M4," - type SIB") -> Anode, for NaMMO-HC - type SIB | R40: =CONCATENATE("Anode, for ",R4," - type SIB") -> Anode, for NaMVP-HC - type SIB | W40: =CONCATENATE("Anode, for ",W4," - type SIB") -> Anode, for NaNMC-HC - type SIB | AB40: =CONCATENATE("Anode, for ",AB4," - type LIB") -> Anode, for NMC622-G - type LIB | AG40: =CONCATENATE("Anode, for ",AG4," - type LIB") -> Anode, for LFP-G - type LIB
B41: Item | C41: Flow | D41: Provider | E41: mass | F41: unit | G41: Source | H41: Flow | I41: Provider | J41: mass | K41: unit | L41: Source | M41: Flow | N41: Provider | O41: mass | P41: unit | Q41: Source | R41: Flow | S41: Provider | T41: Amount | U41: Unit | V41: Source | W41: Flow | X41: Provider | Y41: Amount | Z41: Unit | AA41: Source | AB41: Flow | AC41: Provider | AD41: mass | AE41: unit | AF41: Source | AG41: Flow | AH41: Provider | AI41: mass | AJ41: unit | AK41: Source
C43: Flow | D43: Provider | E43: Amount | F43: Unit | H43: Flow | I43: Provider | J43: Amount | K43: Unit | M43: Flow | N43: Provider | O43: Amount | P43: Unit | R43: Flow | S43: Provider | T43: Amount | U43: Unit | W43: Flow | X43: Provider | Y43: Amount | Z43: Unit | AB43: Flow | AC43: Provider | AD43: Amount | AE43: Unit | AG43: Flow | AH43: Provider | AI43: Amount | AJ43: Unit
C44: Aluminium current collector | D44: market for aluminium, wrought alloy - GLO | E44: =E11/E7 -> 0.1964752769 | F44: kg | H44: Aluminium current collector | I44: market for aluminium, wrought alloy - GLO | J44: =J11/J7 -> 0.07858954791 | K44: kg | L44: Peters et al (2016) | M44: Aluminium current collector | N44: market for aluminium, wrought alloy - GLO | O44: =O11/O7 -> 0.07705694019 | P44: kg | Q44: Peters et al (2016) | R44: Aluminium current collector | S44: market for aluminium, wrought alloy - GLO | T44: =T11/T7 -> 0.1444733545 | U44: kg | W44: Aluminium current collector | X44: market for aluminium, wrought alloy - GLO | Y44: =Y11/Y7 -> 0.08346073386 | Z44: kg | AB44: Copper current collector | AC44: market for copper, anode - GLO | AD44: =AD11/AD7 -> 0.2248387133 | AE44: kg | AG44: Copper current collector | AH44: market for copper, anode - GLO | AI44: =AI11/AI7 -> 0.3170637061 | AJ44: kg
C45: carbon black | D45: market for carbon black - GLO | E45: =E9/E7 -> 0.02410574169 | F45: kg | H45: carbon black | I45: market for carbon black - GLO | J45: =J9/J7 -> 0.02764231356 | K45: kg | L45: Peters et al (2016) | M45: carbon black | N45: market for carbon black - GLO | O45: =O9/O7 -> 0.02768829179 | P45: kg | Q45: Peters et al (2016) | R45: carbon black | S45: market for carbon black - GLO | T45: =T9/T7 -> 0.02566579936 | U45: kg | W45: carbon black | X45: market for carbon black - GLO | Y45: =Y9/Y7 -> 0.02749617798 | Z45: kg | AB45: carbon black | AC45: market for carbon black - GLO | AD45: =AD9/AD7 -> 0 | AE45: kg | AG45: carbon black | AH45: market for carbon black - GLO | AI45: =AI9/AI7 -> 0 | AJ45: kg
C46: Binder, aqueous | D46: Binder production, for electrodes, Li-Ion batteries, CMC-SBR / water (Peters) | E46: =E10/E7 -> 0.03214098893 | F46: kg | H46: Binder, aqueous | I46: Binder production, for electrodes, Li-Ion batteries, CMC-SBR / water (Peters) | J46: =J10/J7 -> 0.03685641808 | K46: kg | L46: Peters et al (2016) | M46: Binder, aqueous | N46: Binder production, for electrodes, Li-Ion batteries, CMC-SBR / water (Peters) | O46: =O10/O7 -> 0.03691772239 | P46: kg | Q46: Peters et al (2016) | R46: Binder, aqueous | S46: Binder production, for electrodes, Li-Ion batteries, CMC-SBR / water (Peters) | T46: =T10/T7 -> 0.03422106582 | U46: kg | W46: Binder, aqueous | X46: Binder production, for electrodes, Li-Ion batteries, CMC-SBR / water (Peters) | Y46: =Y10/Y7 -> 0.03666157065 | Z46: kg | AB46: Binder, aqueous | AC46: Binder production, for electrodes, Li-Ion batteries, CMC-SBR / water (Peters) | AD46: =AD10/AD7 -> 0.01550322573 | AE46: kg | AG46: Binder, aqueous | AH46: Binder production, for electrodes, Li-Ion batteries, CMC-SBR / water (Peters) | AI46: =AI10/AI7 -> 0.01365872588 | AJ46: kg
C47: Binder, organic | D47: -- | E47: 0 | F47: kg | H47: Binder, organic | I47: -- | J47: 0 | K47: kg | L47: Peters et al (2016) | M47: Binder, organic | N47: -- | O47: 0 | P47: kg | Q47: Peters et al (2016) | R47: Binder, organic | S47: Binder production, organic, for electrodes, Li-Ion Battery. PVF-NMP (Peters) | T47: 0 | U47: kg | W47: Binder, organic | X47: Binder production, organic, for electrodes, Li-Ion Battery. PVF-NMP (Peters) | Y47: 0 | Z47: kg | AB47: Binder, organic | AC47: Binder production, organic, for electrodes, Li-Ion Battery. PVF-NMP (Peters) | AD47: 0 | AE47: kg | AG47: Binder, organic | AH47: Binder production, organic, for electrodes, Li-Ion Battery. PVF-NMP (Peters) | AI47: 0 | AJ47: kg
C48: electricity, medium voltage | D48: market group for electricity, medium voltage - Europe without Switzerland | E48: 2.0563e-06 | F48: kWh | H48: electricity, medium voltage | I48: market group for electricity, medium voltage - Europe without Switzerland | J48: 2.0563e-06 | K48: kWh | L48: Peters et al (2016) | M48: electricity, medium voltage | N48: market group for electricity, medium voltage - Europe without Switzerland | O48: 2.0563e-06 | P48: kWh | Q48: Peters et al (2016) | R48: electricity, medium voltage | S48: market group for electricity, medium voltage - Europe without Switzerland | T48: 2.0563e-06 | U48: kWh | W48: electricity, medium voltage | X48: market group for electricity, medium voltage - Europe without Switzerland | Y48: 2.0563e-06 | Z48: kWh | AB48: electricity, medium voltage | AC48: market group for electricity, medium voltage - Europe without Switzerland | AD48: 2.0563e-06 | AE48: kWh | AG48: electricity, medium voltage | AH48: market group for electricity, medium voltage - Europe without Switzerland | AI48: 2.0563e-06 | AJ48: kWh
C49: Hard carbon, for SIB anode | D49: Hard carbon production, from petrol coke, for Na-Ion battery anode (2021) | E49: =E8/E7 -> 0.7472779925 | F49: kg | H49: Hard carbon, for SIB anode | I49: Hard carbon production, from petrol coke, for Na-Ion battery anode (2021) | J49: =J8/J7 -> 0.8569117204 | K49: kg | L49: Peters & Abdelbaky | M49: Hard carbon, for SIB anode | N49: Hard carbon production, from petrol coke, for Na-Ion battery anode (2021) | O49: =O8/O7 -> 0.8583370456 | P49: kg | Q49: Peters & Abdelbaky | R49: Hard carbon, for SIB anode | S49: Hard carbon production, from petrol coke, for Na-Ion battery anode (2021) | T49: =T8/T7 -> 0.7956397803 | U49: kg | W49: Hard carbon, for SIB anode | X49: Hard carbon production, from petrol coke, for Na-Ion battery anode (2021) | Y49: =Y8/Y7 -> 0.8523815175 | Z49: kg | AB49: =AB8 -> Graphite, battery grade, market | AC49: market for graphite, battery grade - GLO | AD49: =AD8/AD7 -> 0.759658061 | AE49: kg | AG49: =AG8 -> Graphite, battery grade | AH49: market for graphite, battery grade - GLO | AI49: =AI8/AI7 -> 0.669277568 | AJ49: kg
C50: heat, central or small-scale, natural gas | D50: market for heat, central or small-scale, natural gas - Europe without Switzerland | E50: =E46*32+E47*7.32 -> 1.028511646 | F50: MJ | H50: heat, central or small-scale, natural gas | I50: market for heat, central or small-scale, natural gas - Europe without Switzerland | J50: =J46*32+J47*7.32 -> 1.179405379 | K50: MJ | L50: Peters et al (2016) | M50: heat, central or small-scale, natural gas | N50: market for heat, central or small-scale, natural gas - Europe without Switzerland | O50: =O46*32+O47*7.32 -> 1.181367117 | P50: MJ | Q50: Peters et al (2016) | R50: heat, central or small-scale, natural gas | S50: market for heat, central or small-scale, natural gas - Europe without Switzerland | T50: =T46*32+T47*7.32 -> 1.095074106 | U50: MJ | W50: heat, central or small-scale, natural gas | X50: market for heat, central or small-scale, natural gas - Europe without Switzerland | Y50: =Y46*32+Y47*7.32 -> 1.173170261 | Z50: MJ | AB50: heat, central or small-scale, natural gas | AC50: market for heat, central or small-scale, natural gas - Europe without Switzerland | AD50: =AD46*32+AD47*7.32 -> 0.4961032235 | AE50: MJ | AG50: heat, central or small-scale, natural gas | AH50: market for heat, central or small-scale, natural gas - Europe without Switzerland | AI50: =AI46*32+AI47*7.32 -> 0.4370792281 | AJ50: MJ
C51: metal working factory | D51: market for metal working factory - GLO | E51: 4.58e-10 | F51: Item(s) | H51: metal working factory | I51: market for metal working factory - GLO | J51: 4.58e-10 | K51: Item(s) | L51: Peters et al (2019) | M51: metal working factory | N51: market for metal working factory - GLO | O51: 4.58e-10 | P51: Item(s) | Q51: Peters et al (2019) | R51: metal working factory | S51: market for metal working factory - GLO | T51: 4.58e-10 | U51: Item(s) | W51: metal working factory | X51: market for metal working factory - GLO | Y51: 4.58e-10 | Z51: Item(s) | AB51: metal working factory | AC51: market for metal working factory - GLO | AD51: 4.58e-10 | AE51: Item(s) | AG51: metal working factory | AH51: market for metal working factory - GLO | AI51: 4.58e-10 | AJ51: Item(s)
C52: sheet rolling, aluminium | D52: market for sheet rolling, aluminium - GLO | E52: =E44 -> 0.1964752769 | F52: kg | H52: sheet rolling, aluminium | I52: market for sheet rolling, aluminium - GLO | J52: =J44 -> 0.07858954791 | K52: kg | L52: Peters et al (2016) | M52: sheet rolling, aluminium | N52: market for sheet rolling, aluminium - GLO | O52: =O44 -> 0.07705694019 | P52: kg | Q52: Peters et al (2016) | R52: sheet rolling, aluminium | S52: market for sheet rolling, aluminium - GLO | T52: =T44 -> 0.1444733545 | U52: kg | W52: sheet rolling, aluminium | X52: market for sheet rolling, aluminium - GLO | Y52: =Y44 -> 0.08346073386 | Z52: kg | AB52: sheet rolling, copper | AC52: market for sheet rolling, copper - GLO | AD52: =AD44 -> 0.2248387133 | AE52: kg | AG52: sheet rolling, copper | AH52: market for sheet rolling, copper - GLO | AI52: =AI44 -> 0.3170637061 | AJ52: kg
C53: transport, freight train | D53: market for transport, freight train - Europe without Switzerland | E53: =((E45+E44)*200+(E46+E49)*600)/1000 -> 0.5117675926 | F53: t*km | H53: transport, freight train | I53: market for transport, freight train | transport, freight train | cut-off, U - Europe without Switzerland | J53: =((J45+J44)*200+(J46+J49)*600)/1000 -> 0.5575072554 | K53: t*km | L53: Peters et al (2016) | M53: transport, freight train | N53: market for transport, freight train | transport, freight train | cut-off, U - Europe without Switzerland | O53: =((O45+O44)*200+(O46+O49)*600)/1000 -> 0.5581019072 | P53: t*km | Q53: Peters et al (2016) | R53: transport, freight train | S53: market for transport, freight train | transport, freight train | cut-off, U - Europe without Switzerland | T53: =((T45+T44)*200+(T47+T49)*600)/1000 -> 0.511411699 | U53: t*km | W53: transport, freight train | X53: market for transport, freight train | transport, freight train | cut-off, U - Europe without Switzerland | Y53: =((Y45+Y44)*200+(Y46+Y49)*600)/1000 -> 0.5556172353 | Z53: t*km | AB53: transport, freight train | AC53: market for transport, freight train | transport, freight train | cut-off, U - Europe without Switzerland | AD53: =((AD45+AD44)*200+(AD46+AD49)*600)/1000 -> 0.5100645147 | AE53: t*km | AG53: transport, freight train | AH53: market for transport, freight train - Europe without Switzerland | AI53: =((AI45+AI44)*200+(AI46+AI49)*600)/1000 -> 0.4731745176 | AJ53: t*km
C54: transport, freight, lorry 16-32 metric ton, EURO5 | D54: transport, freight, lorry 16-32 metric ton, EURO5 - RER | E54: =(E44+E45+E46+E49)*100/1000 -> 0.1 | F54: t*km | G54: Unit | H54: transport, freight, lorry 16-32 metric ton, EURO5 | I54: transport, freight, lorry 16-32 metric ton, EURO5 - RER | J54: =(J44+J45+J46+J49)*100/1000 -> 0.1 | K54: t*km | L54: Peters et al (2016) | M54: transport, freight, lorry 16-32 metric ton, EURO5 | N54: transport, freight, lorry 16-32 metric ton, EURO5 - RER | O54: =(O44+O45+O46+O49)*100/1000 -> 0.1 | P54: t*km | Q54: Peters et al (2016) | R54: transport, freight, lorry 16-32 metric ton, EURO5 | S54: transport, freight, lorry 16-32 metric ton, EURO5 - RER | T54: =(T44+T45+T47+T49)*100/1000 -> 0.09657789342 | U54: t*km | W54: transport, freight, lorry 16-32 metric ton, EURO5 | X54: transport, freight, lorry 16-32 metric ton, EURO5 - RER | Y54: =(Y44+Y45+Y46+Y49)*100/1000 -> 0.1 | Z54: t*km | AB54: transport, freight, lorry 16-32 metric ton, EURO5 | AC54: transport, freight, lorry 16-32 metric ton, EURO5 - RER | AD54: =(AD44+AD45+AD46+AD49)*100/1000 -> 0.1 | AE54: t*km | AG54: transport, freight, lorry 16-32 metric ton, EURO5 | AH54: transport, freight, lorry 16-32 metric ton, EURO5 - RER | AI54: =(AI44+AI45+AI46+AI49)*100/1000 -> 0.1 | AJ54: t*km | AK54: Data quality entry | AL54: Description
C55: water, deionised, from tap water, at user | D55: market for water, deionised, from tap water, at user - Europe without Switzerland | E55: =(E45+E46+E49)*0.4 -> 0.3214098893 | F55: kg | G55: kg | H55: water, deionised, from tap water, at user | I55: market for water, deionised, from tap water, at user - Europe without Switzerland | J55: =(J45+J46+J49)*0.4 -> 0.3685641808 | K55: kg | L55: Peters et al (2016) | M55: water, deionised, from tap water, at user | N55: market for water, deionised, from tap water, at user - Europe without Switzerland | O55: =(O45+O46+O49)*0.4 -> 0.3691772239 | P55: kg | Q55: Peters et al (2016) | R55: water, deionised, from tap water, at user | S55: market for water, deionised, from tap water, at user - Europe without Switzerland | T55: =(T45+T46+T49)*0.4 -> 0.3422106582 | U55: kg | W55: water, deionised, from tap water, at user | X55: market for water, deionised, from tap water, at user - Europe without Switzerland | Y55: =(Y45+Y46+Y49)*0.4 -> 0.3666157065 | Z55: kg | AB55: water, deionised, from tap water, at user | AC55: market for water, deionised, from tap water, at user - Europe without Switzerland | AD55: =(AD45+AD46+AD49)*0.4 -> 0.3100645147 | AE55: kg | AG55: water, deionised, from tap water, at user | AH55: market for water, deionised, from tap water, at user - Europe without Switzerland | AI55: =(AI45+AI46+AI49)*0.4 -> 0.2731745176 | AJ55: kg
C57: Flow | E57: Amount | F57: Unit | H57: Flow | J57: Amount | K57: Unit | M57: Flow | O57: Amount | P57: Unit | R57: Flow | T57: Amount | U57: Unit | W57: Flow | Y57: Amount | Z57: Unit | AB57: Flow | AD57: Amount | AE57: Unit | AG57: Flow | AI57: Amount | AJ57: Unit
C58: =CONCATENATE("Anode, hard carbon-Al, for ",C4," Na-Ion battery") -> Anode, hard carbon-Al, for NaFCN-HC Na-Ion battery | E58: =E45+E46+E49+E44 -> 1 | F58: kg | H58: =CONCATENATE("Anode, hard carbon-Al, for ",H4," Na-Ion battery") -> Anode, hard carbon-Al, for NaNMMT-HC Na-Ion battery | J58: =J45+J46+J49+J44 -> 1 | K58: kg | M58: =CONCATENATE("Anode, hard carbon-Al, for ",M4," Na-Ion battery") -> Anode, hard carbon-Al, for NaMMO-HC Na-Ion battery | O58: =O45+O46+O49+O44 -> 1 | P58: kg | R58: =CONCATENATE("Anode, hard carbon-Al, for ",R4," Na-Ion battery") -> Anode, hard carbon-Al, for NaMVP-HC Na-Ion battery | T58: =T45+T47+T49+T44 -> 0.9657789342 | U58: kg | W58: =CONCATENATE("Anode, hard carbon-Al, for ",W4," Na-Ion battery") -> Anode, hard carbon-Al, for NaNMC-HC Na-Ion battery | Y58: =Y45+Y46+Y49+Y44 -> 1 | Z58: kg | AB58: =CONCATENATE("Anode, Graphite-Cu, for ",AB4," Li-Ion battery") -> Anode, Graphite-Cu, for NMC622-G Li-Ion battery | AD58: =AD45+AD46+AD49+AD44 -> 1 | AE58: kg | AG58: =CONCATENATE("Anode, Graphite-Cu, for ",AG4," Li-Ion battery") -> Anode, Graphite-Cu, for LFP-G Li-Ion battery | AI58: =AI45+AI46+AI49+AI44 -> 1 | AJ58: kg
C59: Heat, waste | E59: =E50+E48*3.6 -> 1.028519048 | F59: MJ | H59: Heat, waste | J59: =J50+J48*3.6 -> 1.179412781 | K59: MJ | M59: Heat, waste | O59: =O50+O48*3.6 -> 1.181374519 | P59: MJ | R59: Heat, waste | T59: =T50+T48*3.6 -> 1.095081509 | U59: MJ | W59: Heat, waste | Y59: =Y50+Y48*3.6 -> 1.173177663 | Z59: MJ | AB59: Heat, waste | AD59: =AD50+AD48*3.6 -> 0.4961106262 | AE59: MJ | AG59: Heat, waste | AI59: =AI50+AI48*3.6 -> 0.4370866308 | AJ59: MJ
C60: Water | E60: =E55 -> 0.3214098893 | F60: kg | H60: Water | J60: =J55 -> 0.3685641808 | K60: kg | M60: Water | O60: =O55 -> 0.3691772239 | P60: kg | R60: Water | T60: =T55 -> 0.3422106582 | U60: kg | W60: Water | Y60: =Y55 -> 0.3666157065 | Z60: kg | AB60: Water | AD60: =AD55 -> 0.3100645147 | AE60: kg | AG60: Water | AI60: =AI55 -> 0.2731745176 | AJ60: kg
A63: CATHODES | C63: =CONCATENATE("Cathode, LIB, ",C4 ) -> Cathode, LIB, NaFCN-HC | H63: =CONCATENATE("Cathode, LIB, ",H4 ) -> Cathode, LIB, NaNMMT-HC | M63: =CONCATENATE("Cathode, SIB, ",M4 ) -> Cathode, SIB, NaMMO-HC | R63: =CONCATENATE("Cathode, SIB, ",R4 ) -> Cathode, SIB, NaMVP-HC | W63: =CONCATENATE("Cathode, SIB, ",W4 ) -> Cathode, SIB, NaNMC-HC | AB63: =CONCATENATE("Cathode, LIB, ",AB4 ) -> Cathode, LIB, NMC622-G | AG63: =CONCATENATE("Cathode, LIB, ",AG4 ) -> Cathode, LIB, LFP-G
B64: Item | C64: Flow | D64: Provider | E64: mass | F64: unit | G64: Source | H64: Flow | I64: Provider | J64: mass | K64: unit | L64: Source | M64: Flow | N64: Provider | O64: mass | P64: unit | Q64: Source | R64: Flow | S64: Provider | T64: Amount | U64: Unit | V64: Source | W64: Flow | X64: Provider | Y64: Amount | Z64: Unit | AA64: Source | AB64: Flow | AC64: Provider | AD64: mass | AE64: unit | AF64: Source | AG64: Flow | AH64: Provider | AI64: mass | AJ64: unit | AK64: Source
C66: Flow | D66: Provider | E66: Amount | F66: Unit | H66: Flow | I66: Provider | J66: Amount | K66: Unit | M66: Flow | N66: Provider | O66: Amount | P66: Unit | R66: Flow | S66: Provider | T66: Amount | U66: Unit | W66: Flow | X66: Provider | Y66: Amount | Z66: Unit | AB66: Flow | AC66: Provider | AD66: Amount | AE66: Unit | AG66: Flow | AH66: Provider | AI66: Amount | AJ66: Unit
C67: Aluminium current collector | D67: market for aluminium, wrought alloy | aluminium, wrought alloy | cut-off, U - GLO | E67: =E16/E$12 -> 0.1337022227 | F67: kg | H67: Aluminium current collector | I67: market for aluminium, wrought alloy - GLO | J67: =J16/J$12 -> 0.06228978333 | K67: kg | M67: Aluminium current collector | N67: market for aluminium, wrought alloy - GLO | O67: =O16/O$12 -> 0.06735509197 | P67: kg | R67: Aluminium current collector | S67: market for aluminium, wrought alloy - GLO | T67: =T16/T$12 -> 0.07961780047 | U67: kg | W67: Aluminium current collector | X67: market for aluminium, wrought alloy - GLO | Y67: =Y16/Y$12 -> 0.05375677053 | Z67: kg | AB67: Aluminium current collector | AC67: market for aluminium, wrought alloy - GLO | AD67: =AD16/AD$12 -> 0.06433231854 | AE67: kg | AG67: Aluminium current collector | AH67: market for aluminium, wrought alloy - GLO | AI67: =AI16/AI$12 -> 0.08440995379 | AJ67: kg
C68: Binder, organic, for electrodes, Li-Ion batteries | D68: Binder production, organic, for electrodes, Li-Ion Battery. PVF-NMP (Peters) | E68: =E15/E$12 -> 0.01732595555 | F68: kg | H68: Binder, organic, for electrodes, Li-Ion batteries | I68: Binder production, organic, for electrodes, Li-Ion Battery. PVF-NMP (Peters) | J68: =J15/J$12 -> 0.01875420433 | K68: kg | M68: Binder, organic, for electrodes, Li-Ion batteries | N68: Binder production, organic, for electrodes, Li-Ion Battery. PVF-NMP (Peters) | O68: =O15/O$12 -> 0.03657431012 | P68: kg | R68: Binder, organic, for electrodes, Li-Ion batteries | S68: Binder production, organic, for electrodes, Li-Ion Battery. PVF-NMP (Peters) | T68: =T15/T$12 -> 0.01840764399 | U68: kg | W68: Binder, organic, for electrodes, Li-Ion batteries | X68: Binder production, organic, for electrodes, Li-Ion Battery. PVF-NMP (Peters) | Y68: =Y15/Y$12 -> 0.01892486459 | Z68: kg | AB68: Binder, organic, for electrodes, Li-Ion batteries | AC68: Binder production, organic, for electrodes, Li-Ion Battery. PVF-NMP (Peters) | AD68: =AD15/AD$12 -> 0.01871335363 | AE68: kg | AG68: Binder, organic, for electrodes, Li-Ion batteries | AH68: Binder production, organic, for electrodes, Li-Ion Battery. PVF-NMP (Peters) | AI68: =AI15/AI$12 -> 0.01831180092 | AJ68: kg
C69: Binder, water based, for electrodes, Li-Ion battery | D69: Binder production, for electrodes, Li-Ion batteries, CMC-SBR / water (Peters) | F69: kg | H69: Binder, water based, for electrodes, Li-Ion battery | I69: Binder production, for electrodes, Li-Ion batteries, CMC-SBR / water (Peters 2016) | J69: 0 | K69: kg | M69: Binder, water based, for electrodes, Li-Ion battery | N69: Binder production, for electrodes, Li-Ion batteries, CMC-SBR / water (Peters 2016) | P69: kg | R69: Binder, water based, for electrodes, Li-Ion battery | S69: Binder production, for electrodes, Li-Ion batteries, CMC-SBR / water (Peters 2016) | U69: kg | W69: Binder, water based, for electrodes, Li-Ion battery | X69: Binder production, for electrodes, Li-Ion batteries, CMC-SBR / water (Peters 2016) | Z69: kg | AB69: Binder, water based, for electrodes, Li-Ion battery | AC69: Binder production, for electrodes, Li-Ion batteries, CMC-SBR / water (Peters) | AE69: kg | AG69: Binder, water based, for electrodes, Li-Ion battery | AH69: Binder production, for electrodes, Li-Ion batteries, CMC-SBR / water (Peters) | AJ69: kg
C70: carbon black | D70: market for carbon black | carbon black | cut-off, U - GLO | E70: =E14/E$12 -> 0.01732595555 | F70: kg | H70: carbon black | I70: market for carbon black - GLO | J70: =J14/J$12 -> 0.01875420433 | K70: kg | M70: carbon black | N70: market for carbon black - GLO | O70: =O14/O$12 -> 0.01828715506 | P70: kg | R70: carbon black | S70: market for carbon black - GLO | T70: =T14/T$12 -> 0.01840764399 | U70: kg | W70: carbon black | X70: market for carbon black - GLO | Y70: =Y14/Y$12 -> 0.01892486459 | Z70: kg | AB70: carbon black | AC70: market for carbon black - GLO | AD70: =AD14/AD$12 -> 0.01871335363 | AE70: kg | AG70: carbon black | AH70: market for carbon black - GLO | AI70: =AI14/AI$12 -> 0.01831180092 | AJ70: kg
C71: electricity, medium voltage | D71: market group for electricity, medium voltage | electricity, medium voltage | cut-off, U - Europe without Switzerland | E71: 0.002 | F71: kWh | H71: electricity, medium voltage | I71: Binder production, for electrodes, Li-Ion batteries, CMC-SBR / water (Peters 2016) | J71: 0.002 | K71: kWh | M71: electricity, medium voltage | N71: Binder production, for electrodes, Li-Ion batteries, CMC-SBR / water (Peters 2016) | O71: 0.002 | P71: kWh | R71: electricity, medium voltage | S71: Binder production, for electrodes, Li-Ion batteries, CMC-SBR / water (Peters 2016) | T71: 0.002 | U71: kWh | W71: electricity, medium voltage | X71: Binder production, for electrodes, Li-Ion batteries, CMC-SBR / water (Peters 2016) | Y71: 0.002 | Z71: kWh | AB71: electricity, medium voltage | AC71: market group for electricity, medium voltage - Europe without Switzerland | AD71: 0.002 | AE71: kWh | AG71: electricity, medium voltage | AH71: market group for electricity, medium voltage - Europe without Switzerland | AI71: 0.002 | AJ71: kWh
C72: heat, central or small-scale, natural gas | D72: market for heat, central or small-scale, natural gas | heat, central or small-scale, natural gas | cut-off, U - Europe without Switzerland | E72: =E68*32+E69*7.32 -> 0.5544305775 | F72: MJ | H72: heat, central or small-scale, natural gas | I72: market for heat, central or small-scale, natural gas - Europe without Switzerland | J72: =J68*32+J69*7.32 -> 0.6001345387 | K72: MJ | M72: heat, central or small-scale, natural gas | N72: market for heat, central or small-scale, natural gas - Europe without Switzerland | O72: =O68*32+O69*7.32 -> 1.170377924 | P72: MJ | R72: heat, central or small-scale, natural gas | S72: market for heat, central or small-scale, natural gas - Europe without Switzerland | T72: =T68*32+T69*7.32 -> 0.5890446077 | U72: MJ | W72: heat, central or small-scale, natural gas | X72: market for heat, central or small-scale, natural gas - Europe without Switzerland | Y72: =Y68*32+Y69*7.32 -> 0.6055956669 | Z72: MJ | AB72: heat, central or small-scale, natural gas | AC72: market for heat, central or small-scale, natural gas - Europe without Switzerland | AD72: =AD68*32+AD69*7.32 -> 0.5988273161 | AE72: MJ | AG72: heat, central or small-scale, natural gas | AH72: market for heat, central or small-scale, natural gas - Europe without Switzerland | AI72: =AI68*32+AI69*7.32 -> 0.5859776296 | AJ72: MJ
C73: metal working factory | D73: market for metal working factory | metal working factory | cut-off, U - GLO | E73: 4.58e-10 | F73: Item(s) | H73: metal working factory | I73: market for metal working factory - GLO | J73: 4.58e-10 | K73: Item(s) | M73: metal working factory | N73: market for metal working factory - GLO | O73: 4.58e-10 | P73: Item(s) | R73: metal working factory | S73: market for metal working factory - GLO | T73: 4.58e-10 | U73: Item(s) | W73: metal working factory | X73: market for metal working factory - GLO | Y73: 4.58e-10 | Z73: Item(s) | AB73: metal working factory | AC73: market for metal working factory - GLO | AD73: 4.58e-10 | AE73: Item(s) | AG73: metal working factory | AH73: market for metal working factory - GLO | AI73: 4.58e-10 | AJ73: Item(s)
C75: NaPBA (SIB) active material, for cathode, Na-Ion battery | E75: =E13/E$12 -> 0.8316458662 | F75: kg | H75: NaNiMnMgTiO active material, for Na-Ion battery, layered oxide | I75: NaNiMnMgTiO active material production, for na-Ion battery (Peters 2016) | J75: =J13/J$12 -> 0.900201808 | K75: kg | L75: Peters et al. 2016 | M75: Cathode active material, MMO | N75: =M107 -> NaMMO active material, for Na-Ion battery | O75: =O13/O$12 -> 0.8777834428 | P75: kg | R75: Cathode active material, MVP | S75: =R103 -> Na4MnV(PO4)3 active material, for Na-Ion battery | T75: =T13/T$12 -> 0.8835669115 | U75: kg | W75: Cathode active material, NMC | X75: =W98 -> Na-NMC (SIB) active material, for Na-Ion battery | Y75: =Y13/Y$12 -> 0.9083935003 | Z75: kg | AB75: Cathode active material, NMC | AC75: =AB98 -> NCM active material, for Li-Ion battery (Ellingsen) | AD75: =AD13/AD$12 -> 0.8982409742 | AE75: kg | AG75: LFP active material, for Na-Ion battery, layered oxide | AH75: =AG102 -> LFP active material, at plant (NTNU) | AI75: =AI13/AI$12 -> 0.8789664444 | AJ75: kg | AK75: Majeau-Bettez
C76: sheet rolling, aluminium | D76: market for sheet rolling, aluminium - GLO | E76: =E67 -> 0.1337022227 | F76: kg | H76: sheet rolling, aluminium | I76: market for sheet rolling, aluminium - GLO | J76: =J67 -> 0.06228978333 | K76: kg | M76: sheet rolling, aluminium | N76: market for sheet rolling, aluminium - GLO | O76: =O67 -> 0.06735509197 | P76: kg | R76: sheet rolling, aluminium | S76: market for sheet rolling, aluminium - GLO | T76: =T67 -> 0.07961780047 | U76: kg | W76: sheet rolling, aluminium | X76: market for sheet rolling, aluminium - GLO | Y76: =Y67 -> 0.05375677053 | Z76: kg | AB76: sheet rolling, aluminium | AC76: market for sheet rolling, aluminium - GLO | AD76: =AD67 -> 0.06433231854 | AE76: kg | AG76: sheet rolling, aluminium | AH76: market for sheet rolling, aluminium - GLO | AI76: =AI67 -> 0.08440995379 | AJ76: kg
C77: transport, freight train | D77: market for transport, freight train - Europe without Switzerland | E77: =(E67*200+(E68+E69+E70)*600)/1000 -> 0.04753159119 | F77: t*km | H77: transport, freight train | I77: market for transport, freight train - Europe without Switzerland | J77: =(J67*200+(J68+J69+J70)*600)/1000 -> 0.03496300187 | K77: t*km | M77: transport, freight train | N77: market for transport, freight train - Europe without Switzerland | O77: =(O67*200+(O68+O69+O70)*600)/1000 -> 0.0463878975 | P77: t*km | R77: transport, freight train | S77: market for transport, freight train - Europe without Switzerland | T77: =(T67*200+(T68+T69+T70)*600)/1000 -> 0.03801273288 | U77: t*km | W77: transport, freight train | X77: market for transport, freight train - Europe without Switzerland | Y77: =(Y67*200+(Y68+Y69+Y70)*600)/1000 -> 0.03346119161 | Z77: t*km | AB77: transport, freight train | AC77: market for transport, freight train - Europe without Switzerland | AD77: =(AD67*200+(AD68+AD69+AD70)*600)/1000 -> 0.03532248806 | AE77: t*km | AG77: transport, freight train | AH77: market for transport, freight train - Europe without Switzerland | AI77: =(AI67*200+(AI68+AI69+AI70)*600)/1000 -> 0.03885615187 | AJ77: t*km
C78: transport, freight, lorry 16-32 metric ton, EURO5 | D78: transport, freight, lorry 16-32 metric ton, EURO5 - RER | E78: =((E68+E69+E70+E75)*100+E67*50)/1000 -> 0.09331488887 | F78: t*km | H78: transport, freight, lorry 16-32 metric ton, EURO5 | I78: transport, freight, lorry 16-32 metric ton, EURO5 - RER | J78: =((J68+J69+J70+J75)*100+J67*50)/1000 -> 0.09688551083 | K78: t*km | M78: transport, freight, lorry 16-32 metric ton, EURO5 | N78: transport, freight, lorry 16-32 metric ton, EURO5 - RER | O78: =((O68+O69+O70+O75)*100+O67*50)/1000 -> 0.0966322454 | P78: t*km | R78: transport, freight, lorry 16-32 metric ton, EURO5 | S78: transport, freight, lorry 16-32 metric ton, EURO5 - RER | T78: =((T68+T69+T70+T75)*100+T67*50)/1000 -> 0.09601910998 | U78: t*km | W78: transport, freight, lorry 16-32 metric ton, EURO5 | X78: transport, freight, lorry 16-32 metric ton, EURO5 - RER | Y78: =((Y68+Y69+Y70+Y75)*100+Y67*50)/1000 -> 0.09731216147 | Z78: t*km | AB78: transport, freight, lorry 16-32 metric ton, EURO5 | AC78: transport, freight, lorry 16-32 metric ton, EURO5 - RER | AD78: =((AD68+AD69+AD70+AD75)*100+AD67*50)/1000 -> 0.09678338407 | AE78: t*km | AG78: transport, freight, lorry 16-32 metric ton, EURO5 | AH78: transport, freight, lorry 16-32 metric ton, EURO5 - RER | AI78: =((AI68+AI69+AI70+AI75)*100+AI67*50)/1000 -> 0.09577950231 | AJ78: t*km
C80: Flow | D80: Category | E80: Amount | F80: Unit | H80: Flow | I80: Category | J80: Amount | K80: Unit | M80: Flow | N80: Category | O80: Amount | P80: Unit | R80: Flow | S80: Category | T80: Amount | U80: Unit | W80: Flow | X80: Category | Y80: Amount | Z80: Unit | AB80: Flow | AC80: Category | AD80: Amount | AE80: Unit | AG80: Flow | AH80: Category | AI80: Amount | AJ80: Unit
C82: Cathode, Prussian Blue, for Na-Ion battery | D82: 2721-Manufacture of new batteries_JFP/Na-Ion | E82: 1 | F82: kg | H82: Cathode, NMMT, for Na-Ion battery | I82: 2721-Manufacture of new batteries_JFP/Na-Ion | J82: 1 | K82: kg | M82: Cathode, NMO, for Na-Ion battery | N82: 2721-Manufacture of new batteries_JFP/Na-Ion | O82: =O67+O68+O70+O75 -> 1 | P82: kg | R82: Cathode, NMO, for Na-Ion battery | S82: 2721-Manufacture of new batteries_JFP/Na-Ion | T82: 1 | U82: kg | W82: Cathode, NMC, for Na-Ion battery | X82: 2721-Manufacture of new batteries_JFP/Na-Ion | Y82: 1 | Z82: kg | AB82: Cathode, layered oxide, for Na-Ion battery | AC82: 2721-Manufacture of new batteries_JFP/Na-Ion | AD82: 1 | AE82: kg | AG82: Cathode, LFP, for Na-Ion battery | AH82: 2721-Manufacture of new batteries_JFP/Na-Ion | AI82: 1 | AJ82: kg
C83: Heat, waste | D83: Elementary flows/Emission to air/high population density | E83: =E72+E71*3.6 -> 0.5616305775 | F83: MJ | H83: Heat, waste | I83: Elementary flows/Emission to air/high population density | J83: =J72+J71*3.6 -> 0.6073345387 | K83: MJ | M83: Heat, waste | N83: Elementary flows/Emission to air/high population density | O83: =O72+O71*3.6 -> 1.177577924 | P83: MJ | R83: Heat, waste | S83: Elementary flows/Emission to air/high population density | T83: =T72+T71*3.6 -> 0.5962446077 | U83: MJ | W83: Heat, waste | X83: Elementary flows/Emission to air/high population density | Y83: =Y72+Y71*3.6 -> 0.6127956669 | Z83: MJ | AB83: Heat, waste | AC83: Elementary flows/Emission to air/high population density | AD83: =AD72+AD71*3.6 -> 0.6060273161 | AE83: MJ | AG83: Heat, waste | AH83: Elementary flows/Emission to air/high population density | AI83: =AI72+AI71*3.6 -> 0.5931776296 | AJ83: MJ
A86: Active Material | C86: NaPBA (NaFCN) active material (SIB) | M86: Na-MMO active material (SIB) | R86: NaMVP active material (SIB) | W86: Na-NMC(111) active cathode material (SIB) | AB86: Li-NMC(622) active cathode material (LIB) | AG86: LFP active cathode material (LIB)
B87: Item | C87: Flow | D87: Provider | E87: mass | F87: unit | G87: Source | H87: Flow | I87: Provider | J87: mass | K87: unit | L87: Source | M87: Flow | N87: Provider | O87: mass | P87: unit | Q87: Source | R87: Flow | S87: Provider | T87: Amount | U87: Unit | V87: Source | W87: Flow | X87: Provider | Y87: Amount | Z87: Unit | AA87: Source | AB87: Flow | AC87: Provider | AD87: mass | AE87: unit | AF87: Source | AG87: Flow | AH87: Provider | AI87: mass | AJ87: unit | AK87: Source
C88: Inputs | M88: Inputs | R88: Inputs | W88: Inputs | AB88: Inputs
C89: Water | D89: market for water, completely softened | water, completely softened | Cutoff, U - RER | E89: 3.291601622 | F89: kg | M89: Manganese(III) oxide | N89: market for manganese(III) oxide - GLO | O89: 0.7024109334 | P89: kg | R89: Soda ash | S89: market for soda ash, dense - GLO | T89: 0.6409338758 | U89: kg | AB89: Flow | AC89: Provider | AD89: Amount | AE89: Unit | AG89: Flow | AH89: Provider | AI89: Amount | AJ89: Unit | AP89: Description
C90: NaOH | D90: market for sodium hydroxide, without water, in 50% solution state | sodium hydroxide, without water, in 50% solution state | Cutoff, U - GLO | E90: 1.002239493 | F90: kg | M90: Magnesium oxide | N90: market for magnesium oxide - GLO | O90: 0.02100475632 | P90: kg | R90: Acetic acid | S90: market for acetic acid, without water, in 98% solution state - GLO | T90: 0.9870893173 | U90: kg | W90: Nickel cobalt manganese hydroxide, as NCM precursor, for LIB active material | X90: Nickel cobalt manganese hydroxide production, as NCM precursor, for LIB (Ellingsen) | Y90: 0.8829748584 | Z90: kg | AB90: =AB124 -> Nickel6 cobalt2 manganese2 hydroxide, as NCM622 precursor, for LIB active material (Ellingsen) | AC90: Nickel cobalt manganese hydroxide production, as NMC622 precursor, for LIB (Ellingsen) | AD90: 0.95 | AE90: kg | AG90: chemical factory, organics | AH90: chemical factory construction, organics | chemical factory, organics | cut-off, U - RER | AI90: 4e-10 | AJ90: Item(s) | AK90: taken from Majeau-Bettez et al 2011, updates iron sulfate provider
C91: HCN | D91: market for hydrogen cyanide | hydrogen cyanide | Cutoff, U - RER | E91: 0.5852117587 | F91: kg | M91: Sodium carbonate | N91: market for soda ash, light, crystalline, heptahydrate - GLO | O91: 0.7365518487 | P91: kg | R91: Manganese carbonate - MnCO3 | S91: market for manganese concentrate - GLO | T91: 0.2499687241 | U91: kg | W91: sodium hydroxide | X91: market for sodium hydroxide, without water, in 50% solution state - GLO | Y91: 0.3881882031 | Z91: kg | AB91: lithium hydroxide | AC91: market for lithium hydroxide | lithium hydroxide | cut-off, U - GLO | AD91: 0.25 | AE91: kg | AG91: heat, in chemical industry | AH91: market for heat, in chemical industry | heat, in chemical industry | cut-off, U - RER | AI91: 15 | AJ91: MJ
C92: Iron (II) chloride | D92: market for iron(II) chloride - GLO | E92: 0.4650803126 | F92: kg | M92: Oxygen, liquid | N92: market for oxygen, liquid - RoW | O92: 0.6669617125 | P92: kg | R92: V2O5 | S92: Vanadium pentoxide, production from vanadium bearing slag (Weber et al.) | T92: 0.1977775476 | U92: kg | W92: heat, central or small-scale, natural gas | X92: market for heat, central or small-scale, natural gas | heat, central or small-scale, natural gas | cut-off, U - Europe without Switzerland | Y92: 5.111959707 | Z92: MJ | AB92: heat, central or small-scale, natural gas | AC92: market for heat, central or small-scale, natural gas | heat, central or small-scale, natural gas | cut-off, U - Europe without Switzerland | AD92: 5.5 | AE92: MJ | AG92: iron(III) sulfate, without water, in 12.5% iron solution state | AH92: market for iron(III) sulfate, without water, in 12.5% iron solution state | iron(III) sulfate, without water, in 12.5% iron solution state | cut-off, U - GLO | AI92: 1 | AJ92: kg
C93: Nitrogen, liquid | D93: market for nitrogen, liquid | nitrogen, liquid | Cutoff, U - RER | E93: 4.116559279 | F93: kg | M93: Nitrogen, liquid | N93: market for nitrogen, liquid - RoW | O93: 0.8910834628 | P93: kg | R93: Acetylacetone | S93: market for isopropyl acetate - RER | T93: 0.6528616404 | U93: kg | W93: transport, freight train | X93: market for transport, freight train | transport, freight train | cut-off, U - Europe without Switzerland | Y93: 0.7626978369 | Z93: t*km | AB93: transport, freight train | AC93: market for transport, freight train | transport, freight train | cut-off, U - Europe without Switzerland | AD93: 0.72 | AE93: t*km | AG93: lithium hydroxide | AH93: market for lithium hydroxide | lithium hydroxide | cut-off, U - GLO | AI93: 0.46 | AJ93: kg
C94: HCl | D94: market for hydrochloric acid, without water, in 30% solution state | hydrochloric acid, without water, in 30% solution state | Cutoff, U - RER | E94: 0.1105918446 | F94: kg | M94: Water, deionised, from tap water, at user | N94: market for water, deionised, from tap water, at user - CH | O94: 3.171566185 | P94: kWh | R94: Phosphoric acid | S94: market for phosphoric acid, industrial grade, without water, in 85% solution state - GLO | T94: 0.6393821458 | U94: kg | W94: transport, freight, lorry 16-32 metric ton, EURO5 | X94: transport, freight, lorry 16-32 metric ton, EURO5 | transport, freight, lorry 16-32 metric ton, EURO5 | cut-off, U - RER | Y94: 0.1271163062 | Z94: t*km | AB94: transport, freight, lorry 16-32 metric ton, EURO5 | AC94: transport, freight, lorry 16-32 metric ton, EURO5 | transport, freight, lorry 16-32 metric ton, EURO5 | cut-off, U - RER | AD94: 0.12 | AE94: t*km | AG94: phosphoric acid, industrial grade, without water, in 85% solution state | AH94: market for phosphoric acid, industrial grade, without water, in 85% solution state | phosphoric acid, industrial grade, without water, in 85% solution state | cut-off, U - GLO | AI94: 0.65 | AJ94: kg
C95: Iron (III) chloride | D95: market for iron(III) chloride, without water, in 14% iron solution state | iron(III) chloride, without water, in 14% iron solution state | Cutoff, U - GLO | E95: 0.2076749538 | F95: kg | M95: Electricity, medium voltage | N95: market group for electricity, medium voltage - GLO | O95: 0.005573387038 | P95: MJ | R95: ethanol make-up (solvent) | S95: market for ethanol, without water, in 99.7% solution state, from ethylene - RER | T95: 0.01 | U95: kg | W95: chemical factory, organics | Y95: 4.6e-10 | Z95: Item(s) | AB95: chemical factory, organics | AD95: 4.6e-10 | AE95: Item(s) | AG95: transport, freight train | AH95: market for transport, freight train | transport, freight train | cut-off, U - Europe without Switzerland | AI95: 1.3 | AJ95: t*km
C96: Heat, district or industrial, natural gas | D96: market group for heat, district or industrial, natural gas - GLO | E96: 1.11552379 | F96: MJ | M96: Heat, district or industrial, natural gas | N96: market group for heat, district or industrial, natural gas - GLO | O96: 17.34551779 | P96: tkm | R96: Nitrogen (inert atmosphere) | S96: market for nitrogen, liquid - RoW | T96: 0.7994092791 | U96: kg | AG96: transport, freight, lorry 16-32 metric ton, EURO5 | AH96: transport, freight, lorry 16-32 metric ton, EURO5 | transport, freight, lorry 16-32 metric ton, EURO5 | cut-off, U - RER | AI96: 0.21 | AJ96: t*km
C97: electricity (mixing) | D97: market group for electricity, medium voltage - GLO | E97: 0.0001974960973 | F97: kWh | M97: Transport lorry | N97: transport, freight, lorry 16-32 metric ton, EURO5 - RER | O97: 0.6394034008 | P97: tkm | R97: Transport lorry | S97: transport, freight, lorry 16-32 metric ton, EURO5 - RER | T97: 0.4038834709 | U97: tkm | W97: Outputs | AB97: Outputs | AG97: water, deionised, from tap water, at user | AH97: market for water, deionised, from tap water, at user | water, deionised, from tap water, at user | cut-off, U - Europe without Switzerland | AI97: 46 | AJ97: kg
C98: transport, freight train | D98: market for transport, freight train - Europe without Switzerland | E98: 2.11713328 | F98: tkm | M98: Transport Train | N98: market for transport, freight train - Europe without Switzerland | O98: 3.661831533 | P98: Item(s) | R98: Transport Train | S98: market for transport, freight train - Europe without Switzerland | T98: 2.26341897 | U98: tkm | W98: Na-NMC (SIB) active material, for Na-Ion battery | Y98: 1 | Z98: kg | AB98: NCM active material, for Li-Ion battery (Ellingsen) | AC98: 2721-Manufacture of new batteries_JFP/Li-Ion | AD98: 1 | AE98: kg
C99: transport,lorry | D99: transport, freight, lorry 16-32 metric ton, EURO5 - RER | E99: 1.048182893 | F99: tkm | M99: chemical factory, organics | N99: market for chemical factory, organics | chemical factory, organics | Cutoff, U - GLO | O99: 3.731254336e-10 | R99: chemical factory, organics | S99: market for chemical factory, organics | chemical factory, organics | Cutoff, U - GLO | T99: 4.068240606e-10 | U99: u | W99: Heat (waste) | Y99: 5.111959707 | Z99: MJ | AB99: Heat, waste | AC99: Elementary flows/Emission to air/high population density | AD99: 5.5 | AE99: MJ | AG99: Flow | AI99: Amount | AJ99: Unit
C100: chemical factory, organics | E100: 6.307390919e-10 | F100: u | M100: Outputs | O100: 0 | P100: kg | R100: Electricity (stirring) | S100: market group for electricity, medium voltage - GLO | T100: 0.005 | U100: kWh | AG100: Heat, waste | AI100: 1.5 | AJ100: MJ
C101: Outputs | M101: Manganese Oxide | N101: market for inert waste, for final disposal | inert waste, for final disposal | Cutoff, U - RoW | O101: 0.03512054667 | P101: kg | R101: Heat (calcination / anealing) | S101: market group for heat, district or industrial, natural gas - GLO | T101: 15.56102032 | U101: MJ | AG101: Iron, ion | AI101: 0.019 | AJ101: kg
C102: Na2Fe[Fe(CN)6] active material, for Na-Ion battery | E102: 1 | F102: kg | M102: Magnesium Oxide (waste) | N102: market for inert waste, for final disposal | inert waste, for final disposal | Cutoff, U - RoW | O102: 0.001050237816 | P102: kg | R102: Outputs | AG102: LFP active material, at plant (NTNU) | AI102: 1 | AJ102: kg
C103: NaCl | E103: 1.422698406 | F103: kg | M103: Sodium carbonate (waste) | N103: market for inert waste, for final disposal | inert waste, for final disposal | Cutoff, U - CH | O103: 0.03682759244 | P103: kg | R103: Na4MnV(PO4)3 active material, for Na-Ion battery | T103: 1 | U103: kg | AG103: Lithium, ion | AI103: 0.1 | AJ103: kg
C104: Iron(III) chloride (FeCl3) | E104: 0.01887954126 | F104: kg | M104: Waste heat to air | O104: 17.36558198 | P104: MJ | R104: H2O | S104: emission to air | T104: 0.1872974559 | U104: kg | AG104: Phosphate | AI104: 0.032 | AJ104: kg
C105: FeOH2 | D105: solid waste, to disposal | E105: 0.01593978516 | F105: kg | M105: Waste water to air | O105: 3.171566185 | P105: kg | R105: CO2 | S105: emission to air | T105: 0.3617398218 | U105: kg
C106: NaCN | D106: solid waste, to disposal | E106: 0.03473991637 | F106: kg | M106: Carbon dioxide, fossil | O106: 0.2904515781 | P106: kg | R106: ethanol | S106: emission to air | T106: 0.01 | U106: kg
C107: Water | D107: wastewaer, average | E107: 2.996770019 | F107: l | M107: NaMMO active material, for Na-Ion battery | N107: C:Manufacturing/20:Manufacture of chemicals and chemical products/201:Manufacture of basic chemicals, fertilizers and nitrogen compounds, plastics and synthetic rubber in primary forms/2011:Manufacture of basic chemicals | O107: 1 | P107: kg | R107: Phosphoric acid | S107: emission to water | T107: 0.001278764292 | U107: kg
C108: Solid waste | D108: solid waste, to disposal | E108: 0.05067970153 | F108: kg | M108: Water | N108: Elementary flows/Emission to air/high population density | O108: 3.117540932 | P108: kg | R108: Acetic acid | S108: emission to water | T108: 0.002496412272 | U108: kg
R109: Wastewater to treatment | S109: 0 | T109: 0.8227780837 | U109: kg
A111: Electrolyte | AB111: NMC622 precursor
B112: Item | H112: Flow | I112: Provider | J112: mass | K112: unit | L112: Source | M112: Flow | N112: Provider | O112: mass | P112: unit | Q112: Source | R112: Flow | S112: Provider | T112: Amount | U112: Unit | V112: Source | W112: Flow | X112: Provider | Y112: Amount | Z112: Unit | AA112: Source | AB112: Flow | AC112: Provider | AD112: mass | AE112: unit | AF112: Source | AG112: Flow | AH112: Provider | AI112: mass | AJ112: unit | AK112: Source
AB114: Flow | AC114: Provider | AD114: Amount | AE114: Unit | AF114: Costs/Revenues
AB115: Cobalt sulfate - GLO | AD115: 0.337 | AE115: kg
AB116: manganese sulfate | AC116: market for manganese sulfate | manganese sulfate | cut-off, U - GLO | AD116: 0.328 | AE116: kg
AB117: nickel sulfate | AC117: market for nickel sulfate | nickel sulfate | cut-off, U - GLO | AD117: 1.009 | AE117: kg
AB118: sodium hydroxide, without water, in 50% solution state | AC118: market for sodium hydroxide, without water, in 50% solution state | sodium hydroxide, without water, in 50% solution state | cut-off, U - GLO | AD118: 0.88 | AE118: kg
AB119: transport, freight train | AC119: market for transport, freight train | transport, freight train | cut-off, U - Europe without Switzerland | AD119: 1.5 | AE119: t*km
AB120: transport, freight, lorry 16-32 metric ton, EURO5 | AC120: transport, freight, lorry 16-32 metric ton, EURO5 | transport, freight, lorry 16-32 metric ton, EURO5 | cut-off, U - RER | AD120: 0.26 | AE120: t*km
AB121: chemical factory, organics | AC121: chemical factory construction, organics | chemical factory, organics | cut-off, U - RER | AD121: 4e-10 | AE121: Item(s)
AB123: Flow | AD123: Amount | AE123: Unit
AB124: Nickel6 cobalt2 manganese2 hydroxide, as NCM622 precursor, for LIB active material (Ellingsen) | AD124: 1 | AE124: kg
AB125: Sodium | AD125: 0.517920377 | AE125: kg
AB126: Sulfate | AD126: 1.082079623 | AE126: kg
AB128: LCI acc. to Ellingsen (based on Majeau-Bettez)
AB129: values adjusted according to GREET data from 2018 (essentially the same for NMC 111 i.e., based on Ellingsen as well)
A131: RECYCLING PROCESSES
A133: Pyrometallurgical recycling | C133: =$C$4 -> NaFCN-HC | H133: =H4 -> NaNMMT-HC | M133: =M$4 -> NaMMO-HC | R133: =$R$4 -> NaMVP-HC | W133: =$W$4 -> NaNMC-HC | AB133: =$AB$4 -> NMC622-G | AG133: =AG$4 -> LFP-G
B134: Item | C134: Flow | D134: Provider | E134: mass | F134: unit | H134: Flow | I134: Provider | J134: mass | K134: unit | L134: Source | M134: Flow | N134: Provider | O134: Amount | P134: Unit | Q134: Source | R134: Flow | S134: Provider | T134: Amount | U134: Unit | V134: Source | W134: Flow | X134: Provider | Y134: mass | Z134: unit | AA134: Source | AB134: Flow | AC134: Provider | AD134: mass | AE134: unit | AF134: Source | AG134: Flow | AH134: Provider | AI134: mass | AJ134: unit | AK134: Source
A136: ='Battery Recycling'!B67 -> INPUTS | B136: ='Battery Recycling'!C67 -> 0
B137: ='Battery Recycling'!C68 -> Waste batteries | C137: =CONCATENATE("Spent batteries, ",H4," to pyrometallurgic recycling") -> Spent batteries, NaNMMT-HC to pyrometallurgic recycling | E137: ='Battery Recycling'!G68 -> 1.284507671 | F137: kg | G137: =E137/E$137 -> 1 | H137: =CONCATENATE("Spent batteries, ",M4," to pyrometallurgic recycling") -> Spent batteries, NaMMO-HC to pyrometallurgic recycling | J137: ='Battery Recycling'!H68 -> 0.9216406 | K137: kg | L137: =J137/J$137 -> 1 | M137: =CONCATENATE("Spent batteries, ",R4," to pyrometallurgic recycling") -> Spent batteries, NaMVP-HC to pyrometallurgic recycling | O137: ='Battery Recycling'!I68 -> 1.007704362 | P137: kg | Q137: =O137/O$137 -> 1 | R137: =CONCATENATE("Spent batteries, ",W4," to pyrometallurgic recycling") -> Spent batteries, NaNMC-HC to pyrometallurgic recycling | T137: ='Battery Recycling'!J68 -> 1.039399997 | U137: kg | V137: =T137/T$137 -> 1 | W137: =CONCATENATE("Spent batteries, ",AB4," to pyrometallurgic recycling") -> Spent batteries, NMC622-G to pyrometallurgic recycling | Y137: ='Battery Recycling'!K68 -> 1.161454827 | Z137: kg | AA137: =Y137/Y$137 -> 1 | AB137: =CONCATENATE("Spent batteries, ",C4," to pyrometallurgic recycling") -> Spent batteries, NaFCN-HC to pyrometallurgic recycling | AD137: ='Battery Recycling'!L68 -> 0.5823579606 | AE137: kg | AF137: =AD137/AD$137 -> 1 | AG137: =CONCATENATE("Spent batteries, ",AG4," to pyrometallurgic recycling") -> Spent batteries, LFP-G to pyrometallurgic recycling | AI137: ='Battery Recycling'!M68 -> 0.8003168915 | AJ137: kg | AK137: =AI137/AI$137 -> 1
B138: ='Battery Recycling'!C69 -> NaOH | C138: NaOH | E138: ='Battery Recycling'!G69 -> 0.2697466108 | F138: kg | G138: =E138/E$137 -> 0.21 | H138: =C138 -> NaOH | I138: 0 | J138: ='Battery Recycling'!H69 -> 0.193544526 | K138: kg | L138: =J138/J$137 -> 0.21 | M138: =H138 -> NaOH | N138: =I138 -> 0 | O138: ='Battery Recycling'!I69 -> 0.211617916 | P138: kg | Q138: =O138/O$137 -> 0.21 | R138: =M138 -> NaOH | S138: =N138 -> 0 | T138: ='Battery Recycling'!J69 -> 0.2182739994 | U138: kg | V138: =T138/T$137 -> 0.21 | W138: =R138 -> NaOH | X138: =S138 -> 0 | Y138: ='Battery Recycling'!K69 -> 0.2439055137 | Z138: kg | AA138: =Y138/Y$137 -> 0.21 | AB138: =W138 -> NaOH | AC138: 0 | AD138: ='Battery Recycling'!L69 -> 0.1222951717 | AE138: kg | AF138: =AD138/AD$137 -> 0.21 | AG138: =AB138 -> NaOH | AH138: 0 | AI138: ='Battery Recycling'!M69 -> 0.1680665472 | AJ138: kg | AK138: =AI138/AI$137 -> 0.21
B139: ='Battery Recycling'!C70 -> Electricity | C139: Electricity | E139: ='Battery Recycling'!G70 -> 1.027606136 | F139: kWh | G139: =E139/E$137 -> 0.8 | H139: Electricity | I139: 0 | J139: ='Battery Recycling'!H70 -> 0.73731248 | K139: kWh | L139: =J139/J$137 -> 0.8 | M139: =H139 -> Electricity | N139: =I139 -> 0 | O139: ='Battery Recycling'!I70 -> 0.8061634895 | P139: kWh | Q139: =O139/O$137 -> 0.8 | R139: =M139 -> Electricity | S139: =N139 -> 0 | T139: ='Battery Recycling'!J70 -> 0.8315199975 | U139: kWh | V139: =T139/T$137 -> 0.8 | W139: =R139 -> Electricity | X139: =S139 -> 0 | Y139: ='Battery Recycling'!K70 -> 0.9291638619 | Z139: kWh | AA139: =Y139/Y$137 -> 0.8 | AB139: Electricity | AC139: 0 | AD139: ='Battery Recycling'!L70 -> 0.4658863685 | AE139: kWh | AF139: =AD139/AD$137 -> 0.8 | AG139: Electricity | AH139: 0 | AI139: ='Battery Recycling'!M70 -> 0.6402535132 | AJ139: kWh | AK139: =AI139/AI$137 -> 0.8
B140: ='Battery Recycling'!C71 -> Water | C140: Water | E140: ='Battery Recycling'!G71 -> 1.284507671 | F140: kg | G140: =E140/E$137 -> 1 | H140: Water | I140: 0 | J140: ='Battery Recycling'!H71 -> 0.9216406 | K140: kg | L140: =J140/J$137 -> 1 | M140: Water | N140: 0 | O140: ='Battery Recycling'!I71 -> 1.007704362 | P140: kg | Q140: =O140/O$137 -> 1 | R140: Water | S140: 0 | T140: ='Battery Recycling'!J71 -> 1.039399997 | U140: kg | V140: =T140/T$137 -> 1 | W140: Water | X140: 0 | Y140: ='Battery Recycling'!K71 -> 1.161454827 | Z140: kg | AA140: =Y140/Y$137 -> 1 | AB140: Water | AC140: 0 | AD140: ='Battery Recycling'!L71 -> 0.5823579606 | AE140: kg | AF140: =AD140/AD$137 -> 1 | AG140: Water | AH140: 0 | AI140: ='Battery Recycling'!M71 -> 0.8003168915 | AJ140: kg | AK140: =AI140/AI$137 -> 1
A141: ='Battery Recycling'!B73 -> OUTPUTS
A142: ='Battery Recycling'!B74 -> Materials | B142: ='Battery Recycling'!C76 -> Nickel | C142: Nickel | E142: ='Battery Recycling'!G76 -> 0 | F142: g | G142: =E142/E$137 -> 0 | H142: =C142 -> Nickel | I142: 0 | J142: ='Battery Recycling'!H76 -> 51.84533921 | K142: g | L142: =J142/J$137 -> 56.25331524 | M142: =H142 -> Nickel | N142: =I142 -> 0 | O142: ='Battery Recycling'!I76 -> 0 | P142: g | Q142: =O142/O$137 -> 0 | R142: =M142 -> Nickel | S142: =N142 -> 0 | T142: ='Battery Recycling'!J76 -> 0 | U142: g | V142: =T142/T$137 -> 0 | W142: =R142 -> Nickel | X142: =S142 -> 0 | Y142: ='Battery Recycling'!K76 -> 74.74973671 | Z142: g | AA142: =Y142/Y$137 -> 64.35871198 | AB142: =W142 -> Nickel | AC142: 0 | AD142: ='Battery Recycling'!L76 -> 78.66233104 | AE142: g | AF142: =AD142/AD$137 -> 135.0755658 | AG142: =AB142 -> Nickel | AH142: 0 | AI142: ='Battery Recycling'!M76 -> 0 | AJ142: g | AK142: =AI142/AI$137 -> 0
B143: ='Battery Recycling'!C77 -> Cobalt | C143: Cobalt | E143: ='Battery Recycling'!G77 -> 0 | F143: g | G143: 0 | H143: Cobalt | I143: 0 | J143: ='Battery Recycling'!H77 -> 0 | K143: g | L143: 0 | M143: Cobalt | N143: 0 | O143: ='Battery Recycling'!I77 -> 0 | P143: g | Q143: 0 | R143: Cobalt | S143: 0 | T143: ='Battery Recycling'!J77 -> 0 | U143: g | V143: 0 | W143: Cobalt | X143: 0 | Y143: ='Battery Recycling'!K77 -> 75.02984132 | Z143: g | AA143: 64.59987901 | AB143: Cobalt | AC143: 0 | AD143: ='Battery Recycling'!L77 -> 26.31903235 | AE143: g | AF143: 45.19390844 | AG143: Cobalt | AH143: 0 | AI143: ='Battery Recycling'!M77 -> 0 | AJ143: g | AK143: 0
B144: ='Battery Recycling'!C79 -> Magnesium | C144: Magnesium | E144: ='Battery Recycling'!G79 -> 0 | F144: g | G144: 0 | H144: Magnesium | I144: 0 | J144: ='Battery Recycling'!H79 -> 3.745348564 | K144: g | L144: 4.06378426 | M144: Magnesium | N144: 0 | O144: ='Battery Recycling'!I79 -> 3.9797655 | Q144: 3.949338368 | R144: Magnesium | S144: 0 | T144: ='Battery Recycling'!J79 -> 0 | U144: g | V144: 0 | W144: Magnesium | X144: 0 | Y144: ='Battery Recycling'!K79 -> 0 | Z144: g | AA144: 0 | AB144: Magnesium | AC144: 0 | AD144: ='Battery Recycling'!L79 -> 0 | AE144: g | AF144: 0 | AG144: Magnesium | AH144: 0 | AI144: ='Battery Recycling'!M79 -> 0 | AJ144: g | AK144: 0
B145: ='Battery Recycling'!C83 -> Copper | C145: Copper | E145: ='Battery Recycling'!G83 -> 0 | F145: g | G145: 0 | H145: Copper | I145: 0 | J145: ='Battery Recycling'!H83 -> 0 | K145: g | L145: 0 | M145: Copper | N145: 0 | O145: ='Battery Recycling'!I83 -> 0 | Q145: 0 | R145: Copper | S145: 0 | T145: ='Battery Recycling'!J83 -> 0 | U145: g | V145: 0 | W145: Copper | X145: 0 | Y145: ='Battery Recycling'!K83 -> 0 | Z145: g | AA145: 0 | AB145: Copper | AC145: 0 | AD145: ='Battery Recycling'!L83 -> 59.18311194 | AE145: g | AF145: 101.62669 | AG145: Copper | AH145: 0 | AI145: ='Battery Recycling'!M83 -> 95.52004839 | AJ145: g | AK145: 119.3527831
B146: mixed alloy | C146: Alloy, Ni-Co-Mg-Cu | E146: =SUM(E142:E145) -> 0 | F146: g | G146: 0 | H146: =C146 -> Alloy, Ni-Co-Mg-Cu | J146: =SUM(J142:J145) -> 55.59068777 | K146: g | L146: 60.3170995 | M146: Alloy, Ni-Co-Mg-Cu | O146: =SUM(O142:O145) -> 3.9797655 | P146: g | Q146: 3.949338368 | R146: Alloy, Ni-Co-Mg-Cu | T146: =SUM(T142:T145) -> 0 | U146: g | V146: 0 | W146: Alloy, Ni-Co-Mg-Cu | Y146: =SUM(Y142:Y145) -> 149.779578 | Z146: g | AA146: 128.958591 | AB146: =W146 -> Alloy, Ni-Co-Mg-Cu | AD146: =SUM(AD142:AD145) -> 164.1644753 | AE146: g | AF146: 281.8961643 | AG146: =AB146 -> Alloy, Ni-Co-Mg-Cu | AI146: =SUM(AI142:AI145) -> 95.52004839 | AJ146: g | AK146: 119.3527831
A147: ='Battery Recycling'!B84 -> Emissions to air | B147: ='Battery Recycling'!C85 -> CO2 | C147: CO2 | E147: ='Battery Recycling'!G85 -> 1634.998299 | F147: g | G147: 1272.859895 | H147: CO2 | I147: =D147 -> 0 | J147: ='Battery Recycling'!H85 -> 1370.134758 | K147: g | L147: 1486.625869 | M147: CO2 | N147: 0 | O147: ='Battery Recycling'!I85 -> 1564.123342 | P147: g | Q147: 1552.164902 | R147: CO2 | S147: 0 | T147: ='Battery Recycling'!J85 -> 1192.544323 | U147: g | V147: 1147.339163 | W147: CO2 | X147: 0 | Y147: ='Battery Recycling'!K85 -> 1582.960232 | Z147: g | AA147: 1362.911578 | AB147: CO2 | AC147: =X147 -> 0 | AD147: ='Battery Recycling'!L85 -> 677.9533734 | AE147: g | AF147: 1164.152324 | AG147: CO2 | AH147: =AC147 -> 0 | AI147: ='Battery Recycling'!M85 -> 830.2374691 | AJ147: g | AK147: 1037.385913
B148: ='Battery Recycling'!C86 -> SO2 | C148: SO2 | E148: ='Battery Recycling'!G86 -> 0.06165636819 | F148: g | G148: 0.048 | H148: SO2 | I148: 0 | J148: ='Battery Recycling'!H86 -> 0.0442387488 | K148: g | L148: 0.048 | M148: SO2 | N148: 0 | O148: ='Battery Recycling'!I86 -> 0.04836980937 | P148: g | Q148: 0.048 | R148: SO2 | S148: 0 | T148: ='Battery Recycling'!J86 -> 0.04989119985 | U148: g | V148: 0.048 | W148: SO2 | X148: 0 | Y148: ='Battery Recycling'!K86 -> 0.05574983171 | Z148: g | AA148: 0.048 | AB148: SO2 | AC148: 0 | AD148: ='Battery Recycling'!L86 -> 0.02795318211 | AE148: g | AF148: 0.048 | AG148: SO2 | AH148: 0 | AI148: ='Battery Recycling'!M86 -> 0.03841521079 | AJ148: g | AK148: 0.048
B149: ='Battery Recycling'!C88 -> dust | C149: dust | E149: ='Battery Recycling'!G88 -> 0.2671775955 | F149: g | G149: 0.208 | H149: dust | I149: 0 | J149: ='Battery Recycling'!H88 -> 0.1917012448 | K149: g | L149: 0.208 | M149: dust | N149: 0 | O149: ='Battery Recycling'!I88 -> 0.2096025073 | P149: g | Q149: 0.208 | R149: dust | S149: 0 | T149: ='Battery Recycling'!J88 -> 0.2161951994 | U149: g | V149: 0.208 | W149: dust | X149: 0 | Y149: ='Battery Recycling'!K88 -> 0.2415826041 | Z149: g | AA149: 0.208 | AB149: dust | AC149: 0 | AD149: ='Battery Recycling'!L88 -> 0.1211304558 | AE149: g | AF149: 0.208 | AG149: dust | AH149: 0 | AI149: ='Battery Recycling'!M88 -> 0.1664659134 | AJ149: g | AK149: 0.208
A150: ='Battery Recycling'!B89 -> Emissions to water | B150: ='Battery Recycling'!C90 -> SO2 | C150: SO2 | E150: ='Battery Recycling'!G90 -> 0.05138030682 | F150: kg | G150: 0.04 | H150: SO2 | I150: 0 | J150: ='Battery Recycling'!H90 -> 0.036865624 | K150: kg | L150: 0.04 | M150: SO2 | N150: 0 | O150: ='Battery Recycling'!I90 -> 0.04030817448 | P150: kg | Q150: 0.04 | R150: SO2 | S150: 0 | T150: ='Battery Recycling'!J90 -> 0.04157599988 | U150: kg | V150: 0.04 | W150: SO2 | X150: 0 | Y150: ='Battery Recycling'!K90 -> 0.04645819309 | Z150: kg | AA150: 0.04 | AB150: SO2 | AC150: 0 | AD150: ='Battery Recycling'!L90 -> 0.02329431842 | AE150: kg | AF150: 0.04 | AG150: SO2 | AH150: 0 | AI150: ='Battery Recycling'!M90 -> 0.03201267566 | AJ150: kg | AK150: 0.04
B151: ='Battery Recycling'!C91 -> Cl | C151: Cl | E151: ='Battery Recycling'!G91 -> 0.05138030682 | F151: kg | G151: 0.04 | H151: Cl | I151: 0 | J151: ='Battery Recycling'!H91 -> 0.036865624 | K151: kg | L151: 0.04 | M151: Cl | N151: 0 | O151: ='Battery Recycling'!I91 -> 0.04030817448 | P151: kg | Q151: 0.04 | R151: Cl | S151: 0 | T151: ='Battery Recycling'!J91 -> 0.04157599988 | U151: kg | V151: 0.04 | W151: Cl | X151: 0 | Y151: ='Battery Recycling'!K91 -> 0.04645819309 | Z151: kg | AA151: 0.04 | AB151: Cl | AC151: 0 | AD151: ='Battery Recycling'!L91 -> 0.02329431842 | AE151: kg | AF151: 0.04 | AG151: Cl | AH151: 0 | AI151: ='Battery Recycling'!M91 -> 0.03201267566 | AJ151: kg | AK151: 0.04
B152: ='Battery Recycling'!C92 -> Water to sewer | C152: Water to sewer | E152: ='Battery Recycling'!G92 -> 1.284507671 | F152: kg | G152: 1 | H152: Water to sewer | I152: 0 | J152: ='Battery Recycling'!H92 -> 0.9216406 | K152: kg | L152: 1 | M152: Water to sewer | N152: 0 | O152: ='Battery Recycling'!I92 -> 1.007704362 | P152: kg | Q152: 1 | R152: Water to sewer | S152: 0 | T152: ='Battery Recycling'!J92 -> 1.039399997 | U152: kg | V152: 1 | W152: Water to sewer | X152: 0 | Y152: ='Battery Recycling'!K92 -> 1.161454827 | Z152: kg | AA152: 1 | AB152: Water to sewer | AC152: 0 | AD152: ='Battery Recycling'!L92 -> 0.5823579606 | AE152: kg | AF152: 1 | AG152: Water to sewer | AH152: 0 | AI152: ='Battery Recycling'!M92 -> 0.8003168915 | AJ152: kg | AK152: 1
A153: ='Battery Recycling'!B93 -> Waste | B153: ='Battery Recycling'!C94 -> Solid waste | C153: Solid waste | E153: ='Battery Recycling'!G94 -> 0.6007644627 | F153: kg | G153: 0.4677001753 | H153: Solid waste | I153: 0 | J153: ='Battery Recycling'!H94 -> 0.3630955378 | K153: kg | L153: 0.3939665177 | M153: Solid waste | N153: 0 | O153: ='Battery Recycling'!I94 -> 0.4261878882 | P153: kg | Q153: 0.4229294863 | R153: Solid waste | S153: 0 | T153: ='Battery Recycling'!J94 -> 0.541952848 | U153: kg | V153: 0.5214093223 | W153: Solid waste | X153: 0 | Y153: ='Battery Recycling'!K94 -> 0.4286764772 | Z153: kg | AA153: 0.369085794 | AB153: Solid waste | AC153: 0 | AD153: ='Battery Recycling'!L94 -> 0.1683181907 | AE153: kg | AF153: 0.2890287453 | AG153: Solid waste | AH153: 0 | AI153: ='Battery Recycling'!M94 -> 0.382293232 | AJ153: kg | AK153: 0.4776773251
A159: Hydrometallurgical recycling | C159: =C133 -> NaFCN-HC | H159: =H133 -> NaNMMT-HC | M159: =M$4 -> NaMMO-HC | R159: =$R$4 -> NaMVP-HC | W159: =W133 -> NaNMC-HC | AB159: =AB133 -> NMC622-G | AG159: =AG$4 -> LFP-G
B160: Item | C160: Flow | D160: Provider | E160: mass | F160: unit | G160: Source | H160: Flow | I160: Provider | J160: mass | K160: unit | L160: Source | M160: Flow | N160: Provider | O160: Amount | P160: Unit | Q160: Source | R160: Flow | S160: Provider | T160: Amount | U160: Unit | V160: Source | W160: Flow | X160: Provider | Y160: mass | Z160: unit | AA160: Source | AB160: Flow | AC160: Provider | AD160: mass | AE160: unit | AF160: Source | AG160: Flow | AH160: Provider | AI160: mass | AJ160: unit | AK160: Source
A162: ='Battery Recycling'!B99 -> INPUTS
B163: ='Battery Recycling'!C100 -> Waste batteries | C163: =CONCATENATE("Spent batteries, ",H4," to hydrometallurgic recycling") -> Spent batteries, NaNMMT-HC to hydrometallurgic recycling | E163: ='Battery Recycling'!G100 -> 1.284507671 | F163: kg | G163: =E163/E$163 -> 1 | H163: =CONCATENATE("Spent batteries, ",M4," to hydrometallurgic recycling") -> Spent batteries, NaMMO-HC to hydrometallurgic recycling | J163: ='Battery Recycling'!H100 -> 0.9216406 | K163: kg | L163: =J163/J$163 -> 1 | M163: =CONCATENATE("Spent batteries, ",R4," to hydrometallurgic recycling") -> Spent batteries, NaMVP-HC to hydrometallurgic recycling | O163: ='Battery Recycling'!I100 -> 1.007704362 | P163: kg | Q163: =O163/O$163 -> 1 | R163: =CONCATENATE("Spent batteries, ",W4," to hydrometallurgic recycling") -> Spent batteries, NaNMC-HC to hydrometallurgic recycling | T163: ='Battery Recycling'!J100 -> 1.039399997 | U163: kg | V163: =T163/T$163 -> 1 | W163: =CONCATENATE("Spent batteries, ",AB4," to hydrometallurgic recycling") -> Spent batteries, NMC622-G to hydrometallurgic recycling | Y163: ='Battery Recycling'!K100 -> 1.161454827 | Z163: kg | AA163: =Y163/Y$163 -> 1 | AB163: =CONCATENATE("Spent batteries, ",C4," to hydrometallurgic recycling") -> Spent batteries, NaFCN-HC to hydrometallurgic recycling | AD163: ='Battery Recycling'!L100 -> 0.5823579606 | AE163: kg | AF163: =AD163/AD$163 -> 1 | AG163: =CONCATENATE("Spent batteries, ",AG4," to hydrometallurgic recycling") -> Spent batteries, LFP-G to hydrometallurgic recycling | AI163: ='Battery Recycling'!M100 -> 0.8003168915 | AJ163: kg | AK163: =AI163/AI$163 -> 1
B164: ='Battery Recycling'!C101 -> Reagent | C164: Reagent | E164: ='Battery Recycling'!G101 -> 0.03211269176 | F164: kg | G164: 0.025 | H164: =C164 -> Reagent | I164: 0 | J164: ='Battery Recycling'!H101 -> 0.023041015 | K164: kg | L164: 0.025 | M164: =H164 -> Reagent | N164: =I164 -> 0 | O164: ='Battery Recycling'!I101 -> 0.02519260905 | P164: kg | Q164: 0.025 | R164: =M164 -> Reagent | S164: =N164 -> 0 | T164: ='Battery Recycling'!J101 -> 0.02598499992 | U164: kg | V164: 0.025 | W164: =R164 -> Reagent | X164: =S164 -> 0 | Y164: ='Battery Recycling'!K101 -> 0.02903637068 | Z164: kg | AA164: 0.025 | AB164: =W164 -> Reagent | AC164: 0 | AD164: ='Battery Recycling'!L101 -> 0.01455894902 | AE164: kg | AF164: 0.025 | AG164: =AB164 -> Reagent | AH164: 0 | AI164: ='Battery Recycling'!M101 -> 0.02000792229 | AJ164: kg | AK164: 0.025
B165: ='Battery Recycling'!C102 -> Electricity | C165: Electricity | E165: ='Battery Recycling'!G102 -> 0.1798310739 | F165: kWh | G165: 0.14 | H165: Electricity | I165: 0 | J165: ='Battery Recycling'!H102 -> 0.129029684 | K165: kWh | L165: 0.14 | M165: =H165 -> Electricity | N165: =I165 -> 0 | O165: ='Battery Recycling'!I102 -> 0.1410786107 | P165: kWh | Q165: 0.14 | R165: =M165 -> Electricity | S165: =N165 -> 0 | T165: ='Battery Recycling'!J102 -> 0.1455159996 | U165: kWh | V165: 0.14 | W165: =R165 -> Electricity | X165: =S165 -> 0 | Y165: ='Battery Recycling'!K102 -> 0.1626036758 | Z165: kWh | AA165: 0.14 | AB165: Electricity | AC165: 0 | AD165: ='Battery Recycling'!L102 -> 0.08153011449 | AE165: kWh | AF165: 0.14 | AG165: Electricity | AH165: 0 | AI165: ='Battery Recycling'!M102 -> 0.1120443648 | AJ165: kWh | AK165: 0.14
B166: ='Battery Recycling'!C103 -> Water | C166: Water | E166: ='Battery Recycling'!G103 -> 0.9248455228 | F166: l | G166: 0.72 | H166: Water | I166: 0 | J166: ='Battery Recycling'!H103 -> 0.663581232 | K166: l | L166: 0.72 | M166: Water | N166: 0 | O166: ='Battery Recycling'!I103 -> 0.7255471406 | P166: l | Q166: 0.72 | R166: Water | S166: 0 | T166: ='Battery Recycling'!J103 -> 0.7483679978 | U166: l | V166: 0.72 | W166: Water | X166: 0 | Y166: ='Battery Recycling'!K103 -> 0.8362474757 | Z166: l | AA166: 0.72 | AB166: Water | AC166: 0 | AD166: ='Battery Recycling'!L103 -> 0.4192977316 | AE166: l | AF166: 0.72 | AG166: Water | AH166: 0 | AI166: ='Battery Recycling'!M103 -> 0.5762281619 | AJ166: l | AK166: 0.72
B167: ='Battery Recycling'!C104 -> H2SO4 (100%) | C167: H2SO4 (100%) | E167: ='Battery Recycling'!G104 -> 0.1953797418 | F167: kg | G167: 0.1521047684 | H167: H2SO4 (100%) | I167: 0 | J167: ='Battery Recycling'!H104 -> 0.4626002127 | K167: kg | L167: 0.5019312439 | M167: H2SO4 (100%) | N167: 0 | O167: ='Battery Recycling'!I104 -> 0.4915538128 | P167: kg | Q167: 0.4877956586 | R167: H2SO4 (100%) | S167: 0 | T167: ='Battery Recycling'!J104 -> 0.129171027 | U167: kg | V167: 0.1242746078 | W167: H2SO4 (100%) | X167: 0 | Y167: ='Battery Recycling'!K104 -> 0.6324980503 | Z167: kg | AA167: 0.5445739562 | AB167: H2SO4 (100%) | AC167: 0 | AD167: ='Battery Recycling'!L104 -> 0.3694105709 | AE167: kg | AF167: 0.6343359169 | AG167: H2SO4 (100%) | AH167: 0 | AI167: ='Battery Recycling'!M104 -> 0.3030390117 | AJ167: kg | AK167: 0.3786487765
B168: ='Battery Recycling'!C105 -> Lime | C168: Lime | E168: ='Battery Recycling'!G105 -> 0.06973222824 | F168: kg | G168: 0.05428712482 | H168: Lime | I168: 0 | J168: ='Battery Recycling'!H105 -> 0.1651048534 | K168: kg | L168: 0.1791423396 | M168: Lime | N168: 0 | O168: ='Battery Recycling'!I105 -> 0.1754385708 | P168: kg | Q168: 0.1740972625 | R168: Lime | S168: 0 | T168: ='Battery Recycling'!J105 -> 0.04610193183 | U168: kg | V168: 0.0443543698 | W168: Lime | X168: 0 | Y168: ='Battery Recycling'!K105 -> 0.2257424337 | Z168: kg | AA168: 0.1943617852 | AB168: Lime | AC168: 0 | AD168: ='Battery Recycling'!L105 -> 0.1318448986 | AE168: kg | AF168: 0.2263983796 | AG168: Lime | AH168: 0 | AI168: ='Battery Recycling'!M105 -> 0.108156482 | AJ168: kg | AK168: 0.1351420708
A169: ='Battery Recycling'!B107 -> OUTPUTS
A170: ='Battery Recycling'!B108 -> Materials | B170: ='Battery Recycling'!C109 -> Sodium | C170: Sodium | D170: Na2CO3 | E170: ='Battery Recycling'!G109 -> 287.1631222 | F170: g | G170: =E170/E$163 -> 223.5589003 | H170: =C170 -> Sodium | I170: =D170 -> Na2CO3 | J170: ='Battery Recycling'!H109 -> 356.2399058 | K170: g | L170: =J170/J$163 -> 386.5280086 | M170: =H170 -> Sodium | N170: =I170 -> Na2CO3 | O170: ='Battery Recycling'!I109 -> 233.5862316 | P170: g | Q170: =O170/O$163 -> 231.8003578 | R170: =M170 -> Sodium | S170: =N170 -> Na2CO3 | T170: ='Battery Recycling'!J109 -> 363.7879794 | U170: g | V170: =T170/T$163 -> 349.998057 | W170: =R170 -> Sodium | X170: =S170 -> Na2CO3 | Y170: ='Battery Recycling'!K109 -> 463.2756131 | Z170: g | AA170: =Y170/Y$163 -> 398.8752745 | AB170: =W170 -> Sodium | AC170: =X170 -> Na2CO3 | AD170: ='Battery Recycling'!L109 -> 0 | AE170: g | AF170: =AD170/AD$163 -> 0 | AG170: =AB170 -> Sodium | AH170: =AC170 -> Na2CO3 | AI170: ='Battery Recycling'!M109 -> 0 | AJ170: g | AK170: =AI170/AI$163 -> 0
B171: ='Battery Recycling'!C110 -> Lithium | C171: Lithium | D171: Li2CO3 | E171: ='Battery Recycling'!G110 -> 0 | F171: g | G171: 0 | H171: Lithium | I171: Li2CO3 | J171: ='Battery Recycling'!H110 -> 0 | K171: g | L171: 0 | M171: =H171 -> Lithium | N171: =I171 -> Li2CO3 | O171: ='Battery Recycling'!I110 -> 0 | P171: g | Q171: 0 | R171: =M171 -> Lithium | S171: =N171 -> Li2CO3 | T171: ='Battery Recycling'!J110 -> 0 | U171: g | V171: 0 | W171: =R171 -> Lithium | X171: =S171 -> Li2CO3 | Y171: ='Battery Recycling'!K110 -> 0 | Z171: g | AA171: 0 | AB171: Lithium | AC171: Li2CO3 | AD171: ='Battery Recycling'!L110 -> 188.5461972 | AE171: g | AF171: 323.7634066 | AG171: Lithium | AH171: Li2CO3 | AI171: ='Battery Recycling'!M110 -> 151.6605305 | AJ171: g | AK171: 189.5005992
B172: ='Battery Recycling'!C111 -> Nickel | C172: Nickel | D172: NiSO4 | E172: ='Battery Recycling'!G111 -> 0 | F172: g | G172: 0 | H172: Nickel | I172: NiSO4 | J172: ='Battery Recycling'!H111 -> 136.620549 | K172: g | L172: 148.2362528 | M172: Nickel | N172: NiSO4 | O172: ='Battery Recycling'!I111 -> 0 | P172: g | Q172: 0 | R172: Nickel | S172: NiSO4 | T172: ='Battery Recycling'!J111 -> 0 | U172: g | V172: 0 | W172: Nickel | X172: NiSO4 | Y172: ='Battery Recycling'!K111 -> 196.977206 | Z172: g | AA172: 169.5952364 | AB172: Nickel | AC172: NiSO4 | AD172: ='Battery Recycling'!L111 -> 207.2875019 | AE172: g | AF172: 355.9451676 | AG172: Nickel | AH172: NiSO4 | AI172: ='Battery Recycling'!M111 -> 0 | AJ172: g | AK172: 0
B173: ='Battery Recycling'!C112 -> Cobalt | C173: Cobalt | D173: CoCO3 | E173: ='Battery Recycling'!G112 -> 0 | F173: g | G173: 0 | H173: Cobalt | I173: CoCO3 | J173: ='Battery Recycling'!H112 -> 0 | K173: g | L173: 0 | M173: Cobalt | N173: CoCO3 | O173: ='Battery Recycling'!I112 -> 0 | P173: g | Q173: 0 | R173: Cobalt | S173: CoCO3 | T173: ='Battery Recycling'!J112 -> 0 | U173: g | V173: 0 | W173: Cobalt | X173: CoCO3 | Y173: ='Battery Recycling'!K112 -> 151.4220097 | Z173: g | AA173: 130.3727068 | AB173: Cobalt | AC173: CoCO3 | AD173: ='Battery Recycling'!L112 -> 53.11594294 | AE173: g | AF173: 91.20840881 | AG173: Cobalt | AH173: CoCO3 | AI173: ='Battery Recycling'!M112 -> 0 | AJ173: g | AK173: 0
B174: ='Battery Recycling'!C113 -> Manganese | C174: Manganese | D174: MnSO4 | E174: ='Battery Recycling'!G113 -> 0 | F174: g | G174: 0 | H174: Manganese | I174: MnSO4 | J174: ='Battery Recycling'!H113 -> 222.1522597 | K174: g | L174: 241.0400103 | M174: Manganese | N174: MnSO4 | O174: ='Battery Recycling'!I113 -> 448.507363 | P174: g | Q174: 445.0783186 | R174: Manganese | S174: MnSO4 | T174: ='Battery Recycling'!J113 -> 124.0623534 | U174: g | V174: 119.3595861 | W174: Manganese | X174: MnSO4 | Y174: ='Battery Recycling'!K113 -> 192.1772315 | Z174: g | AA174: 165.4625104 | AB174: Manganese | AC174: MnSO4 | AD174: ='Battery Recycling'!L113 -> 67.41209474 | AE174: g | AF174: 115.7571448 | AG174: Manganese | AH174: MnSO4 | AI174: ='Battery Recycling'!M113 -> 0 | AJ174: g | AK174: 0
B175: ='Battery Recycling'!C114 -> Magnesium | C175: Magnesium | D175: Mg(OH)2 | E175: ='Battery Recycling'!G114 -> 0 | F175: g | G175: 0 | H175: Magnesium | I175: Mg(OH)2 | J175: ='Battery Recycling'!H114 -> 8.581282299 | K175: g | L175: 9.310877037 | M175: Magnesium | N175: Mg(OH)2 | O175: ='Battery Recycling'!I114 -> 9.118374607 | P175: g | Q175: 9.048660452 | R175: Magnesium | S175: Mg(OH)2 | T175: ='Battery Recycling'!J114 -> 0 | U175: g | V175: 0 | W175: Magnesium | X175: Mg(OH)2 | Y175: ='Battery Recycling'!K114 -> 0 | Z175: g | AA175: 0 | AB175: Magnesium | AC175: Mg(OH)2 | AD175: ='Battery Recycling'!L114 -> 0 | AE175: g | AF175: 0 | AG175: Magnesium | AH175: Mg(OH)2 | AI175: ='Battery Recycling'!M114 -> 0 | AJ175: g | AK175: 0
B176: ='Battery Recycling'!C115 -> Titanium | C176: Titanium | D176: TiO2 | E176: ='Battery Recycling'!G115 -> 0 | F176: g | G176: 0 | H176: Titanium | I176: TiO2 | J176: ='Battery Recycling'!H115 -> 11.75961677 | K176: g | L176: 12.75943873 | M176: Titanium | N176: TiO2 | O176: ='Battery Recycling'!I115 -> 0 | P176: g | Q176: 0 | R176: Titanium | S176: TiO2 | T176: ='Battery Recycling'!J115 -> 0 | U176: g | V176: 0 | W176: Titanium | X176: TiO2 | Y176: ='Battery Recycling'!K115 -> 0 | Z176: g | AA176: 0 | AB176: Titanium | AC176: TiO2 | AD176: ='Battery Recycling'!L115 -> 0 | AE176: g | AF176: 0 | AG176: Titanium | AH176: TiO2 | AI176: ='Battery Recycling'!M115 -> 0 | AJ176: g | AK176: 0
B177: ='Battery Recycling'!C117 -> Steel | C177: Steel | D177: Steel/Iron | E177: ='Battery Recycling'!G117 -> 0 | F177: g | G177: 0 | H177: Steel | I177: Steel/Iron | J177: ='Battery Recycling'!H117 -> 0 | K177: g | L177: 0 | M177: Steel | N177: Steel/Iron | O177: ='Battery Recycling'!I117 -> 0 | P177: g | Q177: 0 | R177: Steel | S177: Steel/Iron | T177: ='Battery Recycling'!J117 -> 0 | U177: g | V177: 0 | W177: Steel | X177: Steel/Iron | Y177: ='Battery Recycling'!K117 -> 0 | Z177: g | AA177: 0 | AB177: Steel | AC177: Steel/Iron | AD177: ='Battery Recycling'!L117 -> 0 | AE177: g | AF177: 0 | AG177: Steel | AH177: Steel/Iron | AI177: ='Battery Recycling'!M117 -> 0 | AJ177: g | AK177: 0
B178: ='Battery Recycling'!C118 -> Aluminium | C178: Aluminium | D178: Aluminium | E178: ='Battery Recycling'!G118 -> 163.936449 | F178: g | G178: 127.6259012 | H178: Aluminium | I178: Aluminium | J178: ='Battery Recycling'!H118 -> 66.82529208 | K178: g | L178: 72.50688835 | M178: Aluminium | N178: Aluminium | O178: ='Battery Recycling'!I118 -> 73.81955635 | P178: g | Q178: 73.255172 | R178: Aluminium | S178: Aluminium | T178: ='Battery Recycling'!J118 -> 99.60032966 | U178: g | V178: 95.82483159 | W178: Aluminium | X178: Aluminium | Y178: ='Battery Recycling'!K118 -> 79.14221196 | Z178: g | AA178: 68.14058549 | AB178: Aluminium | AC178: Aluminium | AD178: ='Battery Recycling'!L118 -> 23.87357272 | AE178: g | AF178: 40.99467052 | AG178: Aluminium | AH178: Aluminium | AI178: ='Battery Recycling'!M118 -> 39.90996931 | AJ178: g | AK178: 49.86770833
B179: ='Battery Recycling'!C119 -> Copper | C179: Copper | D179: Copper | E179: ='Battery Recycling'!G119 -> 0 | F179: g | G179: 0 | H179: Copper | I179: Copper | J179: ='Battery Recycling'!H119 -> 0 | K179: g | L179: 0 | M179: Copper | N179: Copper | O179: ='Battery Recycling'!I119 -> 0 | P179: g | Q179: 0 | R179: Copper | S179: Copper | T179: ='Battery Recycling'!J119 -> 0 | U179: g | V179: 0 | W179: Copper | X179: Copper | Y179: ='Battery Recycling'!K119 -> 0 | Z179: g | AA179: 0 | AB179: Copper | AC179: Copper | AD179: ='Battery Recycling'!L119 -> 63.22982045 | AE179: g | AF179: 108.5755235 | AG179: Copper | AH179: Copper | AI179: ='Battery Recycling'!M119 -> 102.0513338 | AJ179: g | AK179: 127.5136572
A180: ='Battery Recycling'!B120 -> Emissions to air | B180: ='Battery Recycling'!C121 -> SO2 | C180: SO2 | E180: ='Battery Recycling'!G121 -> 0.005780284518 | F180: g | G180: 0.0045 | H180: SO2 | I180: 0 | J180: ='Battery Recycling'!H121 -> 0.0041473827 | K180: g | L180: 0.0045 | M180: SO2 | N180: =I180 -> 0 | O180: ='Battery Recycling'!I121 -> 0.004534669628 | P180: g | Q180: 0.0045 | R180: SO2 | S180: =N180 -> 0 | T180: ='Battery Recycling'!J121 -> 0.004677299986 | U180: g | V180: 0.0045 | W180: SO2 | X180: =S180 -> 0 | Y180: ='Battery Recycling'!K121 -> 0.005226546723 | Z180: g | AA180: 0.0045 | AB180: SO2 | AC180: 0 | AD180: ='Battery Recycling'!L121 -> 0.002620610823 | AE180: g | AF180: 0.0045 | AG180: SO2 | AH180: 0 | AI180: ='Battery Recycling'!M121 -> 0.003601426012 | AJ180: g | AK180: 0.0045
B181: ='Battery Recycling'!C122 -> VOC | C181: VOC | E181: ='Battery Recycling'!G122 -> 0.003211269176 | F181: g | G181: 0.0025 | H181: VOC | I181: 0 | J181: ='Battery Recycling'!H122 -> 0.0023041015 | K181: g | L181: 0.0025 | M181: VOC | N181: =I181 -> 0 | O181: ='Battery Recycling'!I122 -> 0.002519260905 | P181: g | Q181: 0.0025 | R181: VOC | S181: =N181 -> 0 | T181: ='Battery Recycling'!J122 -> 0.002598499992 | U181: g | V181: 0.0025 | W181: VOC | X181: =S181 -> 0 | Y181: ='Battery Recycling'!K122 -> 0.002903637068 | Z181: g | AA181: 0.0025 | AB181: VOC | AC181: 0 | AD181: ='Battery Recycling'!L122 -> 0.001455894902 | AE181: g | AF181: 0.0025 | AG181: VOC | AH181: 0 | AI181: ='Battery Recycling'!M122 -> 0.002000792229 | AJ181: g | AK181: 0.0025
B182: ='Battery Recycling'!C123 -> CO2 | C182: CO2 | E182: ='Battery Recycling'!G123 -> 0 | F182: g | G182: 0 | H182: CO2 | I182: 0 | J182: ='Battery Recycling'!H123 -> 0 | K182: g | L182: 0 | M182: CO2 | N182: 0 | O182: ='Battery Recycling'!I123 -> 0 | P182: g | Q182: 0 | R182: CO2 | S182: 0 | T182: ='Battery Recycling'!J123 -> 0 | U182: g | V182: 0 | W182: CO2 | X182: 0 | Y182: ='Battery Recycling'!K123 -> 0 | Z182: g | AA182: 0 | AB182: CO2 | AC182: 0 | AD182: ='Battery Recycling'!L123 -> 0 | AE182: g | AF182: 0 | AG182: CO2 | AH182: 0 | AI182: ='Battery Recycling'!M123 -> 0 | AJ182: g | AK182: 0
A183: ='Battery Recycling'!B124 -> Emissions to water | B183: ='Battery Recycling'!C125 -> Solid suspension | C183: Solid suspension | E183: ='Battery Recycling'!G125 -> 1.541409205e-05 | F183: kg | G183: 1.2e-05 | H183: Solid suspension | I183: 0 | J183: ='Battery Recycling'!H125 -> 1.10596872e-05 | K183: kg | L183: 1.2e-05 | M183: Solid suspension | N183: 0 | O183: ='Battery Recycling'!I125 -> 1.209245234e-05 | P183: kg | Q183: 1.2e-05 | R183: Solid suspension | S183: 0 | T183: ='Battery Recycling'!J125 -> 1.247279996e-05 | U183: kg | V183: 1.2e-05 | W183: Solid suspension | X183: 0 | Y183: ='Battery Recycling'!K125 -> 1.393745793e-05 | Z183: kg | AA183: 1.2e-05 | AB183: Solid suspension | AC183: 0 | AD183: ='Battery Recycling'!L125 -> 6.988295527e-06 | AE183: kg | AF183: 1.2e-05 | AG183: Solid suspension | AH183: 0 | AI183: ='Battery Recycling'!M125 -> 9.603802698e-06 | AJ183: kg | AK183: 1.2e-05
B184: ='Battery Recycling'!C126 -> Chemical oxygen | C184: Chemical oxygen | E184: ='Battery Recycling'!G126 -> 3.853523012e-05 | F184: kg | G184: 3e-05 | H184: Chemical oxygen | I184: 0 | J184: ='Battery Recycling'!H126 -> 2.7649218e-05 | K184: kg | L184: 3e-05 | M184: Chemical oxygen | N184: 0 | O184: ='Battery Recycling'!I126 -> 3.023113086e-05 | P184: kg | Q184: 3e-05 | R184: Chemical oxygen | S184: 0 | T184: ='Battery Recycling'!J126 -> 3.118199991e-05 | U184: kg | V184: 3e-05 | W184: Chemical oxygen | X184: 0 | Y184: ='Battery Recycling'!K126 -> 3.484364482e-05 | Z184: kg | AA184: 3e-05 | AB184: Chemical oxygen | AC184: 0 | AD184: ='Battery Recycling'!L126 -> 1.747073882e-05 | AE184: kg | AF184: 3e-05 | AG184: Chemical oxygen | AH184: 0 | AI184: ='Battery Recycling'!M126 -> 2.400950674e-05 | AJ184: kg | AK184: 3e-05
B185: ='Battery Recycling'!C127 -> Total hydrocarbon | C185: Total hydrocarbon | E185: ='Battery Recycling'!G127 -> 1.284507671e-08 | F185: kg | G185: 1e-08 | H185: Total hydrocarbon | I185: 0 | J185: ='Battery Recycling'!H127 -> 9.216406e-09 | K185: kg | L185: 1e-08 | M185: Total hydrocarbon | N185: 0 | O185: ='Battery Recycling'!I127 -> 1.007704362e-08 | P185: kg | Q185: 1e-08 | R185: Total hydrocarbon | S185: 0 | T185: ='Battery Recycling'!J127 -> 1.039399997e-08 | U185: kg | V185: 1e-08 | W185: Total hydrocarbon | X185: 0 | Y185: ='Battery Recycling'!K127 -> 1.161454827e-08 | Z185: kg | AA185: 1e-08 | AB185: Total hydrocarbon | AC185: 0 | AD185: ='Battery Recycling'!L127 -> 5.823579606e-09 | AE185: kg | AF185: 1e-08 | AG185: Total hydrocarbon | AH185: 0 | AI185: ='Battery Recycling'!M127 -> 8.003168915e-09 | AJ185: kg | AK185: 1e-08
B186: ='Battery Recycling'!C128 -> Cu | C186: Cu | E186: ='Battery Recycling'!G128 -> 2.140846118e-05 | F186: kg | G186: 1.666666667e-05 | H186: Cu | I186: 0 | J186: ='Battery Recycling'!H128 -> 1.536067667e-05 | K186: kg | L186: 1.666666667e-05 | M186: Cu | N186: 0 | O186: ='Battery Recycling'!I128 -> 1.67950727e-05 | P186: kg | Q186: 1.666666667e-05 | R186: Cu | S186: 0 | T186: ='Battery Recycling'!J128 -> 1.732333328e-05 | U186: kg | V186: 1.666666667e-05 | W186: Cu | X186: 0 | Y186: ='Battery Recycling'!K128 -> 1.935758046e-05 | Z186: kg | AA186: 1.666666667e-05 | AB186: Cu | AC186: 0 | AD186: ='Battery Recycling'!L128 -> 9.70596601e-06 | AE186: kg | AF186: 1.666666667e-05 | AG186: Cu | AH186: 0 | AI186: ='Battery Recycling'!M128 -> 1.333861486e-05 | AJ186: kg | AK186: 1.666666667e-05
B187: ='Battery Recycling'!C129 -> Co | C187: Co | E187: ='Battery Recycling'!G129 -> 2.140846118e-05 | F187: kg | G187: 1.666666667e-05 | H187: Co | I187: 0 | J187: ='Battery Recycling'!H129 -> 1.536067667e-05 | K187: kg | L187: 1.666666667e-05 | M187: Co | N187: 0 | O187: ='Battery Recycling'!I129 -> 1.67950727e-05 | P187: kg | Q187: 1.666666667e-05 | R187: Co | S187: 0 | T187: ='Battery Recycling'!J129 -> 1.732333328e-05 | U187: kg | V187: 1.666666667e-05 | W187: Co | X187: 0 | Y187: ='Battery Recycling'!K129 -> 1.935758046e-05 | Z187: kg | AA187: 1.666666667e-05 | AB187: Co | AC187: 0 | AD187: ='Battery Recycling'!L129 -> 9.70596601e-06 | AE187: kg | AF187: 1.666666667e-05 | AG187: Co | AH187: 0 | AI187: ='Battery Recycling'!M129 -> 1.333861486e-05 | AJ187: kg | AK187: 1.666666667e-05
B188: ='Battery Recycling'!C130 -> Ni | C188: Ni | E188: ='Battery Recycling'!G130 -> 2.140846118e-05 | F188: kg | G188: 1.666666667e-05 | H188: Ni | I188: 0 | J188: ='Battery Recycling'!H130 -> 1.536067667e-05 | K188: kg | L188: 1.666666667e-05 | M188: Ni | N188: 0 | O188: ='Battery Recycling'!I130 -> 1.67950727e-05 | P188: kg | Q188: 1.666666667e-05 | R188: Ni | S188: 0 | T188: ='Battery Recycling'!J130 -> 1.732333328e-05 | U188: kg | V188: 1.666666667e-05 | W188: Ni | X188: 0 | Y188: ='Battery Recycling'!K130 -> 1.935758046e-05 | Z188: kg | AA188: 1.666666667e-05 | AB188: Ni | AC188: 0 | AD188: ='Battery Recycling'!L130 -> 9.70596601e-06 | AE188: kg | AF188: 1.666666667e-05 | AG188: Ni | AH188: 0 | AI188: ='Battery Recycling'!M130 -> 1.333861486e-05 | AJ188: kg | AK188: 1.666666667e-05
B189: ='Battery Recycling'!C132 -> Fluoride | C189: Fluoride | E189: ='Battery Recycling'!G132 -> 3.853523012e-08 | F189: kg | G189: 3e-08 | H189: Fluoride | I189: 0 | J189: ='Battery Recycling'!H132 -> 2.7649218e-08 | K189: kg | L189: 3e-08 | M189: Fluoride | N189: 0 | O189: ='Battery Recycling'!I132 -> 3.023113086e-08 | P189: kg | Q189: 3e-08 | R189: Fluoride | S189: 0 | T189: ='Battery Recycling'!J132 -> 3.118199991e-08 | U189: kg | V189: 3e-08 | W189: Fluoride | X189: 0 | Y189: ='Battery Recycling'!K132 -> 3.484364482e-08 | Z189: kg | AA189: 3e-08 | AB189: Fluoride | AC189: 0 | AD189: ='Battery Recycling'!L132 -> 1.747073882e-08 | AE189: kg | AF189: 3e-08 | AG189: Fluoride | AH189: 0 | AI189: ='Battery Recycling'!M132 -> 2.400950674e-08 | AJ189: kg | AK189: 3e-08
B190: ='Battery Recycling'!C133 -> Water to sewer | C190: Water to sewer | E190: ='Battery Recycling'!G133 -> 0.432879085 | F190: kg | G190: 0.337 | H190: Water to sewer | I190: 0 | J190: ='Battery Recycling'!H133 -> 0.3105928822 | K190: kg | L190: 0.337 | M190: Water to sewer | N190: 0 | O190: ='Battery Recycling'!I133 -> 0.33959637 | P190: kg | Q190: 0.337 | R190: Water to sewer | S190: 0 | T190: ='Battery Recycling'!J133 -> 0.350277799 | U190: kg | V190: 0.337 | W190: Water to sewer | X190: 0 | Y190: ='Battery Recycling'!K133 -> 0.3914102768 | Z190: kg | AA190: 0.337 | AB190: Water to sewer | AC190: 0 | AD190: ='Battery Recycling'!L133 -> 0.1962546327 | AE190: kg | AF190: 0.337 | AG190: Water to sewer | AH190: 0 | AI190: ='Battery Recycling'!M133 -> 0.2697067924 | AJ190: kg | AK190: 0.337
A191: ='Battery Recycling'!B134 -> Solid waste | B191: ='Battery Recycling'!C135 -> Paper and plastic to refining | C191: Paper and plastic to refining | E191: ='Battery Recycling'!G135 -> 0 | F191: kg | G191: 0 | H191: Paper and plastic to refining | I191: 0 | J191: ='Battery Recycling'!H135 -> 0 | K191: kg | L191: 0 | M191: Paper and plastic to refining | N191: 0 | O191: ='Battery Recycling'!I135 -> 0 | P191: kg | Q191: 0 | R191: Paper and plastic to refining | S191: 0 | T191: ='Battery Recycling'!J135 -> 0 | U191: kg | V191: 0 | W191: Paper and plastic to refining | X191: 0 | Y191: ='Battery Recycling'!K135 -> 0 | Z191: kg | AA191: 0 | AB191: Paper and plastic to refining | AC191: 0 | AD191: ='Battery Recycling'!L135 -> 0 | AE191: kg | AF191: 0 | AG191: Paper and plastic to refining | AH191: 0 | AI191: ='Battery Recycling'!M135 -> 0 | AJ191: kg | AK191: 0
B192: ='Battery Recycling'!C136 -> Residue to landfill | C192: Residue to landfill | E192: ='Battery Recycling'!G136 -> 0.2594705495 | F192: kg | G192: 0.202 | H192: Residue to landfill | I192: 0 | J192: ='Battery Recycling'!H136 -> 0.1861714012 | K192: kg | L192: 0.202 | M192: Residue to landfill | N192: 0 | O192: ='Battery Recycling'!I136 -> 0.2035562811 | P192: kg | Q192: 0.202 | R192: Residue to landfill | S192: 0 | T192: ='Battery Recycling'!J136 -> 0.2099587994 | U192: kg | V192: 0.202 | W192: Residue to landfill | X192: 0 | Y192: ='Battery Recycling'!K136 -> 0.2346138751 | Z192: kg | AA192: 0.202 | AB192: Residue to landfill | AC192: 0 | AD192: ='Battery Recycling'!L136 -> 0.117636308 | AE192: kg | AF192: 0.202 | AG192: Residue to landfill | AH192: 0 | AI192: ='Battery Recycling'!M136 -> 0.1616640121 | AJ192: kg | AK192: 0.202
B193: ='Battery Recycling'!C137 -> Gypsum | C193: Gypsum | E193: ='Battery Recycling'!G137 -> 0.1199394326 | F193: kg | G193: 0.09337385469 | H193: Gypsum | I193: 0 | J193: ='Battery Recycling'!H137 -> 0.2839803478 | K193: kg | L193: 0.3081248242 | M193: Gypsum | N193: 0 | O193: ='Battery Recycling'!I137 -> 0.3017543418 | P193: kg | Q193: 0.2994472916 | R193: Gypsum | S193: 0 | T193: ='Battery Recycling'!J137 -> 0.07929532275 | U193: kg | V193: 0.07628951605 | W193: Gypsum | X193: 0 | Y193: ='Battery Recycling'!K137 -> 0.3882769859 | Z193: kg | AA193: 0.3343022706 | AB193: Gypsum | AC193: 0 | AD193: ='Battery Recycling'!L137 -> 0.2267732256 | AE193: kg | AF193: 0.3894052128 | AG193: Gypsum | AH193: 0 | AI193: ='Battery Recycling'!M137 -> 0.1860291491 | AJ193: kg | AK193: 0.2324443618
A197: Advanced Hydrometallurgical recycling | C197: =C159 -> NaFCN-HC | H197: =H159 -> NaNMMT-HC | M197: =M$4 -> NaMMO-HC | R197: =$R$4 -> NaMVP-HC | W197: =W159 -> NaNMC-HC | AB197: =AB159 -> NMC622-G | AG197: =AG$4 -> LFP-G
B198: Item | C198: Flow | D198: Provider | E198: Amount | F198: unit | G198: Source | H198: Flow | I198: Provider | J198: Amount | K198: unit | L198: Source | M198: Flow | N198: Provider | O198: Amount | P198: Unit | Q198: Source | R198: Flow | S198: Provider | T198: Amount | U198: Unit | V198: Source | W198: Flow | X198: Provider | Y198: Amount | Z198: unit | AA198: Source | AB198: Flow | AC198: Provider | AD198: Amount | AE198: unit | AF198: Source | AG198: Flow | AH198: Provider | AI198: Amount | AJ198: unit | AK198: Source
A200: ='Battery Recycling'!B144 -> Mechanical pre-treatment
A202: ='Battery Recycling'!B145 -> INPUTS | B202: ='Battery Recycling'!C146 -> Battery cells (NMC) | C202: =CONCATENATE("Spent batteries, ",C4," to hydrometallurgic recycling") -> Spent batteries, NaFCN-HC to hydrometallurgic recycling | E202: ='Battery Recycling'!G146 -> 1.284507671 | F202: ='Battery Recycling'!E146 -> kg/cell | G202: =E202/E$202 -> 1 | H202: =CONCATENATE("Spent batteries, ",H4," to hydrometallurgic recycling") -> Spent batteries, NaNMMT-HC to hydrometallurgic recycling | J202: ='Battery Recycling'!H146 -> 0.9216406 | K202: kg/cell | M202: =CONCATENATE("Spent batteries, ",M4," to hydrometallurgic recycling") -> Spent batteries, NaMMO-HC to hydrometallurgic recycling | O202: ='Battery Recycling'!I146 -> 1.007704362 | P202: kg/cell | R202: =CONCATENATE("Spent batteries, ",W4," to hydrometallurgic recycling") -> Spent batteries, NaNMC-HC to hydrometallurgic recycling | T202: ='Battery Recycling'!J146 -> 1.039399997 | U202: kg/cell | W202: =CONCATENATE("Spent batteries, ",W4," to hydrometallurgic recycling") -> Spent batteries, NaNMC-HC to hydrometallurgic recycling | Y202: ='Battery Recycling'!K146 -> 1.161454827 | Z202: kg/cell | AB202: =CONCATENATE("Spent batteries, ",AB4," to hydrometallurgic recycling") -> Spent batteries, NMC622-G to hydrometallurgic recycling | AD202: ='Battery Recycling'!L146 -> 0.5823579606 | AE202: kg/cell | AG202: =CONCATENATE("Spent batteries, ",AG4," to hydrometallurgic recycling") -> Spent batteries, LFP-G to hydrometallurgic recycling | AI202: ='Battery Recycling'!M146 -> 0.8003168915 | AJ202: kg/cell
B203: ='Battery Recycling'!C147 -> Electricity | C203: Electricity | E203: ='Battery Recycling'!G147 -> 0.5303732172 | F203: ='Battery Recycling'!E147 -> kWh/cell | G203: =E203/E$202 -> 0.4129 | H203: =C203 -> Electricity | J203: ='Battery Recycling'!H147 -> 0.3805454037 | K203: kWh/cell | M203: =H203 -> Electricity | O203: ='Battery Recycling'!I147 -> 0.416081131 | P203: kWh/cell | R203: =M203 -> Electricity | T203: ='Battery Recycling'!J147 -> 0.4291682587 | U203: kWh/cell | W203: =R203 -> Electricity | Y203: ='Battery Recycling'!K147 -> 0.4795646982 | Z203: kWh/cell | AB203: =W203 -> Electricity | AD203: ='Battery Recycling'!L147 -> 0.2404556019 | AE203: kWh/cell | AG203: =AB203 -> Electricity | AI203: ='Battery Recycling'!M147 -> 0.3304508445 | AJ203: kWh/cell
B204: ='Battery Recycling'!C148 -> Inert gas (nitrogen) | C204: Inert gas (nitrogen) | E204: ='Battery Recycling'!G148 -> 0.0300700496 | F204: ='Battery Recycling'!E148 -> kg/cell | G204: =E204/E$202 -> 0.02340978593 | H204: =C204 -> Inert gas (nitrogen) | J204: ='Battery Recycling'!H148 -> 0.02157540915 | K204: kg/cell | M204: =H204 -> Inert gas (nitrogen) | O204: ='Battery Recycling'!I148 -> 0.0235901434 | P204: kg/cell | R204: =M204 -> Inert gas (nitrogen) | T204: ='Battery Recycling'!J148 -> 0.02433213143 | U204: kg/cell | W204: =R204 -> Inert gas (nitrogen) | Y204: ='Battery Recycling'!K148 -> 0.02718940888 | Z204: kg/cell | AB204: =W204 -> Inert gas (nitrogen) | AD204: ='Battery Recycling'!L148 -> 0.01363287519 | AE204: kg/cell | AG204: =AB204 -> Inert gas (nitrogen) | AI204: ='Battery Recycling'!M148 -> 0.01873524711 | AJ204: kg/cell
B205: ='Battery Recycling'!C149 -> Treatment of activated carbon (filter reprocessing) | C205: Treatment of activated carbon (filter reprocessing) | E205: ='Battery Recycling'!G149 -> 28.84839297 | F205: ='Battery Recycling'!E149 -> g/cell | G205: =E205/E$202 -> 22.458716 | H205: =C205 -> Treatment of activated carbon (filter reprocessing) | J205: ='Battery Recycling'!H149 -> 20.69886449 | K205: g/cell | M205: Treatment of activated carbon (filter reprocessing) | O205: ='Battery Recycling'!I149 -> 22.63174608 | P205: g/cell | R205: Treatment of activated carbon (filter reprocessing) | T205: ='Battery Recycling'!J149 -> 23.34358934 | U205: g/cell | W205: Treatment of activated carbon (filter reprocessing) | Y205: ='Battery Recycling'!K149 -> 26.08478411 | Z205: g/cell | AB205: =W205 -> Treatment of activated carbon (filter reprocessing) | AD205: ='Battery Recycling'!L149 -> 13.07901205 | AE205: g/cell | AG205: =AB205 -> Treatment of activated carbon (filter reprocessing) | AI205: ='Battery Recycling'!M149 -> 17.97408978 | AJ205: g/cell
B206: ='Battery Recycling'!C150 -> Activated carbon (filter make up) | C206: Activated carbon (filter make up) | E206: ='Battery Recycling'!G150 -> 2.884838527 | F206: ='Battery Recycling'!E150 -> g/cell | G206: =E206/E$202 -> 2.245871 | H206: =C206 -> Activated carbon (filter make up) | J206: ='Battery Recycling'!H150 -> 2.069885896 | K206: g/cell | M206: Activated carbon (filter make up) | O206: ='Battery Recycling'!I150 -> 2.263174003 | P206: g/cell | R206: Activated carbon (filter make up) | T206: ='Battery Recycling'!J150 -> 2.33435831 | U206: g/cell | W206: Activated carbon (filter make up) | Y206: ='Battery Recycling'!K150 -> 2.608477715 | Z206: g/cell | AB206: =W206 -> Activated carbon (filter make up) | AD206: ='Battery Recycling'!L150 -> 1.307900855 | AE206: g/cell | AG206: =AB206 -> Activated carbon (filter make up) | AI206: ='Battery Recycling'!M150 -> 1.797408497 | AJ206: g/cell
A208: ='Battery Recycling'!B151 -> OUTPUTS | B208: ='Battery Recycling'!C152 -> Fe | C208: Fe | E208: ='Battery Recycling'!G152 -> 0 | F208: ='Battery Recycling'!E152 -> g/cell | G208: =E208/E$202 -> 0 | H208: =C208 -> Fe | J208: ='Battery Recycling'!H152 -> 0 | K208: g/cell | M208: =H208 -> Fe | O208: ='Battery Recycling'!I152 -> 0 | P208: g/cell | R208: =M208 -> Fe | T208: ='Battery Recycling'!J152 -> 0 | U208: g/cell | W208: =R208 -> Fe | Y208: ='Battery Recycling'!K152 -> 0 | Z208: g/cell | AB208: =W208 -> Fe | AD208: ='Battery Recycling'!L152 -> 0 | AE208: g/cell | AG208: =AB208 -> Fe | AI208: ='Battery Recycling'!M152 -> 0 | AJ208: g/cell
B209: ='Battery Recycling'!C154 -> Al | C209: Al | E209: ='Battery Recycling'!G154 -> 160.65772 | F209: ='Battery Recycling'!E154 -> g/cell | G209: 125.0733831 | H209: Al | J209: ='Battery Recycling'!H154 -> 65.48878624 | K209: g/cell | M209: Al | O209: ='Battery Recycling'!I154 -> 72.34316522 | P209: g/cell | R209: Al | T209: ='Battery Recycling'!J154 -> 97.60832307 | U209: g/cell | W209: Al | Y209: ='Battery Recycling'!K154 -> 77.55936772 | Z209: g/cell | AB209: Al | AD209: ='Battery Recycling'!L154 -> 23.39610126 | AE209: g/cell | AG209: Al | AI209: ='Battery Recycling'!M154 -> 39.11176993 | AJ209: g/cell
B210: ='Battery Recycling'!C155 -> Cu | C210: Cu | E210: ='Battery Recycling'!G155 -> 0 | F210: ='Battery Recycling'!E155 -> g/cell | G210: 0 | H210: Cu | J210: ='Battery Recycling'!H155 -> 0 | K210: g/cell | M210: Cu | O210: ='Battery Recycling'!I155 -> 0 | P210: g/cell | R210: Cu | T210: ='Battery Recycling'!J155 -> 0 | U210: g/cell | W210: Cu | Y210: ='Battery Recycling'!K155 -> 0 | Z210: g/cell | AB210: Cu | AD210: ='Battery Recycling'!L155 -> 61.96522404 | AE210: g/cell | AG210: Cu | AI210: ='Battery Recycling'!M155 -> 100.0103071 | AJ210: g/cell
B211: ='Battery Recycling'!C156 -> Black Mass | C211: Black Mass | E211: ='Battery Recycling'!G156 -> 675.2844618 | F211: ='Battery Recycling'!E156 -> g/cell | G211: 525.7146199 | H211: Black Mass | J211: ='Battery Recycling'!H156 -> 593.5463241 | K211: g/cell | M211: Black Mass | O211: ='Battery Recycling'!I156 -> 633.7749124 | P211: g/cell | R211: Black Mass | T211: ='Battery Recycling'!J156 -> 636.9270098 | U211: g/cell | W211: Black Mass | Y211: ='Battery Recycling'!K156 -> 770.9736923 | Z211: g/cell | AB211: Black Mass | AD211: ='Battery Recycling'!L156 -> 366.4838412 | AE211: g/cell | AG211: Black Mass | AI211: ='Battery Recycling'!M156 -> 470.802581 | AJ211: g/cell
B212: ='Battery Recycling'!C158 -> solid Waste | C212: solid Waste | E212: ='Battery Recycling'!G158 -> 49.04183267 | F212: ='Battery Recycling'!E158 -> g/cell | G212: 38.17947825 | H212: solid Waste | J212: ='Battery Recycling'!H158 -> 44.59129642 | K212: g/cell | M212: solid Waste | O212: ='Battery Recycling'!I158 -> 55.11539592 | P212: g/cell | R212: solid Waste | T212: ='Battery Recycling'!J158 -> 45.85287149 | U212: g/cell | W212: solid Waste | Y212: ='Battery Recycling'!K158 -> 56.70920106 | Z212: g/cell | AB212: solid Waste | AD212: ='Battery Recycling'!L158 -> 21.8795836 | AE212: g/cell | AG212: solid Waste | AI212: ='Battery Recycling'!M158 -> 29.14202356 | AJ212: g/cell
B213: ='Battery Recycling'!C159 -> Plastics | C213: Plastics | E213: ='Battery Recycling'!G159 -> 57.00975702 | F213: ='Battery Recycling'!E159 -> g/cell | G213: 44.38257422 | H213: Plastics | J213: ='Battery Recycling'!H159 -> 29.07297863 | K213: g/cell | M213: Plastics | O213: ='Battery Recycling'!I159 -> 32.18920497 | P213: g/cell | R213: Plastics | T213: ='Battery Recycling'!J159 -> 37.11066809 | U213: g/cell | W213: Plastics | Y213: ='Battery Recycling'!K159 -> 33.71057645 | Z213: g/cell | AB213: Plastics | AD213: ='Battery Recycling'!L159 -> 19.59354349 | AE213: g/cell | AG213: Plastics | AI213: ='Battery Recycling'!M159 -> 29.13936417 | AJ213: g/cell
B214: ='Battery Recycling'!C160 -> Activated carbon (spent filter) | H214: contained in input (treatment of spent act carbon consideres losses)
B215: ='Battery Recycling'!C161 -> Electrolyte (solvent without salt) | C215: Electrolyte (solvent without salt) | E215: ='Battery Recycling'!G161 -> 325.3882041 | F215: ='Battery Recycling'!E161 -> g/cell | G215: =E215/E$202 -> 253.3174473 | H215: =C215 -> Electrolyte (solvent without salt) | J215: ='Battery Recycling'!H161 -> 179.4941539 | K215: g/cell | M215: Electrolyte (solvent without salt) | O215: ='Battery Recycling'!I161 -> 203.5675992 | P215: g/cell | R215: Electrolyte (solvent without salt) | T215: ='Battery Recycling'!J161 -> 210.8060683 | U215: g/cell | W215: Electrolyte (solvent without salt) | Y215: ='Battery Recycling'!K161 -> 211.3768903 | Z215: g/cell | AB215: Electrolyte (solvent without salt) | AD215: ='Battery Recycling'!L161 -> 84.5876837 | AE215: g/cell | AG215: =AB215 -> Electrolyte (solvent without salt) | AI215: ='Battery Recycling'!M161 -> 125.5053035 | AJ215: g/cell
B216: ='Battery Recycling'!C162 -> (Electrolyte emission (absorbed in active carbon filter)) | C216: (Electrolyte emission (absorbed in active carbon filter)) | E216: ='Battery Recycling'!G162 -> 17.12569495 | F216: ='Battery Recycling'!E162 -> g/cell | G216: =E216/E$202 -> 13.33249722 | H216: =C216 -> (Electrolyte emission (absorbed in active carbon filter)) | J216: ='Battery Recycling'!H162 -> 9.447060731 | K216: 0 | M216: (Electrolyte emission (absorbed in active carbon filter)) | O216: ='Battery Recycling'!I162 -> 10.71408417 | P216: 0 | R216: (Electrolyte emission (absorbed in active carbon filter)) | T216: ='Battery Recycling'!J162 -> 11.09505622 | U216: 0 | W216: (Electrolyte emission (absorbed in active carbon filter)) | Y216: ='Battery Recycling'!K162 -> 11.12509949 | Z216: 0 | AB216: (Electrolyte emission (absorbed in active carbon filter)) | AD216: ='Battery Recycling'!L162 -> 4.451983353 | AE216: 0 | AG216: =AB216 -> (Electrolyte emission (absorbed in active carbon filter)) | AI216: ='Battery Recycling'!M162 -> 6.605542289 | AJ216: 0
A218: ='Battery Recycling'!B164 -> Hydrometallurgy
A219: ='Battery Recycling'!B165 -> INPUTS | B219: ='Battery Recycling'!C166 -> Black mass | C219: =AB219 -> Black mass | E219: ='Battery Recycling'!G166 -> 675.2844618 | F219: ='Battery Recycling'!E166 -> g | G219: =E219/E$219 -> 1 | H219: Black mass | I219: 0 | J219: ='Battery Recycling'!H166 -> 593.5463241 | K219: g | L219: =J219/J$219 -> 1 | M219: =H219 -> Black mass | O219: ='Battery Recycling'!I166 -> 633.7749124 | P219: g | Q219: =O219/O$219 -> 1 | R219: =M219 -> Black mass | T219: ='Battery Recycling'!J166 -> 636.9270098 | U219: g | V219: =T219/T$219 -> 1 | W219: =R219 -> Black mass | Y219: ='Battery Recycling'!K166 -> 770.9736923 | Z219: g | AA219: =Y219/Y$219 -> 1 | AB219: =W219 -> Black mass | AD219: ='Battery Recycling'!L166 -> 366.4838412 | AE219: g | AF219: =AD219/AD$219 -> 1 | AG219: =C219 -> Black mass | AI219: ='Battery Recycling'!M166 -> 470.802581 | AJ219: g | AK219: =AI219/AI$219 -> 1
B220: ='Battery Recycling'!C167 -> Electricity | C220: Electricity | E220: ='Battery Recycling'!G167 -> 1.209232368 | F220: ='Battery Recycling'!E167 -> kWh | G220: 0.001790700714 | H220: Electricity | J220: ='Battery Recycling'!H167 -> 1.062863826 | K220: kWh | L220: 0.001790700714 | M220: =H220 -> Electricity | O220: ='Battery Recycling'!I167 -> 1.134901188 | P220: kWh | Q220: 0.001790700714 | R220: =M220 -> Electricity | T220: ='Battery Recycling'!J167 -> 1.140545651 | U220: kWh | V220: 0.001790700714 | W220: =R220 -> Electricity | Y220: ='Battery Recycling'!K167 -> 1.380583141 | Z220: kWh | AA220: 0.001790700714 | AB220: =W220 -> Electricity | AD220: ='Battery Recycling'!L167 -> 0.656262876 | AE220: kWh | AF220: 0.001790700714 | AG220: Electricity | AI220: ='Battery Recycling'!M167 -> 0.8430665178 | AJ220: kWh | AK220: 0.001790700714
B221: ='Battery Recycling'!C168 -> Lime | C221: Lime | E221: ='Battery Recycling'!G168 -> 296.5070053 | F221: ='Battery Recycling'!E168 -> g | G221: 0.4390845963 | H221: Lime | J221: ='Battery Recycling'!H168 -> 266.4083106 | K221: g | L221: 0.4488416486 | M221: Lime | O221: ='Battery Recycling'!I168 -> 213.5368875 | P221: g | Q221: 0.3369285899 | R221: Lime | T221: ='Battery Recycling'!J168 -> 284.4992703 | U221: g | V221: 0.4466748402 | W221: Lime | Y221: ='Battery Recycling'!K168 -> 336.4776973 | Z221: g | AA221: 0.4364321385 | AB221: Lime | AD221: ='Battery Recycling'!L168 -> 55.49600992 | AE221: g | AF221: 0.1514282587 | AG221: Lime | AI221: ='Battery Recycling'!M168 -> 82.34110762 | AJ221: g | AK221: 0.1748951916
B222: ='Battery Recycling'!C169 -> Silica Sand | C222: Silica Sand | E222: ='Battery Recycling'!G169 -> 100.5929742 | F222: ='Battery Recycling'!E169 -> g | G222: 0.1489638514 | H222: Silica Sand | J222: ='Battery Recycling'!H169 -> 88.4169464 | K222: g | L222: 0.1489638514 | M222: Silica Sand | O222: ='Battery Recycling'!I169 -> 94.40955186 | P222: g | Q222: 0.1489638514 | R222: Silica Sand | T222: ='Battery Recycling'!J169 -> 94.87910042 | U222: g | V222: 0.1489638514 | W222: Silica Sand | Y222: ='Battery Recycling'!K169 -> 114.8472105 | Z222: g | AA222: 0.1489638514 | AB222: Silica Sand | AD222: ='Battery Recycling'!L169 -> 54.59284445 | AE222: g | AF222: 0.1489638514 | AG222: Silica Sand | AI222: ='Battery Recycling'!M169 -> 70.13256569 | AJ222: g | AK222: 0.1489638514
B223: ='Battery Recycling'!C170 -> H2SO4 | C223: H2SO4 | E223: ='Battery Recycling'!G170 -> 292.7948649 | F223: ='Battery Recycling'!E170 -> g | G223: 0.4335874457 | H223: H2SO4 | J223: ='Battery Recycling'!H170 -> 649.5515425 | K223: g | L223: 1.094356946 | M223: H2SO4 | O223: ='Battery Recycling'!I170 -> 576.2182863 | P223: g | Q223: 0.9091844359 | R223: H2SO4 | T223: ='Battery Recycling'!J170 -> 459.75587 | U223: g | V223: 0.7218344691 | W223: H2SO4 | Y223: ='Battery Recycling'!K170 -> 885.1800397 | Z223: g | AA223: 1.148132613 | AB223: H2SO4 | AD223: ='Battery Recycling'!L170 -> 379.2600786 | AE223: g | AF223: 1.034861666 | AG223: H2SO4 | AI223: ='Battery Recycling'!M170 -> 110.9318722 | AJ223: g | AK223: 0.2356229058
B224: ='Battery Recycling'!C171 -> Oxygen Liquid | C224: Oxygen Liquid | E224: ='Battery Recycling'!G171 -> 0 | F224: ='Battery Recycling'!E171 -> g | G224: 0 | H224: Oxygen Liquid | J224: ='Battery Recycling'!H171 -> 0 | K224: g | L224: 0 | M224: Oxygen Liquid | O224: ='Battery Recycling'!I171 -> 0 | P224: g | Q224: 0 | R224: Oxygen Liquid | T224: ='Battery Recycling'!J171 -> 0 | U224: g | V224: 0 | W224: Oxygen Liquid | Y224: ='Battery Recycling'!K171 -> 0 | Z224: g | AA224: 0 | AB224: Oxygen Liquid | AD224: ='Battery Recycling'!L171 -> 0.6368156153 | AE224: g | AF224: 0.001737636271 | AG224: Oxygen Liquid | AI224: ='Battery Recycling'!M171 -> 1.027804324 | AJ224: g | AK224: 0.002183089826
B225: ='Battery Recycling'!C172 -> Sodium hydroxid (100%) | C225: Sodium hydroxid (100%) | E225: ='Battery Recycling'!G172 -> 180.0080606 | F225: ='Battery Recycling'!E172 -> g | G225: 0.2665662706 | H225: Sodium hydroxid (100%) | J225: ='Battery Recycling'!H172 -> 94.8332272 | K225: g | L225: 0.1597739272 | M225: Sodium hydroxid (100%) | O225: ='Battery Recycling'!I172 -> 98.27528538 | P225: g | Q225: 0.1550633884 | R225: Sodium hydroxid (100%) | T225: ='Battery Recycling'!J172 -> 111.7382456 | U225: g | V225: 0.1754333602 | W225: Sodium hydroxid (100%) | Y225: ='Battery Recycling'!K172 -> 96.7266634 | Z225: g | AA225: 0.1254603942 | AB225: Sodium hydroxid (100%) | AD225: ='Battery Recycling'!L172 -> 39.83670299 | AE225: g | AF225: 0.1086997529 | AG225: Sodium hydroxid (100%) | AI225: ='Battery Recycling'!M172 -> 62.42277009 | AJ225: g | AK225: 0.1325879947
B226: ='Battery Recycling'!C173 -> Sodium carbonate | C226: Sodium carbonate | E226: ='Battery Recycling'!G173 -> 0 | F226: ='Battery Recycling'!E173 -> g | G226: 0 | H226: Sodium carbonate | J226: ='Battery Recycling'!H173 -> 85.97038681 | K226: g | L226: 0.144841916 | M226: Sodium carbonate | O226: ='Battery Recycling'!I173 -> 173.5672261 | P226: g | Q226: 0.2738625696 | R226: Sodium carbonate | T226: ='Battery Recycling'!J173 -> 48.01071357 | U226: g | V226: 0.07537867422 | W226: Sodium carbonate | Y226: ='Battery Recycling'!K173 -> 74.37039329 | Z226: g | AA226: 0.09646294553 | AB226: Sodium carbonate | AD226: ='Battery Recycling'!L173 -> 175.1587852 | AE226: g | AF226: 0.4779440878 | AG226: Sodium carbonate | AI226: ='Battery Recycling'!M173 -> 119.9080044 | AJ226: g | AK226: 0.2546885027
B227: ='Battery Recycling'!C174 -> Activated carbon | C227: Activated carbon | D227: activated carbon, reactivated | E227: ='Battery Recycling'!G174 -> 50.2964871 | F227: ='Battery Recycling'!E174 -> g | G227: 0.07448192568 | H227: Activated carbon | I227: activated carbon, reactivated | J227: ='Battery Recycling'!H174 -> 44.2084732 | K227: g | L227: 0.07448192568 | M227: Activated carbon | N227: activated carbon, reactivated | O227: ='Battery Recycling'!I174 -> 47.20477593 | P227: g | Q227: 0.07448192568 | R227: Activated carbon | S227: activated carbon, reactivated | T227: ='Battery Recycling'!J174 -> 47.43955021 | U227: g | V227: 0.07448192568 | W227: Activated carbon | X227: activated carbon, reactivated | Y227: ='Battery Recycling'!K174 -> 57.42360526 | Z227: g | AA227: 0.07448192568 | AB227: Activated carbon | AC227: activated carbon, reactivated | AD227: ='Battery Recycling'!L174 -> 27.29642222 | AE227: g | AF227: 0.07448192568 | AG227: Activated carbon | AH227: activated carbon, reactivated | AI227: ='Battery Recycling'!M174 -> 35.06628285 | AJ227: g | AK227: 0.07448192568
C228: =C227 -> Activated carbon | D228: activated carbon, new | E228: =E227*0.11 -> 5.532613581 | H228: =H227 -> Activated carbon | I228: activated carbon, new | J228: =J227*0.11 -> 4.862932052 | M228: =M227 -> Activated carbon | N228: activated carbon, new | O228: =O227*0.11 -> 5.192525352 | R228: =R227 -> Activated carbon | S228: activated carbon, new | T228: =T227*0.11 -> 5.218350523 | W228: =W227 -> Activated carbon | X228: activated carbon, new | Y228: =Y227*0.11 -> 6.316596578 | AB228: =AB227 -> Activated carbon | AC228: activated carbon, new | AD228: =AD227*0.11 -> 3.002606445 | AE228: g | AG228: =AG227 -> Activated carbon | AH228: activated carbon, new | AI228: =AI227*0.11 -> 3.857291113
B229: ='Battery Recycling'!C175 -> Iron | C229: =AB229 -> Iron | E229: ='Battery Recycling'!G175 -> 0 | F229: ='Battery Recycling'!E175 -> g | G229: =E229/E$219 -> 0 | H229: Iron | J229: ='Battery Recycling'!H175 -> 0 | K229: g | L229: 0 | M229: Iron | O229: ='Battery Recycling'!I175 -> 0 | P229: g | Q229: 0 | R229: Iron | T229: ='Battery Recycling'!J175 -> 0 | U229: g | V229: 0 | W229: Iron | Y229: ='Battery Recycling'!K175 -> 0 | Z229: g | AA229: 0 | AB229: Iron | AD229: ='Battery Recycling'!L175 -> 1.111442254 | AE229: g | AF229: 0.003032718305 | AG229: =C229 -> Iron | AI229: ='Battery Recycling'!M175 -> 1.793839735 | AJ229: g | AK229: 0.003810173962
A230: ='Battery Recycling'!B176 -> OUTPUTS
A231: ='Battery Recycling'!B177 -> Materials | B231: ='Battery Recycling'!C178 -> Sodium | C231: =AB231 -> Sodium | D231: Na2CO3 | E231: ='Battery Recycling'!G178 -> 291.4582971 | F231: ='Battery Recycling'!E178 -> g | G231: =E231/E$219 -> 0.4316081794 | H231: Sodium | I231: Na2CO3 | J231: ='Battery Recycling'!H178 -> 361.5682805 | K231: g | L231: =J231/J$219 -> 0.6091660681 | M231: Sodium | N231: =I231 -> Na2CO3 | O231: ='Battery Recycling'!I178 -> 237.0800428 | P231: g | Q231: =O231/O$219 -> 0.3740760925 | R231: =M231 -> Sodium | S231: =N231 -> Na2CO3 | T231: ='Battery Recycling'!J178 -> 369.2292526 | U231: g | V231: =T231/T$219 -> 0.5797041841 | W231: =R231 -> Sodium | X231: =S231 -> Na2CO3 | Y231: ='Battery Recycling'!K178 -> 470.2049492 | Z231: g | AA231: =Y231/Y$219 -> 0.6098845575 | AB231: =W231 -> Sodium | AC231: =X231 -> Na2CO3 | AD231: ='Battery Recycling'!L178 -> 0 | AE231: g | AF231: =AD231/AD$219 -> 0 | AG231: =C231 -> Sodium | AH231: Na2CO3 | AI231: ='Battery Recycling'!M178 -> 0 | AJ231: g | AK231: =AI231/AI$219 -> 0
B232: ='Battery Recycling'!C179 -> Lithium | C232: Lithium | D232: Li2CO3 | E232: ='Battery Recycling'!G179 -> 0 | F232: ='Battery Recycling'!E179 -> g | G232: 0 | H232: Lithium | I232: Li2CO3 | J232: ='Battery Recycling'!H179 -> 0 | K232: g | L232: 0 | M232: Lithium | N232: Li2CO3 | O232: ='Battery Recycling'!I179 -> 0 | P232: g | Q232: 0 | R232: Lithium | S232: Li2CO3 | T232: ='Battery Recycling'!J179 -> 0 | U232: g | V232: 0 | W232: Lithium | X232: Li2CO3 | Y232: ='Battery Recycling'!K179 -> 0 | Z232: g | AA232: 0 | AB232: Lithium | AC232: Li2CO3 | AD232: ='Battery Recycling'!L179 -> 191.3663326 | AE232: g | AF232: 0.522168541 | AG232: Lithium | AH232: Li2CO3 | AI232: ='Battery Recycling'!M179 -> 153.9289572 | AJ232: g | AK232: 0.3269501133
B233: ='Battery Recycling'!C180 -> Nickel | C233: Nickel | D233: NiSO4 | E233: ='Battery Recycling'!G180 -> 0 | F233: ='Battery Recycling'!E180 -> g | G233: 0 | H233: Nickel | I233: NiSO4 | J233: ='Battery Recycling'!H180 -> 138.6640187 | K233: g | L233: 0.2336195392 | M233: Nickel | N233: NiSO4 | O233: ='Battery Recycling'!I180 -> 0 | P233: g | Q233: 0 | R233: Nickel | S233: NiSO4 | T233: ='Battery Recycling'!J180 -> 0 | U233: g | V233: 0 | W233: Nickel | X233: NiSO4 | Y233: ='Battery Recycling'!K180 -> 199.9234463 | Z233: g | AA233: 0.2593129289 | AB233: Nickel | AC233: NiSO4 | AD233: ='Battery Recycling'!L180 -> 210.387956 | AE233: g | AF233: 0.5740715751 | AG233: Nickel | AH233: NiSO4 | AI233: ='Battery Recycling'!M180 -> 0 | AJ233: g | AK233: 0
B234: ='Battery Recycling'!C181 -> Cobalt | C234: Cobalt | D234: CoSO3 | E234: ='Battery Recycling'!G181 -> 0 | F234: ='Battery Recycling'!E181 -> g | G234: 0 | H234: Cobalt | I234: CoSO3 | J234: ='Battery Recycling'!H181 -> 0 | K234: g | L234: 0 | M234: Cobalt | N234: CoSO3 | O234: ='Battery Recycling'!I181 -> 0 | P234: g | Q234: 0 | R234: Cobalt | S234: CoSO3 | T234: ='Battery Recycling'!J181 -> 0 | U234: g | V234: 0 | W234: Cobalt | X234: CoSO3 | Y234: ='Battery Recycling'!K181 -> 153.6868688 | Z234: g | AA234: 0.199341262 | AB234: Cobalt | AC234: CoSO3 | AD234: ='Battery Recycling'!L181 -> 53.91041218 | AE234: g | AF234: 0.147101744 | AG234: Cobalt | AH234: CoSO3 | AI234: ='Battery Recycling'!M181 -> 0 | AJ234: g | AK234: 0
... 8 more rows

Sheet RecyclingProcessData
F3: cathode act mat | G3: 0.4 | H3: kg/kg cell
B4: Hydrometallurgical processing of LIB | Q4: Pyrometallurgical processing of LIB | X4: Advanced hydrometallurgical treatment | AA4: (Mohr et al 2020) -
B5: (Mohr et al 2020, Fisher et al. 2006) | F5: molweight | Q5: (Mohr et al 2020, Fisher et al. 2006) | X5: mechanical recycling stage | AA5: (Mohr et al 2020) -
B6: Item | C6: Amount | D6: Unit | F6: NMC | G6: 93.88 | H6: g/mol | Q6: Item | R6: Amount | S6: Unit | X6: Item | Y6: Ecoinvent dataset | Z6: Amount | AA6: Unit
B7: INPUTS | F7: H2SO4 | G7: =2+32.065+16*4 -> 98.065 | H7: g/mol | Q7: INPUTS | X7: INPUTS | AB7: considerations for openLCA
B8: Waste batteries | C8: 1 | D8: kg | F8: CaCO3 | G8: =40+12+16*3 -> 100 | H8: g/mol | J8: CaSO4 | K8: =40+32+16*4 -> 136 | L8: g/mol | Q8: Waste batteries | R8: 1 | S8: kg | X8: Battery cells (NMC) | Z8: 1 | AA8: kg | AB8: add chemical factory
B9: Reagent | C9: 0.025 | D9: kg | F9: Na2CO3 | G9: =23*2+12+16*3 -> 106 | H9: g/mol | J9: CaSO4 * 2H2O | K9: =K8+2*18 -> 172 | L9: g/mol | Q9: NaOH | R9: 0.21 | S9: kg | X9: Electricity | Z9: 0.4129 | AA9: kWh
B10: Electricity | C10: 0.14 | D10: kWh | Q10: Electricity | R10: 0.8 | S10: kWh | X10: Inert gas (nitrogen) | Z10: 0.02340978593 | AA10: kg
B11: Water | C11: 0.72 | D11: l | Q11: Water | R11: 1 | S11: l | X11: Treatment of activated carbon (filter reprocessing) | Y11: Treatment of spent active carbon | Z11: 0.022458716 | AA11: kg
B12: H2SO4 (100%) | C12: 0.2132 | D12: kg | E12: 18mol H2SO4/12 mol NCM | H12: =C8*G3/G6*18/12*G7 -> 0.626746911 | I12: kg | X12: Activated carbon (filter make up) | Y12: Market for activated carbon | Z12: 0.002245871 | AA12: kg
B13: Lime | C13: 0.116 | D13: kg | E13: 1 mol CaCO3/2 mol Li | H13: =G3/G6*1.05/2*G8 -> 0.2236898168 | I13: kg | Q13: OUTPUTS | X13: OUTPUTS | Z13: Recovery rate | AB13: Recovery rate
B14: OUTPUTS | E14: (CaCO3 + Li2SO4 = CaSO4 + Li2CO3) | Q14: Materials | R14: Recovery rate | X14: Fe | Z14: 0.98 | AA14: kg | AB14: 0.98
B15: Materials | C15: Recovery rate | E15: recovery rates | G15: Input of process chemicals according to stoichiometrical calculations | Q15: Sodium | R15: 0 | X15: SUM Al+Cu | Z15: 0.98 | AA15: kg | AB15: 0.98
B16: Na2CO3 | C16: 0.936 | H16: H2SO4 demand | I16: Lime demand | K16: g/mol | Q16: Lithium | R16: 0 | X16: Al | Z16: 0.98 | AA16: kg | AB16: 0.98
B17: Li2CO3 | C17: 0.936 | F17: g | G17: per g Na | H17: =$G$7/K17 -> 4.263695652 | J17: g | K17: 23 | Q17: Nickel | R17: 0.936 | X17: Cu | Z17: 0.98 | AA17: kg | AB17: 0.98
B18: NiSO4 | C18: 0.936 | F18: g | G18: per g Li | H18: =$G$7/(2*K18) -> 7.065201729 | I18: =$G$8/(2*K18) -> 7.204610951 | K18: 6.94 | Q18: Cobalt | R18: 0.936 | X18: Black Mass | Z18: 0.98 | AA18: kg | AB18: 0.98 | AC18: (active materials + cond. carbon)
B19: CoSO4 | C19: 0.936 | F19: g | G19: per g Ni | H19: =$G$7/K19 -> 1.670328734 | K19: 58.71 | Q19: Manganese | R19: 0
B20: MnSO4 | C20: 0.936 | F20: g | G20: per g Co | H20: 1.664092992 | K20: 58.93 | Q20: Steel | R20: 0.98
B21: Mg(OH)2 | C21: 0.936 | F21: g | G21: per g Mn | H21: =$G$7/K21 -> 1.784947215 | K21: 54.94 | Q21: Aluminium | R21: 0
B22: TiO2 | C22: 0.936 | F22: g | K22: 24.305 | Q22: Copper | R22: 0.936 | X22: solid Waste
B23: Steel/Iron | C23: 0.936 | F23: g | K23: 47.9 | Q23: Emissions to air | X23: Plastics | AA23: kg | AB23: (separator + housing plastic parts)
B24: Aluminium | C24: 0.936 | F24: g | Q24: SO2 | R24: 4.8e-05 | S24: kg | X24: Activated carbon (spent filter) | Z24: =Z12 -> 0.002245871 | AA24: kg
B25: Copper | C25: 0.936 | Q25: dust | R25: 0.000208 | S25: kg | Z25: Recovery rate
Q26: Emissions to water | X26: Electrolyte (solvent without salt) | Z26: 0.95 | AA26: kg | AB26: (electrolyte)
B27: Emissions to air | G27: Combustion emissions | Q27: SO2 | R27: 0.04 | S27: kg | AB27: (89% Solvent share in electrolyte)
B28: SO2 | C28: 4.5e-06 | D28: kg | Q28: Cl | R28: 0.04 | S28: kg
B29: VOC | C29: 2.5e-06 | D29: kg | H29: g·mol−1 | I29: C/mol | J29: mol C/g | K29: gCO2/g | Q29: Water to sewer | R29: 1 | S29: l
B30: CO2 | E30: (plastics + electrolyte | G30: DMC | H30: 90.078 | I30: 3 | J30: =I30/H30 -> 0.03330446946 | K30: =J30*44 -> 1.465396656
B31: Emissions to water | G31: EC | H31: 88.062 | I31: 3 | J31: =I31/H31 -> 0.03406690741 | K31: =J31*44 -> 1.498943926 | Q31: Solid waste
B32: Solid suspension | C32: 1.2e-05 | D32: kg | H32: g/cm3 | I32: gC/g | Q32: Plastics to incinerator | R32: 0.09728850978 | S32: kg
B33: Chemical oxygen | C33: 3e-05 | D33: kg | G33: PP | H33: 0.91 | I33: =36/42 -> 0.8571428571 | K33: =I33*44/12 -> 3.142857143 | L33: (C3H6)
B34: Total hydrocarbon | C34: 1e-08 | D34: kg | G34: PP | J34: C3H6 | K34: =36/42*44/12 -> 3.142857143 | L34: kgCO2/kg | AO34: Impurities suchas soluble Fe,Al, andCuare generallyprecipitatedfirst ashydroxides | AV34: Progress and Status of Hydrometallurgical and Direct Recycling of LIB and beyond_Larouche et al_2020.pdf
B35: Cu | C35: 1.666666667e-05 | D35: kg | G35: PET | J35: C10H8O4 | K35: =120/(120+8+(16*4))*44/12 -> 2.291666667 | L35: kgCO2/kg | Q35: Comments
B36: Co | C36: 1.666666667e-05 | D36: kg | G36: PVdF | J36: C2H2F2 | K36: =24/(24+2+38)*44/12 -> 1.375 | AO36: Process steps acc. To Duesenfeld Patent see also Figure above) | AR36: Method for the utilization of lithium batteries_Hanisch_2018_EP18170117NWB1.pdf | AV36: Source: | AW36: https://data.epo.org/publication-server/rest/v1.0/publication-dates/20200325/patents/EP3517641NWB1/document.pdf
B37: Ni | C37: 1.666666667e-05 | D37: kg | G37: CFC | J37: CH2COOH | K37: =24/(24+3+32)*44/12 -> 1.491525424 | Q37: include housing (see above) | AP37: Leaching with H2SO4
B38: Cu+Co+Ni | C38: 5e-08 | D38: kg | AP38: Leaching with H2SO4 - Separation of graphite (insolubles) and evolving gaseous HF | AT38: LiMO2 + H2SO4 -> LiSO4 + MSO4
B39: Fluoride | C39: 3e-08 | D39: kg | X39: Advanced hydrometallurgical treatment | AA39: (Mohr et al 2020) - | AT39: LiPF6 + 3H2SO4 -> 6 HF + 3SO4 +Li + P
B40: Water to sewer | C40: 0.337 | D40: l | X40: hydrometallurgical recycling stage | AA40: (Mohr et al 2020) - | AP40: wird metallisches Kupfer Cu erhalten, beispielsweise durch Zementation. Dazu wird beispielsweise metallisches Eisen in Kontakt mit der Roh-Flüssigkeit gebracht, sodass Eisen-Ionen in Lösung gehen und Kupfer metallisch ausfällt.
B41: Solid waste | X41: Item | Z41: Amount | AA41: Unit | AP41: Die Fe2+-Ionen in der entkupferten Roh-Flüssigkeit werden zu Fe3+-Ionen oxidiert. Das erfolgt durch Zugabe von Wasserstoffperoxid H2O2. Es kann jedoch auch ein anderes Oxidationsmittel verwendet werden.
B42: Paper and plastic to refining | C42: 0.09728850978 | D42: kg | X42: INPUTS | AP42: Zugabe von Natriumhydroxid -> wird Eisen, Aluminium und ggf. Titan in Form eines Hydroxids ausgefällt
B43: Residue to landfill | C43: 0.202 | D43: kg | V43: 0.5 | X43: Black mass | Z43: 1 | AA43: kg | AP43: Aus der Rein-Flüssigkeit werden mittels Solvent-Extraktion Nickel und Kobalt extrahiert. Das erfolgt im vorliegenden Fall mittels Cyanex 301, das in einem organischen Lösungsmittel, in der Regel Kerosin, gelöst ist.
B44: Gypsum | C44: 0.339 | D44: kg | V44: =Z44*V$43 -> 0.8953503569 | X44: Electricity | Z44: 1.790700714 | AP44: Durch Stripping mit Säure, insbesondere Salz- oder Schwefelsäure, wird eine Lösung 30 erhalten, die Nickel und Kobalt enthält. Diese werden nach weiterer Trennung mittels Cyanex 272 getrennt voneinander auskristallisiert. Der Rest ist eine mangan-und lithiumhaltige Zielflüssigkeit
V45: =Z45*V$43*1000 -> 74.48192568 | X45: Lime | Z45: 0.1489638514 | AA45: kg | AP45: Mangan wird aus der Zielflüssigkeit durch Fällung entfernt, beispielsweise durch Zugabe von Natriumhydroxid oder Natriumkarbonat
B46: Comments | V46: =Z46*V$43*1000 -> 74.48192568 | X46: Silica Sand | Z46: 0.1489638514 | AA46: kg | AP46: Lithium wird aus der nun mangan-freien Ziel-Flüssigkeit ausgefällt. Das erfolgt beispielsweise mittels Natriumkarbonat.
B47: consider only cell or include housing? | V47: 744.8192568 | X47: H2SO4 | Z47: 1.489638514 | AA47: kg | AP47: Abscheidens von Fluorwasserstoff aus dem Abgas, insbesondere des Fällens von Fluorwasserstoff aus dem Abgas. Das erfolgt beispielsweise mittels einer Kalziumverbindung, sodass sich Kalziumfluorid bildet
B48: Fisher-Data not exactly clear on dismantling level! ("battery") | V48: 89.37831082 | X48: Oxygen Liquid | Z48: 0.1787566216 | AA48: kg
B49: Would need inventory data for other housing than only pouch | V49: 178.7566216 | X49: Sodium hydroxid 50% in H2O | Z49: 0.3575132433 | AA49: kg | AB49: 50% NaOH
V50: 446.8915541 | X50: Sodium carbonate | Z50: 0.8937831082 | AA50: kg | AD50: Input of process chemicals according to stoichiometrical calculations based on Patent process flow
B51: additional assumptions: chemical factory as in existing ecoinvent process | V51: 37.24096284 | X51: Activated carbon | Z51: 0.07448192568 | AA51: kg | AG51: =23+16+1 -> 40
B52: Plastic waste - less if only cell considered? | AE52: H2SO4 demand | AF52: Lime demand | AG52: NaOH demand | AH52: Na2CO3 demand
X53: OUTPUTS | Z53: recovery | AB53: recovery rates | AD53: excess demand | AE53: 0.05 | AF53: 0.05 | AG53: 0.05 | AH53: 0.05 | AJ53: g/mol
X54: Na2CO3 | Z54: 0.95 | AC54: g | AD54: per g Na | AE54: =$G$7/AJ54/(1-AE$53) -> 4.488100686 | AF54: =$G$8/(2*AJ54)/(1-AF53) -> 2.288329519 | AJ54: 23 | AK54: =(AM54+12+16*3) -> 118.933 | AL54: Co | AM54: 58.933
X55: Li2CO3 | Z55: 0.95 | AC55: g | AD55: per g Li | AE55: =$G$7/(2*AJ55)/(1-AE$53) -> 7.437054452 | AF55: =$G$8/(2*AJ55)/(1-AF53) -> 7.583801001 | AH55: =$G$9/(2*AJ55)/(1-AH$53) -> 8.038829061 | AJ55: 6.94 | AK55: =(AM55+12+16*3) -> 118.69 | AL55: Ni | AM55: 58.69
X56: NiSO4 | Z56: 0.95 | AC56: g | AD56: per g Ni | AE56: =$G$7/AJ56/(1-AE$53) -> 1.758240773 | AJ56: 58.71 | AK56: =(AM56+16*2) -> 86.938 | AL56: Mn | AM56: 54.938
X57: CoSO4 | Z57: 0.95 | AC57: g | AD57: per g Co | AE57: =$G$7/AJ57/(1-AE$53) -> 1.751676833 | AJ57: 58.93 | AK57: =AM57+16+1 -> 24 | AL57: Li | AM57: 7
X58: MnSO4 | Z58: 0.95 | AC58: g | AD58: per g Mn | AE58: =$G$7/AJ58/(1-AE$53) -> 1.878891805 | AH58: =$G$9/(2*AJ58)/(1-AH$53) -> 1.015461844 | AJ58: 54.94 | AL58: Mg | AM58: 24.305
X59: Mg(OH)2 | Z59: 0.93 | AC59: g | AD59: Mg | AE59: =$G$7/AJ59/(1-AE$53) -> 4.247122641 | AG59: =AG$51/(AJ59)/(1-AG$53) -> 1.732370424 | AJ59: 24.305 | AL59: Ti | AM59: 47.867
X60: V2O5 | Z60: 0 | AD60: V not considered yet (no process data)
X61: TiO2 | Z61: 0.93 | AC61: g | AD61: Ti | AE61: =$G$7/AJ61/(1-AE$53) -> 2.155037908 | AG61: =AG$51/(AJ61)/(1-AG$53) -> 0.879024283 | AJ61: 47.9
X62: graphite | Z62: 0.93 | AC62: g | AD62: per g Li de electrolito | AF62: =$G$8*6/(AJ62)/(1-AF$53) -> 91.00561201 | AG62: =AG51*6/(AJ62)/(1-AG$53) -> 36.40224481 | AJ62: 6.94
AC63: g | AD63: per g Na de electrolito | AF63: =$G$8*6/(AJ63)/(1-AF$53) -> 27.45995423 | AG63: =AG$51*6/(AJ63)/(1-AG$53) -> 10.98398169 | AJ63: 23
X64: Activated carbon | Y64: assume same as input | Z64: =Z51 -> 0.07448192568 | AA64: kg | AC64: g | AD64: per g Fe | AG64: =AG$51/(AJ64)/(1-AG$53) -> 0.7538990718 | AJ64: 55.85 | AL64: Fe
X65: binder as plastic waste | AA65: kg | AC65: g | AD65: per g Al | AG65: =AG$51/(AJ65)/(1-AG$53) -> 1.560610199 | AJ65: 26.98 | AL65: Al
AC66: Rückgewinnungsraten: Ni, Co> 95%, Li 0%, Mn 0% (Ziel bis 2020 auch >95%), Cu 99%, Eisen, Stahl 98%

Sheet Chem
A1: Default input values (may be changed) | B1: Selected Chemistry - Choose a Chemistry in Dashboard | G1: Automatic input (Change using overrides) | R1: Chemistry | S1: NCA-G | T1: ID # | U1: =SUM(IF($A$1:T1 ="Chemistry", 1, 0)) -> 1 | X1: Chemistry | Y1: NMC622-G | Z1: ID # | AA1: =SUM(IF($A$1:Z1 ="Chemistry", 1, 0)) -> 2 | AC1: Chemistry | AD1: NMC333-G | AE1: ID # | AF1: =SUM(IF($A$1:AE1 ="Chemistry", 1, 0)) -> 3 | AH1: Chemistry | AI1: LFP-G | AJ1: ID # | AK1: =SUM(IF($A$1:AJ1 ="Chemistry", 1, 0)) -> 4 | AM1: Chemistry | AN1: LMO-G | AO1: ID # | AP1: =SUM(IF($A$1:AO1 ="Chemistry", 1, 0)) -> 5 | AR1: Chemistry | AS1: =AU7& "/" & 100*AU8 & "%/" & AU9 & " - G" -> NMC532/50%/LMO - G | AT1: ID # | AU1: =SUM(IF($A$1:AT1 ="Chemistry", 1, 0)) -> 6 | AW1: Chemistry | AX1: NMC811-G | AY1: ID # | AZ1: =SUM(IF($A$1:AY1 ="Chemistry", 1, 0)) -> 7 | BB1: Chemistry | BC1: NMC532-G | BD1: ID # | BE1: =SUM(IF($A$1:BD1 ="Chemistry", 1, 0)) -> 8 | BH1: Chemistry | BI1: LMO-LTO | BJ1: ID # | BK1: =SUM(IF($A$1:BJ1 ="Chemistry", 1, 0)) -> 9 | BN1: Chemistry | BO1: NMO | BP1: ID # | BQ1: =SUM(IF($A$1:BP1 ="Chemistry", 1, 0)) -> 10 | BS1: Chemistry | BT1: NMO-aqu | BU1: ID # | BV1: =SUM(IF($A$1:BU1 ="Chemistry", 1, 0)) -> 11 | BX1: Chemistry | BY1: NMMT | BZ1: ID # | CA1: =SUM(IF($A$1:BZ1 ="Chemistry", 1, 0)) -> 12 | CC1: Chemistry | CD1: Na-NMC | CE1: ID # | CF1: =SUM(IF($A$1:CE1 ="Chemistry", 1, 0)) -> 13 | CH1: Chemistry | CI1: NTO-NMO-aqu | CJ1: ID # | CK1: =SUM(IF($A$1:CJ1 ="Chemistry", 1, 0)) -> 14 | CM1: Chemistry | CN1: Na-FCN | CO1: ID # | CP1: =SUM(IF($A$1:CO1 ="Chemistry", 1, 0)) -> 15 | CR1: Chemistry | CS1: NTP-MTO-aqu | CT1: ID # | CU1: =SUM(IF($A$1:CT1 ="Chemistry", 1, 0)) -> 16 | CW1: Chemistry | CX1: NaMVP-C | CY1: ID # | CZ1: =SUM(IF($A$1:CY1 ="Chemistry", 1, 0)) -> 17
A2: Optional override input | B2: System ID | C2: Default | R2: Notes | S2: This is a supplied set of data from BatPaC | X2: Notes | Y2: This is a supplied set of data from BatPaC | AC2: Notes | AD2: This is a supplied set of data from BatPaC | AH2: Notes | AI2: This is a supplied set of data from BatPaC | AM2: Notes | AN2: This is a supplied set of data from BatPaC | AR2: Notes | AS2: Default is 50/50 NMC 532 and LMO | AT2: % is mass based | AW2: Notes | AX2: This is a supplied set of data from BatPaC | BB2: Notes | BC2: This is a supplied set of data from BatPaC | BH2: Notes | BI2: This is a supplied set of data from BatPaC | BN2: Notes | BS2: Notes | BX2: Notes | CC2: Notes | CH2: Notes | CM2: Notes | CN2: Prussian blue (PB, Fe4[Fe(CN)6]3) | CR2: Notes | CW2: Notes
A3: Add X to add to Summary of Results Worksheet | B3: Description | C3: =IF(INDEX($3:$3, E2) = "", "", INDEX($3:$3, E2)) ->  | R3: Description | X3: Description | AC3: Description | AH3: Description | AM3: Description | AR3: Description | AS3: This data set considers a mix of two Positive electrodes. Change values in Chem!AY7:AY9 | AW3: Description | BB3: Description | BH3: Description | BN3: Description | BS3: Description | BX3: Description | CC3: Description | CH3: Description | CM3: Description | CR3: Description | CW3: Description
B4: Property | C4: Applied Value | R4: Property | S4: Default Value | T4: Notes | X4: Property | Y4: Default Value | Z4: Notes | AC4: Property | AD4: Default Value | AE4: Notes | AH4: Property | AI4: Default Value | AJ4: Notes | AM4: Property | AN4: Default Value | AO4: Notes | AR4: Property | AS4: Default Value | AT4: Notes | AW4: Property | AX4: Default Value | AY4: Notes | BB4: Property | BC4: Default Value | BD4: Notes | BH4: Property | BI4: Default Value | BJ4: Notes | BN4: Property | BO4: Default Value | BP4: Notes | BS4: Property | BT4: Default Value | BU4: Notes | BX4: Property | BY4: Default Value | BZ4: Notes | CC4: Property | CD4: Default Value | CE4: Notes | CH4: Property | CI4: Default Value | CJ4: Notes | CM4: Property | CN4: Default Value | CO4: Notes | CR4: Property | CS4: Default Value | CT4: Notes | CW4: Property | CX4: Default Value | CY4: Notes
A5: X | B5: Couple Name | C5: =CN6&"-"&CN29 -> NaFCN-HC | D5: =BY6&"-"&BY29 -> NaNMMT-HC | E5: =BO6&"-"&BO29 -> NaMMO-HC | F5: =CX6&"-"&CX29 -> NaMVP-HC | G5: =CD6&"-"&CD29 -> NaNMC-HC | H5: =Y6&"-"&Y29 -> NMC622-G | I5: =AI6&"-"&AI29 -> LFP-G
B6: Positive electrode active material | C6: =CN6 -> NaFCN | D6: =BY6 -> NaNMMT | E6: =BO6 -> NaMMO | F6: =CX6 -> NaMVP | G6: =CD6 -> NaNMC | H6: =Y6 -> NMC622 | I6: =AI6 -> LFP | R6: Positive Electrode | S6: NCA | X6: Positive Electrode | Y6: NMC622 | AC6: Positive Electrode | AD6: NMC333 | AH6: Positive Electrode | AI6: LFP | AM6: Positive Electrode | AN6: LMO | AR6: Positive Electrode | AS6: =AU7&"/"&100*AU8&"%/"&AU9&"/"&(1-AU8)*100& "%" -> NMC532/50%/LMO/50% | AT6: Mixing Values | AW6: Positive Electrode | AX6: NMC811 | BB6: Positive Electrode | BC6: NMC532 | BH6: Positive Electrode | BI6: LMO | BN6: Positive Electrode | BO6: NaMMO | BS6: Positive Electrode | BT6: NaMO | BX6: Positive Electrode | BY6: NaNMMT | CC6: Positive Electrode | CD6: NaNMC | CH6: Positive Electrode | CI6: NMO-044 | CM6: Positive Electrode | CN6: NaFCN | CR6: Positive Electrode | CS6: NaMTOaq | CW6: Positive Electrode | CX6: NaMVP
B7: Positive electrode active material molecular weight | C7: =CN7 -> 313.7 | D7: =BY7 -> 105.99325 | E7: =BO7 -> 100.58825 | F7: =CX7 -> 482.79 | G7: =CD7 -> 110.745683 | H7: =Y7 -> 94.387 | I7: =AI7 -> 157.76 | R7: Active material molecular weight | S7: =INDEX(Lists!$L$19:$L$53, MATCH(S6, Lists!$K$19:$K$53, 0)) -> 96.0965 | X7: Active material molecular weight | Y7: =INDEX(Lists!$L$19:$L$53, MATCH(Y6, Lists!$K$19:$K$53, 0)) -> 94.387 | AC7: Active material molecular weight | AD7: =INDEX(Lists!$L$19:$L$53, MATCH(AD6, Lists!$K$19:$K$53, 0)) -> 93.882683 | AH7: Active material molecular weight | AI7: =INDEX(Lists!$L$19:$L$53, MATCH(AI6, Lists!$K$19:$K$53, 0)) -> 157.76 | AM7: Active material molecular weight | AN7: =INDEX(Lists!$L$19:$L$53, MATCH(AN6, Lists!$K$19:$K$53, 0)) -> 176.02 | AR7: Active material molecular weight | AS7: =INDEX(Lists!$L$19:$L$53,MATCH(AU7,Lists!$K$19:$K$53,0))* AU8 + INDEX(Lists!$L$19:$L$53,MATCH(AU9,Lists!$K$19:$K$53,0))*(1-AU8) -> 135.024425 | AT7: Positive electrode 1 | AU7: NMC532 | AW7: Active material molecular weight | AX7: =INDEX(Lists!$L$19:$L$53, MATCH(AX6, Lists!$K$19:$K$53, 0)) -> 94.72425 | BB7: Active material molecular weight | BC7: =INDEX(Lists!$L$19:$L$53, MATCH(BC6, Lists!$K$19:$K$53, 0)) -> 94.02885 | BH7: Active material molecular weight | BI7: =INDEX(Lists!$L$19:$L$53, MATCH(BI6, Lists!$K$19:$K$53, 0)) -> 176.02 | BN7: Active material molecular weight | BO7: =INDEX(Lists!$L$19:$L$53, MATCH(BO6, Lists!$K$19:$K$53, 0)) -> 100.58825 | BS7: Active material molecular weight | BT7: =INDEX(Lists!$L$19:$L$53, MATCH(BT6, Lists!$K$19:$K$53, 0)) -> 193.686 | BX7: Active material molecular weight | BY7: =INDEX(Lists!$L$19:$L$53, MATCH(BY6, Lists!$K$19:$K$53, 0)) -> 105.99325 | CC7: Active material molecular weight | CD7: =INDEX(Lists!$L$19:$L$53, MATCH(CD6, Lists!$K$19:$K$53, 0)) -> 110.745683 | CH7: Active material molecular weight | CI7: =INDEX(Lists!$L$19:$L$53, MATCH(CI6, Lists!$K$19:$K$53, 0)) -> 97.06 | CM7: Active material molecular weight | CN7: =INDEX(Lists!$L$19:$L$53, MATCH(CN6, Lists!$K$19:$K$53, 0)) -> 313.7 | CR7: Active material molecular weight | CS7: =INDEX(Lists!$L$19:$L$53, MATCH(CS6, Lists!$K$19:$K$53, 0)) -> 99.7264 | CW7: Active material molecular weight | CX7: =INDEX(Lists!$L$19:$L$53, MATCH(CX6, Lists!$K$19:$K$53, 0)) -> 482.79
